Workbook

Sheet Instructions
B7: ="Farm Gross Margin Guide -"&TEXT(m_year,"0000") -> Farm Gross Margin Guide -2018
B8: This spreadsheet can take a few moments to load
B9: PLEASE NOTE:THIS VERSION WILL ONLY WORK WITH EXCEL VERSIONS 2007 & ABOVE FOR WINDOWS ONLY. It will not work with Excel for Mac, Ipad, Android, tablets etc.
B11: Before You Start
B12: Before you start you will need to enable macros.
B13: This may appear as a Security Warning at the top of your page. To do this, click on “Enable Content”.
B14: Clicking “Enable Content” allows you to enter data into the Excel Worksheet.
B22: You may also see a message about "PROTECTED VIEW". Please click "Enable Editing".
B29: Yellow cells = data entry (some yellow cells contain formulas, these usually represent default
B30: values but may be over written. To revert back to the default value formula click the blue 'Reset…'
B31: link next to the cell.
B32: Blue cells contain formulas, are protected and can not be overwritten.
B33: Red cell = crop / pasture area.
B46: Start in the “Main” sheet and select the “Crop Types” (including pastures) you want to use, then the “Rainfall Zone”
B47: and “Machinery Treatment Method”. Selecting the “Crop Types” will open up new sheets for each crop type chosen.
B48: Click on the individual sheets and make the necessary changes.
B49: To compare two different rotations go to the “Main” sheet and select “Compare Crop Rotations” (top left).
B50: This will open a new list of “Crop Types”. Select a new list. If there are crop types with the same gross
B51: margin in Rotation 1 and 2, “click” the copy button to copy the information you have entered (Rotation 1)
B52: to the new sheet (Rotation 2). For new crop types the information will need to be adjusted as required.
B53: Use the “Livestock Gross Margin” file to generate the income for the pasture options.
B54: The “Summary” sheet compares the outputs of the two different rotations.
B88: For technical support or to report errors/omissions regarding this spreadsheet please
B89: email Barry Mudge at:
C90: theoaks5@bigpond.com

Sheet Main
C3: ="FARM GROSS MARGIN GUIDE - "&TEXT(m_year,"0000") -> FARM GROSS MARGIN GUIDE - 2018 | L3: ="Version-"&TEXT(MODEL_VERSION,"0.0") -> Version-3.0
C6: by clicking checkboxes or All or None buttons | F6: by clicking checkboxes or All or None buttons | K6: if more than one rainfall zone is required, please save a separate copy of this spreadsheet.
B7: FALSE | C7: Wheat | F7: Wheat | H7: FALSE | K7: LOW (<350mm)
B8: FALSE | C8: Faba Beans | F8: Faba Beans | H8: FALSE | K8: MEDIUM (350-400mm)
B9: FALSE | C9: Canola Clearfield | F9: Canola Clearfield | H9: FALSE | K9: HIGH (>400MM)
B10: FALSE | C10: Canola Conventional | F10: Canola Conventional | H10: FALSE
B11: FALSE | C11: Canola Tri Tolerant | F11: Canola Tri Tolerant | H11: FALSE
B12: FALSE | C12: Kabuli Chickpeas | F12: Kabuli Chickpeas | H12: FALSE
B13: FALSE | C13: Durum | F13: Durum | H13: FALSE
B14: FALSE | C14: Export Oaten Hay | F14: Export Oaten Hay | H14: FALSE
B15: FALSE | C15: Feed Barley | F15: Feed Barley | H15: FALSE
B16: FALSE | C16: Field Peas | F16: Field Peas | H16: FALSE | K16: Contract Rates for Machinery Ops
B17: FALSE | C17: Lupins | F17: Lupins | H17: FALSE | K17: Variable costs (Fuel and Repairs) only
B18: FALSE | C18: Malt Barley | F18: Malt Barley | H18: FALSE
B19: FALSE | C19: Milling Oats | F19: Milling Oats | H19: FALSE
B20: FALSE | C20: Lentils | F20: Lentils | H20: FALSE
B21: FALSE | C21: Lentils IMI Tolerant | F21: Lentils IMI Tolerant | H21: FALSE
B22: FALSE | C22: Triticale | F22: Triticale | H22: FALSE
B23: FALSE | C23: Vetch | F23: Vetch | H23: FALSE
B24: FALSE | C24: Sown Pasture | F24: Sown Pasture | H24: FALSE
B25: FALSE | C25: Self Regen Pasture | F25: Self Regen Pasture | H25: FALSE
B26: FALSE | H26: FALSE
B27: FALSE | H27: FALSE
B28: FALSE | H28: FALSE
B29: FALSE | H29: FALSE
B30: FALSE | H30: FALSE
B31: FALSE | H31: FALSE
B32: FALSE | H32: FALSE

Sheet Excel References (hidden)
B3: vlookup array formulas in individual sheets | C3: http://chandoo.org/wp/2014/10/28/multi-condition-vlookup/
B5: Or this embed word doc

Sheet Data_Main (hidden)
B4: Year | C4: 2018 | D4: Enter
B5: Year_Long | C5: =m_year&"/"&m_year+1 -> 2018/2019 | D5: Calculated
B6: Year_Short | C6: =RIGHT(m_year,2)&"/"&RIGHT(m_year,2)+1 -> 18/19 | D6: Calculated
B7: Selected Rainfall Zone | C7: =CHOOSE(rng_rainfall,"Low","Medium","High") ->  | D7: Calculated
B8: show_disclaimer | C8: TRUE | D8: Enter
B9: MODEL VERSION | C9: 3
B10: Rotation Type | C10: 1 | D10: Calculated
B16: Crop_Type
B17: Wheat
B18: Faba Beans
B19: Canola Clearfield
B20: Canola Conventional
B21: Canola Tri Tolerant
B22: Kabuli Chickpeas
B23: Durum
B24: Export Oaten Hay
B25: Feed Barley
B26: Field Peas
B27: Lupins
B28: Malt Barley
B29: Milling Oats
B30: Lentils
B31: Lentils IMI Tolerant
B32: Triticale
B33: Vetch
B34: Sown Pasture
B35: Self Regen Pasture

Sheet Data_Sheets (hidden)
B10: Sheet | C10: State(show to keep sheet visible or blank to hide)
B11: Instructions | C11: Show
B12: Main | C12: Show
B13: Excel References
B14: Data_Main
B15: Data_Sheets | C15: Show
B16: DV_TABLES
B17: GM_INFO
B18: Summary GM figures
B19: Summary | C19: Show
B20: CROP SHEETS>> | C20: Show
B21: WHEAT
B22: BEANS
B23: CANOLA CLEARFIELD
B24: CANOLA CONVENTIONAL
B25: CANOLA TRITOLERANT
B26: CHICKPEAS
B27: DURUM
B28: EXPORT OATEN HAY
B29: FEED BARLEY
B30: PEAS
B31: LUPINS
B32: MALT BARLEY
B33: MILLING OATS
B34: LENTILS
B35: TRITICALE
B36: VETCH
B37: LENTILS IMI TOLERANT
B38: SOWN PASTURE
B39: SELF REGEN PASTURE

Sheet GM_INFO (hidden)
B1: G.M. LINK SHEET
B3: GRDC Levy % | C3: 0.01
B4: Summer Weed Control | C4: 25
B11: ="Machinery Cost Information - " & TEXT(m_year,"0000") -> Machinery Cost Information - 2018
B14: Repairs & Maintenance - as a % of new value (shown below).
B15: Lubrication costs | C15: 0.05 | D15: of fuel cost.
B17: Table not used | J17: Costs per Hectare
B18: Machine | C18: New Value $ | D18: Life-hrs | E18: Work Efficiency % | F18: Work Rate ha/hr | G18: Fuel Use l/hr | H18: RM % New Value | I18: Hrs use pa | J18: R&M | K18: Fuel | L18: Lube | M18: Total
B19: Tractor (220 kW) | C19: 230000 | D19: 8000 | F19: 1 | H19: 0.02 | I19: 500 | J19: =C19*(H19*100)/100/I19/tbl_machinery[[#This Row],[Work Rate ha/hr]] -> 9.2 | K19: Cost per Hr | L19: Cost per Hr | M19: =J19+K19+L19 -> 
B20: Tractor (90 kW) | C20: 150000 | D20: 8000 | F20: 1 | H20: 0.02 | I20: 500 | J20: =C20*(H20*100)/100/I20/tbl_machinery[[#This Row],[Work Rate ha/hr]] -> 6 | K20: Cost per Hr | L20: Cost per Hr
B21: S.P. header (9 m) | C21: 600000 | D21: 2500 | E21: 0.85 | F21: 7 | G21: 45 | H21: 0.025 | I21: 250 | J21: =C21*(H21*100)/100/I21/tbl_machinery[[#This Row],[Work Rate ha/hr]] -> 8.571428571 | K21: =G21*$F$528/F21 -> 4.564285714 | L21: =K21*var_lube_factor -> 0.2282142857 | M21: 13.36392857
B22: S.P. header (9 m)(peas) | C22: 600000 | D22: 2500 | E22: 0.7 | F22: 5 | G22: 45 | H22: 0.04 | I22: 250 | J22: =C22*(H22*100)/100/I22/tbl_machinery[[#This Row],[Work Rate ha/hr]] -> 19.2 | K22: 6.39 | L22: 0.3195 | M22: 25.9095
B23: SP header(9m) beans, chicks, lupins) | C23: 600000 | D23: 2500 | E23: 0.7 | F23: 6 | G23: 45 | H23: 0.03 | I23: 250 | J23: =C23*(H23*100)/100/I23/tbl_machinery[[#This Row],[Work Rate ha/hr]] -> 12 | K23: 5.325 | L23: 0.26625 | M23: 17.59125
B24: Airseeder (12m) | C24: 250000 | D24: 2000 | E24: 0.8 | F24: 7.5 | G24: 40 | H24: 0.02 | I24: 250 | J24: =C24*(H24*100)/100/I24/tbl_machinery[[#This Row],[Work Rate ha/hr]] -> 2.666666667 | K24: 3.786666667 | L24: 0.1893333333 | M24: 6.642666667
B25: Boomspray (30 m) | C25: 120000 | D25: 1500 | E25: 0.75 | F25: 40 | G25: 18 | H25: 0.02 | I25: 150 | J25: =C25*(H25*100)/100/I25/tbl_machinery[[#This Row],[Work Rate ha/hr]] -> 0.4 | K25: 0.3195 | L25: 0.015975 | M25: 0.735475
B26: Roller (6 m) | C26: 12000 | D26: 5000 | E26: 0.9 | F26: 10 | G26: 18 | H26: 0.01 | I26: 20 | J26: =C26*(H26*100)/100/I26/tbl_machinery[[#This Row],[Work Rate ha/hr]] -> 0.6 | K26: 1.278 | L26: 0.0639 | M26: 1.9419
B27: Mower-conditioner (5m) | C27: 60000 | D27: 2000 | E27: 0.8 | F27: 4 | G27: 12 | H27: 0.02 | I27: 100 | J27: =C27*(H27*100)/100/I27/tbl_machinery[[#This Row],[Work Rate ha/hr]] -> 3 | K27: 2.13 | L27: =K27/10 -> 0.213 | M27: 5.343
B31: FEED & OTHER COSTS | C31: water | E31: 2.5 | F31: /DSE
C32: Veh fuel, R&M | E32: 1 | F32: /DSE
C33: other | E33: 0.5 | F33: /DSE
C34: hay | E34: 180 | F34: /tonne incl freight
C35: Feed Cereal grain | E35: 200 | F35: /tonne incl freight
C36: lupins | E36: 300 | F36: /tonne incl freight
B39: CHEMICALS | H39: RATES>>>>
B40: Name | C40: Rainfall | D40: Type | E40: Category | F40: Units | G40: Cost | H40: Wheat | I40: Faba Beans | J40: Canola Clearfield | K40: Canola Conventional | L40: Canola Tri Tolerant | M40: Kabuli Chickpeas | N40: Durum | O40: Export Oaten Hay | P40: Feed Barley | Q40: Field Peas | R40: Lupins | S40: Malt Barley | T40: Milling Oats | U40: Lentils | V40: Lentils IMI Tolerant | W40: Triticale | X40: Vetch | Y40: Sown Pasture | Z40: Self Regen Pasture | AA40: Adjuvant Desc | AB40: Adjuvant Cost/ha
B41: 2,4-D Amine (625g/l) | C41: LOW | D41: Chemical | E41: Herbicide-Post Emergent | F41: litre | G41: 4.5 | H41: 0 | P41: 1.2 | S41: 1.2
B42: 2,4-D Amine (625g/l) | C42: MEDIUM | D42: Chemical | E42: Herbicide-Post Emergent | F42: litre | G42: 4.5 | H42: 0
B43: 2,4-D Amine (625g/l) | C43: HIGH | D43: Chemical | E43: Herbicide-Post Emergent | F43: litre | G43: 4.5 | H43: 1.2 | N43: 1.2
B44: 2,4-D LV Ester (680g/l) | C44: LOW | D44: Chemical | F44: litre | G44: 6.5
B45: 2,4-D LV Ester (680g/l) | C45: MEDIUM | D45: Chemical | F45: litre | G45: 6.5
B46: 2,4-D LV Ester (680g/l) | C46: HIGH | D46: Chemical | F46: litre | G46: 6.5
B47: Achieve® WG | C47: LOW | D47: Chemical | E47: Herbicide-Post Emergent | F47: kg | G47: 52 | AA47: Surfactant | AB47: 4.01
B48: Achieve® WG | C48: MEDIUM | D48: Chemical | E48: Herbicide-Post Emergent | F48: kg | G48: 52 | W48: 0.4 | AA48: Surfactant | AB48: 4.01
B49: Achieve® WG | C49: HIGH | D49: Chemical | E49: Herbicide-Post Emergent | F49: kg | G49: 52 | W49: 0.4 | AA49: Surfactant | AB49: 4.01
B50: Adigor® | C50: LOW | D50: Chemical | F50: litre | G50: 8.4
B51: Adigor® | C51: MEDIUM | D51: Chemical | F51: litre | G51: 8.4
B52: Adigor® | C52: HIGH | D52: Chemical | F52: litre | G52: 8.4
B53: Affinity® | C53: LOW | D53: Chemical | E53: Herbicide-Post Emergent | F53: litre | G53: 122.5
B54: Affinity® | C54: MEDIUM | D54: Chemical | E54: Herbicide-Post Emergent | F54: litre | G54: 122.5 | H54: 0.1 | N54: 0.1 | P54: 0.1 | S54: 0.1
B55: Affinity® | C55: HIGH | D55: Chemical | E55: Herbicide-Post Emergent | F55: litre | G55: 122.5 | H55: 0.1 | N55: 0.1 | P55: 0.1 | S55: 0.1
B56: Alpha-cypermethrin 16g/L | C56: LOW | D56: Chemical | E56: Insecticide | F56: litre | G56: 6.43
B57: Alpha-cypermethrin 16g/L | C57: MEDIUM | D57: Chemical | E57: Insecticide | F57: litre | G57: 6.43
B58: Alpha-cypermethrin 16g/L | C58: HIGH | D58: Chemical | E58: Insecticide | F58: litre | G58: 6.43
B59: Amistar® | C59: LOW | D59: Chemical | E59: Fungicide | F59: litre | G59: 40
B60: Amistar® | C60: MEDIUM | D60: Chemical | E60: Fungicide | F60: litre | G60: 40 | P60: 0.4 | S60: 0.4
B61: Amistar® | C61: HIGH | D61: Chemical | E61: Fungicide | F61: litre | G61: 40 | P61: 0.4 | S61: 0.4
B62: Aphid Control | J62: 4 | K62: 4 | L62: 4
B63: Aptitude® | C63: LOW | D63: Chemical | F63: kg | G63: 64
B64: Aptitude® | C64: MEDIUM | D64: Chemical | F64: kg | G64: 64
B65: Aptitude® | C65: HIGH | D65: Chemical | F65: kg | G65: 64
B66: Apron® XL 350 ES | C66: LOW | D66: Chemical | E66: Fungicide | F66: litre | G66: 350
B67: Apron® XL 350 ES | C67: MEDIUM | D67: Chemical | E67: Fungicide | F67: litre | G67: 350
B68: Apron® XL 350 ES | C68: HIGH | D68: Chemical | E68: Fungicide | F68: litre | G68: 350
B69: Armour® C | C69: LOW | D69: Chemical | E69: Fungicide | F69: kg | G69: 30
B70: Armour® C | C70: MEDIUM | D70: Chemical | E70: Fungicide | F70: kg | G70: 30
B71: Armour® C | C71: HIGH | D71: Chemical | E71: Fungicide | F71: kg | G71: 30
B72: Atlantis® (mesosulfuron 30g/L) | C72: LOW | D72: Chemical | E72: Herbicide-Post Emergent | F72: litre | G72: 88
B73: Atlantis® (mesosulfuron 30g/L) | C73: MEDIUM | D73: Chemical | E73: Herbicide-Post Emergent | F73: litre | G73: 88
B74: Atlantis® (mesosulfuron 30g/L) | C74: HIGH | D74: Chemical | E74: Herbicide-Post Emergent | F74: litre | G74: 88
B75: Atrazine (600 gm/litre) | C75: LOW | D75: Chemical | E75: Herbicide-Pre Emergent | F75: litre | G75: 7
B76: Atrazine (600 gm/litre) | C76: MEDIUM | D76: Chemical | E76: Herbicide-Pre Emergent | F76: litre | G76: 7
B77: Atrazine (600 gm/litre) | C77: HIGH | D77: Chemical | E77: Herbicide-Pre Emergent | F77: litre | G77: 7
B78: Aviator X-Pro® | C78: LOW | D78: Chemical | E78: Fungicide | F78: litre | G78: 54.5
B79: Aviator X-Pro® | C79: MEDIUM | D79: Chemical | E79: Fungicide | F79: litre | G79: 54.5
B80: Aviator X-Pro® | C80: HIGH | D80: Chemical | E80: Fungicide | F80: litre | G80: 54.5
B81: Axial® | C81: LOW | D81: Chemical | E81: Herbicide-Post Emergent | F81: litre | G81: 150
B82: Axial® | C82: MEDIUM | D82: Chemical | E82: Herbicide-Post Emergent | F82: litre | G82: 150
B83: Axial® | C83: HIGH | D83: Chemical | E83: Herbicide-Post Emergent | F83: litre | G83: 150
B84: Balance ® | C84: LOW | D84: Chemical | E84: Herbicide-Pre Emergent | F84: gram | G84: 0.13 | M84: 75
B85: Balance ® | C85: MEDIUM | D85: Chemical | E85: Herbicide-Pre Emergent | F85: gram | G85: 0.13 | M85: 100
B86: Balance ® | C86: HIGH | D86: Chemical | E86: Herbicide-Pre Emergent | F86: gram | G86: 0.13 | M86: 100
B87: Banjo® | C87: LOW | D87: Chemical | E87: Herbicide-Post Emergent | F87: litre | G87: 4.95
B88: Banjo® | C88: MEDIUM | D88: Chemical | E88: Herbicide-Post Emergent | F88: litre | G88: 4.95
B89: Banjo® | C89: HIGH | D89: Chemical | E89: Herbicide-Post Emergent | F89: litre | G89: 4.95
B90: Baytan® T Flowable | C90: LOW | D90: Chemical | E90: Fungicide | F90: kg | G90: 26.4
B91: Baytan® T Flowable | C91: MEDIUM | D91: Chemical | E91: Fungicide | F91: kg | G91: 26.4
B92: Baytan® T Flowable | C92: HIGH | D92: Chemical | E92: Fungicide | F92: kg | G92: 26.4
B93: Boxer Gold® | C93: LOW | D93: Chemical | E93: Herbicide-Pre Emergent | F93: litre | G93: 11.5
B94: Boxer Gold® | C94: MEDIUM | D94: Chemical | E94: Herbicide-Pre Emergent | F94: litre | G94: 11.5 | N94: 2.5 | P94: 2.5 | S94: 2.5
B95: Boxer Gold® | C95: HIGH | D95: Chemical | E95: Herbicide-Pre Emergent | F95: litre | G95: 11.5 | N95: 2.5 | P95: 2.5 | S95: 2.5
B96: Broadstrike® | C96: LOW | D96: Chemical | E96: Herbicide-Post Emergent | F96: gram | G96: 0.4
B97: Broadstrike® | C97: MEDIUM | D97: Chemical | E97: Herbicide-Post Emergent | F97: gram | G97: 0.4 | U97: 25 | Z97: 25
B98: Broadstrike® | C98: HIGH | D98: Chemical | E98: Herbicide-Post Emergent | F98: gram | G98: 0.4 | U98: 25 | Z98: 50
B99: Diflufenican (Brodal) | C99: LOW | D99: Chemical | E99: Herbicide-Post Emergent | F99: litre | G99: 35.88 | Q99: 0.15 | U99: 0.15
B100: Diflufenican (Brodal) | C100: MEDIUM | D100: Chemical | E100: Herbicide-Post Emergent | F100: litre | G100: 35.88 | Q100: 0.15 | U100: 0.15
B101: Diflufenican (Brodal) | C101: HIGH | D101: Chemical | E101: Herbicide-Post Emergent | F101: litre | G101: 35.88 | Q101: 0.15 | U101: 0.15
B102: Bromoxynil /MCPA | C102: LOW | D102: Chemical | E102: Herbicide-Post Emergent | F102: litre | G102: 14
B103: Bromoxynil /MCPA | C103: MEDIUM | D103: Chemical | E103: Herbicide-Post Emergent | F103: litre | G103: 14
B104: Bromoxynil /MCPA | C104: HIGH | D104: Chemical | E104: Herbicide-Post Emergent | F104: litre | G104: 14
B105: Carbendazim 500g/kg | C105: LOW | D105: Chemical | E105: Fungicide | F105: kg | G105: 12.9 | U105: 0.5 | V105: 0.5
B106: Carbendazim 500g/kg | C106: MEDIUM | D106: Chemical | E106: Fungicide | F106: kg | G106: 12.9 | I106: 0.5 | U106: 1 | V106: 1
B107: Carbendazim 500g/kg | C107: HIGH | D107: Chemical | E107: Fungicide | F107: kg | G107: 12.9 | I107: 1 | M107: 0.5 | U107: 1 | V107: 1
B108: Chlorothalonil 720g/L | C108: LOW | D108: Chemical | E108: Fungicide | F108: litre | G108: 12.4 | M108: 2.4
B109: Chlorothalonil 720g/L | C109: MEDIUM | D109: Chemical | E109: Fungicide | F109: litre | G109: 12.4 | M109: 3.2 | U109: 1.6 | V109: 1.6
B110: Chlorothalonil 720g/L | C110: HIGH | D110: Chemical | E110: Fungicide | F110: litre | G110: 12.4 | M110: 4 | U110: 2.4 | V110: 2.4
B111: Chlorpyrifos 500g/L | C111: LOW | D111: Chemical | E111: Insecticide | F111: litre | G111: 7.2 | I111: 0.14 | J111: 0.5 | K111: 0.5 | L111: 0.5 | M111: 0.14
B112: Chlorpyrifos 500g/L | C112: MEDIUM | D112: Chemical | E112: Insecticide | F112: litre | G112: 7.2 | I112: 0.14 | J112: 0.5 | K112: 0.5 | L112: 0.5 | M112: 0.14
B113: Chlorpyrifos 500g/L | C113: HIGH | D113: Chemical | E113: Insecticide | F113: litre | G113: 7.2 | I113: 0.14 | J113: 0.5 | K113: 0.5 | L113: 0.5 | M113: 0.14
B114: Chlorsulfuron 750g/kg (Glean) | C114: LOW | D114: Chemical | E114: Herbicide-Pre Emergent | F114: gram | G114: 0.06
B115: Chlorsulfuron 750g/kg (Glean) | C115: MEDIUM | D115: Chemical | E115: Herbicide-Pre Emergent | F115: gram | G115: 0.06
B116: Chlorsulfuron 750g/kg (Glean) | C116: HIGH | D116: Chemical | E116: Herbicide-Pre Emergent | F116: gram | G116: 0.06
B117: Clethodim 240 gm/litre | C117: LOW | D117: Chemical | E117: Herbicide-Post Emergent | F117: litre | G117: 10.2 | I117: 0.3 | J117: 0.3 | K117: 0.3 | L117: 0.3 | M117: 0.3 | Q117: 0.3 | R117: 0.3 | U117: 0.3 | V117: 0.3 | X117: 0.3 | Y117: 0.4 | Z117: 0.4 | AA117: Oil | AB117: 2.325
B118: Clethodim 240 gm/litre | C118: MEDIUM | D118: Chemical | E118: Herbicide-Post Emergent | F118: litre | G118: 10.2 | I118: 0.5 | J118: 0.5 | K118: 0.5 | L118: 0.5 | M118: 0.5 | Q118: 0.5 | R118: 0.5 | U118: 0.5 | V118: 0.5 | X118: 0.5 | Y118: 0.5 | Z118: 0.5 | AA118: Oil | AB118: 2.325
B119: Clethodim 240 gm/litre | C119: HIGH | D119: Chemical | E119: Herbicide-Post Emergent | F119: litre | G119: 10.2 | I119: 0.7 | J119: 0.7 | K119: 0.7 | L119: 0.7 | M119: 0.7 | Q119: 0.7 | R119: 0.7 | U119: 0.7 | V119: 0.7 | X119: 0.7 | Y119: 0.5 | Z119: 0.5 | AA119: Oil | AB119: 2.325
B120: Clopyralid 600g/L (Lontrel® Advanced) | C120: LOW | D120: Chemical | E120: Herbicide-Post Emergent | F120: litre | G120: 39.6 | H120: 0.04 | J120: 0.075 | K120: 0.075 | L120: 0.075 | N120: 0.04 | P120: 0.04 | S120: 0.04 | W120: 0.04
B121: Clopyralid 600g/L (Lontrel® Advanced) | C121: MEDIUM | D121: Chemical | E121: Herbicide-Post Emergent | F121: litre | G121: 39.6 | H121: 0.04 | J121: 0.075 | K121: 0.075 | L121: 0.075 | P121: 0.04 | S121: 0.04 | W121: 0.04
B122: Clopyralid 600g/L (Lontrel® Advanced) | C122: HIGH | D122: Chemical | E122: Herbicide-Post Emergent | F122: litre | G122: 39.6 | H122: 0.04 | J122: 0.075 | K122: 0.075 | L122: 0.075 | P122: 0.04 | S122: 0.04 | W122: 0.04
B123: Cruiser 350 | C123: LOW | D123: Chemical | E123: Insecticide | F123: litre | G123: 51.95
B124: Cruiser 350 | C124: MEDIUM | D124: Chemical | E124: Insecticide | F124: litre | G124: 51.95
B125: Cruiser 350 | C125: HIGH | D125: Chemical | E125: Insecticide | F125: litre | G125: 51.95
B126: Crusader® | C126: LOW | D126: Chemical | E126: Herbicide-Post Emergent | F126: litre | G126: 68
B127: Crusader® | C127: MEDIUM | D127: Chemical | E127: Herbicide-Post Emergent | F127: litre | G127: 68
B128: Crusader® | C128: HIGH | D128: Chemical | E128: Herbicide-Post Emergent | F128: litre | G128: 68
B129: Rexade® (New formulation of Crusader®) | C129: LOW | D129: Chemical | E129: Herbicide-Post Emergent | F129: litre | G129: 330
B130: Rexade® (New formulation of Crusader®) | C130: MEDIUM | D130: Chemical | E130: Herbicide-Post Emergent | F130: litre | G130: 330
B131: Rexade® (New formulation of Crusader®) | C131: HIGH | D131: Chemical | E131: Herbicide-Post Emergent | F131: litre | G131: 330
B132: Cadence® (700gm/Kg Dicamba) | C132: LOW | D132: Chemical | E132: Herbicide-Post Emergent | F132: kg | G132: 22
B133: Cadence® (700gm/Kg Dicamba) | C133: MEDIUM | D133: Chemical | E133: Herbicide-Post Emergent | F133: kg | G133: 22
B134: Cadence® (700gm/Kg Dicamba) | C134: HIGH | D134: Chemical | E134: Herbicide-Post Emergent | F134: kg | G134: 22
B135: Dicamba 500g/L | C135: LOW | D135: Chemical | E135: Herbicide-Post Emergent | F135: litre | G135: 29.3
B136: Dicamba 500g/L | C136: MEDIUM | D136: Chemical | E136: Herbicide-Post Emergent | F136: litre | G136: 29.3
B137: Dicamba 500g/L | C137: HIGH | D137: Chemical | E137: Herbicide-Post Emergent | F137: litre | G137: 29.3
B138: Dimethoate 400g/L | C138: LOW | D138: Chemical | E138: Insecticide | F138: litre | G138: 8.45 | I138: 0.5 | Q138: 0.1 | U138: 0.4 | V138: 0.4 | X138: 0.4 | Y138: 0.4 | Z138: 0.085
B139: Dimethoate 400g/L | C139: MEDIUM | D139: Chemical | E139: Insecticide | F139: litre | G139: 8.45 | I139: 0.5 | Q139: 0.1 | U139: 0.4 | V139: 0.4 | X139: 0.4 | Y139: 0.4 | Z139: 0.085
B140: Dimethoate 400g/L | C140: HIGH | D140: Chemical | E140: Insecticide | F140: litre | G140: 8.45 | I140: 0.5 | Q140: 0.1 | U140: 0.4 | V140: 0.4 | X140: 0.4 | Y140: 0.4 | Z140: 0.085
B141: Dimethoate 400g/L (2) | C141: LOW | D141: Chemical | E141: Insecticide | F141: litre | G141: 8.45
B142: Dimethoate 400g/L (2) | C142: MEDIUM | D142: Chemical | E142: Insecticide | F142: litre | G142: 8.45 | Y142: 0.1
B143: Dimethoate 400g/L (2) | C143: HIGH | D143: Chemical | E143: Insecticide | F143: litre | G143: 8.45 | Y143: 0.1
B144: Reglone® | C144: LOW | D144: Chemical | E144: Herbicide-Pre Emergent | F144: litre | G144: 20
B145: Reglone® | C145: MEDIUM | D145: Chemical | E145: Herbicide-Pre Emergent | F145: litre | G145: 20
B146: Reglone® | C146: HIGH | D146: Chemical | E146: Herbicide-Pre Emergent | F146: litre | G146: 20
B147: Diuron 900 gm a.i. granules | C147: LOW | D147: Chemical | E147: Herbicide-Pre Emergent | F147: kg | G147: 9 | O147: 0.4 | T147: 0.4
B148: Diuron 900 gm a.i. granules | C148: MEDIUM | D148: Chemical | E148: Herbicide-Pre Emergent | F148: kg | G148: 9 | O148: 0.4 | T148: 0.4
B149: Diuron 900 gm a.i. granules | C149: HIGH | D149: Chemical | E149: Herbicide-Pre Emergent | F149: kg | G149: 9 | O149: 0.4 | T149: 0.4
B150: dummy | C150: LOW | G150: 0 | H150: 0 | I150: 0 | J150: 0 | K150: 0 | L150: 0 | M150: 0 | N150: 0 | O150: 0 | P150: 0 | Q150: 0 | R150: 0 | S150: 0 | T150: 0 | U150: 0 | W150: 0 | X150: 0
B151: dummy | C151: MEDIUM | G151: 0 | H151: 0 | I151: 0 | J151: 0 | K151: 0 | L151: 0 | M151: 0 | N151: 0 | O151: 0 | P151: 0 | Q151: 0 | R151: 0 | S151: 0 | T151: 0 | U151: 0 | W151: 0 | X151: 0
B152: dummy | C152: HIGH | G152: 0 | H152: 0 | I152: 0 | J152: 0 | K152: 0 | L152: 0 | M152: 0 | N152: 0 | O152: 0 | P152: 0 | Q152: 0 | R152: 0 | S152: 0 | T152: 0 | U152: 0 | W152: 0 | X152: 0
B153: Factor® (butroxydim 250g/kg) | C153: LOW | D153: Chemical | E153: Herbicide-Post Emergent | F153: gram | G153: 0.13
B154: Factor® (butroxydim 250g/kg) | C154: MEDIUM | D154: Chemical | E154: Herbicide-Post Emergent | F154: gram | G154: 0.13
B155: Factor® (butroxydim 250g/kg) | C155: HIGH | D155: Chemical | E155: Herbicide-Post Emergent | F155: gram | G155: 0.13
B156: Flight® | C156: LOW | D156: Chemical | F156: litre | G156: 19.5
B157: Flight® | C157: MEDIUM | D157: Chemical | F157: litre | G157: 19.5
B158: Flight® | C158: HIGH | D158: Chemical | F158: litre | G158: 19.5
B159: Starane® Advanced (fluroxypyr 333g/L) | C159: LOW | D159: Chemical | E159: Herbicide-Post Emergent | F159: litre | G159: 21.9
B160: Starane® Advanced (fluroxypyr 333g/L) | C160: MEDIUM | D160: Chemical | E160: Herbicide-Post Emergent | F160: litre | G160: 21.9
B161: Starane® Advanced (fluroxypyr 333g/L) | C161: HIGH | D161: Chemical | E161: Herbicide-Post Emergent | F161: litre | G161: 21.9
B162: Glyphosate 540g/L | C162: LOW | D162: Chemical | E162: Herbicide-Pre Emergent | F162: litre | G162: 6 | H162: 1.2 | I162: 1.2 | J162: 1.2 | K162: 1.2 | L162: 1.2 | M162: 1.2 | N162: 1.2 | O162: 1.2 | P162: 1.2 | Q162: 1.2 | R162: 1.2 | S162: 1.2 | T162: 1.2 | U162: 1.2 | V162: 1.2 | W162: 1.2 | X162: 1.2 | Y162: 1.2
B163: Glyphosate 540g/L | C163: MEDIUM | D163: Chemical | E163: Herbicide-Pre Emergent | F163: litre | G163: 6 | H163: 1.2 | I163: 1.2 | J163: 1.2 | K163: 1.2 | L163: 1.2 | M163: 1.2 | N163: 1.2 | O163: 1.2 | P163: 1.2 | Q163: 1.2 | R163: 1.2 | S163: 1.2 | T163: 1.2 | U163: 1.2 | V163: 1.2 | W163: 1.2 | X163: 1.2 | Y163: 1.2
B164: Glyphosate 540g/L | C164: HIGH | D164: Chemical | E164: Herbicide-Pre Emergent | F164: litre | G164: 6 | H164: 1.2 | I164: 1.2 | J164: 1.2 | K164: 1.2 | L164: 1.2 | M164: 1.2 | N164: 1.2 | O164: 1.2 | P164: 1.2 | Q164: 1.2 | R164: 1.2 | S164: 1.2 | T164: 1.2 | U164: 1.2 | V164: 1.2 | W164: 1.2 | X164: 1.2 | Y164: 1.2
B165: Glyphosate 540g/L (desiccant) | C165: LOW | D165: Chemical | E165: Herbicide-Post Emergent | F165: litre | G165: 6 | Y165: 1.5
B166: Glyphosate 540g/L (desiccant) | C166: MEDIUM | D166: Chemical | E166: Herbicide-Post Emergent | F166: litre | G166: 6 | Y166: 1.5
B167: Glyphosate 540g/L (desiccant) | C167: HIGH | D167: Chemical | E167: Herbicide-Post Emergent | F167: litre | G167: 6 | Y167: 1.5
B168: Glyphosate 540g/L Pre cutting | C168: LOW | D168: Chemical | E168: Herbicide-Pre Emergent | F168: litre | G168: 6 | I168: 1.2 | O168: 2
B169: Glyphosate 540g/L Pre cutting | C169: MEDIUM | D169: Chemical | E169: Herbicide-Pre Emergent | F169: litre | G169: 6 | I169: 1.2 | O169: 2.5
B170: Glyphosate 540g/L Pre cutting | C170: HIGH | D170: Chemical | E170: Herbicide-Pre Emergent | F170: litre | G170: 6 | I170: 1.2 | O170: 2.5
B171: Glypho (pre-harvest) | C171: LOW | D171: Chemical | E171: Herbicide-Pre Emergent | F171: litre | G171: 6 | J171: 2 | K171: 2 | L171: 2
B172: Glypho (pre-harvest) | C172: MEDIUM | D172: Chemical | E172: Herbicide-Pre Emergent | F172: litre | G172: 6 | J172: 2 | K172: 2 | L172: 2
B173: Glypho (pre-harvest) | C173: HIGH | D173: Chemical | E173: Herbicide-Pre Emergent | F173: litre | G173: 6 | J173: 2 | K173: 2 | L173: 2
B174: Glyphosate 450g/L | C174: LOW | D174: Chemical | E174: Herbicide-Pre Emergent | F174: litre | G174: 4.5
B175: Glyphosate 450g/L | C175: MEDIUM | D175: Chemical | E175: Herbicide-Pre Emergent | F175: litre | G175: 4.5
B176: Glyphosate 450g/L | C176: HIGH | D176: Chemical | E176: Herbicide-Pre Emergent | F176: litre | G176: 4.5
B177: Haloxyfop 520g/L (Verdict) | C177: LOW | D177: Chemical | E177: Herbicide-Post Emergent | F177: litre | G177: 38.9 | I177: 0.04 | J177: 0.075 | K177: 0.04 | L177: 0.04 | M177: 0.04 | Q177: 0.04 | R177: 0.04 | U177: 0.04 | V177: 0.04 | X177: 0.04 | Y177: 0.075 | Z177: 0.075
B178: Haloxyfop 520g/L (Verdict) | C178: MEDIUM | D178: Chemical | E178: Herbicide-Post Emergent | F178: litre | G178: 38.9 | I178: 0.04 | J178: 0.075 | K178: 0.04 | L178: 0.04 | M178: 0.04 | Q178: 0.04 | R178: 0.04 | U178: 0.04 | V178: 0.04 | X178: 0.04 | Y178: 0.075 | Z178: 0.075
B179: Haloxyfop 520g/L (Verdict) | C179: HIGH | D179: Chemical | E179: Herbicide-Post Emergent | F179: litre | G179: 38.9 | I179: 0.04 | J179: 0.075 | K179: 0.04 | L179: 0.04 | M179: 0.04 | Q179: 0.04 | R179: 0.04 | U179: 0.04 | V179: 0.04 | X179: 0.04 | Y179: 0.075 | Z179: 0.075
B180: Carfentrazone 400g/L (Hammer) | C180: LOW | D180: Chemical | E180: Herbicide-Pre Emergent | F180: litre | G180: 190 | H180: 0.02 | I180: 0.02 | J180: 0.02 | K180: 0.02 | L180: 0.02 | M180: 0.02 | N180: 0.02 | O180: 0.02 | P180: 0.02 | Q180: 0.02 | R180: 0.02 | S180: 0.02 | T180: 0.02 | U180: 0.02 | V180: 0.02 | W180: 0.02 | X180: 0.02 | Y180: 0.02
B181: Carfentrazone 400g/L (Hammer) | C181: MEDIUM | D181: Chemical | E181: Herbicide-Pre Emergent | F181: litre | G181: 190 | H181: 0.02 | I181: 0.02 | J181: 0.02 | K181: 0.02 | L181: 0.02 | M181: 0.02 | N181: 0.02 | O181: 0.02 | P181: 0.02 | Q181: 0.02 | R181: 0.02 | S181: 0.02 | T181: 0.02 | U181: 0.02 | V181: 0.02 | W181: 0.02 | X181: 0.02 | Y181: 0.02
B182: Carfentrazone 400g/L (Hammer) | C182: HIGH | D182: Chemical | E182: Herbicide-Pre Emergent | F182: litre | G182: 190 | H182: 0.02 | I182: 0.02 | J182: 0.02 | K182: 0.02 | L182: 0.02 | M182: 0.02 | N182: 0.02 | O182: 0.02 | P182: 0.02 | Q182: 0.02 | R182: 0.02 | S182: 0.02 | T182: 0.02 | U182: 0.02 | V182: 0.02 | W182: 0.02 | X182: 0.02 | Y182: 0.02
B183: Hasten | C183: LOW | D183: Chemical | E183: Herbicide-Post Emergent | F183: litre | G183: 4.7 | J183: 0.375
B184: Hasten | C184: MEDIUM | D184: Chemical | E184: Herbicide-Post Emergent | F184: litre | G184: 4.7 | J184: 0.375
B185: Hasten | C185: HIGH | D185: Chemical | E185: Herbicide-Post Emergent | F185: litre | G185: 4.7 | J185: 0.375
B186: Affirm | C186: LOW | D186: Chemical | E186: Insecticide | F186: litre | G186: 73.9 | J186: 0 | K186: 0 | L186: 0
B187: Affirm | C187: MEDIUM | D187: Chemical | E187: Insecticide | F187: litre | G187: 73.9 | J187: 0.3 | K187: 0.3 | L187: 0.3
B188: Affirm | C188: HIGH | D188: Chemical | E188: Insecticide | F188: litre | G188: 73.9 | J188: 0.3 | K188: 0.3 | L188: 0.3
B189: Hot-up® | C189: LOW | D189: Chemical | F189: litre | G189: 5
B190: Hot-up® | C190: MEDIUM | D190: Chemical | F190: litre | G190: 5
B191: Hot-up® | C191: HIGH | D191: Chemical | F191: litre | G191: 5
B192: Imidacloprid 600 g/L | C192: LOW | D192: Chemical | E192: Insecticide | F192: litre | G192: 29.8
B193: Imidacloprid 600 g/L | C193: MEDIUM | D193: Chemical | E193: Insecticide | F193: litre | G193: 29.8
B194: Imidacloprid 600 g/L | C194: HIGH | D194: Chemical | E194: Insecticide | F194: litre | G194: 29.8
B195: LI-700 | C195: LOW | D195: Chemical | F195: litre | G195: 4.9
B196: LI-700 | C196: MEDIUM | D196: Chemical | F196: litre | G196: 4.9
B197: LI-700 | C197: HIGH | D197: Chemical | F197: litre | G197: 4.9
B198: Pirimicarb 500g/kg | C198: LOW | D198: Chemical | E198: Insecticide | F198: kg | G198: 31.2
B199: Pirimicarb 500g/kg | C199: MEDIUM | D199: Chemical | E199: Insecticide | F199: kg | G199: 31.2
B200: Pirimicarb 500g/kg | C200: HIGH | D200: Chemical | E200: Insecticide | F200: kg | G200: 31.2
B201: Prosulfocarb | C201: LOW | D201: Chemical | F201: litre | G201: 11.9
B202: Prosulfocarb | C202: MEDIUM | D202: Chemical | F202: litre | G202: 11.9
B203: Prosulfocarb | C203: HIGH | D203: Chemical | F203: litre | G203: 11.9
B204: Pyrinex® Super | C204: LOW | D204: Chemical | E204: Insecticide | F204: litre | G204: 8.95
B205: Pyrinex® Super | C205: MEDIUM | D205: Chemical | E205: Insecticide | F205: litre | G205: 8.95
B206: Pyrinex® Super | C206: HIGH | D206: Chemical | E206: Insecticide | F206: litre | G206: 8.95
B207: Sumi-Alpha® Flex | C207: LOW | D207: Chemical | E207: Insecticide | F207: litre | G207: 9.7
B208: Sumi-Alpha® Flex | C208: MEDIUM | D208: Chemical | E208: Insecticide | F208: litre | G208: 9.7
B209: Sumi-Alpha® Flex | C209: HIGH | D209: Chemical | E209: Insecticide | F209: litre | G209: 9.7
B210: Talinor | C210: LOW | D210: Chemical | F210: litre | G210: 25
B211: Talinor | C211: MEDIUM | D211: Chemical | F211: litre | G211: 25
B212: Talinor | C212: HIGH | D212: Chemical | F212: litre | G212: 25
B213: Transform | C213: LOW | D213: Chemical | E213: Insecticide | F213: litre | G213: 155 | J213: 0.1 | K213: 0.1 | L213: 0.1
B214: Transform | C214: MEDIUM | D214: Chemical | E214: Insecticide | F214: litre | G214: 155 | J214: 0.1 | K214: 0.1 | L214: 0.1
B215: Transform | C215: HIGH | D215: Chemical | E215: Insecticide | F215: litre | G215: 155 | J215: 0.1 | K215: 0.1 | L215: 0.1
... 380 more rows

Sheet DV_TABLES (hidden)
B3: Fertiliser
B4: Name
B5: DAP + Urea 24:16
B6: DAP + Urea 28:13
B7: DAP + Urea 32:10
B8: DAP 18:20
B9: DAP Plus 2% Zn
B10: Granulock Z18
B11: MAP 10:22
B12: Sulphate of Ammonia
B13: Superphosphate
B14: Urea
B19: Seed Data
B20: Name
B21: Seed
B22: Seed Treatment(1)
B23: Seed Treatment(2)
B24: Seed Grading
B25: P-Pickel
B26: Apron® XL 350 ES
B27: Innoculant
B32: CHEMICALS-HERBICIDES
B33: Name
B35: 2,4-D Amine (625g/l)
B36: 2,4-D LV Ester (680g/l)
B37: Achieve® WG
B38: Affinity®
B39: Aptitude®
B40: Atlantis® (mesosulfuron 30g/L)
B41: Atrazine (600 gm/litre)
B42: Atrazine 900g/kg
B43: Axial®
B44: Balance ®
B45: Boxer Gold®
B46: Broadstrike®
B47: Bromoxynil /MCPA
B48: Cadence® (700gm/Kg Dicamba)
B49: Carfentrazone 400g/L (Hammer)
B50: Chlorsulfuron 750g/kg (Glean)
B51: Clethodim 240 gm/litre
B52: Clopyralid 600g/L (Lontrel® Advanced)
B53: Crusader®
B54: Dicamba 500g/L
B55: Diflufenican (Brodal)
B56: Diuron 900 gm a.i. granules
B57: Factor® (butroxydim 250g/kg)
B58: Flight®
B59: Glypho (pre-harvest)
B60: Glyphosate 450g/L
B61: Glyphosate 540g/L
B62: Glyphosate 540g/L (desiccant)
B63: Glyphosate 540g/L Pre cutting
B64: Haloxyfop 520g/L (Verdict)
B65: Hasten
B66: Imazethapyr 700g/kg
B67: Intervix®
B68: M.C.P.A. LVE
B69: MCPA Amine (750g/L)
B70: Metribuzin 750 gm/kg
B71: Metsulfuron methyl
B72: Oxyfluorfen 240g/L
B73: Paradigm®
B74: Paraquat
B75: Precept®
B76: Propyzamide (500 g/L)
B77: Prosulfocarb
B78: Quizalofop 200g/L
B79: Reglone®
B80: Rexade® (New formulation of Crusader®)
B81: Sakura®
B82: Sentry®
B83: Sharpen®
B84: Simazine Granules
B85: S-metolachlor 960g/L (Dual®Gold)
B86: Sprayseed®
B87: Starane® Advanced (fluroxypyr 333g/L)
B88: Talinor
B89: Terbyne® 875
B90: Tigrex®
B91: Topik® EC
B92: Tri-allate 500g/L
B93: Triasulfuron 750g/kg (Logran)
B94: Triclopyr 600g/L
B95: Triclopyr 755g/L
B96: Trifluralin 480g/L
B97: Valor®
B98: Velocity®
B105: CHEMICALS-FUNGICIDES
B106: NAME
B108: Amistar®
B109: Apron® XL 350 ES
B110: Armour® C
B111: Aviator X-Pro®
B112: Baytan® T Flowable
B113: Carbendazim 500g/kg
B114: Chlorothalonil 720g/L
B115: Cogito®
B116: Epoxiconazole 125g/L
B117: Evergol Prime®
B118: Flutriafol (on fert)
B119: Flutriafol (250g/l)
B120: Flutriafol (500g/l)
B121: Mancozeb 750g/kg
B122: P-Pickel T
B123: Pontiac®
B124: Procymidone 500g/L
B125: Propiconazole 250g/L
B126: Prosaro®
B127: Rancona Dimension®
B128: Systiva®
B129: Tazer® Xpert
B130: Tebuconazole 430
B131: Uniform®
B132: Veritas®
B133: Veto® 25C Flowable
B134: Vibrance®
B139: CHEMICAL-INSECTICIDES
B140: NAME
B142: Affirm
B143: Alpha-cypermethrin 16g/L
B144: Bifenthrin 250g/L (Talstar®)
B145: Chlorpyrifos 500g/L
B146: Cruiser 350
B147: Dimethoate 400g/L
B148: Dimethoate 400g/L (2)
B149: Glyphosate 540g/L Pre cutting
B150: Imidacloprid 600 g/L
B151: Imidan®
B152: Lambda-cyhalothrin (Karate Zeon) 1st
B153: Lambda-cyhalothrin (Karate Zeon) 2nd
B154: Omethoate 400g/L
B155: Pirimicarb 500g/kg
B156: Pyrinex® Super
B157: Sumi-Alpha® Flex
B158: Transform
B159: Trojan®

Sheet Summary GM figures (hidden)
A1: =m_year&" GROSS MARGIN ESTIMATES" -> 2018 GROSS MARGIN ESTIMATES | L1: COMMODITY PRICES HISTORICAL DATA
A2: ="The tables below summarise the anticipated gross margins for all crops for "&m_year -> The tables below summarise the anticipated gross margins for all crops for 2018 | L2: Historical commodity price data and trends can be used as a guide in assessing average returns over time and also the variability of those returns for any given commodity.
L4: ="NOTE: "&Year_Short&" Forecast Grain Prices: Forecast grain prices for "&Year_Short&" are affected by the value of the Australian Dollar, world consumption, and Australian and other major grain exporting countries production. Future pricing is uncertain and caution is needed with projections." -> NOTE: 18/19 Forecast Grain Prices: Forecast grain prices for 18/19 are affected by the value of the Australian Dollar, world consumption, and Australian and other major grain exporting countries production. Future pricing is uncertain and caution is needed with projections.
A5: THIS TABLE NOT USED | T5: PRICES (usually prices will be the same across rainfall zones. For some crops however these are different)
A6: CROPPING | M6: Not Used | P6: Not Used | Q6: Not Used | R6: Not Used | S6: =m_year -> 2018 | T6: LOW | Y6: MEDIUM | AD6: HIGH | AI6: YIELD SPREAD (Factors)
A7: Commodity $/ha | B7: Low | C7: Medium | D7: High | L7: Commodity | M7: Current_LOW | N7: Current_MED | O7: Current_HIGH | P7: notused1 | Q7: notused2 | R7: notused3 | S7: notused4 | T7: Price_Low_Poor | U7: Price_Low_Below Average | V7: Price_Low_Average | W7: Price_Low_Above Average | X7: Price_Low_Very Good | Y7: Price_Medium_Poor | Z7: Price_Medium_Below Average | AA7: Price_Medium_Average | AB7: Price_Medium_Above Average | AC7: Price_Medium_Very Good | AD7: Price_High_Poor | AE7: Price_High_Below Average | AF7: Price_High_Average | AG7: Price_High_Above Average | AH7: Price_High_Very Good | AI7: Low_Poor | AJ7: Low_Below Average | AK7: Low_Average | AL7: Low_Above Average | AM7: Low_Very Good | AN7: Medium_Poor | AO7: Medium_Below Average | AP7: Medium_Average | AQ7: Medium_Above Average | AR7: Medium_Very Good | AS7: High_Poor | AT7: High_Below Average | AU7: High_Average | AV7: High_Above Average | AW7: High_Very Good
A8: APW Wheat | L8: Wheat | T8: 200 | U8: 225 | V8: 245 | W8: 275 | X8: 300 | Y8: 200 | Z8: 225 | AA8: 245 | AB8: 275 | AC8: 300 | AD8: 200 | AE8: 225 | AF8: 245 | AG8: 275 | AH8: 300 | AI8: 0.5 | AJ8: 1 | AK8: 1.5 | AL8: 2.5 | AM8: 3.5 | AN8: 1 | AO8: 2 | AP8: 2.7 | AQ8: 3.5 | AR8: 4.5 | AS8: 2 | AT8: 3 | AU8: 4 | AV8: 5 | AW8: 6
A9: Durum | L9: Durum | T9: 220 | U9: 260 | V9: 300 | W9: 340 | X9: 380 | Y9: 220 | Z9: 260 | AA9: 300 | AB9: 340 | AC9: 380 | AD9: 220 | AE9: 260 | AF9: 300 | AG9: 340 | AH9: 380 | AI9: 0.4 | AJ9: 0.8 | AK9: 1.2 | AL9: 2 | AM9: 2.8 | AN9: 1.5 | AO9: 1.8 | AP9: 2.2 | AQ9: 3 | AR9: 4 | AS9: 1.5 | AT9: 2.5 | AU9: 3.4 | AV9: 4 | AW9: 4.5
A10: Malt Barley | L10: Malt Barley | T10: 210 | U10: 240 | V10: 270 | W10: 300 | X10: 330 | Y10: 210 | Z10: 240 | AA10: 270 | AB10: 300 | AC10: 330 | AD10: 210 | AE10: 240 | AF10: 270 | AG10: 300 | AH10: 330 | AI10: 0.5 | AJ10: 1 | AK10: 1.5 | AL10: 2 | AM10: 3 | AN10: 0.5 | AO10: 1.5 | AP10: 2.5 | AQ10: 3.5 | AR10: 4 | AS10: 1.5 | AT10: 2.5 | AU10: 3.5 | AV10: 4.5 | AW10: 6
A11: Feed Barley | L11: Feed Barley | T11: 170 | U11: 190 | V11: 210 | W11: 230 | X11: 250 | Y11: 170 | Z11: 190 | AA11: 210 | AB11: 230 | AC11: 250 | AD11: 170 | AE11: 190 | AF11: 210 | AG11: 230 | AH11: 250 | AI11: 0.5 | AJ11: 1.2 | AK11: 1.7 | AL11: 2.5 | AM11: 3.5 | AN11: 1.2 | AO11: 2 | AP11: 2.8 | AQ11: 3.6 | AR11: 4.2 | AS11: 2 | AT11: 3 | AU11: 4 | AV11: 5 | AW11: 6
A12: Milling Oats | L12: Milling Oats | T12: 160 | U12: 180 | V12: 200 | W12: 250 | X12: 300 | Y12: 160 | Z12: 180 | AA12: 200 | AB12: 250 | AC12: 300 | AD12: 150 | AE12: 175 | AF12: 200 | AG12: 250 | AH12: 300 | AI12: 0.2 | AJ12: 0.5 | AK12: 1 | AL12: 1.5 | AM12: 2 | AN12: 1 | AO12: 1.5 | AP12: 2.1 | AQ12: 3 | AR12: 4 | AS12: 1 | AT12: 2 | AU12: 3.2 | AV12: 3.6 | AW12: 4
A13: Triticale | L13: Triticale | T13: 165 | U13: 185 | V13: 205 | W13: 225 | X13: 245 | Y13: 165 | Z13: 185 | AA13: 205 | AB13: 225 | AC13: 245 | AD13: 165 | AE13: 185 | AF13: 205 | AG13: 225 | AH13: 245 | AI13: 0.5 | AJ13: 1 | AK13: 1.3 | AL13: 2 | AM13: 3 | AN13: 1 | AO13: 1.6 | AP13: 2.4 | AQ13: 3.2 | AR13: 4 | AS13: 1.5 | AT13: 2.5 | AU13: 3.5 | AV13: 4.5 | AW13: 5.5
A14: Oaten Hay | L14: Vetch | T14: 300 | U14: 325 | V14: 350 | W14: 400 | X14: 450 | Y14: 300 | Z14: 325 | AA14: 350 | AB14: 400 | AC14: 450 | AD14: 300 | AE14: 325 | AF14: 350 | AG14: 400 | AH14: 450 | AI14: 0.3 | AJ14: 0.5 | AK14: 0.7 | AL14: 1.1 | AM14: 1.5 | AN14: 0.4 | AO14: 0.8 | AP14: 1.2 | AQ14: 1.6 | AR14: 1.8 | AS14: 0.8 | AT14: 1.2 | AU14: 1.6 | AV14: 2 | AW14: 2.5
A15: Grain Vetch | L15: Lupins | T15: 230 | U15: 250 | V15: 270 | W15: 300 | X15: 350 | Y15: 230 | Z15: 250 | AA15: 270 | AB15: 300 | AC15: 350 | AD15: 230 | AE15: 250 | AF15: 270 | AG15: 300 | AH15: 350 | AI15: 0.5 | AJ15: 0.7 | AK15: 0.9 | AL15: 1.5 | AM15: 2 | AN15: 0.5 | AO15: 1 | AP15: 1.5 | AQ15: 2 | AR15: 2.5 | AS15: 1 | AT15: 1.5 | AU15: 2 | AV15: 2.5 | AW15: 3
A16: Lupins | L16: Lentils | T16: 350 | U16: 400 | V16: 450 | W16: 500 | X16: 600 | Y16: 350 | Z16: 400 | AA16: 450 | AB16: 500 | AC16: 600 | AD16: 350 | AE16: 400 | AF16: 450 | AG16: 500 | AH16: 600 | AI16: 0.3 | AJ16: 0.6 | AK16: 0.9 | AL16: 1.1 | AM16: 1.5 | AN16: 0.8 | AO16: 1 | AP16: 1.5 | AQ16: 1.8 | AR16: 2.4 | AS16: 0.8 | AT16: 1.3 | AU16: 2 | AV16: 2.2 | AW16: 2.5
A17: Lentils | L17: Lentils IMI Tolerant | T17: 350 | U17: 400 | V17: 450 | W17: 500 | X17: 600 | Y17: 350 | Z17: 400 | AA17: 450 | AB17: 500 | AC17: 600 | AD17: 350 | AE17: 400 | AF17: 450 | AG17: 500 | AH17: 600 | AI17: 0.3 | AJ17: 0.5 | AK17: 0.8 | AL17: 1.1 | AM17: 1.5 | AN17: 0.8 | AO17: 1 | AP17: 1.3 | AQ17: 1.8 | AR17: 2.4 | AS17: 0.8 | AT17: 1.3 | AU17: 1.8 | AV17: 2 | AW17: 2.5
A18: Field Peas | L18: Field Peas | T18: 240 | U18: 270 | V18: 300 | W18: 330 | X18: 360 | Y18: 240 | Z18: 270 | AA18: 300 | AB18: 330 | AC18: 360 | AD18: 240 | AE18: 270 | AF18: 300 | AG18: 330 | AH18: 360 | AI18: 0.5 | AJ18: 0.75 | AK18: 1 | AL18: 1.25 | AM18: 1.5 | AN18: 1 | AO18: 1.2 | AP18: 1.5 | AQ18: 2 | AR18: 2.5 | AS18: 1.5 | AT18: 2 | AU18: 2.2 | AV18: 3 | AW18: 3.5
A19: Faba Beans | L19: Faba Beans | T19: 250 | U19: 290 | V19: 330 | W19: 370 | X19: 410 | Y19: 250 | Z19: 290 | AA19: 330 | AB19: 370 | AC19: 410 | AD19: 250 | AE19: 290 | AF19: 330 | AG19: 370 | AH19: 410 | AI19: 0.4 | AJ19: 0.6 | AK19: 0.8 | AL19: 1.5 | AM19: 2 | AN19: 1 | AO19: 1.2 | AP19: 1.6 | AQ19: 2 | AR19: 2.5 | AS19: 1 | AT19: 2 | AU19: 2.8 | AV19: 3.5 | AW19: 4
A20: Chickpeas (Kabuli) | L20: Kabuli Chickpeas | T20: 500 | U20: 600 | V20: 700 | W20: 800 | X20: 1000 | Y20: 500 | Z20: 600 | AA20: 700 | AB20: 800 | AC20: 1000 | AD20: 500 | AE20: 600 | AF20: 700 | AG20: 800 | AH20: 1000 | AI20: 0.4 | AJ20: 0.6 | AK20: 0.7 | AL20: 1.2 | AM20: 1.8 | AN20: 0.5 | AO20: 0.8 | AP20: 1.1 | AQ20: 1.8 | AR20: 2.3 | AS20: 1 | AT20: 1.5 | AU20: 1.6 | AV20: 2.5 | AW20: 3
A21: Canola- Conv | L21: Export Oaten Hay | T21: 160 | U21: 180 | V21: 200 | W21: 220 | X21: 240 | Y21: 130 | Z21: 150 | AA21: 170 | AB21: 190 | AC21: 210 | AD21: 100 | AE21: 120 | AF21: 140 | AG21: 170 | AH21: 200 | AI21: 1.5 | AJ21: 2.5 | AK21: 3.5 | AL21: 3 | AM21: 4.5 | AN21: 2 | AO21: 3.5 | AP21: 5.5 | AQ21: 7.5 | AR21: 8 | AS21: 4 | AT21: 6 | AU21: 8 | AV21: 10 | AW21: 12
A22: Canola-TT | L22: Canola Clearfield | T22: 400 | U22: 450 | V22: 500 | W22: 550 | X22: 600 | Y22: 400 | Z22: 450 | AA22: 500 | AB22: 550 | AC22: 600 | AD22: 400 | AE22: 450 | AF22: 500 | AG22: 550 | AH22: 600 | AI22: 0.3 | AJ22: 0.5 | AK22: 0.75 | AL22: 1.1 | AM22: 1.5 | AN22: 0.7 | AO22: 1 | AP22: 1.4 | AQ22: 2 | AR22: 2.5 | AS22: 1 | AT22: 1.5 | AU22: 2.1 | AV22: 2.5 | AW22: 2.7
A23: Canola-Clear | L23: Canola Conventional | T23: 400 | U23: 450 | V23: 500 | W23: 550 | X23: 600 | Y23: 400 | Z23: 450 | AA23: 500 | AB23: 550 | AC23: 600 | AD23: 400 | AE23: 450 | AF23: 500 | AG23: 550 | AH23: 600 | AI23: 0.3 | AJ23: 0.5 | AK23: 0.8 | AL23: 1.1 | AM23: 1.5 | AN23: 0.7 | AO23: 1 | AP23: 1.5 | AQ23: 2 | AR23: 2.5 | AS23: 1 | AT23: 1.5 | AU23: 2.2 | AV23: 2.7 | AW23: 3
L24: Canola Tri Tolerant | T24: 400 | U24: 450 | V24: 500 | W24: 550 | X24: 600 | Y24: 400 | Z24: 450 | AA24: 500 | AB24: 550 | AC24: 600 | AD24: 400 | AE24: 450 | AF24: 500 | AG24: 550 | AH24: 600 | AI24: 0.3 | AJ24: 0.5 | AK24: 0.7 | AL24: 1.1 | AM24: 1.5 | AN24: 0.7 | AO24: 1 | AP24: 1.3 | AQ24: 2 | AR24: 2.5 | AS24: 1 | AT24: 1.5 | AU24: 2 | AV24: 2.5 | AW24: 3
L25: Sown Pasture | T25: 55 | U25: 60 | V25: 63 | W25: 70 | X25: 75 | Y25: 55 | Z25: 60 | AA25: 63 | AB25: 70 | AC25: 75 | AD25: 55 | AE25: 60 | AF25: 63 | AG25: 70 | AH25: 75 | AI25: 2 | AJ25: 3 | AK25: 4 | AL25: 6 | AM25: 8 | AN25: 3 | AO25: 5 | AP25: 7 | AQ25: 8 | AR25: 9 | AS25: 4 | AT25: 7 | AU25: 10 | AV25: 11 | AW25: 12
L26: Self Regen Pasture | T26: 55 | U26: 60 | V26: 63 | W26: 70 | X26: 75 | Y26: 55 | Z26: 60 | AA26: 63 | AB26: 70 | AC26: 75 | AD26: 55 | AE26: 60 | AF26: 63 | AG26: 70 | AH26: 75 | AI26: 2 | AJ26: 3 | AK26: 4 | AL26: 6 | AM26: 8 | AN26: 3 | AO26: 5 | AP26: 7 | AQ26: 8 | AR26: 9 | AS26: 4 | AT26: 7 | AU26: 10 | AV26: 11 | AW26: 12

Sheet Summary
B2: ="GROSS MARGINS SUMMARY - "&TEXT(m_year,"0000") -> GROSS MARGINS SUMMARY - 2018
B3: =var_rain&" Rainfall Zone" -> 
D4: Gross Margin | F4: Income | H4: Seed | J4: Fertiliser | L4: Chemicals | N4: Operations | P4: Total Var Costs
B5: ="Crop "&IF(var_rotationtype=2,"-Rotation 1","") -> Crop | C5: Area
B6: Wheat | C6: =(WHEAT!U6)*(rng_APW_Wheat_DATA_SHEET) -> 0 | D6: =(SUM(WHEAT!L162)*(rng_rainfall=1)+SUM(WHEAT!O162)*(rng_rainfall=2)+SUM(WHEAT!R162)*(rng_rainfall=3))*(rng_APW_Wheat_DATA_SHEET) -> 0 | E6: =(WHEAT!U162)*(rng_APW_Wheat_DATA_SHEET) -> 0 | F6: =(SUM(WHEAT!L11)*(rng_rainfall=1)+SUM(WHEAT!O11)*(rng_rainfall=2)+SUM(WHEAT!R11)*(rng_rainfall=3))*(rng_APW_Wheat_DATA_SHEET) -> 0 | G6: =(WHEAT!U11)*(rng_APW_Wheat_DATA_SHEET) -> 0 | H6: =(SUM(WHEAT!L14:L34)*(rng_rainfall=1)+SUM(WHEAT!O14:O34)*(rng_rainfall=2)+SUM(WHEAT!R14:R34)*(rng_rainfall=3))*(rng_APW_Wheat_DATA_SHEET) -> 0 | I6: =(SUM(WHEAT!U14:U34))*(rng_APW_Wheat_DATA_SHEET) -> 0 | J6: =(SUM(WHEAT!L37:L53)*(rng_rainfall=1)+SUM(WHEAT!O37:O53)*(rng_rainfall=2)+SUM(WHEAT!R37:R53)*(rng_rainfall=3))*(rng_APW_Wheat_DATA_SHEET) -> 0 | K6: =(SUM(WHEAT!U37:U53))*(rng_APW_Wheat_DATA_SHEET) -> 0 | L6: =(SUM(WHEAT!L57:L128)*(rng_rainfall=1)+SUM(WHEAT!O57:O128)*(rng_rainfall=2)+SUM(WHEAT!R57:R128)*(rng_rainfall=3))*(rng_APW_Wheat_DATA_SHEET) -> 0 | M6: =(SUM(WHEAT!U57:U128))*(rng_APW_Wheat_DATA_SHEET) -> 0 | N6: =(SUM(WHEAT!L131:L157)*(rng_rainfall=1)+SUM(WHEAT!O131:O157)*(rng_rainfall=2)++SUM(WHEAT!R131:R157)*(rng_rainfall=3))*(rng_APW_Wheat_DATA_SHEET) ->  | O6: =(SUM(WHEAT!U131:U157))*(rng_APW_Wheat_DATA_SHEET) ->  | P6: =SUM(N6,L6,J6,H6) ->  | Q6: =(SUM(O6,M6,K6,I6))*(rng_APW_Wheat_DATA_SHEET) -> 
B7: Durum | C7: =(DURUM!U6)*(rng_Durum_DATA_SHEET) -> 0 | D7: =(SUM(DURUM!L162)*(rng_rainfall=1)+SUM(DURUM!O162)*(rng_rainfall=2)+SUM(DURUM!R162)*(rng_rainfall=3))*(rng_Durum_DATA_SHEET) -> 0 | E7: =(DURUM!U162)*(rng_Durum_DATA_SHEET) -> 0 | F7: =(SUM(DURUM!L11)*(rng_rainfall=1)+SUM(DURUM!O11)*(rng_rainfall=2)+SUM(DURUM!R11)*(rng_rainfall=3))*(rng_Durum_DATA_SHEET) -> 0 | G7: =(DURUM!U11)*(rng_Durum_DATA_SHEET) -> 0 | H7: =(SUM(DURUM!L14:L34)*(rng_rainfall=1)+SUM(DURUM!O14:O34)*(rng_rainfall=2)+SUM(DURUM!R14:R34)*(rng_rainfall=3))*(rng_Durum_DATA_SHEET) -> 0 | I7: =(SUM(DURUM!U14:U34))*(rng_Durum_DATA_SHEET) -> 0 | J7: =(SUM(DURUM!L37:L53)*(rng_rainfall=1)+SUM(DURUM!O37:O53)*(rng_rainfall=2)+SUM(DURUM!R37:R53)*(rng_rainfall=3))*(rng_Durum_DATA_SHEET) -> 0 | K7: =(SUM(DURUM!U37:U53))*(rng_Durum_DATA_SHEET) -> 0 | L7: =(SUM(DURUM!L57:L128)*(rng_rainfall=1)+SUM(DURUM!O57:O128)*(rng_rainfall=2)+SUM(DURUM!R57:R128)*(rng_rainfall=3))*(rng_Durum_DATA_SHEET) -> 0 | M7: =(SUM(DURUM!U57:U128))*(rng_Durum_DATA_SHEET) -> 0 | N7: =(SUM(DURUM!L131:L157)*(rng_rainfall=1)+SUM(DURUM!O131:O157)*(rng_rainfall=2)++SUM(DURUM!R131:R157)*(rng_rainfall=3))*(rng_Durum_DATA_SHEET) ->  | O7: =(SUM(DURUM!U131:U157))*(rng_Durum_DATA_SHEET) ->  | Q7: =(SUM(O7,M7,K7,I7))*(rng_Durum_DATA_SHEET) -> 
B8: Malt Barley | C8: =('MALT BARLEY'!U6)*(rng_Malt_Barley_DATA_SHEET) -> 0 | D8: =(SUM('MALT BARLEY'!L162)*(rng_rainfall=1)+SUM('MALT BARLEY'!O162)*(rng_rainfall=2)+SUM('MALT BARLEY'!R162)*(rng_rainfall=3))*(rng_Malt_Barley_DATA_SHEET) -> 0 | E8: =('MALT BARLEY'!U162)*(rng_Malt_Barley_DATA_SHEET) -> 0 | F8: =(SUM('MALT BARLEY'!L11)*(rng_rainfall=1)+SUM('MALT BARLEY'!O11)*(rng_rainfall=2)+SUM('MALT BARLEY'!R11)*(rng_rainfall=3))*(rng_Malt_Barley_DATA_SHEET) -> 0 | G8: =('MALT BARLEY'!U11)*(rng_Malt_Barley_DATA_SHEET) -> 0 | H8: =(SUM('MALT BARLEY'!L14:L34)*(rng_rainfall=1)+SUM('MALT BARLEY'!O14:O34)*(rng_rainfall=2)+SUM('MALT BARLEY'!R14:R34)*(rng_rainfall=3))*(rng_Malt_Barley_DATA_SHEET) -> 0 | I8: =(SUM('MALT BARLEY'!U14:U34))*(rng_Malt_Barley_DATA_SHEET) -> 0 | J8: =(SUM('MALT BARLEY'!L37:L53)*(rng_rainfall=1)+SUM('MALT BARLEY'!O37:O53)*(rng_rainfall=2)+SUM('MALT BARLEY'!R37:R53)*(rng_rainfall=3))*(rng_Malt_Barley_DATA_SHEET) -> 0 | K8: =(SUM('MALT BARLEY'!U37:U53))*(rng_Malt_Barley_DATA_SHEET) -> 0 | L8: =(SUM('MALT BARLEY'!L57:L128)*(rng_rainfall=1)+SUM('MALT BARLEY'!O57:O128)*(rng_rainfall=2)+SUM('MALT BARLEY'!R57:R128)*(rng_rainfall=3))*(rng_Malt_Barley_DATA_SHEET) -> 0 | M8: =(SUM('MALT BARLEY'!U57:U128))*(rng_Malt_Barley_DATA_SHEET) -> 0 | N8: =(SUM('MALT BARLEY'!L131:L157)*(rng_rainfall=1)+SUM('MALT BARLEY'!O131:O157)*(rng_rainfall=2)++SUM('MALT BARLEY'!R131:R157)*(rng_rainfall=3))*(rng_Malt_Barley_DATA_SHEET) ->  | O8: =(SUM('MALT BARLEY'!U131:U157))*(rng_Malt_Barley_DATA_SHEET) ->  | Q8: =(SUM(O8,M8,K8,I8))*(rng_Malt_Barley_DATA_SHEET) -> 
B9: Feed Barley | C9: =('FEED BARLEY'!U6)*(rng_Feed_Barley_DATA_SHEET) -> 0 | D9: =(SUM('FEED BARLEY'!L162)*(rng_rainfall=1)+SUM('FEED BARLEY'!O162)*(rng_rainfall=2)+SUM('FEED BARLEY'!R162)*(rng_rainfall=3))*(rng_Feed_Barley_DATA_SHEET) -> 0 | E9: =('FEED BARLEY'!U162)*(rng_Feed_Barley_DATA_SHEET) -> 0 | F9: =(SUM('FEED BARLEY'!L11)*(rng_rainfall=1)+SUM('FEED BARLEY'!O11)*(rng_rainfall=2)+SUM('FEED BARLEY'!R11)*(rng_rainfall=3))*(rng_Feed_Barley_DATA_SHEET) -> 0 | G9: =('FEED BARLEY'!U11)*(rng_Feed_Barley_DATA_SHEET) -> 0 | H9: =(SUM('FEED BARLEY'!L14:L34)*(rng_rainfall=1)+SUM('FEED BARLEY'!O14:O34)*(rng_rainfall=2)+SUM('FEED BARLEY'!R14:R34)*(rng_rainfall=3))*(rng_Feed_Barley_DATA_SHEET) -> 0 | I9: =(SUM('FEED BARLEY'!U14:U34))*(rng_Feed_Barley_DATA_SHEET) -> 0 | J9: =(SUM('FEED BARLEY'!L37:L53)*(rng_rainfall=1)+SUM('FEED BARLEY'!O37:O53)*(rng_rainfall=2)+SUM('FEED BARLEY'!R37:R53)*(rng_rainfall=3))*(rng_Feed_Barley_DATA_SHEET) -> 0 | K9: =(SUM('FEED BARLEY'!U37:U53))*(rng_Feed_Barley_DATA_SHEET) -> 0 | L9: =(SUM('FEED BARLEY'!L57:L128)*(rng_rainfall=1)+SUM('FEED BARLEY'!O57:O128)*(rng_rainfall=2)+SUM('FEED BARLEY'!R57:R128)*(rng_rainfall=3))*(rng_Feed_Barley_DATA_SHEET) -> 0 | M9: =(SUM('FEED BARLEY'!U57:U128))*(rng_Feed_Barley_DATA_SHEET) -> 0 | N9: =(SUM('FEED BARLEY'!L131:L157)*(rng_rainfall=1)+SUM('FEED BARLEY'!O131:O157)*(rng_rainfall=2)++SUM('FEED BARLEY'!R131:R157)*(rng_rainfall=3))*(rng_Feed_Barley_DATA_SHEET) ->  | O9: =(SUM('FEED BARLEY'!U131:U157))*(rng_Feed_Barley_DATA_SHEET) ->  | Q9: =(SUM(O9,M9,K9,I9))*(rng_Feed_Barley_DATA_SHEET) -> 
B10: Milling Oats | C10: =('MILLING OATS'!U6)*(rng_Milling_DATA_SHEET) -> 0 | D10: =(SUM('MILLING OATS'!L162)*(rng_rainfall=1)+SUM('MILLING OATS'!O162)*(rng_rainfall=2)+SUM('MILLING OATS'!R162)*(rng_rainfall=3))*(rng_Milling_DATA_SHEET) -> 0 | E10: =('MILLING OATS'!U162)*(rng_Milling_DATA_SHEET) -> 0 | F10: =(SUM('MILLING OATS'!L11)*(rng_rainfall=1)+SUM('MILLING OATS'!O11)*(rng_rainfall=2)+SUM('MILLING OATS'!R11)*(rng_rainfall=3))*(rng_Milling_DATA_SHEET) -> 0 | G10: =('MILLING OATS'!U11)*(rng_Milling_DATA_SHEET) -> 0 | H10: =(SUM('MILLING OATS'!L14:L34)*(rng_rainfall=1)+SUM('MILLING OATS'!O14:O34)*(rng_rainfall=2)+SUM('MILLING OATS'!R14:R34)*(rng_rainfall=3))*(rng_Milling_DATA_SHEET) -> 0 | I10: =(SUM('MILLING OATS'!U14:U34))*(rng_Milling_DATA_SHEET) -> 0 | J10: =(SUM('MILLING OATS'!L37:L53)*(rng_rainfall=1)+SUM('MILLING OATS'!O37:O53)*(rng_rainfall=2)+SUM('MILLING OATS'!R37:R53)*(rng_rainfall=3))*(rng_Milling_DATA_SHEET) -> 0 | K10: =(SUM('MILLING OATS'!U37:U53))*(rng_Milling_DATA_SHEET) -> 0 | L10: =(SUM('MILLING OATS'!L57:L128)*(rng_rainfall=1)+SUM('MILLING OATS'!O57:O128)*(rng_rainfall=2)+SUM('MILLING OATS'!R57:R128)*(rng_rainfall=3))*(rng_Milling_DATA_SHEET) -> 0 | M10: =(SUM('MILLING OATS'!U57:U128))*(rng_Milling_DATA_SHEET) -> 0 | N10: =(SUM('MILLING OATS'!L131:L157)*(rng_rainfall=1)+SUM('MILLING OATS'!O131:O157)*(rng_rainfall=2)++SUM('MILLING OATS'!R131:R157)*(rng_rainfall=3))*(rng_Milling_DATA_SHEET) ->  | O10: =(SUM('MILLING OATS'!U131:U157))*(rng_Milling_DATA_SHEET) ->  | Q10: =(SUM(O10,M10,K10,I10))*(rng_Milling_DATA_SHEET) -> 
B11: Triticale | C11: =(TRITICALE!U6)*(rng_Triticale_DATA_SHEET) -> 0 | D11: =(SUM(TRITICALE!L162)*(rng_rainfall=1)+SUM(TRITICALE!O162)*(rng_rainfall=2)+SUM(TRITICALE!R162)*(rng_rainfall=3))*(rng_Triticale_DATA_SHEET) -> 0 | E11: =(TRITICALE!U162)*(rng_Triticale_DATA_SHEET) -> 0 | F11: =(SUM(TRITICALE!L11)*(rng_rainfall=1)+SUM(TRITICALE!O11)*(rng_rainfall=2)+SUM(TRITICALE!R11)*(rng_rainfall=3))*(rng_Triticale_DATA_SHEET) -> 0 | G11: =(TRITICALE!U11)*(rng_Triticale_DATA_SHEET) -> 0 | H11: =(SUM(TRITICALE!L14:L34)*(rng_rainfall=1)+SUM(TRITICALE!O14:O34)*(rng_rainfall=2)+SUM(TRITICALE!R14:R34)*(rng_rainfall=3))*(rng_Triticale_DATA_SHEET) -> 0 | I11: =(SUM(TRITICALE!U14:U34))*(rng_Triticale_DATA_SHEET) -> 0 | J11: =(SUM(TRITICALE!L37:L53)*(rng_rainfall=1)+SUM(TRITICALE!O37:O53)*(rng_rainfall=2)+SUM(TRITICALE!R37:R53)*(rng_rainfall=3))*(rng_Triticale_DATA_SHEET) -> 0 | K11: =(SUM(TRITICALE!U37:U53))*(rng_Triticale_DATA_SHEET) -> 0 | L11: =(SUM(TRITICALE!L57:L128)*(rng_rainfall=1)+SUM(TRITICALE!O57:O128)*(rng_rainfall=2)+SUM(TRITICALE!R57:R128)*(rng_rainfall=3))*(rng_Triticale_DATA_SHEET) -> 0 | M11: =(SUM(TRITICALE!U57:U128))*(rng_Triticale_DATA_SHEET) -> 0 | N11: =(SUM(TRITICALE!L131:L157)*(rng_rainfall=1)+SUM(TRITICALE!O131:O157)*(rng_rainfall=2)++SUM(TRITICALE!R131:R157)*(rng_rainfall=3))*(rng_Triticale_DATA_SHEET) ->  | O11: =(SUM(TRITICALE!U131:U157))*(rng_Triticale_DATA_SHEET) ->  | Q11: =(SUM(O11,M11,K11,I11))*(rng_Triticale_DATA_SHEET) -> 
B12: Export Oaten Hay | C12: =('EXPORT OATEN HAY'!U6)*(rng_Export_DATA_SHEET) -> 0 | D12: =(SUM('EXPORT OATEN HAY'!L162)*(rng_rainfall=1)+SUM('EXPORT OATEN HAY'!O162)*(rng_rainfall=2)+SUM('EXPORT OATEN HAY'!R162)*(rng_rainfall=3))*(rng_Export_DATA_SHEET) -> 0 | E12: =('EXPORT OATEN HAY'!U162)*(rng_Export_DATA_SHEET) -> 0 | F12: =(SUM('EXPORT OATEN HAY'!L11)*(rng_rainfall=1)+SUM('EXPORT OATEN HAY'!O11)*(rng_rainfall=2)+SUM('EXPORT OATEN HAY'!R11)*(rng_rainfall=3))*(rng_Export_DATA_SHEET) -> 0 | G12: =('EXPORT OATEN HAY'!U11)*(rng_Export_DATA_SHEET) -> 0 | H12: =(SUM('EXPORT OATEN HAY'!L14:L34)*(rng_rainfall=1)+SUM('EXPORT OATEN HAY'!O14:O34)*(rng_rainfall=2)+SUM('EXPORT OATEN HAY'!R14:R34)*(rng_rainfall=3))*(rng_Export_DATA_SHEET) -> 0 | I12: =(SUM('EXPORT OATEN HAY'!U14:U34))*(rng_Export_DATA_SHEET) -> 0 | J12: =(SUM('EXPORT OATEN HAY'!L37:L53)*(rng_rainfall=1)+SUM('EXPORT OATEN HAY'!O37:O53)*(rng_rainfall=2)+SUM('EXPORT OATEN HAY'!R37:R53)*(rng_rainfall=3))*(rng_Export_DATA_SHEET) -> 0 | K12: =(SUM('EXPORT OATEN HAY'!U37:U53))*(rng_Export_DATA_SHEET) -> 0 | L12: =(SUM('EXPORT OATEN HAY'!L57:L128)*(rng_rainfall=1)+SUM('EXPORT OATEN HAY'!O57:O128)*(rng_rainfall=2)+SUM('EXPORT OATEN HAY'!R57:R128)*(rng_rainfall=3))*(rng_Export_DATA_SHEET) -> 0 | M12: =(SUM('EXPORT OATEN HAY'!U57:U128))*(rng_Export_DATA_SHEET) -> 0 | N12: =(SUM('EXPORT OATEN HAY'!L131:L157)*(rng_rainfall=1)+SUM('EXPORT OATEN HAY'!O131:O157)*(rng_rainfall=2)++SUM('EXPORT OATEN HAY'!R131:R157)*(rng_rainfall=3))*(rng_Export_DATA_SHEET) ->  | O12: =(SUM('EXPORT OATEN HAY'!U131:U157))*(rng_Export_DATA_SHEET) ->  | Q12: =(SUM(O12,M12,K12,I12))*(rng_Export_DATA_SHEET) -> 
B13: Vetch | C13: =(VETCH!U6)*(rng_Vetch_DATA_SHEET) -> 0 | D13: =(SUM(VETCH!L162)*(rng_rainfall=1)+SUM(VETCH!O162)*(rng_rainfall=2)+SUM(VETCH!R162)*(rng_rainfall=3))*(rng_Vetch_DATA_SHEET) -> 0 | E13: =(VETCH!U162)*(rng_Vetch_DATA_SHEET) -> 0 | F13: =(SUM(VETCH!L11)*(rng_rainfall=1)+SUM(VETCH!O11)*(rng_rainfall=2)+SUM(VETCH!R11)*(rng_rainfall=3))*(rng_Vetch_DATA_SHEET) -> 0 | G13: =(VETCH!U11)*(rng_Vetch_DATA_SHEET) -> 0 | H13: =(SUM(VETCH!L14:L34)*(rng_rainfall=1)+SUM(VETCH!O14:O34)*(rng_rainfall=2)+SUM(VETCH!R14:R34)*(rng_rainfall=3))*(rng_Vetch_DATA_SHEET) -> 0 | I13: =(SUM(VETCH!U14:U34))*(rng_Vetch_DATA_SHEET) -> 0 | J13: =(SUM(VETCH!L37:L53)*(rng_rainfall=1)+SUM(VETCH!O37:O53)*(rng_rainfall=2)+SUM(VETCH!R37:R53)*(rng_rainfall=3))*(rng_Vetch_DATA_SHEET) -> 0 | K13: =(SUM(VETCH!U37:U53))*(rng_Vetch_DATA_SHEET) -> 0 | L13: =(SUM(VETCH!L57:L128)*(rng_rainfall=1)+SUM(VETCH!O57:O128)*(rng_rainfall=2)+SUM(VETCH!R57:R128)*(rng_rainfall=3))*(rng_Vetch_DATA_SHEET) -> 0 | M13: =(SUM(VETCH!U57:U128))*(rng_Vetch_DATA_SHEET) -> 0 | N13: =(SUM(VETCH!L131:L157)*(rng_rainfall=1)+SUM(VETCH!O131:O157)*(rng_rainfall=2)++SUM(VETCH!R131:R157)*(rng_rainfall=3))*(rng_Vetch_DATA_SHEET) ->  | O13: =(SUM(VETCH!U131:U157))*(rng_Vetch_DATA_SHEET) ->  | Q13: =(SUM(O13,M13,K13,I13))*(rng_Vetch_DATA_SHEET) -> 
B14: Lupins | C14: =(LUPINS!U6)*(rng_Lupins_DATA_SHEET) -> 0 | D14: =(SUM(LUPINS!L162)*(rng_rainfall=1)+SUM(LUPINS!O162)*(rng_rainfall=2)+SUM(LUPINS!R162)*(rng_rainfall=3))*(rng_Lupins_DATA_SHEET) -> 0 | E14: =(LUPINS!U162)*(rng_Lupins_DATA_SHEET) -> 0 | F14: =(SUM(LUPINS!L11)*(rng_rainfall=1)+SUM(LUPINS!O11)*(rng_rainfall=2)+SUM(LUPINS!R11)*(rng_rainfall=3))*(rng_Lupins_DATA_SHEET) -> 0 | G14: =(LUPINS!U11)*(rng_Lupins_DATA_SHEET) -> 0 | H14: =(SUM(LUPINS!L14:L34)*(rng_rainfall=1)+SUM(LUPINS!O14:O34)*(rng_rainfall=2)+SUM(LUPINS!R14:R34)*(rng_rainfall=3))*(rng_Lupins_DATA_SHEET) -> 0 | I14: =(SUM(LUPINS!U14:U34))*(rng_Lupins_DATA_SHEET) -> 0 | J14: =(SUM(LUPINS!L37:L53)*(rng_rainfall=1)+SUM(LUPINS!O37:O53)*(rng_rainfall=2)+SUM(LUPINS!R37:R53)*(rng_rainfall=3))*(rng_Lupins_DATA_SHEET) -> 0 | K14: =(SUM(LUPINS!U37:U53))*(rng_Lupins_DATA_SHEET) -> 0 | L14: =(SUM(LUPINS!L57:L128)*(rng_rainfall=1)+SUM(LUPINS!O57:O128)*(rng_rainfall=2)+SUM(LUPINS!R57:R128)*(rng_rainfall=3))*(rng_Lupins_DATA_SHEET) -> 0 | M14: =(SUM(LUPINS!U57:U128))*(rng_Lupins_DATA_SHEET) -> 0 | N14: =(SUM(LUPINS!L131:L157)*(rng_rainfall=1)+SUM(LUPINS!O131:O157)*(rng_rainfall=2)++SUM(LUPINS!R131:R157)*(rng_rainfall=3))*(rng_Lupins_DATA_SHEET) ->  | O14: =(SUM(LUPINS!U131:U157))*(rng_Lupins_DATA_SHEET) ->  | Q14: =(SUM(O14,M14,K14,I14))*(rng_Lupins_DATA_SHEET) -> 
B15: Lentils | C15: =(LENTILS!U6)*(rng_lentils_DATA_SHEET) -> 0 | D15: =(SUM(LENTILS!L162)*(rng_rainfall=1)+SUM(LENTILS!O162)*(rng_rainfall=2)+SUM(LENTILS!R162)*(rng_rainfall=3))*(rng_lentils_DATA_SHEET) -> 0 | E15: =(LENTILS!U162)*(rng_lentils_DATA_SHEET) -> 0 | F15: =(SUM(LENTILS!L11)*(rng_rainfall=1)+SUM(LENTILS!O11)*(rng_rainfall=2)+SUM(LENTILS!R11)*(rng_rainfall=3))*(rng_lentils_DATA_SHEET) -> 0 | G15: =(LENTILS!U11)*(rng_lentils_DATA_SHEET) -> 0 | H15: =(SUM(LENTILS!L14:L34)*(rng_rainfall=1)+SUM(LENTILS!O14:O34)*(rng_rainfall=2)+SUM(LENTILS!R14:R34)*(rng_rainfall=3))*(rng_lentils_DATA_SHEET) -> 0 | I15: =(SUM(LENTILS!U14:U34))*(rng_lentils_DATA_SHEET) -> 0 | J15: =(SUM(LENTILS!L37:L53)*(rng_rainfall=1)+SUM(LENTILS!O37:O53)*(rng_rainfall=2)+SUM(LENTILS!R37:R53)*(rng_rainfall=3))*(rng_lentils_DATA_SHEET) -> 0 | K15: =(SUM(LENTILS!U37:U53))*(rng_lentils_DATA_SHEET) -> 0 | L15: =(SUM(LENTILS!L57:L128)*(rng_rainfall=1)+SUM(LENTILS!O57:O128)*(rng_rainfall=2)+SUM(LENTILS!R57:R128)*(rng_rainfall=3))*(rng_lentils_DATA_SHEET) -> 0 | M15: =(SUM(LENTILS!U57:U128))*(rng_lentils_DATA_SHEET) -> 0 | N15: =(SUM(LENTILS!L131:L157)*(rng_rainfall=1)+SUM(LENTILS!O131:O157)*(rng_rainfall=2)++SUM(LENTILS!R131:R157)*(rng_rainfall=3))*(rng_lentils_DATA_SHEET) ->  | O15: =(SUM(LENTILS!U131:U157))*(rng_lentils_DATA_SHEET) ->  | Q15: =(SUM(O15,M15,K15,I15))*(rng_lentils_DATA_SHEET) -> 
B16: Lentils IMI Tolerant | C16: =('LENTILS IMI TOLERANT'!U6)*(rng_lentils_imi_DATA_SHEET) -> 0 | D16: =(SUM('LENTILS IMI TOLERANT'!L162)*(rng_rainfall=1)+SUM('LENTILS IMI TOLERANT'!O162)*(rng_rainfall=2)+SUM('LENTILS IMI TOLERANT'!R162)*(rng_rainfall=3))*(rng_lentils_imi_DATA_SHEET) -> 0 | E16: =('LENTILS IMI TOLERANT'!U162)*(rng_lentils_imi_DATA_SHEET) -> 0 | F16: =(SUM('LENTILS IMI TOLERANT'!L11)*(rng_rainfall=1)+SUM('LENTILS IMI TOLERANT'!O11)*(rng_rainfall=2)+SUM('LENTILS IMI TOLERANT'!R11)*(rng_rainfall=3))*(rng_lentils_imi_DATA_SHEET) -> 0 | G16: =('LENTILS IMI TOLERANT'!U11)*(rng_lentils_imi_DATA_SHEET) -> 0 | H16: =(SUM('LENTILS IMI TOLERANT'!L14:L34)*(rng_rainfall=1)+SUM('LENTILS IMI TOLERANT'!O14:O34)*(rng_rainfall=2)+SUM('LENTILS IMI TOLERANT'!R14:R34)*(rng_rainfall=3))*(rng_lentils_imi_DATA_SHEET) -> 0 | I16: =(SUM('LENTILS IMI TOLERANT'!U14:U34))*(rng_lentils_imi_DATA_SHEET) -> 0 | J16: =(SUM('LENTILS IMI TOLERANT'!L37:L53)*(rng_rainfall=1)+SUM('LENTILS IMI TOLERANT'!O37:O53)*(rng_rainfall=2)+SUM('LENTILS IMI TOLERANT'!R37:R53)*(rng_rainfall=3))*(rng_lentils_imi_DATA_SHEET) -> 0 | K16: =(SUM('LENTILS IMI TOLERANT'!U37:U53))*(rng_lentils_imi_DATA_SHEET) -> 0 | L16: =(SUM('LENTILS IMI TOLERANT'!L57:L128)*(rng_rainfall=1)+SUM('LENTILS IMI TOLERANT'!O57:O128)*(rng_rainfall=2)+SUM('LENTILS IMI TOLERANT'!R57:R128)*(rng_rainfall=3))*(rng_lentils_imi_DATA_SHEET) -> 0 | M16: =(SUM('LENTILS IMI TOLERANT'!U57:U128))*(rng_lentils_imi_DATA_SHEET) -> 0 | N16: =(SUM('LENTILS IMI TOLERANT'!L131:L157)*(rng_rainfall=1)+SUM('LENTILS IMI TOLERANT'!O131:O157)*(rng_rainfall=2)++SUM('LENTILS IMI TOLERANT'!R131:R157)*(rng_rainfall=3))*(rng_lentils_imi_DATA_SHEET) ->  | O16: =(SUM('LENTILS IMI TOLERANT'!U131:U157))*(rng_lentils_imi_DATA_SHEET) ->  | P16: =SUM(N16,L16,J16,H16) ->  | Q16: =(SUM(O16,M16,K16,I16))*(rng_lentils_imi_DATA_SHEET) -> 
B17: Field Peas | C17: =(PEAS!U6)*(rng_Field_Peas_DATA_SHEET) -> 0 | D17: =(SUM(PEAS!L162)*(rng_rainfall=1)+SUM(PEAS!O162)*(rng_rainfall=2)+SUM(PEAS!R162)*(rng_rainfall=3))*(rng_Field_Peas_DATA_SHEET) -> 0 | E17: =(PEAS!U162)*(rng_Field_Peas_DATA_SHEET) -> 0 | F17: =(SUM(PEAS!L11)*(rng_rainfall=1)+SUM(PEAS!O11)*(rng_rainfall=2)+SUM(PEAS!R11)*(rng_rainfall=3))*(rng_Field_Peas_DATA_SHEET) -> 0 | G17: =(PEAS!U11)*(rng_Field_Peas_DATA_SHEET) -> 0 | H17: =(SUM(PEAS!L14:L34)*(rng_rainfall=1)+SUM(PEAS!O14:O34)*(rng_rainfall=2)+SUM(PEAS!R14:R34)*(rng_rainfall=3))*(rng_Field_Peas_DATA_SHEET) -> 0 | I17: =(SUM(PEAS!U14:U34))*(rng_Field_Peas_DATA_SHEET) -> 0 | J17: =(SUM(PEAS!L37:L53)*(rng_rainfall=1)+SUM(PEAS!O37:O53)*(rng_rainfall=2)+SUM(PEAS!R37:R53)*(rng_rainfall=3))*(rng_Field_Peas_DATA_SHEET) -> 0 | K17: =(SUM(PEAS!U37:U53))*(rng_Field_Peas_DATA_SHEET) -> 0 | L17: =(SUM(PEAS!L57:L128)*(rng_rainfall=1)+SUM(PEAS!O57:O128)*(rng_rainfall=2)+SUM(PEAS!R57:R128)*(rng_rainfall=3))*(rng_Field_Peas_DATA_SHEET) -> 0 | M17: =(SUM(PEAS!U57:U128))*(rng_Field_Peas_DATA_SHEET) -> 0 | N17: =(SUM(PEAS!L131:L157)*(rng_rainfall=1)+SUM(PEAS!O131:O157)*(rng_rainfall=2)++SUM(PEAS!R131:R157)*(rng_rainfall=3))*(rng_Field_Peas_DATA_SHEET) ->  | O17: =(SUM(PEAS!U131:U157))*(rng_Field_Peas_DATA_SHEET) ->  | Q17: =(SUM(O17,M17,K17,I17))*(rng_Field_Peas_DATA_SHEET) -> 
B18: Faba Beans | C18: =(BEANS!U6)*(rng_Beans_DATA_SHEET) -> 0 | D18: =(SUM(BEANS!L162)*(rng_rainfall=1)+SUM(BEANS!O162)*(rng_rainfall=2)+SUM(BEANS!R162)*(rng_rainfall=3))*(rng_Beans_DATA_SHEET) -> 0 | E18: =(BEANS!U162)*(rng_Beans_DATA_SHEET) -> 0 | F18: =(SUM(BEANS!L11)*(rng_rainfall=1)+SUM(BEANS!O11)*(rng_rainfall=2)+SUM(BEANS!R11)*(rng_rainfall=3))*(rng_Beans_DATA_SHEET) -> 0 | G18: =(BEANS!U11)*(rng_Beans_DATA_SHEET) -> 0 | H18: =(SUM(BEANS!L14:L34)*(rng_rainfall=1)+SUM(BEANS!O14:O34)*(rng_rainfall=2)+SUM(BEANS!R14:R34)*(rng_rainfall=3))*(rng_Beans_DATA_SHEET) -> 0 | I18: =(SUM(BEANS!U14:U34))*(rng_Beans_DATA_SHEET) -> 0 | J18: =(SUM(BEANS!L37:L53)*(rng_rainfall=1)+SUM(BEANS!O37:O53)*(rng_rainfall=2)+SUM(BEANS!R37:R53)*(rng_rainfall=3))*(rng_Beans_DATA_SHEET) -> 0 | K18: =(SUM(BEANS!U37:U53))*(rng_Beans_DATA_SHEET) -> 0 | L18: =(SUM(BEANS!L57:L128)*(rng_rainfall=1)+SUM(BEANS!O57:O128)*(rng_rainfall=2)+SUM(BEANS!R57:R128)*(rng_rainfall=3))*(rng_Beans_DATA_SHEET) -> 0 | M18: =(SUM(BEANS!U57:U128))*(rng_Beans_DATA_SHEET) -> 0 | N18: =(SUM(BEANS!L131:L157)*(rng_rainfall=1)+SUM(BEANS!O131:O157)*(rng_rainfall=2)++SUM(BEANS!R131:R157)*(rng_rainfall=3))*(rng_Beans_DATA_SHEET) ->  | O18: =(SUM(BEANS!U131:U157))*(rng_Beans_DATA_SHEET) ->  | Q18: =(SUM(O18,M18,K18,I18))*(rng_Beans_DATA_SHEET) -> 
B19: Kabuli Chickpeas | C19: =(CHICKPEAS!U6)*(rng_Chickpeas_DATA_SHEET) -> 0 | D19: =(SUM(CHICKPEAS!L162)*(rng_rainfall=1)+SUM(CHICKPEAS!O162)*(rng_rainfall=2)+SUM(CHICKPEAS!R162)*(rng_rainfall=3))*(rng_Chickpeas_DATA_SHEET) -> 0 | E19: =(CHICKPEAS!U162)*(rng_Chickpeas_DATA_SHEET) -> 0 | F19: =(SUM(CHICKPEAS!L11)*(rng_rainfall=1)+SUM(CHICKPEAS!O11)*(rng_rainfall=2)+SUM(CHICKPEAS!R11)*(rng_rainfall=3))*(rng_Chickpeas_DATA_SHEET) -> 0 | G19: =(CHICKPEAS!U11)*(rng_Chickpeas_DATA_SHEET) -> 0 | H19: =(SUM(CHICKPEAS!L14:L34)*(rng_rainfall=1)+SUM(CHICKPEAS!O14:O34)*(rng_rainfall=2)+SUM(CHICKPEAS!R14:R34)*(rng_rainfall=3))*(rng_Chickpeas_DATA_SHEET) -> 0 | I19: =(SUM(CHICKPEAS!U14:U34))*(rng_Chickpeas_DATA_SHEET) -> 0 | J19: =(SUM(CHICKPEAS!L37:L53)*(rng_rainfall=1)+SUM(CHICKPEAS!O37:O53)*(rng_rainfall=2)+SUM(CHICKPEAS!R37:R53)*(rng_rainfall=3))*(rng_Chickpeas_DATA_SHEET) -> 0 | K19: =(SUM(CHICKPEAS!U37:U53))*(rng_Chickpeas_DATA_SHEET) -> 0 | L19: =(SUM(CHICKPEAS!L57:L128)*(rng_rainfall=1)+SUM(CHICKPEAS!O57:O128)*(rng_rainfall=2)+SUM(CHICKPEAS!R57:R128)*(rng_rainfall=3))*(rng_Chickpeas_DATA_SHEET) -> 0 | M19: =(SUM(CHICKPEAS!U57:U128))*(rng_Chickpeas_DATA_SHEET) -> 0 | N19: =(SUM(CHICKPEAS!L131:L157)*(rng_rainfall=1)+SUM(CHICKPEAS!O131:O157)*(rng_rainfall=2)++SUM(CHICKPEAS!R131:R157)*(rng_rainfall=3))*(rng_Chickpeas_DATA_SHEET) ->  | O19: =(SUM(CHICKPEAS!U131:U157))*(rng_Chickpeas_DATA_SHEET) ->  | Q19: =(SUM(O19,M19,K19,I19))*(rng_Chickpeas_DATA_SHEET) -> 
B20: Canola Clearfield | C20: =('CANOLA CLEARFIELD'!U6)*(rng_Canola_Clear_DATA_SHEET) -> 0 | D20: =(SUM('CANOLA CLEARFIELD'!L162)*(rng_rainfall=1)+SUM('CANOLA CLEARFIELD'!O162)*(rng_rainfall=2)+SUM('CANOLA CLEARFIELD'!R162)*(rng_rainfall=3))*(rng_Canola_Clear_DATA_SHEET) -> 0 | E20: =('CANOLA CLEARFIELD'!U162)*(rng_Canola_Clear_DATA_SHEET) -> 0 | F20: =(SUM('CANOLA CLEARFIELD'!L11)*(rng_rainfall=1)+SUM('CANOLA CLEARFIELD'!O11)*(rng_rainfall=2)+SUM('CANOLA CLEARFIELD'!R11)*(rng_rainfall=3))*(rng_Canola_Clear_DATA_SHEET) -> 0 | G20: =('CANOLA CLEARFIELD'!U11)*(rng_Canola_Clear_DATA_SHEET) -> 0 | H20: =(SUM('CANOLA CLEARFIELD'!L14:L34)*(rng_rainfall=1)+SUM('CANOLA CLEARFIELD'!O14:O34)*(rng_rainfall=2)+SUM('CANOLA CLEARFIELD'!R14:R34)*(rng_rainfall=3))*(rng_Canola_Clear_DATA_SHEET) -> 0 | I20: =(SUM('CANOLA CLEARFIELD'!U14:U34))*(rng_Canola_Clear_DATA_SHEET) -> 0 | J20: =(SUM('CANOLA CLEARFIELD'!L37:L53)*(rng_rainfall=1)+SUM('CANOLA CLEARFIELD'!O37:O53)*(rng_rainfall=2)+SUM('CANOLA CLEARFIELD'!R37:R53)*(rng_rainfall=3))*(rng_Canola_Clear_DATA_SHEET) -> 0 | K20: =(SUM('CANOLA CLEARFIELD'!U37:U53))*(rng_Canola_Clear_DATA_SHEET) -> 0 | L20: =(SUM('CANOLA CLEARFIELD'!L57:L128)*(rng_rainfall=1)+SUM('CANOLA CLEARFIELD'!O57:O128)*(rng_rainfall=2)+SUM('CANOLA CLEARFIELD'!R57:R128)*(rng_rainfall=3))*(rng_Canola_Clear_DATA_SHEET) -> 0 | M20: =(SUM('CANOLA CLEARFIELD'!U57:U128))*(rng_Canola_Clear_DATA_SHEET) -> 0 | N20: =(SUM('CANOLA CLEARFIELD'!L131:L157)*(rng_rainfall=1)+SUM('CANOLA CLEARFIELD'!O131:O157)*(rng_rainfall=2)++SUM('CANOLA CLEARFIELD'!R131:R157)*(rng_rainfall=3))*(rng_Canola_Clear_DATA_SHEET) ->  | O20: =(SUM('CANOLA CLEARFIELD'!U131:U157))*(rng_Canola_Clear_DATA_SHEET) ->  | Q20: =(SUM(O20,M20,K20,I20))*(rng_Canola_Clear_DATA_SHEET) -> 
B21: Canola Conventional | C21: =('CANOLA CONVENTIONAL'!U6)*(rng_Canola_Conv_DATA_SHEET) -> 0 | D21: =(SUM('CANOLA CONVENTIONAL'!L162)*(rng_rainfall=1)+SUM('CANOLA CONVENTIONAL'!O162)*(rng_rainfall=2)+SUM('CANOLA CONVENTIONAL'!R162)*(rng_rainfall=3))*(rng_Canola_Conv_DATA_SHEET) -> 0 | E21: =('CANOLA CONVENTIONAL'!U162)*(rng_Canola_Conv_DATA_SHEET) -> 0 | F21: =(SUM('CANOLA CONVENTIONAL'!L11)*(rng_rainfall=1)+SUM('CANOLA CONVENTIONAL'!O11)*(rng_rainfall=2)+SUM('CANOLA CONVENTIONAL'!R11)*(rng_rainfall=3))*(rng_Canola_Conv_DATA_SHEET) -> 0 | G21: =('CANOLA CONVENTIONAL'!U11)*(rng_Canola_Conv_DATA_SHEET) -> 0 | H21: =(SUM('CANOLA CONVENTIONAL'!L14:L34)*(rng_rainfall=1)+SUM('CANOLA CONVENTIONAL'!O14:O34)*(rng_rainfall=2)+SUM('CANOLA CONVENTIONAL'!R14:R34)*(rng_rainfall=3))*(rng_Canola_Conv_DATA_SHEET) -> 0 | I21: =(SUM('CANOLA CONVENTIONAL'!U14:U34))*(rng_Canola_Conv_DATA_SHEET) -> 0 | J21: =(SUM('CANOLA CONVENTIONAL'!L37:L53)*(rng_rainfall=1)+SUM('CANOLA CONVENTIONAL'!O37:O53)*(rng_rainfall=2)+SUM('CANOLA CONVENTIONAL'!R37:R53)*(rng_rainfall=3))*(rng_Canola_Conv_DATA_SHEET) -> 0 | K21: =(SUM('CANOLA CONVENTIONAL'!U37:U53))*(rng_Canola_Conv_DATA_SHEET) -> 0 | L21: =(SUM('CANOLA CONVENTIONAL'!L57:L128)*(rng_rainfall=1)+SUM('CANOLA CONVENTIONAL'!O57:O128)*(rng_rainfall=2)+SUM('CANOLA CONVENTIONAL'!R57:R128)*(rng_rainfall=3))*(rng_Canola_Conv_DATA_SHEET) -> 0 | M21: =(SUM('CANOLA CONVENTIONAL'!U57:U128))*(rng_Canola_Conv_DATA_SHEET) -> 0 | N21: =(SUM('CANOLA CONVENTIONAL'!L131:L157)*(rng_rainfall=1)+SUM('CANOLA CONVENTIONAL'!O131:O157)*(rng_rainfall=2)++SUM('CANOLA CONVENTIONAL'!R131:R157)*(rng_rainfall=3))*(rng_Canola_Conv_DATA_SHEET) ->  | O21: =(SUM('CANOLA CONVENTIONAL'!U131:U157))*(rng_Canola_Conv_DATA_SHEET) ->  | Q21: =(SUM(O21,M21,K21,I21))*(rng_Canola_Conv_DATA_SHEET) -> 
B22: Canola Tri Tolerant | C22: =('CANOLA TRITOLERANT'!U6)*(rng_Canola_Tri_DATA_SHEET) -> 0 | D22: =(SUM('CANOLA TRITOLERANT'!L162)*(rng_rainfall=1)+SUM('CANOLA TRITOLERANT'!O162)*(rng_rainfall=2)+SUM('CANOLA TRITOLERANT'!R162)*(rng_rainfall=3))*(rng_Canola_Tri_DATA_SHEET) -> 0 | E22: =('CANOLA TRITOLERANT'!U162)*(rng_Canola_Tri_DATA_SHEET) -> 0 | F22: =(SUM('CANOLA TRITOLERANT'!L11)*(rng_rainfall=1)+SUM('CANOLA TRITOLERANT'!O11)*(rng_rainfall=2)+SUM('CANOLA TRITOLERANT'!R11)*(rng_rainfall=3))*(rng_Canola_Tri_DATA_SHEET) -> 0 | G22: =('CANOLA TRITOLERANT'!U11)*(rng_Canola_Tri_DATA_SHEET) -> 0 | H22: =(SUM('CANOLA TRITOLERANT'!L14:L34)*(rng_rainfall=1)+SUM('CANOLA TRITOLERANT'!O14:O34)*(rng_rainfall=2)+SUM('CANOLA TRITOLERANT'!R14:R34)*(rng_rainfall=3))*(rng_Canola_Tri_DATA_SHEET) -> 0 | I22: =(SUM('CANOLA TRITOLERANT'!U14:U34))*(rng_Canola_Tri_DATA_SHEET) -> 0 | J22: =(SUM('CANOLA TRITOLERANT'!L37:L53)*(rng_rainfall=1)+SUM('CANOLA TRITOLERANT'!O37:O53)*(rng_rainfall=2)+SUM('CANOLA TRITOLERANT'!R37:R53)*(rng_rainfall=3))*(rng_Canola_Tri_DATA_SHEET) -> 0 | K22: =(SUM('CANOLA TRITOLERANT'!U37:U53))*(rng_Canola_Tri_DATA_SHEET) -> 0 | L22: =(SUM('CANOLA TRITOLERANT'!L57:L128)*(rng_rainfall=1)+SUM('CANOLA TRITOLERANT'!O57:O128)*(rng_rainfall=2)+SUM('CANOLA TRITOLERANT'!R57:R128)*(rng_rainfall=3))*(rng_Canola_Tri_DATA_SHEET) -> 0 | M22: =(SUM('CANOLA TRITOLERANT'!U57:U128))*(rng_Canola_Tri_DATA_SHEET) -> 0 | N22: =(SUM('CANOLA TRITOLERANT'!L131:L157)*(rng_rainfall=1)+SUM('CANOLA TRITOLERANT'!O131:O157)*(rng_rainfall=2)++SUM('CANOLA TRITOLERANT'!R131:R157)*(rng_rainfall=3))*(rng_Canola_Tri_DATA_SHEET) ->  | O22: =(SUM('CANOLA TRITOLERANT'!U131:U157))*(rng_Canola_Tri_DATA_SHEET) ->  | P22: =SUM(N22,L22,J22,H22) ->  | Q22: =(SUM(O22,M22,K22,I22))*(rng_Canola_Tri_DATA_SHEET) -> 
B23: Sown Pasture | C23: =('SOWN PASTURE'!U6)*(rng_sown_pasture_DATA_SHEET) -> 0 | D23: =(SUM('SOWN PASTURE'!L162)*(rng_rainfall=1)+SUM('SOWN PASTURE'!O162)*(rng_rainfall=2)+SUM('SOWN PASTURE'!R162)*(rng_rainfall=3))*(rng_sown_pasture_DATA_SHEET) -> 0 | E23: =('SOWN PASTURE'!U162)*(rng_sown_pasture_DATA_SHEET) -> 0 | F23: =(SUM('SOWN PASTURE'!L11)*(rng_rainfall=1)+SUM('SOWN PASTURE'!O11)*(rng_rainfall=2)+SUM('SOWN PASTURE'!R11)*(rng_rainfall=3))*(rng_sown_pasture_DATA_SHEET) -> 0 | G23: =('SOWN PASTURE'!U11)*(rng_sown_pasture_DATA_SHEET) -> 0 | H23: =(SUM('SOWN PASTURE'!L14:L34)*(rng_rainfall=1)+SUM('SOWN PASTURE'!O14:O34)*(rng_rainfall=2)+SUM('SOWN PASTURE'!R14:R34)*(rng_rainfall=3))*(rng_sown_pasture_DATA_SHEET) -> 0 | I23: =(SUM('SOWN PASTURE'!U14:U34))*(rng_sown_pasture_DATA_SHEET) -> 0 | J23: =(SUM('SOWN PASTURE'!L37:L53)*(rng_rainfall=1)+SUM('SOWN PASTURE'!O37:O53)*(rng_rainfall=2)+SUM('SOWN PASTURE'!R37:R53)*(rng_rainfall=3))*(rng_sown_pasture_DATA_SHEET) -> 0 | K23: =(SUM('SOWN PASTURE'!U37:U53))*(rng_sown_pasture_DATA_SHEET) -> 0 | L23: =(SUM('SOWN PASTURE'!L57:L128)*(rng_rainfall=1)+SUM('SOWN PASTURE'!O57:O128)*(rng_rainfall=2)+SUM('SOWN PASTURE'!R57:R128)*(rng_rainfall=3))*(rng_sown_pasture_DATA_SHEET) -> 0 | M23: =(SUM('SOWN PASTURE'!U57:U128))*(rng_sown_pasture_DATA_SHEET) -> 0 | N23: =(SUM('SOWN PASTURE'!L131:L157)*(rng_rainfall=1)+SUM('SOWN PASTURE'!O131:O157)*(rng_rainfall=2)++SUM('SOWN PASTURE'!R131:R157)*(rng_rainfall=3))*(rng_sown_pasture_DATA_SHEET) ->  | O23: =(SUM('SOWN PASTURE'!U131:U157))*(rng_sown_pasture_DATA_SHEET) ->  | Q23: =(SUM(O23,M23,K23,I23))*(rng_sown_pasture_DATA_SHEET) -> 
B24: Self Regen Pasture | C24: =('SELF REGEN PASTURE'!U6)*(rng_self_regen_DATA_SHEET) -> 0 | D24: =(SUM('SELF REGEN PASTURE'!L162)*(rng_rainfall=1)+SUM('SELF REGEN PASTURE'!O162)*(rng_rainfall=2)+SUM('SELF REGEN PASTURE'!R162)*(rng_rainfall=3))*(rng_self_regen_DATA_SHEET) -> 0 | E24: =('SELF REGEN PASTURE'!U162)*(rng_self_regen_DATA_SHEET) -> 0 | F24: =(SUM('SELF REGEN PASTURE'!L11)*(rng_rainfall=1)+SUM('SELF REGEN PASTURE'!O11)*(rng_rainfall=2)+SUM('SELF REGEN PASTURE'!R11)*(rng_rainfall=3))*(rng_self_regen_DATA_SHEET) -> 0 | G24: =('SELF REGEN PASTURE'!U11)*(rng_self_regen_DATA_SHEET) -> 0 | H24: =(SUM('SELF REGEN PASTURE'!L14:L34)*(rng_rainfall=1)+SUM('SELF REGEN PASTURE'!O14:O34)*(rng_rainfall=2)+SUM('SELF REGEN PASTURE'!R14:R34)*(rng_rainfall=3))*(rng_self_regen_DATA_SHEET) -> 0 | I24: =(SUM('SELF REGEN PASTURE'!U14:U34))*(rng_self_regen_DATA_SHEET) -> 0 | J24: =(SUM('SELF REGEN PASTURE'!L37:L53)*(rng_rainfall=1)+SUM('SELF REGEN PASTURE'!O37:O53)*(rng_rainfall=2)+SUM('SELF REGEN PASTURE'!R37:R53)*(rng_rainfall=3))*(rng_self_regen_DATA_SHEET) -> 0 | K24: =(SUM('SELF REGEN PASTURE'!U37:U53))*(rng_self_regen_DATA_SHEET) -> 0 | L24: =(SUM('SELF REGEN PASTURE'!L57:L128)*(rng_rainfall=1)+SUM('SELF REGEN PASTURE'!O57:O128)*(rng_rainfall=2)+SUM('SELF REGEN PASTURE'!R57:R128)*(rng_rainfall=3))*(rng_self_regen_DATA_SHEET) -> 0 | M24: =(SUM('SELF REGEN PASTURE'!U57:U128))*(rng_self_regen_DATA_SHEET) -> 0 | N24: =(SUM('SELF REGEN PASTURE'!L131:L157)*(rng_rainfall=1)+SUM('SELF REGEN PASTURE'!O131:O157)*(rng_rainfall=2)++SUM('SELF REGEN PASTURE'!R131:R157)*(rng_rainfall=3))*(rng_self_regen_DATA_SHEET) ->  | O24: =(SUM('SELF REGEN PASTURE'!U131:U157))*(rng_self_regen_DATA_SHEET) ->  | Q24: =(SUM(O24,M24,K24,I24))*(rng_self_regen_DATA_SHEET) -> 
B25: ="TOTAL "&IF(var_rotationtype=2,"-ROTATION 1","") -> TOTAL | C25: =SUM(C6:C24) -> 0 | E25: =SUM(E6:E24) -> 0 | G25: =SUM(G6:G24) -> 0 | I25: =SUM(I6:I24) -> 0 | K25: =SUM(K6:K24) -> 0 | M25: =SUM(M6:M24) -> 0 | O25: =SUM(O6:O24) ->  | Q25: =SUM(Q6:Q24) -> 
B27: Crop - Rotation 2
B28: Wheat | C28: =('WHEAT R2'!U6)*(rng_APW_Wheat_DATA_Sheet_R2) -> 0 | D28: =(SUM('WHEAT R2'!L162)*(rng_rainfall=1)+SUM('WHEAT R2'!O162)*(rng_rainfall=2)+SUM('WHEAT R2'!R162)*(rng_rainfall=3))*(rng_APW_Wheat_DATA_Sheet_R2) -> 0 | E28: =('WHEAT R2'!U162)*(rng_APW_Wheat_DATA_Sheet_R2) -> 0 | F28: =(SUM('WHEAT R2'!L11)*(rng_rainfall=1)+SUM('WHEAT R2'!O11)*(rng_rainfall=2)+SUM('WHEAT R2'!R11)*(rng_rainfall=3))*(rng_APW_Wheat_DATA_Sheet_R2) -> 0 | G28: =('WHEAT R2'!U11)*(rng_APW_Wheat_DATA_Sheet_R2) -> 0 | H28: =(SUM('WHEAT R2'!L14:L34)*(rng_rainfall=1)+SUM('WHEAT R2'!O14:O34)*(rng_rainfall=2)+SUM('WHEAT R2'!R14:R34)*(rng_rainfall=3))*(rng_APW_Wheat_DATA_Sheet_R2) -> 0 | I28: =(SUM('WHEAT R2'!U14:U34))*(rng_APW_Wheat_DATA_Sheet_R2) -> 0 | J28: =(SUM('WHEAT R2'!L37:L53)*(rng_rainfall=1)+SUM('WHEAT R2'!O37:O53)*(rng_rainfall=2)+SUM('WHEAT R2'!R37:R53)*(rng_rainfall=3))*(rng_APW_Wheat_DATA_Sheet_R2) -> 0 | K28: =(SUM('WHEAT R2'!U37:U53))*(rng_APW_Wheat_DATA_Sheet_R2) -> 0 | L28: =(SUM('WHEAT R2'!L57:L128)*(rng_rainfall=1)+SUM('WHEAT R2'!O57:O128)*(rng_rainfall=2)+SUM('WHEAT R2'!R57:R128)*(rng_rainfall=3))*(rng_APW_Wheat_DATA_Sheet_R2) -> 0 | M28: =(SUM('WHEAT R2'!U57:U128))*(rng_APW_Wheat_DATA_Sheet_R2) -> 0 | N28: =(SUM('WHEAT R2'!L131:L157)*(rng_rainfall=1)+SUM('WHEAT R2'!O131:O157)*(rng_rainfall=2)++SUM('WHEAT R2'!R131:R157)*(rng_rainfall=3))*(rng_APW_Wheat_DATA_Sheet_R2) ->  | O28: =(SUM('WHEAT R2'!U131:U157))*(rng_APW_Wheat_DATA_Sheet_R2) ->  | P28: =SUM(N28,L28,J28,H28) ->  | Q28: =(SUM(O28,M28,K28,I28))*(rng_APW_Wheat_DATA_Sheet_R2) -> 
B29: Durum | C29: =('DURUM R2'!U6)*(rng_Durum_DATA_Sheet_R2) -> 0 | D29: =(SUM('DURUM R2'!L162)*(rng_rainfall=1)+SUM('DURUM R2'!O162)*(rng_rainfall=2)+SUM('DURUM R2'!R162)*(rng_rainfall=3))*(rng_Durum_DATA_Sheet_R2) -> 0 | E29: =('DURUM R2'!U162)*(rng_Durum_DATA_Sheet_R2) -> 0 | F29: =(SUM('DURUM R2'!L11)*(rng_rainfall=1)+SUM('DURUM R2'!O11)*(rng_rainfall=2)+SUM('DURUM R2'!R11)*(rng_rainfall=3))*(rng_Durum_DATA_Sheet_R2) -> 0 | G29: =('DURUM R2'!U11)*(rng_Durum_DATA_Sheet_R2) -> 0 | H29: =(SUM('DURUM R2'!L14:L34)*(rng_rainfall=1)+SUM('DURUM R2'!O14:O34)*(rng_rainfall=2)+SUM('DURUM R2'!R14:R34)*(rng_rainfall=3))*(rng_Durum_DATA_Sheet_R2) -> 0 | I29: =(SUM('DURUM R2'!U14:U34))*(rng_Durum_DATA_Sheet_R2) -> 0 | J29: =(SUM('DURUM R2'!L37:L53)*(rng_rainfall=1)+SUM('DURUM R2'!O37:O53)*(rng_rainfall=2)+SUM('DURUM R2'!R37:R53)*(rng_rainfall=3))*(rng_Durum_DATA_Sheet_R2) -> 0 | K29: =(SUM('DURUM R2'!U37:U53))*(rng_Durum_DATA_Sheet_R2) -> 0 | L29: =(SUM('DURUM R2'!L57:L128)*(rng_rainfall=1)+SUM('DURUM R2'!O57:O128)*(rng_rainfall=2)+SUM('DURUM R2'!R57:R128)*(rng_rainfall=3))*(rng_Durum_DATA_Sheet_R2) -> 0 | M29: =(SUM('DURUM R2'!U57:U128))*(rng_Durum_DATA_Sheet_R2) -> 0 | N29: =(SUM('DURUM R2'!L131:L157)*(rng_rainfall=1)+SUM('DURUM R2'!O131:O157)*(rng_rainfall=2)++SUM('DURUM R2'!R131:R157)*(rng_rainfall=3))*(rng_Durum_DATA_Sheet_R2) ->  | O29: =(SUM('DURUM R2'!U131:U157))*(rng_Durum_DATA_Sheet_R2) ->  | Q29: =(SUM(O29,M29,K29,I29))*(rng_Durum_DATA_Sheet_R2) -> 
B30: Malt Barley | C30: =('MALT BARLEY R2'!U6)*(rng_Malt_Barley_DATA_Sheet_R2) -> 0 | D30: =(SUM('MALT BARLEY R2'!L162)*(rng_rainfall=1)+SUM('MALT BARLEY R2'!O162)*(rng_rainfall=2)+SUM('MALT BARLEY R2'!R162)*(rng_rainfall=3))*(rng_Malt_Barley_DATA_Sheet_R2) -> 0 | E30: =('MALT BARLEY R2'!U162)*(rng_Malt_Barley_DATA_Sheet_R2) -> 0 | F30: =(SUM('MALT BARLEY R2'!L11)*(rng_rainfall=1)+SUM('MALT BARLEY R2'!O11)*(rng_rainfall=2)+SUM('MALT BARLEY R2'!R11)*(rng_rainfall=3))*(rng_Malt_Barley_DATA_Sheet_R2) -> 0 | G30: =('MALT BARLEY R2'!U11)*(rng_Malt_Barley_DATA_Sheet_R2) -> 0 | H30: =(SUM('MALT BARLEY R2'!L14:L34)*(rng_rainfall=1)+SUM('MALT BARLEY R2'!O14:O34)*(rng_rainfall=2)+SUM('MALT BARLEY R2'!R14:R34)*(rng_rainfall=3))*(rng_Malt_Barley_DATA_Sheet_R2) -> 0 | I30: =(SUM('MALT BARLEY R2'!U14:U34))*(rng_Malt_Barley_DATA_Sheet_R2) -> 0 | J30: =(SUM('MALT BARLEY R2'!L37:L53)*(rng_rainfall=1)+SUM('MALT BARLEY R2'!O37:O53)*(rng_rainfall=2)+SUM('MALT BARLEY R2'!R37:R53)*(rng_rainfall=3))*(rng_Malt_Barley_DATA_Sheet_R2) -> 0 | K30: =(SUM('MALT BARLEY R2'!U37:U53))*(rng_Malt_Barley_DATA_Sheet_R2) -> 0 | L30: =(SUM('MALT BARLEY R2'!L57:L128)*(rng_rainfall=1)+SUM('MALT BARLEY R2'!O57:O128)*(rng_rainfall=2)+SUM('MALT BARLEY R2'!R57:R128)*(rng_rainfall=3))*(rng_Malt_Barley_DATA_Sheet_R2) -> 0 | M30: =(SUM('MALT BARLEY R2'!U57:U128))*(rng_Malt_Barley_DATA_Sheet_R2) -> 0 | N30: =(SUM('MALT BARLEY R2'!L131:L157)*(rng_rainfall=1)+SUM('MALT BARLEY R2'!O131:O157)*(rng_rainfall=2)++SUM('MALT BARLEY R2'!R131:R157)*(rng_rainfall=3))*(rng_Malt_Barley_DATA_Sheet_R2) ->  | O30: =(SUM('MALT BARLEY R2'!U131:U157))*(rng_Malt_Barley_DATA_Sheet_R2) ->  | Q30: =(SUM(O30,M30,K30,I30))*(rng_Malt_Barley_DATA_Sheet_R2) -> 
B31: Feed Barley | C31: =('FEED BARLEY R2'!U6)*(rng_Feed_Barley_DATA_Sheet_R2) -> 0 | D31: =(SUM('FEED BARLEY R2'!L162)*(rng_rainfall=1)+SUM('FEED BARLEY R2'!O162)*(rng_rainfall=2)+SUM('FEED BARLEY R2'!R162)*(rng_rainfall=3))*(rng_Feed_Barley_DATA_Sheet_R2) -> 0 | E31: =('FEED BARLEY R2'!U162)*(rng_Feed_Barley_DATA_Sheet_R2) -> 0 | F31: =(SUM('FEED BARLEY R2'!L11)*(rng_rainfall=1)+SUM('FEED BARLEY R2'!O11)*(rng_rainfall=2)+SUM('FEED BARLEY R2'!R11)*(rng_rainfall=3))*(rng_Feed_Barley_DATA_Sheet_R2) -> 0 | G31: =('FEED BARLEY R2'!U11)*(rng_Feed_Barley_DATA_Sheet_R2) -> 0 | H31: =(SUM('FEED BARLEY R2'!L14:L34)*(rng_rainfall=1)+SUM('FEED BARLEY R2'!O14:O34)*(rng_rainfall=2)+SUM('FEED BARLEY R2'!R14:R34)*(rng_rainfall=3))*(rng_Feed_Barley_DATA_Sheet_R2) -> 0 | I31: =(SUM('FEED BARLEY R2'!U14:U34))*(rng_Feed_Barley_DATA_Sheet_R2) -> 0 | J31: =(SUM('FEED BARLEY R2'!L37:L53)*(rng_rainfall=1)+SUM('FEED BARLEY R2'!O37:O53)*(rng_rainfall=2)+SUM('FEED BARLEY R2'!R37:R53)*(rng_rainfall=3))*(rng_Feed_Barley_DATA_Sheet_R2) -> 0 | K31: =(SUM('FEED BARLEY R2'!U37:U53))*(rng_Feed_Barley_DATA_Sheet_R2) -> 0 | L31: =(SUM('FEED BARLEY R2'!L57:L128)*(rng_rainfall=1)+SUM('FEED BARLEY R2'!O57:O128)*(rng_rainfall=2)+SUM('FEED BARLEY R2'!R57:R128)*(rng_rainfall=3))*(rng_Feed_Barley_DATA_Sheet_R2) -> 0 | M31: =(SUM('FEED BARLEY R2'!U57:U128))*(rng_Feed_Barley_DATA_Sheet_R2) -> 0 | N31: =(SUM('FEED BARLEY R2'!L131:L157)*(rng_rainfall=1)+SUM('FEED BARLEY R2'!O131:O157)*(rng_rainfall=2)++SUM('FEED BARLEY R2'!R131:R157)*(rng_rainfall=3))*(rng_Feed_Barley_DATA_Sheet_R2) ->  | O31: =(SUM('FEED BARLEY R2'!U131:U157))*(rng_Feed_Barley_DATA_Sheet_R2) ->  | Q31: =(SUM(O31,M31,K31,I31))*(rng_Feed_Barley_DATA_Sheet_R2) -> 
B32: Milling Oats | C32: =('MILLING OATS R2'!U6)*(rng_Milling_DATA_Sheet_R2) -> 0 | D32: =(SUM('MILLING OATS R2'!L162)*(rng_rainfall=1)+SUM('MILLING OATS R2'!O162)*(rng_rainfall=2)+SUM('MILLING OATS R2'!R162)*(rng_rainfall=3))*(rng_Milling_DATA_Sheet_R2) -> 0 | E32: =('MILLING OATS R2'!U162)*(rng_Milling_DATA_Sheet_R2) -> 0 | F32: =(SUM('MILLING OATS R2'!L11)*(rng_rainfall=1)+SUM('MILLING OATS R2'!O11)*(rng_rainfall=2)+SUM('MILLING OATS R2'!R11)*(rng_rainfall=3))*(rng_Milling_DATA_Sheet_R2) -> 0 | G32: =('MILLING OATS R2'!U11)*(rng_Milling_DATA_Sheet_R2) -> 0 | H32: =(SUM('MILLING OATS R2'!L14:L34)*(rng_rainfall=1)+SUM('MILLING OATS R2'!O14:O34)*(rng_rainfall=2)+SUM('MILLING OATS R2'!R14:R34)*(rng_rainfall=3))*(rng_Milling_DATA_Sheet_R2) -> 0 | I32: =(SUM('MILLING OATS R2'!U14:U34))*(rng_Milling_DATA_Sheet_R2) -> 0 | J32: =(SUM('MILLING OATS R2'!L37:L53)*(rng_rainfall=1)+SUM('MILLING OATS R2'!O37:O53)*(rng_rainfall=2)+SUM('MILLING OATS R2'!R37:R53)*(rng_rainfall=3))*(rng_Milling_DATA_Sheet_R2) -> 0 | K32: =(SUM('MILLING OATS R2'!U37:U53))*(rng_Milling_DATA_Sheet_R2) -> 0 | L32: =(SUM('MILLING OATS R2'!L57:L128)*(rng_rainfall=1)+SUM('MILLING OATS R2'!O57:O128)*(rng_rainfall=2)+SUM('MILLING OATS R2'!R57:R128)*(rng_rainfall=3))*(rng_Milling_DATA_Sheet_R2) -> 0 | M32: =(SUM('MILLING OATS R2'!U57:U128))*(rng_Milling_DATA_Sheet_R2) -> 0 | N32: =(SUM('MILLING OATS R2'!L131:L157)*(rng_rainfall=1)+SUM('MILLING OATS R2'!O131:O157)*(rng_rainfall=2)++SUM('MILLING OATS R2'!R131:R157)*(rng_rainfall=3))*(rng_Milling_DATA_Sheet_R2) ->  | O32: =(SUM('MILLING OATS R2'!U131:U157))*(rng_Milling_DATA_Sheet_R2) ->  | Q32: =(SUM(O32,M32,K32,I32))*(rng_Milling_DATA_Sheet_R2) -> 
B33: Triticale | C33: =('TRITICALE R2'!U6)*(rng_Triticale_DATA_Sheet_R2) -> 0 | D33: =(SUM('TRITICALE R2'!L162)*(rng_rainfall=1)+SUM('TRITICALE R2'!O162)*(rng_rainfall=2)+SUM('TRITICALE R2'!R162)*(rng_rainfall=3))*(rng_Triticale_DATA_Sheet_R2) -> 0 | E33: =('TRITICALE R2'!U162)*(rng_Triticale_DATA_Sheet_R2) -> 0 | F33: =(SUM('TRITICALE R2'!L11)*(rng_rainfall=1)+SUM('TRITICALE R2'!O11)*(rng_rainfall=2)+SUM('TRITICALE R2'!R11)*(rng_rainfall=3))*(rng_Triticale_DATA_Sheet_R2) -> 0 | G33: =('TRITICALE R2'!U11)*(rng_Triticale_DATA_Sheet_R2) -> 0 | H33: =(SUM('TRITICALE R2'!L14:L34)*(rng_rainfall=1)+SUM('TRITICALE R2'!O14:O34)*(rng_rainfall=2)+SUM('TRITICALE R2'!R14:R34)*(rng_rainfall=3))*(rng_Triticale_DATA_Sheet_R2) -> 0 | I33: =(SUM('TRITICALE R2'!U14:U34))*(rng_Triticale_DATA_Sheet_R2) -> 0 | J33: =(SUM('TRITICALE R2'!L37:L53)*(rng_rainfall=1)+SUM('TRITICALE R2'!O37:O53)*(rng_rainfall=2)+SUM('TRITICALE R2'!R37:R53)*(rng_rainfall=3))*(rng_Triticale_DATA_Sheet_R2) -> 0 | K33: =(SUM('TRITICALE R2'!U37:U53))*(rng_Triticale_DATA_Sheet_R2) -> 0 | L33: =(SUM('TRITICALE R2'!L57:L128)*(rng_rainfall=1)+SUM('TRITICALE R2'!O57:O128)*(rng_rainfall=2)+SUM('TRITICALE R2'!R57:R128)*(rng_rainfall=3))*(rng_Triticale_DATA_Sheet_R2) -> 0 | M33: =(SUM('TRITICALE R2'!U57:U128))*(rng_Triticale_DATA_Sheet_R2) -> 0 | N33: =(SUM('TRITICALE R2'!L131:L157)*(rng_rainfall=1)+SUM('TRITICALE R2'!O131:O157)*(rng_rainfall=2)++SUM('TRITICALE R2'!R131:R157)*(rng_rainfall=3))*(rng_Triticale_DATA_Sheet_R2) ->  | O33: =(SUM('TRITICALE R2'!U131:U157))*(rng_Triticale_DATA_Sheet_R2) ->  | Q33: =(SUM(O33,M33,K33,I33))*(rng_Triticale_DATA_Sheet_R2) -> 
B34: Export Oaten Hay | C34: =('EXPORT OATEN HAY R2'!U6)*(rng_Export_DATA_Sheet_R2) -> 0 | D34: =(SUM('EXPORT OATEN HAY R2'!L162)*(rng_rainfall=1)+SUM('EXPORT OATEN HAY R2'!O162)*(rng_rainfall=2)+SUM('EXPORT OATEN HAY R2'!R162)*(rng_rainfall=3))*(rng_Export_DATA_Sheet_R2) -> 0 | E34: =('EXPORT OATEN HAY R2'!U162)*(rng_Export_DATA_Sheet_R2) -> 0 | F34: =(SUM('EXPORT OATEN HAY R2'!L11)*(rng_rainfall=1)+SUM('EXPORT OATEN HAY R2'!O11)*(rng_rainfall=2)+SUM('EXPORT OATEN HAY R2'!R11)*(rng_rainfall=3))*(rng_Export_DATA_Sheet_R2) -> 0 | G34: =('EXPORT OATEN HAY R2'!U11)*(rng_Export_DATA_Sheet_R2) -> 0 | H34: =(SUM('EXPORT OATEN HAY R2'!L14:L34)*(rng_rainfall=1)+SUM('EXPORT OATEN HAY R2'!O14:O34)*(rng_rainfall=2)+SUM('EXPORT OATEN HAY R2'!R14:R34)*(rng_rainfall=3))*(rng_Export_DATA_Sheet_R2) -> 0 | I34: =(SUM('EXPORT OATEN HAY R2'!U14:U34))*(rng_Export_DATA_Sheet_R2) -> 0 | J34: =(SUM('EXPORT OATEN HAY R2'!L37:L53)*(rng_rainfall=1)+SUM('EXPORT OATEN HAY R2'!O37:O53)*(rng_rainfall=2)+SUM('EXPORT OATEN HAY R2'!R37:R53)*(rng_rainfall=3))*(rng_Export_DATA_Sheet_R2) -> 0 | K34: =(SUM('EXPORT OATEN HAY R2'!U37:U53))*(rng_Export_DATA_Sheet_R2) -> 0 | L34: =(SUM('EXPORT OATEN HAY R2'!L57:L128)*(rng_rainfall=1)+SUM('EXPORT OATEN HAY R2'!O57:O128)*(rng_rainfall=2)+SUM('EXPORT OATEN HAY R2'!R57:R128)*(rng_rainfall=3))*(rng_Export_DATA_Sheet_R2) -> 0 | M34: =(SUM('EXPORT OATEN HAY R2'!U57:U128))*(rng_Export_DATA_Sheet_R2) -> 0 | N34: =(SUM('EXPORT OATEN HAY R2'!L131:L157)*(rng_rainfall=1)+SUM('EXPORT OATEN HAY R2'!O131:O157)*(rng_rainfall=2)++SUM('EXPORT OATEN HAY R2'!R131:R157)*(rng_rainfall=3))*(rng_Export_DATA_Sheet_R2) ->  | O34: =(SUM('EXPORT OATEN HAY R2'!U131:U157))*(rng_Export_DATA_Sheet_R2) ->  | Q34: =(SUM(O34,M34,K34,I34))*(rng_Export_DATA_Sheet_R2) -> 
B35: Vetch | C35: =('VETCH R2'!U6)*(rng_Vetch_DATA_Sheet_R2) -> 0 | D35: =(SUM('VETCH R2'!L162)*(rng_rainfall=1)+SUM('VETCH R2'!O162)*(rng_rainfall=2)+SUM('VETCH R2'!R162)*(rng_rainfall=3))*(rng_Vetch_DATA_Sheet_R2) -> 0 | E35: =('VETCH R2'!U162)*(rng_Vetch_DATA_Sheet_R2) -> 0 | F35: =(SUM('VETCH R2'!L11)*(rng_rainfall=1)+SUM('VETCH R2'!O11)*(rng_rainfall=2)+SUM('VETCH R2'!R11)*(rng_rainfall=3))*(rng_Vetch_DATA_Sheet_R2) -> 0 | G35: =('VETCH R2'!U11)*(rng_Vetch_DATA_Sheet_R2) -> 0 | H35: =(SUM('VETCH R2'!L14:L34)*(rng_rainfall=1)+SUM('VETCH R2'!O14:O34)*(rng_rainfall=2)+SUM('VETCH R2'!R14:R34)*(rng_rainfall=3))*(rng_Vetch_DATA_Sheet_R2) -> 0 | I35: =(SUM('VETCH R2'!U14:U34))*(rng_Vetch_DATA_Sheet_R2) -> 0 | J35: =(SUM('VETCH R2'!L37:L53)*(rng_rainfall=1)+SUM('VETCH R2'!O37:O53)*(rng_rainfall=2)+SUM('VETCH R2'!R37:R53)*(rng_rainfall=3))*(rng_Vetch_DATA_Sheet_R2) -> 0 | K35: =(SUM('VETCH R2'!U37:U53))*(rng_Vetch_DATA_Sheet_R2) -> 0 | L35: =(SUM('VETCH R2'!L57:L128)*(rng_rainfall=1)+SUM('VETCH R2'!O57:O128)*(rng_rainfall=2)+SUM('VETCH R2'!R57:R128)*(rng_rainfall=3))*(rng_Vetch_DATA_Sheet_R2) -> 0 | M35: =(SUM('VETCH R2'!U57:U128))*(rng_Vetch_DATA_Sheet_R2) -> 0 | N35: =(SUM('VETCH R2'!L131:L157)*(rng_rainfall=1)+SUM('VETCH R2'!O131:O157)*(rng_rainfall=2)++SUM('VETCH R2'!R131:R157)*(rng_rainfall=3))*(rng_Vetch_DATA_Sheet_R2) ->  | O35: =(SUM('VETCH R2'!U131:U157))*(rng_Vetch_DATA_Sheet_R2) ->  | Q35: =(SUM(O35,M35,K35,I35))*(rng_Vetch_DATA_Sheet_R2) -> 
B36: Lupins | C36: =('LUPINS R2'!U6)*(rng_Lupins_DATA_Sheet_R2) -> 0 | D36: =(SUM('LUPINS R2'!L162)*(rng_rainfall=1)+SUM('LUPINS R2'!O162)*(rng_rainfall=2)+SUM('LUPINS R2'!R162)*(rng_rainfall=3))*(rng_Lupins_DATA_Sheet_R2) -> 0 | E36: =('LUPINS R2'!U162)*(rng_Lupins_DATA_Sheet_R2) -> 0 | F36: =(SUM('LUPINS R2'!L11)*(rng_rainfall=1)+SUM('LUPINS R2'!O11)*(rng_rainfall=2)+SUM('LUPINS R2'!R11)*(rng_rainfall=3))*(rng_Lupins_DATA_Sheet_R2) -> 0 | G36: =('LUPINS R2'!U11)*(rng_Lupins_DATA_Sheet_R2) -> 0 | H36: =(SUM('LUPINS R2'!L14:L34)*(rng_rainfall=1)+SUM('LUPINS R2'!O14:O34)*(rng_rainfall=2)+SUM('LUPINS R2'!R14:R34)*(rng_rainfall=3))*(rng_Lupins_DATA_Sheet_R2) -> 0 | I36: =(SUM('LUPINS R2'!U14:U34))*(rng_Lupins_DATA_Sheet_R2) -> 0 | J36: =(SUM('LUPINS R2'!L37:L53)*(rng_rainfall=1)+SUM('LUPINS R2'!O37:O53)*(rng_rainfall=2)+SUM('LUPINS R2'!R37:R53)*(rng_rainfall=3))*(rng_Lupins_DATA_Sheet_R2) -> 0 | K36: =(SUM('LUPINS R2'!U37:U53))*(rng_Lupins_DATA_Sheet_R2) -> 0 | L36: =(SUM('LUPINS R2'!L57:L128)*(rng_rainfall=1)+SUM('LUPINS R2'!O57:O128)*(rng_rainfall=2)+SUM('LUPINS R2'!R57:R128)*(rng_rainfall=3))*(rng_Lupins_DATA_Sheet_R2) -> 0 | M36: =(SUM('LUPINS R2'!U57:U128))*(rng_Lupins_DATA_Sheet_R2) -> 0 | N36: =(SUM('LUPINS R2'!L131:L157)*(rng_rainfall=1)+SUM('LUPINS R2'!O131:O157)*(rng_rainfall=2)++SUM('LUPINS R2'!R131:R157)*(rng_rainfall=3))*(rng_Lupins_DATA_Sheet_R2) ->  | O36: =(SUM('LUPINS R2'!U131:U157))*(rng_Lupins_DATA_Sheet_R2) ->  | Q36: =(SUM(O36,M36,K36,I36))*(rng_Lupins_DATA_Sheet_R2) -> 
B37: Lentils | C37: =('LENTILS R2'!U6)*(rng_lentils_DATA_Sheet_R2) -> 0 | D37: =(SUM('LENTILS R2'!L162)*(rng_rainfall=1)+SUM('LENTILS R2'!O162)*(rng_rainfall=2)+SUM('LENTILS R2'!R162)*(rng_rainfall=3))*(rng_lentils_DATA_Sheet_R2) -> 0 | E37: =('LENTILS R2'!U162)*(rng_lentils_DATA_Sheet_R2) -> 0 | F37: =(SUM('LENTILS R2'!L11)*(rng_rainfall=1)+SUM('LENTILS R2'!O11)*(rng_rainfall=2)+SUM('LENTILS R2'!R11)*(rng_rainfall=3))*(rng_lentils_DATA_Sheet_R2) -> 0 | G37: =('LENTILS R2'!U11)*(rng_lentils_DATA_Sheet_R2) -> 0 | H37: =(SUM('LENTILS R2'!L14:L34)*(rng_rainfall=1)+SUM('LENTILS R2'!O14:O34)*(rng_rainfall=2)+SUM('LENTILS R2'!R14:R34)*(rng_rainfall=3))*(rng_lentils_DATA_Sheet_R2) -> 0 | I37: =(SUM('LENTILS R2'!U14:U34))*(rng_lentils_DATA_Sheet_R2) -> 0 | J37: =(SUM('LENTILS R2'!L37:L53)*(rng_rainfall=1)+SUM('LENTILS R2'!O37:O53)*(rng_rainfall=2)+SUM('LENTILS R2'!R37:R53)*(rng_rainfall=3))*(rng_lentils_DATA_Sheet_R2) -> 0 | K37: =(SUM('LENTILS R2'!U37:U53))*(rng_lentils_DATA_Sheet_R2) -> 0 | L37: =(SUM('LENTILS R2'!L57:L128)*(rng_rainfall=1)+SUM('LENTILS R2'!O57:O128)*(rng_rainfall=2)+SUM('LENTILS R2'!R57:R128)*(rng_rainfall=3))*(rng_lentils_DATA_Sheet_R2) -> 0 | M37: =(SUM('LENTILS R2'!U57:U128))*(rng_lentils_DATA_Sheet_R2) -> 0 | N37: =(SUM('LENTILS R2'!L131:L157)*(rng_rainfall=1)+SUM('LENTILS R2'!O131:O157)*(rng_rainfall=2)++SUM('LENTILS R2'!R131:R157)*(rng_rainfall=3))*(rng_lentils_DATA_Sheet_R2) ->  | O37: =(SUM('LENTILS R2'!U131:U157))*(rng_lentils_DATA_Sheet_R2) ->  | Q37: =(SUM(O37,M37,K37,I37))*(rng_lentils_DATA_Sheet_R2) -> 
B38: Lentils IMI Tolerant | C38: =('LENTILS IMI TOLERANT R2'!U6)*(rng_lentils_imi_DATA_Sheet_R2) -> 0 | D38: =(SUM('LENTILS IMI TOLERANT R2'!L162)*(rng_rainfall=1)+SUM('LENTILS IMI TOLERANT R2'!O162)*(rng_rainfall=2)+SUM('LENTILS IMI TOLERANT R2'!R162)*(rng_rainfall=3))*(rng_lentils_imi_DATA_Sheet_R2) -> 0 | E38: =('LENTILS IMI TOLERANT R2'!U162)*(rng_lentils_imi_DATA_Sheet_R2) -> 0 | F38: =(SUM('LENTILS IMI TOLERANT R2'!L11)*(rng_rainfall=1)+SUM('LENTILS IMI TOLERANT R2'!O11)*(rng_rainfall=2)+SUM('LENTILS IMI TOLERANT R2'!R11)*(rng_rainfall=3))*(rng_lentils_imi_DATA_Sheet_R2) -> 0 | G38: =('LENTILS IMI TOLERANT R2'!U11)*(rng_lentils_imi_DATA_Sheet_R2) -> 0 | H38: =(SUM('LENTILS IMI TOLERANT R2'!L14:L34)*(rng_rainfall=1)+SUM('LENTILS IMI TOLERANT R2'!O14:O34)*(rng_rainfall=2)+SUM('LENTILS IMI TOLERANT R2'!R14:R34)*(rng_rainfall=3))*(rng_lentils_imi_DATA_Sheet_R2) -> 0 | I38: =(SUM('LENTILS IMI TOLERANT R2'!U14:U34))*(rng_lentils_imi_DATA_Sheet_R2) -> 0 | J38: =(SUM('LENTILS IMI TOLERANT R2'!L37:L53)*(rng_rainfall=1)+SUM('LENTILS IMI TOLERANT R2'!O37:O53)*(rng_rainfall=2)+SUM('LENTILS IMI TOLERANT R2'!R37:R53)*(rng_rainfall=3))*(rng_lentils_imi_DATA_Sheet_R2) -> 0 | K38: =(SUM('LENTILS IMI TOLERANT R2'!U37:U53))*(rng_lentils_imi_DATA_Sheet_R2) -> 0 | L38: =(SUM('LENTILS IMI TOLERANT R2'!L57:L128)*(rng_rainfall=1)+SUM('LENTILS IMI TOLERANT R2'!O57:O128)*(rng_rainfall=2)+SUM('LENTILS IMI TOLERANT R2'!R57:R128)*(rng_rainfall=3))*(rng_lentils_imi_DATA_Sheet_R2) -> 0 | M38: =(SUM('LENTILS IMI TOLERANT R2'!U57:U128))*(rng_lentils_imi_DATA_Sheet_R2) -> 0 | N38: =(SUM('LENTILS IMI TOLERANT R2'!L131:L157)*(rng_rainfall=1)+SUM('LENTILS IMI TOLERANT R2'!O131:O157)*(rng_rainfall=2)++SUM('LENTILS IMI TOLERANT R2'!R131:R157)*(rng_rainfall=3))*(rng_lentils_imi_DATA_Sheet_R2) ->  | O38: =(SUM('LENTILS IMI TOLERANT R2'!U131:U157))*(rng_lentils_imi_DATA_Sheet_R2) ->  | P38: =SUM(N38,L38,J38,H38) ->  | Q38: =(SUM(O38,M38,K38,I38))*(rng_lentils_imi_DATA_Sheet_R2) -> 
B39: Field Peas | C39: =('PEAS R2'!U6)*(rng_Field_Peas_DATA_Sheet_R2) -> 0 | D39: =(SUM('PEAS R2'!L162)*(rng_rainfall=1)+SUM('PEAS R2'!O162)*(rng_rainfall=2)+SUM('PEAS R2'!R162)*(rng_rainfall=3))*(rng_Field_Peas_DATA_Sheet_R2) -> 0 | E39: =('PEAS R2'!U162)*(rng_Field_Peas_DATA_Sheet_R2) -> 0 | F39: =(SUM('PEAS R2'!L11)*(rng_rainfall=1)+SUM('PEAS R2'!O11)*(rng_rainfall=2)+SUM('PEAS R2'!R11)*(rng_rainfall=3))*(rng_Field_Peas_DATA_Sheet_R2) -> 0 | G39: =('PEAS R2'!U11)*(rng_Field_Peas_DATA_Sheet_R2) -> 0 | H39: =(SUM('PEAS R2'!L14:L34)*(rng_rainfall=1)+SUM('PEAS R2'!O14:O34)*(rng_rainfall=2)+SUM('PEAS R2'!R14:R34)*(rng_rainfall=3))*(rng_Field_Peas_DATA_Sheet_R2) -> 0 | I39: =(SUM('PEAS R2'!U14:U34))*(rng_Field_Peas_DATA_Sheet_R2) -> 0 | J39: =(SUM('PEAS R2'!L37:L53)*(rng_rainfall=1)+SUM('PEAS R2'!O37:O53)*(rng_rainfall=2)+SUM('PEAS R2'!R37:R53)*(rng_rainfall=3))*(rng_Field_Peas_DATA_Sheet_R2) -> 0 | K39: =(SUM('PEAS R2'!U37:U53))*(rng_Field_Peas_DATA_Sheet_R2) -> 0 | L39: =(SUM('PEAS R2'!L57:L128)*(rng_rainfall=1)+SUM('PEAS R2'!O57:O128)*(rng_rainfall=2)+SUM('PEAS R2'!R57:R128)*(rng_rainfall=3))*(rng_Field_Peas_DATA_Sheet_R2) -> 0 | M39: =(SUM('PEAS R2'!U57:U128))*(rng_Field_Peas_DATA_Sheet_R2) -> 0 | N39: =(SUM('PEAS R2'!L131:L157)*(rng_rainfall=1)+SUM('PEAS R2'!O131:O157)*(rng_rainfall=2)++SUM('PEAS R2'!R131:R157)*(rng_rainfall=3))*(rng_Field_Peas_DATA_Sheet_R2) ->  | O39: =(SUM('PEAS R2'!U131:U157))*(rng_Field_Peas_DATA_Sheet_R2) ->  | P39: =SUM(N39,L39,J39,H39) ->  | Q39: =(SUM(O39,M39,K39,I39))*(rng_Field_Peas_DATA_Sheet_R2) -> 
B40: Faba Beans | C40: =('BEANS R2'!U6)*(rng_Beans_DATA_Sheet_R2) -> 0 | D40: =(SUM('BEANS R2'!L162)*(rng_rainfall=1)+SUM('BEANS R2'!O162)*(rng_rainfall=2)+SUM('BEANS R2'!R162)*(rng_rainfall=3))*(rng_Beans_DATA_Sheet_R2) -> 0 | E40: =('BEANS R2'!U162)*(rng_Beans_DATA_Sheet_R2) -> 0 | F40: =(SUM('BEANS R2'!L11)*(rng_rainfall=1)+SUM('BEANS R2'!O11)*(rng_rainfall=2)+SUM('BEANS R2'!R11)*(rng_rainfall=3))*(rng_Beans_DATA_Sheet_R2) -> 0 | G40: =('BEANS R2'!U11)*(rng_Beans_DATA_Sheet_R2) -> 0 | H40: =(SUM('BEANS R2'!L14:L34)*(rng_rainfall=1)+SUM('BEANS R2'!O14:O34)*(rng_rainfall=2)+SUM('BEANS R2'!R14:R34)*(rng_rainfall=3))*(rng_Beans_DATA_Sheet_R2) -> 0 | I40: =(SUM('BEANS R2'!U14:U34))*(rng_Beans_DATA_Sheet_R2) -> 0 | J40: =(SUM('BEANS R2'!L37:L53)*(rng_rainfall=1)+SUM('BEANS R2'!O37:O53)*(rng_rainfall=2)+SUM('BEANS R2'!R37:R53)*(rng_rainfall=3))*(rng_Beans_DATA_Sheet_R2) -> 0 | K40: =(SUM('BEANS R2'!U37:U53))*(rng_Beans_DATA_Sheet_R2) -> 0 | L40: =(SUM('BEANS R2'!L57:L128)*(rng_rainfall=1)+SUM('BEANS R2'!O57:O128)*(rng_rainfall=2)+SUM('BEANS R2'!R57:R128)*(rng_rainfall=3))*(rng_Beans_DATA_Sheet_R2) -> 0 | M40: =(SUM('BEANS R2'!U57:U128))*(rng_Beans_DATA_Sheet_R2) -> 0 | N40: =(SUM('BEANS R2'!L131:L157)*(rng_rainfall=1)+SUM('BEANS R2'!O131:O157)*(rng_rainfall=2)++SUM('BEANS R2'!R131:R157)*(rng_rainfall=3))*(rng_Beans_DATA_Sheet_R2) ->  | O40: =(SUM('BEANS R2'!U131:U157))*(rng_Beans_DATA_Sheet_R2) ->  | Q40: =(SUM(O40,M40,K40,I40))*(rng_Beans_DATA_Sheet_R2) -> 
B41: Kabuli Chickpeas | C41: =('CHICKPEAS R2'!U6)*(rng_Chickpeas_DATA_Sheet_R2) -> 0 | D41: =(SUM('CHICKPEAS R2'!L162)*(rng_rainfall=1)+SUM('CHICKPEAS R2'!O162)*(rng_rainfall=2)+SUM('CHICKPEAS R2'!R162)*(rng_rainfall=3))*(rng_Chickpeas_DATA_Sheet_R2) -> 0 | E41: =('CHICKPEAS R2'!U162)*(rng_Chickpeas_DATA_Sheet_R2) -> 0 | F41: =(SUM('CHICKPEAS R2'!L11)*(rng_rainfall=1)+SUM('CHICKPEAS R2'!O11)*(rng_rainfall=2)+SUM('CHICKPEAS R2'!R11)*(rng_rainfall=3))*(rng_Chickpeas_DATA_Sheet_R2) -> 0 | G41: =('CHICKPEAS R2'!U11)*(rng_Chickpeas_DATA_Sheet_R2) -> 0 | H41: =(SUM('CHICKPEAS R2'!L14:L34)*(rng_rainfall=1)+SUM('CHICKPEAS R2'!O14:O34)*(rng_rainfall=2)+SUM('CHICKPEAS R2'!R14:R34)*(rng_rainfall=3))*(rng_Chickpeas_DATA_Sheet_R2) -> 0 | I41: =(SUM('CHICKPEAS R2'!U14:U34))*(rng_Chickpeas_DATA_Sheet_R2) -> 0 | J41: =(SUM('CHICKPEAS R2'!L37:L53)*(rng_rainfall=1)+SUM('CHICKPEAS R2'!O37:O53)*(rng_rainfall=2)+SUM('CHICKPEAS R2'!R37:R53)*(rng_rainfall=3))*(rng_Chickpeas_DATA_Sheet_R2) -> 0 | K41: =(SUM('CHICKPEAS R2'!U37:U53))*(rng_Chickpeas_DATA_Sheet_R2) -> 0 | L41: =(SUM('CHICKPEAS R2'!L57:L128)*(rng_rainfall=1)+SUM('CHICKPEAS R2'!O57:O128)*(rng_rainfall=2)+SUM('CHICKPEAS R2'!R57:R128)*(rng_rainfall=3))*(rng_Chickpeas_DATA_Sheet_R2) -> 0 | M41: =(SUM('CHICKPEAS R2'!U57:U128))*(rng_Chickpeas_DATA_Sheet_R2) -> 0 | N41: =(SUM('CHICKPEAS R2'!L131:L157)*(rng_rainfall=1)+SUM('CHICKPEAS R2'!O131:O157)*(rng_rainfall=2)++SUM('CHICKPEAS R2'!R131:R157)*(rng_rainfall=3))*(rng_Chickpeas_DATA_Sheet_R2) ->  | O41: =(SUM('CHICKPEAS R2'!U131:U157))*(rng_Chickpeas_DATA_Sheet_R2) ->  | Q41: =(SUM(O41,M41,K41,I41))*(rng_Chickpeas_DATA_Sheet_R2) -> 
B42: Canola Clearfield | C42: =('CANOLA CLEARFIELD R2'!U6)*(rng_Canola_Clear_DATA_Sheet_R2) -> 0 | D42: =(SUM('CANOLA CLEARFIELD R2'!L162)*(rng_rainfall=1)+SUM('CANOLA CLEARFIELD R2'!O162)*(rng_rainfall=2)+SUM('CANOLA CLEARFIELD R2'!R162)*(rng_rainfall=3))*(rng_Canola_Clear_DATA_Sheet_R2) -> 0 | E42: =('CANOLA CLEARFIELD R2'!U162)*(rng_Canola_Clear_DATA_Sheet_R2) -> 0 | F42: =(SUM('CANOLA CLEARFIELD R2'!L11)*(rng_rainfall=1)+SUM('CANOLA CLEARFIELD R2'!O11)*(rng_rainfall=2)+SUM('CANOLA CLEARFIELD R2'!R11)*(rng_rainfall=3))*(rng_Canola_Clear_DATA_Sheet_R2) -> 0 | G42: =('CANOLA CLEARFIELD R2'!U11)*(rng_Canola_Clear_DATA_Sheet_R2) -> 0 | H42: =(SUM('CANOLA CLEARFIELD R2'!L14:L34)*(rng_rainfall=1)+SUM('CANOLA CLEARFIELD R2'!O14:O34)*(rng_rainfall=2)+SUM('CANOLA CLEARFIELD R2'!R14:R34)*(rng_rainfall=3))*(rng_Canola_Clear_DATA_Sheet_R2) -> 0 | I42: =(SUM('CANOLA CLEARFIELD R2'!U14:U34))*(rng_Canola_Clear_DATA_Sheet_R2) -> 0 | J42: =(SUM('CANOLA CLEARFIELD R2'!L37:L53)*(rng_rainfall=1)+SUM('CANOLA CLEARFIELD R2'!O37:O53)*(rng_rainfall=2)+SUM('CANOLA CLEARFIELD R2'!R37:R53)*(rng_rainfall=3))*(rng_Canola_Clear_DATA_Sheet_R2) -> 0 | K42: =(SUM('CANOLA CLEARFIELD R2'!U37:U53))*(rng_Canola_Clear_DATA_Sheet_R2) -> 0 | L42: =(SUM('CANOLA CLEARFIELD R2'!L57:L128)*(rng_rainfall=1)+SUM('CANOLA CLEARFIELD R2'!O57:O128)*(rng_rainfall=2)+SUM('CANOLA CLEARFIELD R2'!R57:R128)*(rng_rainfall=3))*(rng_Canola_Clear_DATA_Sheet_R2) -> 0 | M42: =(SUM('CANOLA CLEARFIELD R2'!U57:U128))*(rng_Canola_Clear_DATA_Sheet_R2) -> 0 | N42: =(SUM('CANOLA CLEARFIELD R2'!L131:L157)*(rng_rainfall=1)+SUM('CANOLA CLEARFIELD R2'!O131:O157)*(rng_rainfall=2)++SUM('CANOLA CLEARFIELD R2'!R131:R157)*(rng_rainfall=3))*(rng_Canola_Clear_DATA_Sheet_R2) ->  | O42: =(SUM('CANOLA CLEARFIELD R2'!U131:U157))*(rng_Canola_Clear_DATA_Sheet_R2) ->  | Q42: =(SUM(O42,M42,K42,I42))*(rng_Canola_Clear_DATA_Sheet_R2) -> 
B43: Canola Conventional | C43: =('CANOLA CONVENTIONAL R2'!U6)*(rng_Canola_Conv_DATA_Sheet_R2) -> 0 | D43: =(SUM('CANOLA CONVENTIONAL R2'!L162)*(rng_rainfall=1)+SUM('CANOLA CONVENTIONAL R2'!O162)*(rng_rainfall=2)+SUM('CANOLA CONVENTIONAL R2'!R162)*(rng_rainfall=3))*(rng_Canola_Conv_DATA_Sheet_R2) -> 0 | E43: =('CANOLA CONVENTIONAL R2'!U162)*(rng_Canola_Conv_DATA_Sheet_R2) -> 0 | F43: =(SUM('CANOLA CONVENTIONAL R2'!L11)*(rng_rainfall=1)+SUM('CANOLA CONVENTIONAL R2'!O11)*(rng_rainfall=2)+SUM('CANOLA CONVENTIONAL R2'!R11)*(rng_rainfall=3))*(rng_Canola_Conv_DATA_Sheet_R2) -> 0 | G43: =('CANOLA CONVENTIONAL R2'!U11)*(rng_Canola_Conv_DATA_Sheet_R2) -> 0 | H43: =(SUM('CANOLA CONVENTIONAL R2'!L14:L34)*(rng_rainfall=1)+SUM('CANOLA CONVENTIONAL R2'!O14:O34)*(rng_rainfall=2)+SUM('CANOLA CONVENTIONAL R2'!R14:R34)*(rng_rainfall=3))*(rng_Canola_Conv_DATA_Sheet_R2) -> 0 | I43: =(SUM('CANOLA CONVENTIONAL R2'!U14:U34))*(rng_Canola_Conv_DATA_Sheet_R2) -> 0 | J43: =(SUM('CANOLA CONVENTIONAL R2'!L37:L53)*(rng_rainfall=1)+SUM('CANOLA CONVENTIONAL R2'!O37:O53)*(rng_rainfall=2)+SUM('CANOLA CONVENTIONAL R2'!R37:R53)*(rng_rainfall=3))*(rng_Canola_Conv_DATA_Sheet_R2) -> 0 | K43: =(SUM('CANOLA CONVENTIONAL R2'!U37:U53))*(rng_Canola_Conv_DATA_Sheet_R2) -> 0 | L43: =(SUM('CANOLA CONVENTIONAL R2'!L57:L128)*(rng_rainfall=1)+SUM('CANOLA CONVENTIONAL R2'!O57:O128)*(rng_rainfall=2)+SUM('CANOLA CONVENTIONAL R2'!R57:R128)*(rng_rainfall=3))*(rng_Canola_Conv_DATA_Sheet_R2) -> 0 | M43: =(SUM('CANOLA CONVENTIONAL R2'!U57:U128))*(rng_Canola_Conv_DATA_Sheet_R2) -> 0 | N43: =(SUM('CANOLA CONVENTIONAL R2'!L131:L157)*(rng_rainfall=1)+SUM('CANOLA CONVENTIONAL R2'!O131:O157)*(rng_rainfall=2)++SUM('CANOLA CONVENTIONAL R2'!R131:R157)*(rng_rainfall=3))*(rng_Canola_Conv_DATA_Sheet_R2) ->  | O43: =(SUM('CANOLA CONVENTIONAL R2'!U131:U157))*(rng_Canola_Conv_DATA_Sheet_R2) ->  | Q43: =(SUM(O43,M43,K43,I43))*(rng_Canola_Conv_DATA_Sheet_R2) -> 
B44: Canola Tri Tolerant | C44: =('CANOLA TRITOLERANT R2'!U6)*(rng_Canola_Tri_DATA_Sheet_R2) -> 0 | D44: =(SUM('CANOLA TRITOLERANT R2'!L162)*(rng_rainfall=1)+SUM('CANOLA TRITOLERANT R2'!O162)*(rng_rainfall=2)+SUM('CANOLA TRITOLERANT R2'!R162)*(rng_rainfall=3))*(rng_Canola_Tri_DATA_Sheet_R2) -> 0 | E44: =('CANOLA TRITOLERANT R2'!U162)*(rng_Canola_Tri_DATA_Sheet_R2) -> 0 | F44: =(SUM('CANOLA TRITOLERANT R2'!L11)*(rng_rainfall=1)+SUM('CANOLA TRITOLERANT R2'!O11)*(rng_rainfall=2)+SUM('CANOLA TRITOLERANT R2'!R11)*(rng_rainfall=3))*(rng_Canola_Tri_DATA_Sheet_R2) -> 0 | G44: =('CANOLA TRITOLERANT R2'!U11)*(rng_Canola_Tri_DATA_Sheet_R2) -> 0 | H44: =(SUM('CANOLA TRITOLERANT R2'!L14:L34)*(rng_rainfall=1)+SUM('CANOLA TRITOLERANT R2'!O14:O34)*(rng_rainfall=2)+SUM('CANOLA TRITOLERANT R2'!R14:R34)*(rng_rainfall=3))*(rng_Canola_Tri_DATA_Sheet_R2) -> 0 | I44: =(SUM('CANOLA TRITOLERANT R2'!U14:U34))*(rng_Canola_Tri_DATA_Sheet_R2) -> 0 | J44: =(SUM('CANOLA TRITOLERANT R2'!L37:L53)*(rng_rainfall=1)+SUM('CANOLA TRITOLERANT R2'!O37:O53)*(rng_rainfall=2)+SUM('CANOLA TRITOLERANT R2'!R37:R53)*(rng_rainfall=3))*(rng_Canola_Tri_DATA_Sheet_R2) -> 0 | K44: =(SUM('CANOLA TRITOLERANT R2'!U37:U53))*(rng_Canola_Tri_DATA_Sheet_R2) -> 0 | L44: =(SUM('CANOLA TRITOLERANT R2'!L57:L128)*(rng_rainfall=1)+SUM('CANOLA TRITOLERANT R2'!O57:O128)*(rng_rainfall=2)+SUM('CANOLA TRITOLERANT R2'!R57:R128)*(rng_rainfall=3))*(rng_Canola_Tri_DATA_Sheet_R2) -> 0 | M44: =(SUM('CANOLA TRITOLERANT R2'!U57:U128))*(rng_Canola_Tri_DATA_Sheet_R2) -> 0 | N44: =(SUM('CANOLA TRITOLERANT R2'!L131:L157)*(rng_rainfall=1)+SUM('CANOLA TRITOLERANT R2'!O131:O157)*(rng_rainfall=2)++SUM('CANOLA TRITOLERANT R2'!R131:R157)*(rng_rainfall=3))*(rng_Canola_Tri_DATA_Sheet_R2) ->  | O44: =(SUM('CANOLA TRITOLERANT R2'!U131:U157))*(rng_Canola_Tri_DATA_Sheet_R2) ->  | Q44: =(SUM(O44,M44,K44,I44))*(rng_Canola_Tri_DATA_Sheet_R2) -> 
B45: Sown Pasture | C45: =('SOWN PASTURE R2'!U6)*(rng_sown_pasture_DATA_Sheet_R2) -> 0 | D45: =(SUM('SOWN PASTURE R2'!L162)*(rng_rainfall=1)+SUM('SOWN PASTURE R2'!O162)*(rng_rainfall=2)+SUM('SOWN PASTURE R2'!R162)*(rng_rainfall=3))*(rng_sown_pasture_DATA_Sheet_R2) -> 0 | E45: =('SOWN PASTURE R2'!U162)*(rng_sown_pasture_DATA_Sheet_R2) -> 0 | F45: =(SUM('SOWN PASTURE R2'!L11)*(rng_rainfall=1)+SUM('SOWN PASTURE R2'!O11)*(rng_rainfall=2)+SUM('SOWN PASTURE R2'!R11)*(rng_rainfall=3))*(rng_sown_pasture_DATA_Sheet_R2) -> 0 | G45: =('SOWN PASTURE R2'!U11)*(rng_sown_pasture_DATA_Sheet_R2) -> 0 | H45: =(SUM('SOWN PASTURE R2'!L14:L34)*(rng_rainfall=1)+SUM('SOWN PASTURE R2'!O14:O34)*(rng_rainfall=2)+SUM('SOWN PASTURE R2'!R14:R34)*(rng_rainfall=3))*(rng_sown_pasture_DATA_Sheet_R2) -> 0 | I45: =(SUM('SOWN PASTURE R2'!U14:U34))*(rng_sown_pasture_DATA_Sheet_R2) -> 0 | J45: =(SUM('SOWN PASTURE R2'!L37:L53)*(rng_rainfall=1)+SUM('SOWN PASTURE R2'!O37:O53)*(rng_rainfall=2)+SUM('SOWN PASTURE R2'!R37:R53)*(rng_rainfall=3))*(rng_sown_pasture_DATA_Sheet_R2) -> 0 | K45: =(SUM('SOWN PASTURE R2'!U37:U53))*(rng_sown_pasture_DATA_Sheet_R2) -> 0 | L45: =(SUM('SOWN PASTURE R2'!L57:L128)*(rng_rainfall=1)+SUM('SOWN PASTURE R2'!O57:O128)*(rng_rainfall=2)+SUM('SOWN PASTURE R2'!R57:R128)*(rng_rainfall=3))*(rng_sown_pasture_DATA_Sheet_R2) -> 0 | M45: =(SUM('SOWN PASTURE R2'!U57:U128))*(rng_sown_pasture_DATA_Sheet_R2) -> 0 | N45: =(SUM('SOWN PASTURE R2'!L131:L157)*(rng_rainfall=1)+SUM('SOWN PASTURE R2'!O131:O157)*(rng_rainfall=2)++SUM('SOWN PASTURE R2'!R131:R157)*(rng_rainfall=3))*(rng_sown_pasture_DATA_Sheet_R2) ->  | O45: =(SUM('SOWN PASTURE R2'!U131:U157))*(rng_sown_pasture_DATA_Sheet_R2) ->  | Q45: =(SUM(O45,M45,K45,I45))*(rng_sown_pasture_DATA_Sheet_R2) -> 
B46: Self Regen Pasture | C46: =('SELF REGEN PASTURE R2'!U6)*(rng_self_regen_DATA_Sheet_R2) -> 0 | D46: =(SUM('SELF REGEN PASTURE R2'!L162)*(rng_rainfall=1)+SUM('SELF REGEN PASTURE R2'!O162)*(rng_rainfall=2)+SUM('SELF REGEN PASTURE R2'!R162)*(rng_rainfall=3))*(rng_self_regen_DATA_Sheet_R2) -> 0 | E46: =('SELF REGEN PASTURE R2'!U162)*(rng_self_regen_DATA_Sheet_R2) -> 0 | F46: =(SUM('SELF REGEN PASTURE R2'!L11)*(rng_rainfall=1)+SUM('SELF REGEN PASTURE R2'!O11)*(rng_rainfall=2)+SUM('SELF REGEN PASTURE R2'!R11)*(rng_rainfall=3))*(rng_self_regen_DATA_Sheet_R2) -> 0 | G46: =('SELF REGEN PASTURE R2'!U11)*(rng_self_regen_DATA_Sheet_R2) -> 0 | H46: =(SUM('SELF REGEN PASTURE R2'!L14:L34)*(rng_rainfall=1)+SUM('SELF REGEN PASTURE R2'!O14:O34)*(rng_rainfall=2)+SUM('SELF REGEN PASTURE R2'!R14:R34)*(rng_rainfall=3))*(rng_self_regen_DATA_Sheet_R2) -> 0 | I46: =(SUM('SELF REGEN PASTURE R2'!U14:U34))*(rng_self_regen_DATA_Sheet_R2) -> 0 | J46: =(SUM('SELF REGEN PASTURE R2'!L37:L53)*(rng_rainfall=1)+SUM('SELF REGEN PASTURE R2'!O37:O53)*(rng_rainfall=2)+SUM('SELF REGEN PASTURE R2'!R37:R53)*(rng_rainfall=3))*(rng_self_regen_DATA_Sheet_R2) -> 0 | K46: =(SUM('SELF REGEN PASTURE R2'!U37:U53))*(rng_self_regen_DATA_Sheet_R2) -> 0 | L46: =(SUM('SELF REGEN PASTURE R2'!L57:L128)*(rng_rainfall=1)+SUM('SELF REGEN PASTURE R2'!O57:O128)*(rng_rainfall=2)+SUM('SELF REGEN PASTURE R2'!R57:R128)*(rng_rainfall=3))*(rng_self_regen_DATA_Sheet_R2) -> 0 | M46: =(SUM('SELF REGEN PASTURE R2'!U57:U128))*(rng_self_regen_DATA_Sheet_R2) -> 0 | N46: =(SUM('SELF REGEN PASTURE R2'!L131:L157)*(rng_rainfall=1)+SUM('SELF REGEN PASTURE R2'!O131:O157)*(rng_rainfall=2)++SUM('SELF REGEN PASTURE R2'!R131:R157)*(rng_rainfall=3))*(rng_self_regen_DATA_Sheet_R2) ->  | O46: =(SUM('SELF REGEN PASTURE R2'!U131:U157))*(rng_self_regen_DATA_Sheet_R2) ->  | Q46: =(SUM(O46,M46,K46,I46))*(rng_self_regen_DATA_Sheet_R2) -> 
B47: TOTAL-ROTATION 2 | C47: =SUM(C28:C46) -> 0 | E47: =SUM(E28:E46) -> 0 | G47: =SUM(G28:G46) -> 0 | I47: =SUM(I28:I46) -> 0 | K47: =SUM(K28:K46) -> 0 | M47: =SUM(M28:M46) -> 0 | O47: =SUM(O28:O46) ->  | Q47: =SUM(Q28:Q46) -> 

Sheet CROP SHEETS>>
B2: INTENTIONALLY BLANK

Sheet WHEAT (hidden)
C1: Wheat | F1: hide | G1: show | H1: hide | I1: show | J1: =IF(rng_rainfall=1,"show","hide") -> hide | K1: hide | L1: =IF(rng_rainfall=1,"show","hide") -> hide | M1: =IF(rng_rainfall=2,"show","hide") -> hide | N1: hide | O1: =IF(rng_rainfall=2,"show","hide") -> hide | P1: =IF(rng_rainfall=3,"show","hide") -> hide | Q1: hide | R1: =IF(rng_rainfall=3,"show","hide") -> hide | S1: hide
C2: =UPPER(var_crop)&" "&IF(var_rotationtype=2,"ROTATION 1","")&" GROSS MARGIN - "&TEXT(m_year,"0000") -> WHEAT GROSS MARGIN - 2018
Y3: Reset Yellow Cell Formulas Below
C4: INCOME | L4: RAINFALL | O4: RAINFALL | R4: RAINFALL | U4: YOUR | Z4: ="GM SENSITIVITY-"&var_crop -> GM SENSITIVITY-Wheat | AD4: Cash Price $/t
C5: =IF(rng_rainfall="","PLEASE SELECT A RAINFALL ZONE ON THE MAIN SHEET!","") -> PLEASE SELECT A RAINFALL ZONE ON THE MAIN SHEET! | L5: ZONE | O5: ZONE | R5: ZONE | U5: ESTIMATE | Z5: =var_rain&" Rainfall" ->  | AB5: Poor | AC5: Below Average | AD5: Average | AE5: Above Average | AF5: Very Good
C6: =IF(rng_machinery="","PLEASE SELECT A MACHINERY METHOD ON THE MAIN SHEET!","") -> PLEASE SELECT A MACHINERY METHOD ON THE MAIN SHEET! | L6: LOW | O6: MEDIUM | R6: HIGH | V6: =IF(ISBLANK(U6),"<-Enter Crop Size in Ha","Ha") -> <-Enter Crop Size in Ha | AA6: Yield $/t | AB6: =VLOOKUP(var_crop,tbl_hist_prices[],MATCH("Price_"&var_rain&"_"&AB$5,tbl_hist_prices[#Headers],0),0) ->  | AC6: =VLOOKUP(var_crop,tbl_hist_prices[],MATCH("Price_"&var_rain&"_"&AC$5,tbl_hist_prices[#Headers],0),0) ->  | AD6: =VLOOKUP(var_crop,tbl_hist_prices[],MATCH("Price_"&var_rain&"_"&AD$5,tbl_hist_prices[#Headers],0),0) ->  | AE6: =VLOOKUP(var_crop,tbl_hist_prices[],MATCH("Price_"&var_rain&"_"&AE$5,tbl_hist_prices[#Headers],0),0) ->  | AF6: =VLOOKUP(var_crop,tbl_hist_prices[],MATCH("Price_"&var_rain&"_"&AF$5,tbl_hist_prices[#Headers],0),0) -> 
Z7: Poor | AA7: =VLOOKUP(var_crop,tbl_hist_prices[],MATCH(var_rain&"_"&Z7,tbl_hist_prices[#Headers],0),0) ->  | AB7: =AB$6*$AA7-SUM(OFFSET($L$15,0,(rng_rainfall*3)-3,15),OFFSET($L$38,0,(rng_rainfall*3)-3,98),OFFSET($L$137,0,(rng_rainfall*3)-3,11),OFFSET($L$153,0,(rng_rainfall*3)-3,4))-AB$6*$AA7*($E$32+$E$151/1000)-$AA7*($E$33+$E$136) -> 
C8: ="Price ("&Year_Short&" Forecast)" -> Price (18/19 Forecast) | I8: Reset Price | L8: =VLOOKUP(var_crop,tbl_hist_prices[#Data],MATCH("Price_"&L6&"_Average",tbl_hist_prices[#Headers],0),0) -> 245 | M8: =VLOOKUP(var_crop,tbl_hist_prices[#Data],MATCH("Price_"&R[-2]C&"_Average",tbl_hist_prices[#Headers],0),0) | O8: =VLOOKUP(var_crop,tbl_hist_prices[#Data],MATCH("Price_"&O6&"_Average",tbl_hist_prices[#Headers],0),0) -> 245 | P8: =VLOOKUP(var_crop,tbl_hist_prices[#Data],MATCH("Price_"&R[-2]C&"_Average",tbl_hist_prices[#Headers],0),0) | R8: =VLOOKUP(var_crop,tbl_hist_prices[#Data],MATCH("Price_"&R6&"_Average",tbl_hist_prices[#Headers],0),0) -> 245 | S8: =VLOOKUP(var_crop,tbl_hist_prices[#Data],MATCH("Price_"&R[-2]C&"_Average",tbl_hist_prices[#Headers],0),0) | U8: =$U$6*(IF(rng_rainfall=1,L8*L10,IF(rng_rainfall=2,O8*O10,R8*R10))) -> 0 | Z8: Below Average | AA8: =VLOOKUP(var_crop,tbl_hist_prices[],MATCH(var_rain&"_"&Z8,tbl_hist_prices[#Headers],0),0) -> 
Z9: Average | AA9: =VLOOKUP(var_crop,tbl_hist_prices[],MATCH(var_rain&"_"&Z9,tbl_hist_prices[#Headers],0),0) -> 
C10: Yield (t/ha) | I10: Reset Yield | L10: =VLOOKUP(var_crop,tbl_hist_prices[],MATCH("LOW"&"_AVERAGE",tbl_hist_prices[[#Headers],[Commodity]:[High_Very Good]],0),0) -> 1.5 | M10: =VLOOKUP(var_crop,tbl_hist_prices,MATCH("LOW"&"_AVERAGE",tbl_hist_prices[[#Headers],[Commodity]:[High_Very Good]],0),0) | O10: =VLOOKUP(var_crop,tbl_hist_prices[],MATCH("MEDIUM"&"_AVERAGE",tbl_hist_prices[[#Headers],[Commodity]:[High_Very Good]],0),0) -> 2.7 | P10: =VLOOKUP(var_crop,tbl_hist_prices,MATCH("MEDIUM"&"_AVERAGE",tbl_hist_prices[[#Headers],[Commodity]:[High_Very Good]],0),0) | R10: =VLOOKUP(var_crop,tbl_hist_prices[],MATCH("HIGH"&"_AVERAGE",tbl_hist_prices[[#Headers],[Commodity]:[High_Very Good]],0),0) -> 4 | S10: =VLOOKUP(var_crop,tbl_hist_prices,MATCH("HIGH"&"_AVERAGE",tbl_hist_prices[[#Headers],[Commodity]:[High_Very Good]],0),0) | Z10: Above Average | AA10: =VLOOKUP(var_crop,tbl_hist_prices[],MATCH(var_rain&"_"&Z10,tbl_hist_prices[#Headers],0),0) -> 
C11: GROSS INCOME | L11: =L8*L10 -> 367.5 | O11: =O8*O10 -> 661.5 | R11: =R8*R10 -> 980 | U11: =SUM(U8:U10) -> 0 | Z11: Very Good | AA11: =VLOOKUP(var_crop,tbl_hist_prices[],MATCH(var_rain&"_"&Z11,tbl_hist_prices[#Headers],0),0) -> 
C12: VARIABLE COSTS
C14: Seed | E14: Cost | G14: Unit | J14: Rate/ha | L14: $/ha | M14: Rate/ha | O14: $/ha | P14: Rate/ha | R14: $/ha | U14: $
C15: Seed | D15: Reset Cost | E15: =VLOOKUP($C15&"Cost",CHOOSE({1,2},tbl_seed[Name]&tbl_seed[Type],INDIRECT("tbl_seed["&var_crop&"]")),2,0) -> 0.24 | F15: =VLOOKUP(R[0]C3&"Cost",CHOOSE({1,2},tbl_seed[Name]&tbl_seed[Type],INDIRECT("tbl_seed["&var_crop&"]")),2,0) | G15: =VLOOKUP($C15&"Cost",CHOOSE({1,2},tbl_seed[Name]&tbl_seed[Type],tbl_seed[Unit]),2,0) -> $/kg | H15: =VLOOKUP(r[0]c3&"Cost",CHOOSE({1,2},tbl_seed[Name]&tbl_seed[Type],tbl_seed[Unit]),2,0) | I15: Reset Rate | J15: =VLOOKUP($C15&"Low",CHOOSE({1,2},tbl_seed[Name]&tbl_seed[Rainfall],INDIRECT("tbl_seed["&var_crop&"]")),2,0) -> 60 | K15: =VLOOKUP(r[0]c3&"Low",CHOOSE({1,2},tbl_seed[Name]&tbl_seed[Rainfall],INDIRECT("tbl_seed["&var_crop&"]")),2,0) | L15: =(J15*E15) -> 14.4 | M15: =VLOOKUP($C15&"Medium",CHOOSE({1,2},tbl_seed[Name]&tbl_seed[Rainfall],INDIRECT("tbl_seed["&var_crop&"]")),2,0) -> 80 | N15: =VLOOKUP(r[0]c3&"Medium",CHOOSE({1,2},tbl_seed[Name]&tbl_seed[Rainfall],INDIRECT("tbl_seed["&var_crop&"]")),2,0) | O15: =(M15*E15) -> 19.2 | P15: =VLOOKUP($C15&"High",CHOOSE({1,2},tbl_seed[Name]&tbl_seed[Rainfall],INDIRECT("tbl_seed["&var_crop&"]")),2,0) -> 100 | Q15: =VLOOKUP(r[0]c3&"High",CHOOSE({1,2},tbl_seed[Name]&tbl_seed[Rainfall],INDIRECT("tbl_seed["&var_crop&"]")),2,0) | R15: =P15*E15 -> 24 | U15: =$U$6*(IF(rng_rainfall=1,L15,IF(rng_rainfall=2,O15,R15))) -> 0
C16: Seed Treatment(1) | D16: Reset Cost | E16: =VLOOKUP($C16&"Cost",CHOOSE({1,2},tbl_seed[Name]&tbl_seed[Type],INDIRECT("tbl_seed["&var_crop&"]")),2,0) -> 0.0388 | F16: =VLOOKUP(R[0]C3&"Cost",CHOOSE({1,2},tbl_seed[Name]&tbl_seed[Type],INDIRECT("tbl_seed["&var_crop&"]")),2,0) | G16: =VLOOKUP($C16&"Cost",CHOOSE({1,2},tbl_seed[Name]&tbl_seed[Type],tbl_seed[Unit]),2,0) -> $/kg | H16: =VLOOKUP(r[0]c3&"Cost",CHOOSE({1,2},tbl_seed[Name]&tbl_seed[Type],tbl_seed[Unit]),2,0) | I16: Reset Rate | J16: =VLOOKUP($C16&"Low",CHOOSE({1,2},tbl_seed[Name]&tbl_seed[Rainfall],INDIRECT("tbl_seed["&var_crop&"]")),2,0) -> 60 | K16: =VLOOKUP(r[0]c3&"Low",CHOOSE({1,2},tbl_seed[Name]&tbl_seed[Rainfall],INDIRECT("tbl_seed["&var_crop&"]")),2,0) | L16: =(J16*E16) -> 2.328 | M16: =VLOOKUP($C16&"Medium",CHOOSE({1,2},tbl_seed[Name]&tbl_seed[Rainfall],INDIRECT("tbl_seed["&var_crop&"]")),2,0) -> 80 | N16: =VLOOKUP(r[0]c3&"Medium",CHOOSE({1,2},tbl_seed[Name]&tbl_seed[Rainfall],INDIRECT("tbl_seed["&var_crop&"]")),2,0) | O16: 3.104 | P16: =VLOOKUP($C16&"High",CHOOSE({1,2},tbl_seed[Name]&tbl_seed[Rainfall],INDIRECT("tbl_seed["&var_crop&"]")),2,0) -> 100 | Q16: =VLOOKUP(r[0]c3&"High",CHOOSE({1,2},tbl_seed[Name]&tbl_seed[Rainfall],INDIRECT("tbl_seed["&var_crop&"]")),2,0) | R16: =P16*E16 -> 3.88 | U16: =$U$6*(IF(rng_rainfall=1,L16,IF(rng_rainfall=2,O16,R16))) -> 0
C17: Seed Treatment(2) | D17: Reset Cost | E17: =VLOOKUP($C17&"Cost",CHOOSE({1,2},tbl_seed[Name]&tbl_seed[Type],INDIRECT("tbl_seed["&var_crop&"]")),2,0) -> 0.07152 | F17: =VLOOKUP(R[0]C3&"Cost",CHOOSE({1,2},tbl_seed[Name]&tbl_seed[Type],INDIRECT("tbl_seed["&var_crop&"]")),2,0) | G17: =VLOOKUP($C17&"Cost",CHOOSE({1,2},tbl_seed[Name]&tbl_seed[Type],tbl_seed[Unit]),2,0) -> $/kg | H17: =VLOOKUP(r[0]c3&"Cost",CHOOSE({1,2},tbl_seed[Name]&tbl_seed[Type],tbl_seed[Unit]),2,0) | I17: Reset Rate | J17: =VLOOKUP($C17&"Low",CHOOSE({1,2},tbl_seed[Name]&tbl_seed[Rainfall],INDIRECT("tbl_seed["&var_crop&"]")),2,0) -> 60 | K17: =VLOOKUP(r[0]c3&"Low",CHOOSE({1,2},tbl_seed[Name]&tbl_seed[Rainfall],INDIRECT("tbl_seed["&var_crop&"]")),2,0) | L17: =(J17*E17) -> 4.2912 | M17: =VLOOKUP($C17&"Medium",CHOOSE({1,2},tbl_seed[Name]&tbl_seed[Rainfall],INDIRECT("tbl_seed["&var_crop&"]")),2,0) -> 80 | N17: =VLOOKUP(r[0]c3&"Medium",CHOOSE({1,2},tbl_seed[Name]&tbl_seed[Rainfall],INDIRECT("tbl_seed["&var_crop&"]")),2,0) | O17: 5.7216 | P17: =VLOOKUP($C17&"High",CHOOSE({1,2},tbl_seed[Name]&tbl_seed[Rainfall],INDIRECT("tbl_seed["&var_crop&"]")),2,0) -> 100 | Q17: =VLOOKUP(r[0]c3&"High",CHOOSE({1,2},tbl_seed[Name]&tbl_seed[Rainfall],INDIRECT("tbl_seed["&var_crop&"]")),2,0) | R17: =P17*E17 -> 7.152 | U17: =$U$6*(IF(rng_rainfall=1,L17,IF(rng_rainfall=2,O17,R17))) -> 0
D18: Reset Cost | F18: =VLOOKUP(R[0]C3&"Cost",CHOOSE({1,2},tbl_seed[Name]&tbl_seed[Type],INDIRECT("tbl_seed["&var_crop&"]")),2,0) | H18: =VLOOKUP(r[0]c3&"Cost",CHOOSE({1,2},tbl_seed[Name]&tbl_seed[Type],tbl_seed[Unit]),2,0) | I18: Reset Rate | K18: =VLOOKUP(r[0]c3&"Low",CHOOSE({1,2},tbl_seed[Name]&tbl_seed[Rainfall],INDIRECT("tbl_seed["&var_crop&"]")),2,0) | L18: =(J18*E18) -> 0 | N18: =VLOOKUP(r[0]c3&"Medium",CHOOSE({1,2},tbl_seed[Name]&tbl_seed[Rainfall],INDIRECT("tbl_seed["&var_crop&"]")),2,0) | O18: 0 | Q18: =VLOOKUP(r[0]c3&"High",CHOOSE({1,2},tbl_seed[Name]&tbl_seed[Rainfall],INDIRECT("tbl_seed["&var_crop&"]")),2,0) | R18: =P18*E18 -> 0 | U18: =$U$6*(IF(rng_rainfall=1,L18,IF(rng_rainfall=2,O18,R18))) -> 0
D19: Reset Cost | F19: =VLOOKUP(R[0]C3&"Cost",CHOOSE({1,2},tbl_seed[Name]&tbl_seed[Type],INDIRECT("tbl_seed["&var_crop&"]")),2,0) | H19: =VLOOKUP(r[0]c3&"Cost",CHOOSE({1,2},tbl_seed[Name]&tbl_seed[Type],tbl_seed[Unit]),2,0) | I19: Reset Rate | K19: =VLOOKUP(r[0]c3&"Low",CHOOSE({1,2},tbl_seed[Name]&tbl_seed[Rainfall],INDIRECT("tbl_seed["&var_crop&"]")),2,0) | L19: =(J19*E19) -> 0 | N19: =VLOOKUP(r[0]c3&"Medium",CHOOSE({1,2},tbl_seed[Name]&tbl_seed[Rainfall],INDIRECT("tbl_seed["&var_crop&"]")),2,0) | O19: 0 | Q19: =VLOOKUP(r[0]c3&"High",CHOOSE({1,2},tbl_seed[Name]&tbl_seed[Rainfall],INDIRECT("tbl_seed["&var_crop&"]")),2,0) | R19: =P19*E19 -> 0 | U19: =$U$6*(IF(rng_rainfall=1,L19,IF(rng_rainfall=2,O19,R19))) -> 0
D20: Reset Cost | F20: =VLOOKUP(R[0]C3&"Cost",CHOOSE({1,2},tbl_seed[Name]&tbl_seed[Type],INDIRECT("tbl_seed["&var_crop&"]")),2,0) | H20: =VLOOKUP(r[0]c3&"Cost",CHOOSE({1,2},tbl_seed[Name]&tbl_seed[Type],tbl_seed[Unit]),2,0) | I20: Reset Rate | K20: =VLOOKUP(r[0]c3&"Low",CHOOSE({1,2},tbl_seed[Name]&tbl_seed[Rainfall],INDIRECT("tbl_seed["&var_crop&"]")),2,0) | L20: =(J20*E20) -> 0 | N20: =VLOOKUP(r[0]c3&"Medium",CHOOSE({1,2},tbl_seed[Name]&tbl_seed[Rainfall],INDIRECT("tbl_seed["&var_crop&"]")),2,0) | O20: 0 | Q20: =VLOOKUP(r[0]c3&"High",CHOOSE({1,2},tbl_seed[Name]&tbl_seed[Rainfall],INDIRECT("tbl_seed["&var_crop&"]")),2,0) | R20: =P20*E20 -> 0 | U20: =$U$6*(IF(rng_rainfall=1,L20,IF(rng_rainfall=2,O20,R20))) -> 0
D21: Reset Cost | F21: =VLOOKUP(R[0]C3&"Cost",CHOOSE({1,2},tbl_seed[Name]&tbl_seed[Type],INDIRECT("tbl_seed["&var_crop&"]")),2,0) | H21: =VLOOKUP(r[0]c3&"Cost",CHOOSE({1,2},tbl_seed[Name]&tbl_seed[Type],tbl_seed[Unit]),2,0) | I21: Reset Rate | K21: =VLOOKUP(r[0]c3&"Low",CHOOSE({1,2},tbl_seed[Name]&tbl_seed[Rainfall],INDIRECT("tbl_seed["&var_crop&"]")),2,0) | L21: 0 | N21: =VLOOKUP(r[0]c3&"Medium",CHOOSE({1,2},tbl_seed[Name]&tbl_seed[Rainfall],INDIRECT("tbl_seed["&var_crop&"]")),2,0) | O21: 0 | Q21: =VLOOKUP(r[0]c3&"High",CHOOSE({1,2},tbl_seed[Name]&tbl_seed[Rainfall],INDIRECT("tbl_seed["&var_crop&"]")),2,0) | R21: 0 | U21: 0
D22: Reset Cost | F22: =VLOOKUP(R[0]C3&"Cost",CHOOSE({1,2},tbl_seed[Name]&tbl_seed[Type],INDIRECT("tbl_seed["&var_crop&"]")),2,0) | H22: =VLOOKUP(r[0]c3&"Cost",CHOOSE({1,2},tbl_seed[Name]&tbl_seed[Type],tbl_seed[Unit]),2,0) | I22: Reset Rate | K22: =VLOOKUP(r[0]c3&"Low",CHOOSE({1,2},tbl_seed[Name]&tbl_seed[Rainfall],INDIRECT("tbl_seed["&var_crop&"]")),2,0) | L22: 0 | N22: =VLOOKUP(r[0]c3&"Medium",CHOOSE({1,2},tbl_seed[Name]&tbl_seed[Rainfall],INDIRECT("tbl_seed["&var_crop&"]")),2,0) | O22: 0 | Q22: =VLOOKUP(r[0]c3&"High",CHOOSE({1,2},tbl_seed[Name]&tbl_seed[Rainfall],INDIRECT("tbl_seed["&var_crop&"]")),2,0) | R22: 0 | U22: 0
D23: Reset Cost | F23: =VLOOKUP(R[0]C3&"Cost",CHOOSE({1,2},tbl_seed[Name]&tbl_seed[Type],INDIRECT("tbl_seed["&var_crop&"]")),2,0) | H23: =VLOOKUP(r[0]c3&"Cost",CHOOSE({1,2},tbl_seed[Name]&tbl_seed[Type],tbl_seed[Unit]),2,0) | I23: Reset Rate | K23: =VLOOKUP(r[0]c3&"Low",CHOOSE({1,2},tbl_seed[Name]&tbl_seed[Rainfall],INDIRECT("tbl_seed["&var_crop&"]")),2,0) | L23: 0 | N23: =VLOOKUP(r[0]c3&"Medium",CHOOSE({1,2},tbl_seed[Name]&tbl_seed[Rainfall],INDIRECT("tbl_seed["&var_crop&"]")),2,0) | O23: 0 | Q23: =VLOOKUP(r[0]c3&"High",CHOOSE({1,2},tbl_seed[Name]&tbl_seed[Rainfall],INDIRECT("tbl_seed["&var_crop&"]")),2,0) | R23: 0 | U23: 0
D24: Reset Cost | F24: =VLOOKUP(R[0]C3&"Cost",CHOOSE({1,2},tbl_seed[Name]&tbl_seed[Type],INDIRECT("tbl_seed["&var_crop&"]")),2,0) | H24: =VLOOKUP(r[0]c3&"Cost",CHOOSE({1,2},tbl_seed[Name]&tbl_seed[Type],tbl_seed[Unit]),2,0) | I24: Reset Rate | K24: =VLOOKUP(r[0]c3&"Low",CHOOSE({1,2},tbl_seed[Name]&tbl_seed[Rainfall],INDIRECT("tbl_seed["&var_crop&"]")),2,0) | L24: 0 | N24: =VLOOKUP(r[0]c3&"Medium",CHOOSE({1,2},tbl_seed[Name]&tbl_seed[Rainfall],INDIRECT("tbl_seed["&var_crop&"]")),2,0) | O24: 0 | Q24: =VLOOKUP(r[0]c3&"High",CHOOSE({1,2},tbl_seed[Name]&tbl_seed[Rainfall],INDIRECT("tbl_seed["&var_crop&"]")),2,0) | R24: 0 | U24: 0
D25: Reset Cost | F25: =VLOOKUP(R[0]C3&"Cost",CHOOSE({1,2},tbl_seed[Name]&tbl_seed[Type],INDIRECT("tbl_seed["&var_crop&"]")),2,0) | H25: =VLOOKUP(r[0]c3&"Cost",CHOOSE({1,2},tbl_seed[Name]&tbl_seed[Type],tbl_seed[Unit]),2,0) | I25: Reset Rate | K25: =VLOOKUP(r[0]c3&"Low",CHOOSE({1,2},tbl_seed[Name]&tbl_seed[Rainfall],INDIRECT("tbl_seed["&var_crop&"]")),2,0) | L25: 0 | N25: =VLOOKUP(r[0]c3&"Medium",CHOOSE({1,2},tbl_seed[Name]&tbl_seed[Rainfall],INDIRECT("tbl_seed["&var_crop&"]")),2,0) | O25: 0 | Q25: =VLOOKUP(r[0]c3&"High",CHOOSE({1,2},tbl_seed[Name]&tbl_seed[Rainfall],INDIRECT("tbl_seed["&var_crop&"]")),2,0) | R25: 0 | U25: 0
D26: Reset Cost | F26: =VLOOKUP(R[0]C3&"Cost",CHOOSE({1,2},tbl_seed[Name]&tbl_seed[Type],INDIRECT("tbl_seed["&var_crop&"]")),2,0) | H26: =VLOOKUP(r[0]c3&"Cost",CHOOSE({1,2},tbl_seed[Name]&tbl_seed[Type],tbl_seed[Unit]),2,0) | I26: Reset Rate | K26: =VLOOKUP(r[0]c3&"Low",CHOOSE({1,2},tbl_seed[Name]&tbl_seed[Rainfall],INDIRECT("tbl_seed["&var_crop&"]")),2,0) | L26: 0 | N26: =VLOOKUP(r[0]c3&"Medium",CHOOSE({1,2},tbl_seed[Name]&tbl_seed[Rainfall],INDIRECT("tbl_seed["&var_crop&"]")),2,0) | O26: 0 | Q26: =VLOOKUP(r[0]c3&"High",CHOOSE({1,2},tbl_seed[Name]&tbl_seed[Rainfall],INDIRECT("tbl_seed["&var_crop&"]")),2,0) | R26: 0 | U26: 0
D27: Reset Cost | F27: =VLOOKUP(R[0]C3&"Cost",CHOOSE({1,2},tbl_seed[Name]&tbl_seed[Type],INDIRECT("tbl_seed["&var_crop&"]")),2,0) | H27: =VLOOKUP(r[0]c3&"Cost",CHOOSE({1,2},tbl_seed[Name]&tbl_seed[Type],tbl_seed[Unit]),2,0) | I27: Reset Rate | K27: =VLOOKUP(r[0]c3&"Low",CHOOSE({1,2},tbl_seed[Name]&tbl_seed[Rainfall],INDIRECT("tbl_seed["&var_crop&"]")),2,0) | L27: 0 | N27: =VLOOKUP(r[0]c3&"Medium",CHOOSE({1,2},tbl_seed[Name]&tbl_seed[Rainfall],INDIRECT("tbl_seed["&var_crop&"]")),2,0) | O27: 0 | Q27: =VLOOKUP(r[0]c3&"High",CHOOSE({1,2},tbl_seed[Name]&tbl_seed[Rainfall],INDIRECT("tbl_seed["&var_crop&"]")),2,0) | R27: 0 | U27: 0
D28: Reset Cost | F28: =VLOOKUP(R[0]C3&"Cost",CHOOSE({1,2},tbl_seed[Name]&tbl_seed[Type],INDIRECT("tbl_seed["&var_crop&"]")),2,0) | H28: =VLOOKUP(r[0]c3&"Cost",CHOOSE({1,2},tbl_seed[Name]&tbl_seed[Type],tbl_seed[Unit]),2,0) | I28: Reset Rate | K28: =VLOOKUP(r[0]c3&"Low",CHOOSE({1,2},tbl_seed[Name]&tbl_seed[Rainfall],INDIRECT("tbl_seed["&var_crop&"]")),2,0) | L28: 0 | N28: =VLOOKUP(r[0]c3&"Medium",CHOOSE({1,2},tbl_seed[Name]&tbl_seed[Rainfall],INDIRECT("tbl_seed["&var_crop&"]")),2,0) | O28: 0 | Q28: =VLOOKUP(r[0]c3&"High",CHOOSE({1,2},tbl_seed[Name]&tbl_seed[Rainfall],INDIRECT("tbl_seed["&var_crop&"]")),2,0) | R28: 0 | U28: 0
D29: Reset Cost | F29: =VLOOKUP(R[0]C3&"Cost",CHOOSE({1,2},tbl_seed[Name]&tbl_seed[Type],INDIRECT("tbl_seed["&var_crop&"]")),2,0) | H29: =VLOOKUP(r[0]c3&"Cost",CHOOSE({1,2},tbl_seed[Name]&tbl_seed[Type],tbl_seed[Unit]),2,0) | I29: Reset Rate | K29: =VLOOKUP(r[0]c3&"Low",CHOOSE({1,2},tbl_seed[Name]&tbl_seed[Rainfall],INDIRECT("tbl_seed["&var_crop&"]")),2,0) | L29: 0 | N29: =VLOOKUP(r[0]c3&"Medium",CHOOSE({1,2},tbl_seed[Name]&tbl_seed[Rainfall],INDIRECT("tbl_seed["&var_crop&"]")),2,0) | O29: 0 | Q29: =VLOOKUP(r[0]c3&"High",CHOOSE({1,2},tbl_seed[Name]&tbl_seed[Rainfall],INDIRECT("tbl_seed["&var_crop&"]")),2,0) | R29: 0 | U29: 0
C31: Levies
C32: GRDC Levies | E32: =var_grdc_levy -> 0.01 | G32: Gross Income | L32: =L11*$E$32 -> 3.675 | O32: =E32*O11 -> 6.615 | R32: =E32*R11 -> 9.8 | U32: =U11*E32 -> 0
C33: EPR & state levies | D33: Reset Levy | E33: =IFERROR(VLOOKUP($C33,tbl_seed[],MATCH(var_crop,tbl_seed[#Headers],0),0),0) -> 3.5 | F33: =IFERROR(VLOOKUP(r[0]c3,tbl_seed,MATCH(var_crop,tbl_seed[#Headers],0),0),0) | G33: tonne sold | L33: =E33*L10 -> 5.25 | O33: =E33*O10 -> 9.45 | R33: =E33*R10 -> 14 | U33: =$U$6*(IF(rng_rainfall=1,L33,IF(rng_rainfall=2,O33,R33))) -> 0
C37: Fertiliser (Bulk) | E37: Cost | G37: Unit | J37: Rate/ha | L37: $/ha | M37: Rate/ha | O37: $/ha | P37: Rate/ha | R37: $/ha | U37: $
C38: DAP 18:20 | D38: Reset Cost | E38: =VLOOKUP($C38,tbl_fert[[Name]:[Cost]],MATCH("Cost",tbl_fert[#Headers],0),0) -> 0.66 | F38: =VLOOKUP(r[0]c3,tbl_fert[[Name]:[Cost]],MATCH("Cost",tbl_fert[#Headers],0),0) | G38: =VLOOKUP($C38,tbl_fert[[Name]:[Cost]],MATCH("Units",tbl_fert[#Headers],0),0) -> kg | H38: =VLOOKUP(r[0]c3,tbl_fert[[Name]:[Cost]],MATCH("Units",tbl_fert[#Headers],0),0) | I38: Reset Rate | J38: =VLOOKUP($C38&"Low",CHOOSE({1,2},tbl_fert[Name]&tbl_fert[Rainfall],INDIRECT("tbl_fert["&var_crop&"]")),2,0) -> 40 | K38: =VLOOKUP(r[0]c3&"Low",CHOOSE({1,2},tbl_fert[Name]&tbl_fert[Rainfall],INDIRECT("tbl_fert["&var_crop&"]")),2,0) | L38: =(J38*E38) -> 26.4 | M38: =VLOOKUP($C38&"Medium",CHOOSE({1,2},tbl_fert[Name]&tbl_fert[Rainfall],INDIRECT("tbl_fert["&var_crop&"]")),2,0) -> 60 | N38: =VLOOKUP(r[0]c3&"Medium",CHOOSE({1,2},tbl_fert[Name]&tbl_fert[Rainfall],INDIRECT("tbl_fert["&var_crop&"]")),2,0) | O38: =(M38*E38) -> 39.6 | P38: =VLOOKUP($C38&"High",CHOOSE({1,2},tbl_fert[Name]&tbl_fert[Rainfall],INDIRECT("tbl_fert["&var_crop&"]")),2,0) -> 80 | Q38: =VLOOKUP(r[0]c3&"High",CHOOSE({1,2},tbl_fert[Name]&tbl_fert[Rainfall],INDIRECT("tbl_fert["&var_crop&"]")),2,0) | R38: =P38*E38 -> 52.8 | U38: =$U$6*(IF(rng_rainfall=1,L38,IF(rng_rainfall=2,O38,R38))) -> 0
C39: Urea | D39: Reset Cost | E39: =VLOOKUP($C39,tbl_fert[[Name]:[Cost]],MATCH("Cost",tbl_fert[#Headers],0),0) -> 0.48 | F39: =VLOOKUP(r[0]c3,tbl_fert[[Name]:[Cost]],MATCH("Cost",tbl_fert[#Headers],0),0) | G39: =VLOOKUP($C39,tbl_fert[[Name]:[Cost]],MATCH("Units",tbl_fert[#Headers],0),0) -> kg | H39: =VLOOKUP(r[0]c3,tbl_fert[[Name]:[Cost]],MATCH("Units",tbl_fert[#Headers],0),0) | I39: Reset Rate | J39: =VLOOKUP($C39&"Low",CHOOSE({1,2},tbl_fert[Name]&tbl_fert[Rainfall],INDIRECT("tbl_fert["&var_crop&"]")),2,0) -> 0 | K39: =VLOOKUP(r[0]c3&"Low",CHOOSE({1,2},tbl_fert[Name]&tbl_fert[Rainfall],INDIRECT("tbl_fert["&var_crop&"]")),2,0) | L39: =(J39*E39) -> 0 | M39: =VLOOKUP($C39&"Medium",CHOOSE({1,2},tbl_fert[Name]&tbl_fert[Rainfall],INDIRECT("tbl_fert["&var_crop&"]")),2,0) -> 80 | N39: =VLOOKUP(r[0]c3&"Medium",CHOOSE({1,2},tbl_fert[Name]&tbl_fert[Rainfall],INDIRECT("tbl_fert["&var_crop&"]")),2,0) | O39: =(M39*E39) -> 38.4 | P39: =VLOOKUP($C39&"High",CHOOSE({1,2},tbl_fert[Name]&tbl_fert[Rainfall],INDIRECT("tbl_fert["&var_crop&"]")),2,0) -> 160 | Q39: =VLOOKUP(r[0]c3&"High",CHOOSE({1,2},tbl_fert[Name]&tbl_fert[Rainfall],INDIRECT("tbl_fert["&var_crop&"]")),2,0) | R39: =P39*E39 -> 76.8 | U39: 0
D40: Reset Cost | F40: =VLOOKUP(r[0]c3,tbl_fert[[Name]:[Cost]],MATCH("Cost",tbl_fert[#Headers],0),0) | H40: =VLOOKUP(r[0]c3,tbl_fert[[Name]:[Cost]],MATCH("Units",tbl_fert[#Headers],0),0) | I40: Reset Rate | K40: =VLOOKUP(r[0]c3&"Low",CHOOSE({1,2},tbl_fert[Name]&tbl_fert[Rainfall],INDIRECT("tbl_fert["&var_crop&"]")),2,0) | L40: =(J40*E40) -> 0 | N40: =VLOOKUP(r[0]c3&"Medium",CHOOSE({1,2},tbl_fert[Name]&tbl_fert[Rainfall],INDIRECT("tbl_fert["&var_crop&"]")),2,0) | O40: =(M40*E40) -> 0 | Q40: =VLOOKUP(r[0]c3&"High",CHOOSE({1,2},tbl_fert[Name]&tbl_fert[Rainfall],INDIRECT("tbl_fert["&var_crop&"]")),2,0) | R40: =P40*E40 -> 0 | U40: =$U$6*(IF(rng_rainfall=1,L40,IF(rng_rainfall=2,O40,R40))) -> 0
D41: Reset Cost | F41: =VLOOKUP(r[0]c3,tbl_fert[[Name]:[Cost]],MATCH("Cost",tbl_fert[#Headers],0),0) | H41: =VLOOKUP(r[0]c3,tbl_fert[[Name]:[Cost]],MATCH("Units",tbl_fert[#Headers],0),0) | I41: Reset Rate | K41: =VLOOKUP(r[0]c3&"Low",CHOOSE({1,2},tbl_fert[Name]&tbl_fert[Rainfall],INDIRECT("tbl_fert["&var_crop&"]")),2,0) | L41: =(J41*E41) -> 0 | N41: =VLOOKUP(r[0]c3&"Medium",CHOOSE({1,2},tbl_fert[Name]&tbl_fert[Rainfall],INDIRECT("tbl_fert["&var_crop&"]")),2,0) | O41: =(M41*E41) -> 0 | Q41: =VLOOKUP(r[0]c3&"High",CHOOSE({1,2},tbl_fert[Name]&tbl_fert[Rainfall],INDIRECT("tbl_fert["&var_crop&"]")),2,0) | R41: =P41*E41 -> 0 | U41: 0
D42: Reset Cost | F42: =VLOOKUP(r[0]c3,tbl_fert[[Name]:[Cost]],MATCH("Cost",tbl_fert[#Headers],0),0) | H42: =VLOOKUP(r[0]c3,tbl_fert[[Name]:[Cost]],MATCH("Units",tbl_fert[#Headers],0),0) | I42: Reset Rate | K42: =VLOOKUP(r[0]c3&"Low",CHOOSE({1,2},tbl_fert[Name]&tbl_fert[Rainfall],INDIRECT("tbl_fert["&var_crop&"]")),2,0) | L42: 0 | N42: =VLOOKUP(r[0]c3&"Medium",CHOOSE({1,2},tbl_fert[Name]&tbl_fert[Rainfall],INDIRECT("tbl_fert["&var_crop&"]")),2,0) | O42: 0 | Q42: =VLOOKUP(r[0]c3&"High",CHOOSE({1,2},tbl_fert[Name]&tbl_fert[Rainfall],INDIRECT("tbl_fert["&var_crop&"]")),2,0) | R42: 0 | U42: 0
D43: Reset Cost | F43: =VLOOKUP(r[0]c3,tbl_fert[[Name]:[Cost]],MATCH("Cost",tbl_fert[#Headers],0),0) | H43: =VLOOKUP(r[0]c3,tbl_fert[[Name]:[Cost]],MATCH("Units",tbl_fert[#Headers],0),0) | I43: Reset Rate | K43: =VLOOKUP(r[0]c3&"Low",CHOOSE({1,2},tbl_fert[Name]&tbl_fert[Rainfall],INDIRECT("tbl_fert["&var_crop&"]")),2,0) | L43: 0 | N43: =VLOOKUP(r[0]c3&"Medium",CHOOSE({1,2},tbl_fert[Name]&tbl_fert[Rainfall],INDIRECT("tbl_fert["&var_crop&"]")),2,0) | O43: 0 | Q43: =VLOOKUP(r[0]c3&"High",CHOOSE({1,2},tbl_fert[Name]&tbl_fert[Rainfall],INDIRECT("tbl_fert["&var_crop&"]")),2,0) | R43: 0 | U43: 0
D44: Reset Cost | F44: =VLOOKUP(r[0]c3,tbl_fert[[Name]:[Cost]],MATCH("Cost",tbl_fert[#Headers],0),0) | H44: =VLOOKUP(r[0]c3,tbl_fert[[Name]:[Cost]],MATCH("Units",tbl_fert[#Headers],0),0) | I44: Reset Rate | K44: =VLOOKUP(r[0]c3&"Low",CHOOSE({1,2},tbl_fert[Name]&tbl_fert[Rainfall],INDIRECT("tbl_fert["&var_crop&"]")),2,0) | L44: 0 | N44: =VLOOKUP(r[0]c3&"Medium",CHOOSE({1,2},tbl_fert[Name]&tbl_fert[Rainfall],INDIRECT("tbl_fert["&var_crop&"]")),2,0) | O44: 0 | Q44: =VLOOKUP(r[0]c3&"High",CHOOSE({1,2},tbl_fert[Name]&tbl_fert[Rainfall],INDIRECT("tbl_fert["&var_crop&"]")),2,0) | R44: 0 | U44: 0
D45: Reset Cost | F45: =VLOOKUP(r[0]c3,tbl_fert[[Name]:[Cost]],MATCH("Cost",tbl_fert[#Headers],0),0) | H45: =VLOOKUP(r[0]c3,tbl_fert[[Name]:[Cost]],MATCH("Units",tbl_fert[#Headers],0),0) | I45: Reset Rate | K45: =VLOOKUP(r[0]c3&"Low",CHOOSE({1,2},tbl_fert[Name]&tbl_fert[Rainfall],INDIRECT("tbl_fert["&var_crop&"]")),2,0) | L45: 0 | N45: =VLOOKUP(r[0]c3&"Medium",CHOOSE({1,2},tbl_fert[Name]&tbl_fert[Rainfall],INDIRECT("tbl_fert["&var_crop&"]")),2,0) | O45: 0 | Q45: =VLOOKUP(r[0]c3&"High",CHOOSE({1,2},tbl_fert[Name]&tbl_fert[Rainfall],INDIRECT("tbl_fert["&var_crop&"]")),2,0) | R45: 0 | U45: 0
D46: Reset Cost | F46: =VLOOKUP(r[0]c3,tbl_fert[[Name]:[Cost]],MATCH("Cost",tbl_fert[#Headers],0),0) | H46: =VLOOKUP(r[0]c3,tbl_fert[[Name]:[Cost]],MATCH("Units",tbl_fert[#Headers],0),0) | I46: Reset Rate | K46: =VLOOKUP(r[0]c3&"Low",CHOOSE({1,2},tbl_fert[Name]&tbl_fert[Rainfall],INDIRECT("tbl_fert["&var_crop&"]")),2,0) | L46: 0 | N46: =VLOOKUP(r[0]c3&"Medium",CHOOSE({1,2},tbl_fert[Name]&tbl_fert[Rainfall],INDIRECT("tbl_fert["&var_crop&"]")),2,0) | O46: 0 | Q46: =VLOOKUP(r[0]c3&"High",CHOOSE({1,2},tbl_fert[Name]&tbl_fert[Rainfall],INDIRECT("tbl_fert["&var_crop&"]")),2,0) | R46: 0 | U46: 0
D47: Reset Cost | F47: =VLOOKUP(r[0]c3,tbl_fert[[Name]:[Cost]],MATCH("Cost",tbl_fert[#Headers],0),0) | H47: =VLOOKUP(r[0]c3,tbl_fert[[Name]:[Cost]],MATCH("Units",tbl_fert[#Headers],0),0) | I47: Reset Rate | K47: =VLOOKUP(r[0]c3&"Low",CHOOSE({1,2},tbl_fert[Name]&tbl_fert[Rainfall],INDIRECT("tbl_fert["&var_crop&"]")),2,0) | L47: 0 | N47: =VLOOKUP(r[0]c3&"Medium",CHOOSE({1,2},tbl_fert[Name]&tbl_fert[Rainfall],INDIRECT("tbl_fert["&var_crop&"]")),2,0) | O47: 0 | Q47: =VLOOKUP(r[0]c3&"High",CHOOSE({1,2},tbl_fert[Name]&tbl_fert[Rainfall],INDIRECT("tbl_fert["&var_crop&"]")),2,0) | R47: 0 | U47: 0
D48: Reset Cost | F48: =VLOOKUP(r[0]c3,tbl_fert[[Name]:[Cost]],MATCH("Cost",tbl_fert[#Headers],0),0) | H48: =VLOOKUP(r[0]c3,tbl_fert[[Name]:[Cost]],MATCH("Units",tbl_fert[#Headers],0),0) | I48: Reset Rate | K48: =VLOOKUP(r[0]c3&"Low",CHOOSE({1,2},tbl_fert[Name]&tbl_fert[Rainfall],INDIRECT("tbl_fert["&var_crop&"]")),2,0) | L48: 0 | N48: =VLOOKUP(r[0]c3&"Medium",CHOOSE({1,2},tbl_fert[Name]&tbl_fert[Rainfall],INDIRECT("tbl_fert["&var_crop&"]")),2,0) | O48: 0 | Q48: =VLOOKUP(r[0]c3&"High",CHOOSE({1,2},tbl_fert[Name]&tbl_fert[Rainfall],INDIRECT("tbl_fert["&var_crop&"]")),2,0) | R48: 0 | U48: 0
D49: Reset Cost | F49: =VLOOKUP(r[0]c3,tbl_fert[[Name]:[Cost]],MATCH("Cost",tbl_fert[#Headers],0),0) | H49: =VLOOKUP(r[0]c3,tbl_fert[[Name]:[Cost]],MATCH("Units",tbl_fert[#Headers],0),0) | I49: Reset Rate | K49: =VLOOKUP(r[0]c3&"Low",CHOOSE({1,2},tbl_fert[Name]&tbl_fert[Rainfall],INDIRECT("tbl_fert["&var_crop&"]")),2,0) | L49: 0 | N49: =VLOOKUP(r[0]c3&"Medium",CHOOSE({1,2},tbl_fert[Name]&tbl_fert[Rainfall],INDIRECT("tbl_fert["&var_crop&"]")),2,0) | O49: 0 | Q49: =VLOOKUP(r[0]c3&"High",CHOOSE({1,2},tbl_fert[Name]&tbl_fert[Rainfall],INDIRECT("tbl_fert["&var_crop&"]")),2,0) | R49: 0 | U49: 0
D50: Reset Cost | F50: =VLOOKUP(r[0]c3,tbl_fert[[Name]:[Cost]],MATCH("Cost",tbl_fert[#Headers],0),0) | H50: =VLOOKUP(r[0]c3,tbl_fert[[Name]:[Cost]],MATCH("Units",tbl_fert[#Headers],0),0) | I50: Reset Rate | K50: =VLOOKUP(r[0]c3&"Low",CHOOSE({1,2},tbl_fert[Name]&tbl_fert[Rainfall],INDIRECT("tbl_fert["&var_crop&"]")),2,0) | L50: 0 | N50: =VLOOKUP(r[0]c3&"Medium",CHOOSE({1,2},tbl_fert[Name]&tbl_fert[Rainfall],INDIRECT("tbl_fert["&var_crop&"]")),2,0) | O50: 0 | Q50: =VLOOKUP(r[0]c3&"High",CHOOSE({1,2},tbl_fert[Name]&tbl_fert[Rainfall],INDIRECT("tbl_fert["&var_crop&"]")),2,0) | R50: 0 | U50: 0
D51: Reset Cost | F51: =VLOOKUP(r[0]c3,tbl_fert[[Name]:[Cost]],MATCH("Cost",tbl_fert[#Headers],0),0) | H51: =VLOOKUP(r[0]c3,tbl_fert[[Name]:[Cost]],MATCH("Units",tbl_fert[#Headers],0),0) | I51: Reset Rate | K51: =VLOOKUP(r[0]c3&"Low",CHOOSE({1,2},tbl_fert[Name]&tbl_fert[Rainfall],INDIRECT("tbl_fert["&var_crop&"]")),2,0) | L51: 0 | N51: =VLOOKUP(r[0]c3&"Medium",CHOOSE({1,2},tbl_fert[Name]&tbl_fert[Rainfall],INDIRECT("tbl_fert["&var_crop&"]")),2,0) | O51: 0 | Q51: =VLOOKUP(r[0]c3&"High",CHOOSE({1,2},tbl_fert[Name]&tbl_fert[Rainfall],INDIRECT("tbl_fert["&var_crop&"]")),2,0) | R51: 0 | U51: 0
D52: Reset Cost | F52: =VLOOKUP(r[0]c3,tbl_fert[[Name]:[Cost]],MATCH("Cost",tbl_fert[#Headers],0),0) | H52: =VLOOKUP(r[0]c3,tbl_fert[[Name]:[Cost]],MATCH("Units",tbl_fert[#Headers],0),0) | I52: Reset Rate | K52: =VLOOKUP(r[0]c3&"Low",CHOOSE({1,2},tbl_fert[Name]&tbl_fert[Rainfall],INDIRECT("tbl_fert["&var_crop&"]")),2,0) | L52: 0 | N52: =VLOOKUP(r[0]c3&"Medium",CHOOSE({1,2},tbl_fert[Name]&tbl_fert[Rainfall],INDIRECT("tbl_fert["&var_crop&"]")),2,0) | O52: 0 | Q52: =VLOOKUP(r[0]c3&"High",CHOOSE({1,2},tbl_fert[Name]&tbl_fert[Rainfall],INDIRECT("tbl_fert["&var_crop&"]")),2,0) | R52: 0 | U52: 0
C57: Herbicides | E57: Cost | G57: Unit | J57: Rate/ha | L57: $/ha | M57: Rate/ha | O57: $/ha | P57: Rate/ha | R57: $/ha | U57: $
C58: Summer Weed Control | G58: Various | I58: Reset $/ha | L58: =var_summer_weed -> 25 | M58: =var_summer_weed | O58: =var_summer_weed -> 25 | P58: =var_summer_weed | R58: =var_summer_weed -> 25 | S58: =var_summer_weed | U58: =$U$6*(IF(rng_rainfall=1,L58,IF(rng_rainfall=2,O58,R58))) -> 0
C59: Herbicides
C60: Trifluralin 480g/L | D60: Reset Cost | E60: =VLOOKUP($C60,tbl_chemicals[[Name]:[Cost]],MATCH("Cost",tbl_chemicals[#Headers],0),0) -> 5.75 | F60: =VLOOKUP(r[0]c3,tbl_chemicals[[Name]:[Cost]],MATCH("Cost",tbl_chemicals[#Headers],0),0) | G60: =VLOOKUP($C60,tbl_chemicals[[Name]:[Cost]],MATCH("Units",tbl_chemicals[#Headers],0),0) -> litre | H60: =VLOOKUP(r[0]c3,tbl_chemicals[[Name]:[Cost]],MATCH("Units",tbl_chemicals[#Headers],0),0) | I60: Reset Rate | J60: =VLOOKUP($C60&"Low",CHOOSE({1,2},tbl_chemicals[Name]&tbl_chemicals[Rainfall],INDIRECT("tbl_chemicals["&var_crop&"]")),2,0) -> 1.5 | K60: =VLOOKUP(r[0]c3&"Low",CHOOSE({1,2},tbl_chemicals[Name]&tbl_chemicals[Rainfall],INDIRECT("tbl_chemicals["&var_crop&"]")),2,0) | L60: =(J60*$E60)+IFERROR(VLOOKUP($C60,tbl_chemicals[],MATCH("Adjuvant Cost/ha",tbl_chemicals[#Headers],0),0),0)*(J60<>0) -> 8.625 | M60: =VLOOKUP($C60&"Medium",CHOOSE({1,2},tbl_chemicals[Name]&tbl_chemicals[Rainfall],INDIRECT("tbl_chemicals["&var_crop&"]")),2,0) -> 0 | N60: =VLOOKUP(r[0]c3&"Medium",CHOOSE({1,2},tbl_chemicals[Name]&tbl_chemicals[Rainfall],INDIRECT("tbl_chemicals["&var_crop&"]")),2,0) | O60: =(M60*$E60)+IFERROR(VLOOKUP($C60,tbl_chemicals[],MATCH("Adjuvant Cost/ha",tbl_chemicals[#Headers],0),0),0)*(M60<>0) -> 0 | P60: =VLOOKUP($C60&"High",CHOOSE({1,2},tbl_chemicals[Name]&tbl_chemicals[Rainfall],INDIRECT("tbl_chemicals["&var_crop&"]")),2,0) -> 0 | Q60: =VLOOKUP(r[0]c3&"High",CHOOSE({1,2},tbl_chemicals[Name]&tbl_chemicals[Rainfall],INDIRECT("tbl_chemicals["&var_crop&"]")),2,0) | R60: =(P60*$E60)+IFERROR(VLOOKUP($C60,tbl_chemicals[],MATCH("Adjuvant Cost/ha",tbl_chemicals[#Headers],0),0),0)*(P60<>0) -> 0 | U60: =$U$6*(IF(rng_rainfall=1,L60,IF(rng_rainfall=2,O60,R60))) -> 0
C61: Tri-allate 500g/L | D61: Reset Cost | E61: =VLOOKUP($C61,tbl_chemicals[[Name]:[Cost]],MATCH("Cost",tbl_chemicals[#Headers],0),0) -> 9.58 | F61: =VLOOKUP(r[0]c3,tbl_chemicals[[Name]:[Cost]],MATCH("Cost",tbl_chemicals[#Headers],0),0) | G61: =VLOOKUP($C61,tbl_chemicals[[Name]:[Cost]],MATCH("Units",tbl_chemicals[#Headers],0),0) -> litre | H61: =VLOOKUP(r[0]c3,tbl_chemicals[[Name]:[Cost]],MATCH("Units",tbl_chemicals[#Headers],0),0) | I61: Reset Rate | J61: =VLOOKUP($C61&"Low",CHOOSE({1,2},tbl_chemicals[Name]&tbl_chemicals[Rainfall],INDIRECT("tbl_chemicals["&var_crop&"]")),2,0) -> 1.6 | K61: =VLOOKUP(r[0]c3&"Low",CHOOSE({1,2},tbl_chemicals[Name]&tbl_chemicals[Rainfall],INDIRECT("tbl_chemicals["&var_crop&"]")),2,0) | L61: =(J61*$E61)+IFERROR(VLOOKUP($C61,tbl_chemicals[],MATCH("Adjuvant Cost/ha",tbl_chemicals[#Headers],0),0),0)*(J61<>0) -> 15.328 | M61: =VLOOKUP($C61&"Medium",CHOOSE({1,2},tbl_chemicals[Name]&tbl_chemicals[Rainfall],INDIRECT("tbl_chemicals["&var_crop&"]")),2,0) -> 0 | N61: =VLOOKUP(r[0]c3&"Medium",CHOOSE({1,2},tbl_chemicals[Name]&tbl_chemicals[Rainfall],INDIRECT("tbl_chemicals["&var_crop&"]")),2,0) | O61: =(M61*$E61)+IFERROR(VLOOKUP($C61,tbl_chemicals[],MATCH("Adjuvant Cost/ha",tbl_chemicals[#Headers],0),0),0)*(M61<>0) -> 0 | P61: =VLOOKUP($C61&"High",CHOOSE({1,2},tbl_chemicals[Name]&tbl_chemicals[Rainfall],INDIRECT("tbl_chemicals["&var_crop&"]")),2,0) -> 0 | Q61: =VLOOKUP(r[0]c3&"High",CHOOSE({1,2},tbl_chemicals[Name]&tbl_chemicals[Rainfall],INDIRECT("tbl_chemicals["&var_crop&"]")),2,0) | R61: =(P61*$E61)+IFERROR(VLOOKUP($C61,tbl_chemicals[],MATCH("Adjuvant Cost/ha",tbl_chemicals[#Headers],0),0),0)*(P61<>0) -> 0 | U61: 0
C62: Glyphosate 540g/L | D62: Reset Cost | E62: =VLOOKUP($C62,tbl_chemicals[[Name]:[Cost]],MATCH("Cost",tbl_chemicals[#Headers],0),0) -> 6 | F62: =VLOOKUP(r[0]c3,tbl_chemicals[[Name]:[Cost]],MATCH("Cost",tbl_chemicals[#Headers],0),0) | G62: =VLOOKUP($C62,tbl_chemicals[[Name]:[Cost]],MATCH("Units",tbl_chemicals[#Headers],0),0) -> litre | H62: =VLOOKUP(r[0]c3,tbl_chemicals[[Name]:[Cost]],MATCH("Units",tbl_chemicals[#Headers],0),0) | I62: Reset Rate | J62: =VLOOKUP($C62&"Low",CHOOSE({1,2},tbl_chemicals[Name]&tbl_chemicals[Rainfall],INDIRECT("tbl_chemicals["&var_crop&"]")),2,0) -> 1.2 | K62: =VLOOKUP(r[0]c3&"Low",CHOOSE({1,2},tbl_chemicals[Name]&tbl_chemicals[Rainfall],INDIRECT("tbl_chemicals["&var_crop&"]")),2,0) | L62: =(J62*$E62)+IFERROR(VLOOKUP($C62,tbl_chemicals[],MATCH("Adjuvant Cost/ha",tbl_chemicals[#Headers],0),0),0)*(J62<>0) -> 7.2 | M62: =VLOOKUP($C62&"Medium",CHOOSE({1,2},tbl_chemicals[Name]&tbl_chemicals[Rainfall],INDIRECT("tbl_chemicals["&var_crop&"]")),2,0) -> 1.2 | N62: =VLOOKUP(r[0]c3&"Medium",CHOOSE({1,2},tbl_chemicals[Name]&tbl_chemicals[Rainfall],INDIRECT("tbl_chemicals["&var_crop&"]")),2,0) | O62: =(M62*$E62)+IFERROR(VLOOKUP($C62,tbl_chemicals[],MATCH("Adjuvant Cost/ha",tbl_chemicals[#Headers],0),0),0)*(M62<>0) -> 7.2 | P62: =VLOOKUP($C62&"High",CHOOSE({1,2},tbl_chemicals[Name]&tbl_chemicals[Rainfall],INDIRECT("tbl_chemicals["&var_crop&"]")),2,0) -> 1.2 | Q62: =VLOOKUP(r[0]c3&"High",CHOOSE({1,2},tbl_chemicals[Name]&tbl_chemicals[Rainfall],INDIRECT("tbl_chemicals["&var_crop&"]")),2,0) | R62: =(P62*$E62)+IFERROR(VLOOKUP($C62,tbl_chemicals[],MATCH("Adjuvant Cost/ha",tbl_chemicals[#Headers],0),0),0)*(P62<>0) -> 7.2 | U62: 0
C63: Carfentrazone 400g/L (Hammer) | D63: Reset Cost | E63: =VLOOKUP($C63,tbl_chemicals[[Name]:[Cost]],MATCH("Cost",tbl_chemicals[#Headers],0),0) -> 190 | F63: =VLOOKUP(r[0]c3,tbl_chemicals[[Name]:[Cost]],MATCH("Cost",tbl_chemicals[#Headers],0),0) | G63: =VLOOKUP($C63,tbl_chemicals[[Name]:[Cost]],MATCH("Units",tbl_chemicals[#Headers],0),0) -> litre | H63: =VLOOKUP(r[0]c3,tbl_chemicals[[Name]:[Cost]],MATCH("Units",tbl_chemicals[#Headers],0),0) | I63: Reset Rate | J63: =VLOOKUP($C63&"Low",CHOOSE({1,2},tbl_chemicals[Name]&tbl_chemicals[Rainfall],INDIRECT("tbl_chemicals["&var_crop&"]")),2,0) -> 0.02 | K63: =VLOOKUP(r[0]c3&"Low",CHOOSE({1,2},tbl_chemicals[Name]&tbl_chemicals[Rainfall],INDIRECT("tbl_chemicals["&var_crop&"]")),2,0) | L63: =(J63*$E63)+IFERROR(VLOOKUP($C63,tbl_chemicals[],MATCH("Adjuvant Cost/ha",tbl_chemicals[#Headers],0),0),0)*(J63<>0) -> 3.8 | M63: =VLOOKUP($C63&"Medium",CHOOSE({1,2},tbl_chemicals[Name]&tbl_chemicals[Rainfall],INDIRECT("tbl_chemicals["&var_crop&"]")),2,0) -> 0.02 | N63: =VLOOKUP(r[0]c3&"Medium",CHOOSE({1,2},tbl_chemicals[Name]&tbl_chemicals[Rainfall],INDIRECT("tbl_chemicals["&var_crop&"]")),2,0) | O63: =(M63*$E63)+IFERROR(VLOOKUP($C63,tbl_chemicals[],MATCH("Adjuvant Cost/ha",tbl_chemicals[#Headers],0),0),0)*(M63<>0) -> 3.8 | P63: =VLOOKUP($C63&"High",CHOOSE({1,2},tbl_chemicals[Name]&tbl_chemicals[Rainfall],INDIRECT("tbl_chemicals["&var_crop&"]")),2,0) -> 0.02 | Q63: =VLOOKUP(r[0]c3&"High",CHOOSE({1,2},tbl_chemicals[Name]&tbl_chemicals[Rainfall],INDIRECT("tbl_chemicals["&var_crop&"]")),2,0) | R63: =(P63*$E63)+IFERROR(VLOOKUP($C63,tbl_chemicals[],MATCH("Adjuvant Cost/ha",tbl_chemicals[#Headers],0),0),0)*(P63<>0) -> 3.8 | U63: 0
C64: Sakura® | D64: Reset Cost | E64: =VLOOKUP($C64,tbl_chemicals[[Name]:[Cost]],MATCH("Cost",tbl_chemicals[#Headers],0),0) -> 340 | F64: =VLOOKUP(r[0]c3,tbl_chemicals[[Name]:[Cost]],MATCH("Cost",tbl_chemicals[#Headers],0),0) | G64: =VLOOKUP($C64,tbl_chemicals[[Name]:[Cost]],MATCH("Units",tbl_chemicals[#Headers],0),0) -> kg | H64: =VLOOKUP(r[0]c3,tbl_chemicals[[Name]:[Cost]],MATCH("Units",tbl_chemicals[#Headers],0),0) | I64: Reset Rate | J64: =VLOOKUP($C64&"Low",CHOOSE({1,2},tbl_chemicals[Name]&tbl_chemicals[Rainfall],INDIRECT("tbl_chemicals["&var_crop&"]")),2,0) -> 0 | K64: =VLOOKUP(r[0]c3&"Low",CHOOSE({1,2},tbl_chemicals[Name]&tbl_chemicals[Rainfall],INDIRECT("tbl_chemicals["&var_crop&"]")),2,0) | L64: =(J64*$E64)+IFERROR(VLOOKUP($C64,tbl_chemicals[],MATCH("Adjuvant Cost/ha",tbl_chemicals[#Headers],0),0),0)*(J64<>0) -> 0 | M64: =VLOOKUP($C64&"Medium",CHOOSE({1,2},tbl_chemicals[Name]&tbl_chemicals[Rainfall],INDIRECT("tbl_chemicals["&var_crop&"]")),2,0) -> 0.118 | N64: =VLOOKUP(r[0]c3&"Medium",CHOOSE({1,2},tbl_chemicals[Name]&tbl_chemicals[Rainfall],INDIRECT("tbl_chemicals["&var_crop&"]")),2,0) | O64: =(M64*$E64)+IFERROR(VLOOKUP($C64,tbl_chemicals[],MATCH("Adjuvant Cost/ha",tbl_chemicals[#Headers],0),0),0)*(M64<>0) -> 40.12 | P64: =VLOOKUP($C64&"High",CHOOSE({1,2},tbl_chemicals[Name]&tbl_chemicals[Rainfall],INDIRECT("tbl_chemicals["&var_crop&"]")),2,0) -> 0.118 | Q64: =VLOOKUP(r[0]c3&"High",CHOOSE({1,2},tbl_chemicals[Name]&tbl_chemicals[Rainfall],INDIRECT("tbl_chemicals["&var_crop&"]")),2,0) | R64: =(P64*$E64)+IFERROR(VLOOKUP($C64,tbl_chemicals[],MATCH("Adjuvant Cost/ha",tbl_chemicals[#Headers],0),0),0)*(P64<>0) -> 40.12 | U64: 0
C65: Topik® EC | D65: Reset Cost | E65: =VLOOKUP($C65,tbl_chemicals[[Name]:[Cost]],MATCH("Cost",tbl_chemicals[#Headers],0),0) -> 38.8 | F65: =VLOOKUP(r[0]c3,tbl_chemicals[[Name]:[Cost]],MATCH("Cost",tbl_chemicals[#Headers],0),0) | G65: =VLOOKUP($C65,tbl_chemicals[[Name]:[Cost]],MATCH("Units",tbl_chemicals[#Headers],0),0) -> litre | H65: =VLOOKUP(r[0]c3,tbl_chemicals[[Name]:[Cost]],MATCH("Units",tbl_chemicals[#Headers],0),0) | I65: Reset Rate | J65: =VLOOKUP($C65&"Low",CHOOSE({1,2},tbl_chemicals[Name]&tbl_chemicals[Rainfall],INDIRECT("tbl_chemicals["&var_crop&"]")),2,0) -> 0 | K65: =VLOOKUP(r[0]c3&"Low",CHOOSE({1,2},tbl_chemicals[Name]&tbl_chemicals[Rainfall],INDIRECT("tbl_chemicals["&var_crop&"]")),2,0) | L65: =(J65*$E65)+IFERROR(VLOOKUP($C65,tbl_chemicals[],MATCH("Adjuvant Cost/ha",tbl_chemicals[#Headers],0),0),0)*(J65<>0) -> 0 | M65: =VLOOKUP($C65&"Medium",CHOOSE({1,2},tbl_chemicals[Name]&tbl_chemicals[Rainfall],INDIRECT("tbl_chemicals["&var_crop&"]")),2,0) -> 0.085 | N65: =VLOOKUP(r[0]c3&"Medium",CHOOSE({1,2},tbl_chemicals[Name]&tbl_chemicals[Rainfall],INDIRECT("tbl_chemicals["&var_crop&"]")),2,0) | O65: =(M65*$E65)+IFERROR(VLOOKUP($C65,tbl_chemicals[],MATCH("Adjuvant Cost/ha",tbl_chemicals[#Headers],0),0),0)*(M65<>0) -> 5.623 | P65: =VLOOKUP($C65&"High",CHOOSE({1,2},tbl_chemicals[Name]&tbl_chemicals[Rainfall],INDIRECT("tbl_chemicals["&var_crop&"]")),2,0) -> 0.085 | Q65: =VLOOKUP(r[0]c3&"High",CHOOSE({1,2},tbl_chemicals[Name]&tbl_chemicals[Rainfall],INDIRECT("tbl_chemicals["&var_crop&"]")),2,0) | R65: =(P65*$E65)+IFERROR(VLOOKUP($C65,tbl_chemicals[],MATCH("Adjuvant Cost/ha",tbl_chemicals[#Headers],0),0),0)*(P65<>0) -> 5.623 | U65: 0
C66: M.C.P.A. LVE | D66: Reset Cost | E66: =VLOOKUP($C66,tbl_chemicals[[Name]:[Cost]],MATCH("Cost",tbl_chemicals[#Headers],0),0) -> 8.85 | F66: =VLOOKUP(r[0]c3,tbl_chemicals[[Name]:[Cost]],MATCH("Cost",tbl_chemicals[#Headers],0),0) | G66: =VLOOKUP($C66,tbl_chemicals[[Name]:[Cost]],MATCH("Units",tbl_chemicals[#Headers],0),0) -> litre | H66: =VLOOKUP(r[0]c3,tbl_chemicals[[Name]:[Cost]],MATCH("Units",tbl_chemicals[#Headers],0),0) | I66: Reset Rate | J66: =VLOOKUP($C66&"Low",CHOOSE({1,2},tbl_chemicals[Name]&tbl_chemicals[Rainfall],INDIRECT("tbl_chemicals["&var_crop&"]")),2,0) -> 0.5 | K66: =VLOOKUP(r[0]c3&"Low",CHOOSE({1,2},tbl_chemicals[Name]&tbl_chemicals[Rainfall],INDIRECT("tbl_chemicals["&var_crop&"]")),2,0) | L66: =(J66*$E66)+IFERROR(VLOOKUP($C66,tbl_chemicals[],MATCH("Adjuvant Cost/ha",tbl_chemicals[#Headers],0),0),0)*(J66<>0) -> 4.425 | M66: =VLOOKUP($C66&"Medium",CHOOSE({1,2},tbl_chemicals[Name]&tbl_chemicals[Rainfall],INDIRECT("tbl_chemicals["&var_crop&"]")),2,0) -> 0 | N66: =VLOOKUP(r[0]c3&"Medium",CHOOSE({1,2},tbl_chemicals[Name]&tbl_chemicals[Rainfall],INDIRECT("tbl_chemicals["&var_crop&"]")),2,0) | O66: =(M66*$E66)+IFERROR(VLOOKUP($C66,tbl_chemicals[],MATCH("Adjuvant Cost/ha",tbl_chemicals[#Headers],0),0),0)*(M66<>0) -> 0 | P66: =VLOOKUP($C66&"High",CHOOSE({1,2},tbl_chemicals[Name]&tbl_chemicals[Rainfall],INDIRECT("tbl_chemicals["&var_crop&"]")),2,0) -> 0 | Q66: =VLOOKUP(r[0]c3&"High",CHOOSE({1,2},tbl_chemicals[Name]&tbl_chemicals[Rainfall],INDIRECT("tbl_chemicals["&var_crop&"]")),2,0) | R66: =(P66*$E66)+IFERROR(VLOOKUP($C66,tbl_chemicals[],MATCH("Adjuvant Cost/ha",tbl_chemicals[#Headers],0),0),0)*(P66<>0) -> 0 | U66: 0
C67: Metsulfuron methyl | D67: Reset Cost | E67: =VLOOKUP($C67,tbl_chemicals[[Name]:[Cost]],MATCH("Cost",tbl_chemicals[#Headers],0),0) -> 0.06 | F67: =VLOOKUP(r[0]c3,tbl_chemicals[[Name]:[Cost]],MATCH("Cost",tbl_chemicals[#Headers],0),0) | G67: =VLOOKUP($C67,tbl_chemicals[[Name]:[Cost]],MATCH("Units",tbl_chemicals[#Headers],0),0) -> gram | H67: =VLOOKUP(r[0]c3,tbl_chemicals[[Name]:[Cost]],MATCH("Units",tbl_chemicals[#Headers],0),0) | I67: Reset Rate | J67: =VLOOKUP($C67&"Low",CHOOSE({1,2},tbl_chemicals[Name]&tbl_chemicals[Rainfall],INDIRECT("tbl_chemicals["&var_crop&"]")),2,0) -> 5 | K67: =VLOOKUP(r[0]c3&"Low",CHOOSE({1,2},tbl_chemicals[Name]&tbl_chemicals[Rainfall],INDIRECT("tbl_chemicals["&var_crop&"]")),2,0) | L67: =(J67*$E67)+IFERROR(VLOOKUP($C67,tbl_chemicals[],MATCH("Adjuvant Cost/ha",tbl_chemicals[#Headers],0),0),0)*(J67<>0) -> 0.72 | M67: =VLOOKUP($C67&"Medium",CHOOSE({1,2},tbl_chemicals[Name]&tbl_chemicals[Rainfall],INDIRECT("tbl_chemicals["&var_crop&"]")),2,0) -> 0 | N67: =VLOOKUP(r[0]c3&"Medium",CHOOSE({1,2},tbl_chemicals[Name]&tbl_chemicals[Rainfall],INDIRECT("tbl_chemicals["&var_crop&"]")),2,0) | O67: =(M67*$E67)+IFERROR(VLOOKUP($C67,tbl_chemicals[],MATCH("Adjuvant Cost/ha",tbl_chemicals[#Headers],0),0),0)*(M67<>0) -> 0 | P67: =VLOOKUP($C67&"High",CHOOSE({1,2},tbl_chemicals[Name]&tbl_chemicals[Rainfall],INDIRECT("tbl_chemicals["&var_crop&"]")),2,0) -> 0 | Q67: =VLOOKUP(r[0]c3&"High",CHOOSE({1,2},tbl_chemicals[Name]&tbl_chemicals[Rainfall],INDIRECT("tbl_chemicals["&var_crop&"]")),2,0) | R67: =(P67*$E67)+IFERROR(VLOOKUP($C67,tbl_chemicals[],MATCH("Adjuvant Cost/ha",tbl_chemicals[#Headers],0),0),0)*(P67<>0) -> 0 | U67: 0
C68: Clopyralid 600g/L (Lontrel® Advanced) | D68: Reset Cost | E68: =VLOOKUP($C68,tbl_chemicals[[Name]:[Cost]],MATCH("Cost",tbl_chemicals[#Headers],0),0) -> 39.6 | F68: =VLOOKUP(r[0]c3,tbl_chemicals[[Name]:[Cost]],MATCH("Cost",tbl_chemicals[#Headers],0),0) | G68: =VLOOKUP($C68,tbl_chemicals[[Name]:[Cost]],MATCH("Units",tbl_chemicals[#Headers],0),0) -> litre | H68: =VLOOKUP(r[0]c3,tbl_chemicals[[Name]:[Cost]],MATCH("Units",tbl_chemicals[#Headers],0),0) | I68: Reset Rate | J68: =VLOOKUP($C68&"Low",CHOOSE({1,2},tbl_chemicals[Name]&tbl_chemicals[Rainfall],INDIRECT("tbl_chemicals["&var_crop&"]")),2,0) -> 0.04 | K68: =VLOOKUP(r[0]c3&"Low",CHOOSE({1,2},tbl_chemicals[Name]&tbl_chemicals[Rainfall],INDIRECT("tbl_chemicals["&var_crop&"]")),2,0) | L68: =(J68*$E68)+IFERROR(VLOOKUP($C68,tbl_chemicals[],MATCH("Adjuvant Cost/ha",tbl_chemicals[#Headers],0),0),0)*(J68<>0) -> 1.584 | M68: =VLOOKUP($C68&"Medium",CHOOSE({1,2},tbl_chemicals[Name]&tbl_chemicals[Rainfall],INDIRECT("tbl_chemicals["&var_crop&"]")),2,0) -> 0.04 | N68: =VLOOKUP(r[0]c3&"Medium",CHOOSE({1,2},tbl_chemicals[Name]&tbl_chemicals[Rainfall],INDIRECT("tbl_chemicals["&var_crop&"]")),2,0) | O68: =(M68*$E68)+IFERROR(VLOOKUP($C68,tbl_chemicals[],MATCH("Adjuvant Cost/ha",tbl_chemicals[#Headers],0),0),0)*(M68<>0) -> 1.584 | P68: =VLOOKUP($C68&"High",CHOOSE({1,2},tbl_chemicals[Name]&tbl_chemicals[Rainfall],INDIRECT("tbl_chemicals["&var_crop&"]")),2,0) -> 0.04 | Q68: =VLOOKUP(r[0]c3&"High",CHOOSE({1,2},tbl_chemicals[Name]&tbl_chemicals[Rainfall],INDIRECT("tbl_chemicals["&var_crop&"]")),2,0) | R68: =(P68*$E68)+IFERROR(VLOOKUP($C68,tbl_chemicals[],MATCH("Adjuvant Cost/ha",tbl_chemicals[#Headers],0),0),0)*(P68<>0) -> 1.584 | U68: 0
C69: Affinity® | D69: Reset Cost | E69: =VLOOKUP($C69,tbl_chemicals[[Name]:[Cost]],MATCH("Cost",tbl_chemicals[#Headers],0),0) -> 122.5 | F69: =VLOOKUP(r[0]c3,tbl_chemicals[[Name]:[Cost]],MATCH("Cost",tbl_chemicals[#Headers],0),0) | G69: =VLOOKUP($C69,tbl_chemicals[[Name]:[Cost]],MATCH("Units",tbl_chemicals[#Headers],0),0) -> litre | H69: =VLOOKUP(r[0]c3,tbl_chemicals[[Name]:[Cost]],MATCH("Units",tbl_chemicals[#Headers],0),0) | I69: Reset Rate | J69: =VLOOKUP($C69&"Low",CHOOSE({1,2},tbl_chemicals[Name]&tbl_chemicals[Rainfall],INDIRECT("tbl_chemicals["&var_crop&"]")),2,0) -> 0 | K69: =VLOOKUP(r[0]c3&"Low",CHOOSE({1,2},tbl_chemicals[Name]&tbl_chemicals[Rainfall],INDIRECT("tbl_chemicals["&var_crop&"]")),2,0) | L69: =(J69*$E69)+IFERROR(VLOOKUP($C69,tbl_chemicals[],MATCH("Adjuvant Cost/ha",tbl_chemicals[#Headers],0),0),0)*(J69<>0) -> 0 | M69: =VLOOKUP($C69&"Medium",CHOOSE({1,2},tbl_chemicals[Name]&tbl_chemicals[Rainfall],INDIRECT("tbl_chemicals["&var_crop&"]")),2,0) -> 0.1 | N69: =VLOOKUP(r[0]c3&"Medium",CHOOSE({1,2},tbl_chemicals[Name]&tbl_chemicals[Rainfall],INDIRECT("tbl_chemicals["&var_crop&"]")),2,0) | O69: =(M69*$E69)+IFERROR(VLOOKUP($C69,tbl_chemicals[],MATCH("Adjuvant Cost/ha",tbl_chemicals[#Headers],0),0),0)*(M69<>0) -> 12.25 | P69: =VLOOKUP($C69&"High",CHOOSE({1,2},tbl_chemicals[Name]&tbl_chemicals[Rainfall],INDIRECT("tbl_chemicals["&var_crop&"]")),2,0) -> 0.1 | Q69: =VLOOKUP(r[0]c3&"High",CHOOSE({1,2},tbl_chemicals[Name]&tbl_chemicals[Rainfall],INDIRECT("tbl_chemicals["&var_crop&"]")),2,0) | R69: =(P69*$E69)+IFERROR(VLOOKUP($C69,tbl_chemicals[],MATCH("Adjuvant Cost/ha",tbl_chemicals[#Headers],0),0),0)*(P69<>0) -> 12.25 | U69: 0
C70: MCPA Amine (750g/L) | D70: Reset Cost | E70: =VLOOKUP($C70,tbl_chemicals[[Name]:[Cost]],MATCH("Cost",tbl_chemicals[#Headers],0),0) -> 8.75 | F70: =VLOOKUP(r[0]c3,tbl_chemicals[[Name]:[Cost]],MATCH("Cost",tbl_chemicals[#Headers],0),0) | G70: =VLOOKUP($C70,tbl_chemicals[[Name]:[Cost]],MATCH("Units",tbl_chemicals[#Headers],0),0) -> litre | H70: =VLOOKUP(r[0]c3,tbl_chemicals[[Name]:[Cost]],MATCH("Units",tbl_chemicals[#Headers],0),0) | I70: Reset Rate | J70: =VLOOKUP($C70&"Low",CHOOSE({1,2},tbl_chemicals[Name]&tbl_chemicals[Rainfall],INDIRECT("tbl_chemicals["&var_crop&"]")),2,0) -> 0 | K70: =VLOOKUP(r[0]c3&"Low",CHOOSE({1,2},tbl_chemicals[Name]&tbl_chemicals[Rainfall],INDIRECT("tbl_chemicals["&var_crop&"]")),2,0) | L70: =(J70*$E70)+IFERROR(VLOOKUP($C70,tbl_chemicals[],MATCH("Adjuvant Cost/ha",tbl_chemicals[#Headers],0),0),0)*(J70<>0) -> 0 | M70: =VLOOKUP($C70&"Medium",CHOOSE({1,2},tbl_chemicals[Name]&tbl_chemicals[Rainfall],INDIRECT("tbl_chemicals["&var_crop&"]")),2,0) -> 0.33 | N70: =VLOOKUP(r[0]c3&"Medium",CHOOSE({1,2},tbl_chemicals[Name]&tbl_chemicals[Rainfall],INDIRECT("tbl_chemicals["&var_crop&"]")),2,0) | O70: =(M70*$E70)+IFERROR(VLOOKUP($C70,tbl_chemicals[],MATCH("Adjuvant Cost/ha",tbl_chemicals[#Headers],0),0),0)*(M70<>0) -> 2.8875 | P70: =VLOOKUP($C70&"High",CHOOSE({1,2},tbl_chemicals[Name]&tbl_chemicals[Rainfall],INDIRECT("tbl_chemicals["&var_crop&"]")),2,0) -> 0.33 | Q70: =VLOOKUP(r[0]c3&"High",CHOOSE({1,2},tbl_chemicals[Name]&tbl_chemicals[Rainfall],INDIRECT("tbl_chemicals["&var_crop&"]")),2,0) | R70: =(P70*$E70)+IFERROR(VLOOKUP($C70,tbl_chemicals[],MATCH("Adjuvant Cost/ha",tbl_chemicals[#Headers],0),0),0)*(P70<>0) -> 2.8875 | U70: 0
D71: Reset Cost | F71: =VLOOKUP(r[0]c3,tbl_chemicals[[Name]:[Cost]],MATCH("Cost",tbl_chemicals[#Headers],0),0) | H71: =VLOOKUP(r[0]c3,tbl_chemicals[[Name]:[Cost]],MATCH("Units",tbl_chemicals[#Headers],0),0) | I71: Reset Rate | K71: =VLOOKUP(r[0]c3&"Low",CHOOSE({1,2},tbl_chemicals[Name]&tbl_chemicals[Rainfall],INDIRECT("tbl_chemicals["&var_crop&"]")),2,0) | L71: =(J71*$E71)+IFERROR(VLOOKUP($C71,tbl_chemicals[],MATCH("Adjuvant Cost/ha",tbl_chemicals[#Headers],0),0),0)*(J71<>0) -> 0 | N71: =VLOOKUP(r[0]c3&"Medium",CHOOSE({1,2},tbl_chemicals[Name]&tbl_chemicals[Rainfall],INDIRECT("tbl_chemicals["&var_crop&"]")),2,0) | O71: =(M71*$E71)+IFERROR(VLOOKUP($C71,tbl_chemicals[],MATCH("Adjuvant Cost/ha",tbl_chemicals[#Headers],0),0),0)*(M71<>0) -> 0 | Q71: =VLOOKUP(r[0]c3&"High",CHOOSE({1,2},tbl_chemicals[Name]&tbl_chemicals[Rainfall],INDIRECT("tbl_chemicals["&var_crop&"]")),2,0) | R71: =(P71*$E71)+IFERROR(VLOOKUP($C71,tbl_chemicals[],MATCH("Adjuvant Cost/ha",tbl_chemicals[#Headers],0),0),0)*(P71<>0) -> 0 | U71: 0
D72: Reset Cost | F72: =VLOOKUP(r[0]c3,tbl_chemicals[[Name]:[Cost]],MATCH("Cost",tbl_chemicals[#Headers],0),0) | H72: =VLOOKUP(r[0]c3,tbl_chemicals[[Name]:[Cost]],MATCH("Units",tbl_chemicals[#Headers],0),0) | I72: Reset Rate | K72: =VLOOKUP(r[0]c3&"Low",CHOOSE({1,2},tbl_chemicals[Name]&tbl_chemicals[Rainfall],INDIRECT("tbl_chemicals["&var_crop&"]")),2,0) | L72: =(J72*$E72)+IFERROR(VLOOKUP($C72,tbl_chemicals[],MATCH("Adjuvant Cost/ha",tbl_chemicals[#Headers],0),0),0)*(J72<>0) -> 0 | N72: =VLOOKUP(r[0]c3&"Medium",CHOOSE({1,2},tbl_chemicals[Name]&tbl_chemicals[Rainfall],INDIRECT("tbl_chemicals["&var_crop&"]")),2,0) | O72: =(M72*$E72)+IFERROR(VLOOKUP($C72,tbl_chemicals[],MATCH("Adjuvant Cost/ha",tbl_chemicals[#Headers],0),0),0)*(M72<>0) -> 0 | Q72: =VLOOKUP(r[0]c3&"High",CHOOSE({1,2},tbl_chemicals[Name]&tbl_chemicals[Rainfall],INDIRECT("tbl_chemicals["&var_crop&"]")),2,0) | R72: =(P72*$E72)+IFERROR(VLOOKUP($C72,tbl_chemicals[],MATCH("Adjuvant Cost/ha",tbl_chemicals[#Headers],0),0),0)*(P72<>0) -> 0 | U72: 0
D73: Reset Cost | F73: =VLOOKUP(r[0]c3,tbl_chemicals[[Name]:[Cost]],MATCH("Cost",tbl_chemicals[#Headers],0),0) | H73: =VLOOKUP(r[0]c3,tbl_chemicals[[Name]:[Cost]],MATCH("Units",tbl_chemicals[#Headers],0),0) | I73: Reset Rate | K73: =VLOOKUP(r[0]c3&"Low",CHOOSE({1,2},tbl_chemicals[Name]&tbl_chemicals[Rainfall],INDIRECT("tbl_chemicals["&var_crop&"]")),2,0) | L73: =(J73*$E73)+IFERROR(VLOOKUP($C73,tbl_chemicals[],MATCH("Adjuvant Cost/ha",tbl_chemicals[#Headers],0),0),0)*(J73<>0) -> 0 | N73: =VLOOKUP(r[0]c3&"Medium",CHOOSE({1,2},tbl_chemicals[Name]&tbl_chemicals[Rainfall],INDIRECT("tbl_chemicals["&var_crop&"]")),2,0) | O73: =(M73*$E73)+IFERROR(VLOOKUP($C73,tbl_chemicals[],MATCH("Adjuvant Cost/ha",tbl_chemicals[#Headers],0),0),0)*(M73<>0) -> 0 | Q73: =VLOOKUP(r[0]c3&"High",CHOOSE({1,2},tbl_chemicals[Name]&tbl_chemicals[Rainfall],INDIRECT("tbl_chemicals["&var_crop&"]")),2,0) | R73: =(P73*$E73)+IFERROR(VLOOKUP($C73,tbl_chemicals[],MATCH("Adjuvant Cost/ha",tbl_chemicals[#Headers],0),0),0)*(P73<>0) -> 0 | U73: 0
D74: Reset Cost | F74: =VLOOKUP(r[0]c3,tbl_chemicals[[Name]:[Cost]],MATCH("Cost",tbl_chemicals[#Headers],0),0) | H74: =VLOOKUP(r[0]c3,tbl_chemicals[[Name]:[Cost]],MATCH("Units",tbl_chemicals[#Headers],0),0) | I74: Reset Rate | K74: =VLOOKUP(r[0]c3&"Low",CHOOSE({1,2},tbl_chemicals[Name]&tbl_chemicals[Rainfall],INDIRECT("tbl_chemicals["&var_crop&"]")),2,0) | L74: =(J74*$E74)+IFERROR(VLOOKUP($C74,tbl_chemicals[],MATCH("Adjuvant Cost/ha",tbl_chemicals[#Headers],0),0),0)*(J74<>0) -> 0 | N74: =VLOOKUP(r[0]c3&"Medium",CHOOSE({1,2},tbl_chemicals[Name]&tbl_chemicals[Rainfall],INDIRECT("tbl_chemicals["&var_crop&"]")),2,0) | O74: =(M74*$E74)+IFERROR(VLOOKUP($C74,tbl_chemicals[],MATCH("Adjuvant Cost/ha",tbl_chemicals[#Headers],0),0),0)*(M74<>0) -> 0 | Q74: =VLOOKUP(r[0]c3&"High",CHOOSE({1,2},tbl_chemicals[Name]&tbl_chemicals[Rainfall],INDIRECT("tbl_chemicals["&var_crop&"]")),2,0) | R74: =(P74*$E74)+IFERROR(VLOOKUP($C74,tbl_chemicals[],MATCH("Adjuvant Cost/ha",tbl_chemicals[#Headers],0),0),0)*(P74<>0) -> 0 | U74: 0
D75: Reset Cost | F75: =VLOOKUP(r[0]c3,tbl_chemicals[[Name]:[Cost]],MATCH("Cost",tbl_chemicals[#Headers],0),0) | H75: =VLOOKUP(r[0]c3,tbl_chemicals[[Name]:[Cost]],MATCH("Units",tbl_chemicals[#Headers],0),0) | I75: Reset Rate | K75: =VLOOKUP(r[0]c3&"Low",CHOOSE({1,2},tbl_chemicals[Name]&tbl_chemicals[Rainfall],INDIRECT("tbl_chemicals["&var_crop&"]")),2,0) | L75: =(J75*$E75)+IFERROR(VLOOKUP($C75,tbl_chemicals[],MATCH("Adjuvant Cost/ha",tbl_chemicals[#Headers],0),0),0)*(J75<>0) -> 0 | N75: =VLOOKUP(r[0]c3&"Medium",CHOOSE({1,2},tbl_chemicals[Name]&tbl_chemicals[Rainfall],INDIRECT("tbl_chemicals["&var_crop&"]")),2,0) | O75: =(M75*$E75)+IFERROR(VLOOKUP($C75,tbl_chemicals[],MATCH("Adjuvant Cost/ha",tbl_chemicals[#Headers],0),0),0)*(M75<>0) -> 0 | Q75: =VLOOKUP(r[0]c3&"High",CHOOSE({1,2},tbl_chemicals[Name]&tbl_chemicals[Rainfall],INDIRECT("tbl_chemicals["&var_crop&"]")),2,0) | R75: =(P75*$E75)+IFERROR(VLOOKUP($C75,tbl_chemicals[],MATCH("Adjuvant Cost/ha",tbl_chemicals[#Headers],0),0),0)*(P75<>0) -> 0 | U75: =$U$6*(IF(rng_rainfall=1,L75,IF(rng_rainfall=2,O75,R75))) -> 0
D76: Reset Cost | F76: =VLOOKUP(r[0]c3,tbl_chemicals[[Name]:[Cost]],MATCH("Cost",tbl_chemicals[#Headers],0),0) | H76: =VLOOKUP(r[0]c3,tbl_chemicals[[Name]:[Cost]],MATCH("Units",tbl_chemicals[#Headers],0),0) | I76: Reset Rate | K76: =VLOOKUP(r[0]c3&"Low",CHOOSE({1,2},tbl_chemicals[Name]&tbl_chemicals[Rainfall],INDIRECT("tbl_chemicals["&var_crop&"]")),2,0) | L76: =(J76*$E76)+IFERROR(VLOOKUP($C76,tbl_chemicals[],MATCH("Adjuvant Cost/ha",tbl_chemicals[#Headers],0),0),0)*(J76<>0) -> 0 | N76: =VLOOKUP(r[0]c3&"Medium",CHOOSE({1,2},tbl_chemicals[Name]&tbl_chemicals[Rainfall],INDIRECT("tbl_chemicals["&var_crop&"]")),2,0) | O76: =(M76*$E76)+IFERROR(VLOOKUP($C76,tbl_chemicals[],MATCH("Adjuvant Cost/ha",tbl_chemicals[#Headers],0),0),0)*(M76<>0) -> 0 | Q76: =VLOOKUP(r[0]c3&"High",CHOOSE({1,2},tbl_chemicals[Name]&tbl_chemicals[Rainfall],INDIRECT("tbl_chemicals["&var_crop&"]")),2,0) | R76: =(P76*$E76)+IFERROR(VLOOKUP($C76,tbl_chemicals[],MATCH("Adjuvant Cost/ha",tbl_chemicals[#Headers],0),0),0)*(P76<>0) -> 0 | U76: 0
D77: Reset Cost | F77: =VLOOKUP(r[0]c3,tbl_chemicals[[Name]:[Cost]],MATCH("Cost",tbl_chemicals[#Headers],0),0) | H77: =VLOOKUP(r[0]c3,tbl_chemicals[[Name]:[Cost]],MATCH("Units",tbl_chemicals[#Headers],0),0) | I77: Reset Rate | K77: =VLOOKUP(r[0]c3&"Low",CHOOSE({1,2},tbl_chemicals[Name]&tbl_chemicals[Rainfall],INDIRECT("tbl_chemicals["&var_crop&"]")),2,0) | L77: =(J77*$E77)+IFERROR(VLOOKUP($C77,tbl_chemicals[],MATCH("Adjuvant Cost/ha",tbl_chemicals[#Headers],0),0),0)*(J77<>0) -> 0 | N77: =VLOOKUP(r[0]c3&"Medium",CHOOSE({1,2},tbl_chemicals[Name]&tbl_chemicals[Rainfall],INDIRECT("tbl_chemicals["&var_crop&"]")),2,0) | O77: =(M77*$E77)+IFERROR(VLOOKUP($C77,tbl_chemicals[],MATCH("Adjuvant Cost/ha",tbl_chemicals[#Headers],0),0),0)*(M77<>0) -> 0 | Q77: =VLOOKUP(r[0]c3&"High",CHOOSE({1,2},tbl_chemicals[Name]&tbl_chemicals[Rainfall],INDIRECT("tbl_chemicals["&var_crop&"]")),2,0) | R77: =(P77*$E77)+IFERROR(VLOOKUP($C77,tbl_chemicals[],MATCH("Adjuvant Cost/ha",tbl_chemicals[#Headers],0),0),0)*(P77<>0) -> 0 | U77: 0
D78: Reset Cost | F78: =VLOOKUP(r[0]c3,tbl_chemicals[[Name]:[Cost]],MATCH("Cost",tbl_chemicals[#Headers],0),0) | H78: =VLOOKUP(r[0]c3,tbl_chemicals[[Name]:[Cost]],MATCH("Units",tbl_chemicals[#Headers],0),0) | I78: Reset Rate | K78: =VLOOKUP(r[0]c3&"Low",CHOOSE({1,2},tbl_chemicals[Name]&tbl_chemicals[Rainfall],INDIRECT("tbl_chemicals["&var_crop&"]")),2,0) | L78: =(J78*$E78)+IFERROR(VLOOKUP($C78,tbl_chemicals[],MATCH("Adjuvant Cost/ha",tbl_chemicals[#Headers],0),0),0)*(J78<>0) -> 0 | N78: =VLOOKUP(r[0]c3&"Medium",CHOOSE({1,2},tbl_chemicals[Name]&tbl_chemicals[Rainfall],INDIRECT("tbl_chemicals["&var_crop&"]")),2,0) | O78: =(M78*$E78)+IFERROR(VLOOKUP($C78,tbl_chemicals[],MATCH("Adjuvant Cost/ha",tbl_chemicals[#Headers],0),0),0)*(M78<>0) -> 0 | Q78: =VLOOKUP(r[0]c3&"High",CHOOSE({1,2},tbl_chemicals[Name]&tbl_chemicals[Rainfall],INDIRECT("tbl_chemicals["&var_crop&"]")),2,0) | R78: =(P78*$E78)+IFERROR(VLOOKUP($C78,tbl_chemicals[],MATCH("Adjuvant Cost/ha",tbl_chemicals[#Headers],0),0),0)*(P78<>0) -> 0 | U78: 0
D79: Reset Cost | F79: =VLOOKUP(r[0]c3,tbl_chemicals[[Name]:[Cost]],MATCH("Cost",tbl_chemicals[#Headers],0),0) | H79: =VLOOKUP(r[0]c3,tbl_chemicals[[Name]:[Cost]],MATCH("Units",tbl_chemicals[#Headers],0),0) | I79: Reset Rate | K79: =VLOOKUP(r[0]c3&"Low",CHOOSE({1,2},tbl_chemicals[Name]&tbl_chemicals[Rainfall],INDIRECT("tbl_chemicals["&var_crop&"]")),2,0) | L79: =(J79*$E79)+IFERROR(VLOOKUP($C79,tbl_chemicals[],MATCH("Adjuvant Cost/ha",tbl_chemicals[#Headers],0),0),0)*(J79<>0) -> 0 | N79: =VLOOKUP(r[0]c3&"Medium",CHOOSE({1,2},tbl_chemicals[Name]&tbl_chemicals[Rainfall],INDIRECT("tbl_chemicals["&var_crop&"]")),2,0) | O79: =(M79*$E79)+IFERROR(VLOOKUP($C79,tbl_chemicals[],MATCH("Adjuvant Cost/ha",tbl_chemicals[#Headers],0),0),0)*(M79<>0) -> 0 | Q79: =VLOOKUP(r[0]c3&"High",CHOOSE({1,2},tbl_chemicals[Name]&tbl_chemicals[Rainfall],INDIRECT("tbl_chemicals["&var_crop&"]")),2,0) | R79: =(P79*$E79)+IFERROR(VLOOKUP($C79,tbl_chemicals[],MATCH("Adjuvant Cost/ha",tbl_chemicals[#Headers],0),0),0)*(P79<>0) -> 0 | U79: 0
D80: Reset Cost | F80: =VLOOKUP(r[0]c3,tbl_chemicals[[Name]:[Cost]],MATCH("Cost",tbl_chemicals[#Headers],0),0) | H80: =VLOOKUP(r[0]c3,tbl_chemicals[[Name]:[Cost]],MATCH("Units",tbl_chemicals[#Headers],0),0) | I80: Reset Rate | K80: =VLOOKUP(r[0]c3&"Low",CHOOSE({1,2},tbl_chemicals[Name]&tbl_chemicals[Rainfall],INDIRECT("tbl_chemicals["&var_crop&"]")),2,0) | L80: =(J80*$E80)+IFERROR(VLOOKUP($C80,tbl_chemicals[],MATCH("Adjuvant Cost/ha",tbl_chemicals[#Headers],0),0),0)*(J80<>0) -> 0 | N80: =VLOOKUP(r[0]c3&"Medium",CHOOSE({1,2},tbl_chemicals[Name]&tbl_chemicals[Rainfall],INDIRECT("tbl_chemicals["&var_crop&"]")),2,0) | O80: =(M80*$E80)+IFERROR(VLOOKUP($C80,tbl_chemicals[],MATCH("Adjuvant Cost/ha",tbl_chemicals[#Headers],0),0),0)*(M80<>0) -> 0 | Q80: =VLOOKUP(r[0]c3&"High",CHOOSE({1,2},tbl_chemicals[Name]&tbl_chemicals[Rainfall],INDIRECT("tbl_chemicals["&var_crop&"]")),2,0) | R80: =(P80*$E80)+IFERROR(VLOOKUP($C80,tbl_chemicals[],MATCH("Adjuvant Cost/ha",tbl_chemicals[#Headers],0),0),0)*(P80<>0) -> 0 | U80: 0
D81: Reset Cost | F81: =VLOOKUP(r[0]c3,tbl_chemicals[[Name]:[Cost]],MATCH("Cost",tbl_chemicals[#Headers],0),0) | H81: =VLOOKUP(r[0]c3,tbl_chemicals[[Name]:[Cost]],MATCH("Units",tbl_chemicals[#Headers],0),0) | I81: Reset Rate | K81: =VLOOKUP(r[0]c3&"Low",CHOOSE({1,2},tbl_chemicals[Name]&tbl_chemicals[Rainfall],INDIRECT("tbl_chemicals["&var_crop&"]")),2,0) | L81: =(J81*$E81)+IFERROR(VLOOKUP($C81,tbl_chemicals[],MATCH("Adjuvant Cost/ha",tbl_chemicals[#Headers],0),0),0)*(J81<>0) -> 0 | N81: =VLOOKUP(r[0]c3&"Medium",CHOOSE({1,2},tbl_chemicals[Name]&tbl_chemicals[Rainfall],INDIRECT("tbl_chemicals["&var_crop&"]")),2,0) | O81: =(M81*$E81)+IFERROR(VLOOKUP($C81,tbl_chemicals[],MATCH("Adjuvant Cost/ha",tbl_chemicals[#Headers],0),0),0)*(M81<>0) -> 0 | Q81: =VLOOKUP(r[0]c3&"High",CHOOSE({1,2},tbl_chemicals[Name]&tbl_chemicals[Rainfall],INDIRECT("tbl_chemicals["&var_crop&"]")),2,0) | R81: =(P81*$E81)+IFERROR(VLOOKUP($C81,tbl_chemicals[],MATCH("Adjuvant Cost/ha",tbl_chemicals[#Headers],0),0),0)*(P81<>0) -> 0 | U81: 0
D82: Reset Cost | F82: =VLOOKUP(r[0]c3,tbl_chemicals[[Name]:[Cost]],MATCH("Cost",tbl_chemicals[#Headers],0),0) | H82: =VLOOKUP(r[0]c3,tbl_chemicals[[Name]:[Cost]],MATCH("Units",tbl_chemicals[#Headers],0),0) | I82: Reset Rate | K82: =VLOOKUP(r[0]c3&"Low",CHOOSE({1,2},tbl_chemicals[Name]&tbl_chemicals[Rainfall],INDIRECT("tbl_chemicals["&var_crop&"]")),2,0) | L82: =(J82*$E82)+IFERROR(VLOOKUP($C82,tbl_chemicals[],MATCH("Adjuvant Cost/ha",tbl_chemicals[#Headers],0),0),0)*(J82<>0) -> 0 | N82: =VLOOKUP(r[0]c3&"Medium",CHOOSE({1,2},tbl_chemicals[Name]&tbl_chemicals[Rainfall],INDIRECT("tbl_chemicals["&var_crop&"]")),2,0) | O82: =(M82*$E82)+IFERROR(VLOOKUP($C82,tbl_chemicals[],MATCH("Adjuvant Cost/ha",tbl_chemicals[#Headers],0),0),0)*(M82<>0) -> 0 | Q82: =VLOOKUP(r[0]c3&"High",CHOOSE({1,2},tbl_chemicals[Name]&tbl_chemicals[Rainfall],INDIRECT("tbl_chemicals["&var_crop&"]")),2,0) | R82: =(P82*$E82)+IFERROR(VLOOKUP($C82,tbl_chemicals[],MATCH("Adjuvant Cost/ha",tbl_chemicals[#Headers],0),0),0)*(P82<>0) -> 0 | U82: 0
D83: Reset Cost | F83: =VLOOKUP(r[0]c3,tbl_chemicals[[Name]:[Cost]],MATCH("Cost",tbl_chemicals[#Headers],0),0) | H83: =VLOOKUP(r[0]c3,tbl_chemicals[[Name]:[Cost]],MATCH("Units",tbl_chemicals[#Headers],0),0) | I83: Reset Rate | K83: =VLOOKUP(r[0]c3&"Low",CHOOSE({1,2},tbl_chemicals[Name]&tbl_chemicals[Rainfall],INDIRECT("tbl_chemicals["&var_crop&"]")),2,0) | L83: =(J83*$E83)+IFERROR(VLOOKUP($C83,tbl_chemicals[],MATCH("Adjuvant Cost/ha",tbl_chemicals[#Headers],0),0),0)*(J83<>0) -> 0 | N83: =VLOOKUP(r[0]c3&"Medium",CHOOSE({1,2},tbl_chemicals[Name]&tbl_chemicals[Rainfall],INDIRECT("tbl_chemicals["&var_crop&"]")),2,0) | O83: =(M83*$E83)+IFERROR(VLOOKUP($C83,tbl_chemicals[],MATCH("Adjuvant Cost/ha",tbl_chemicals[#Headers],0),0),0)*(M83<>0) -> 0 | Q83: =VLOOKUP(r[0]c3&"High",CHOOSE({1,2},tbl_chemicals[Name]&tbl_chemicals[Rainfall],INDIRECT("tbl_chemicals["&var_crop&"]")),2,0) | R83: =(P83*$E83)+IFERROR(VLOOKUP($C83,tbl_chemicals[],MATCH("Adjuvant Cost/ha",tbl_chemicals[#Headers],0),0),0)*(P83<>0) -> 0 | U83: 0
D84: Reset Cost | F84: =VLOOKUP(r[0]c3,tbl_chemicals[[Name]:[Cost]],MATCH("Cost",tbl_chemicals[#Headers],0),0) | H84: =VLOOKUP(r[0]c3,tbl_chemicals[[Name]:[Cost]],MATCH("Units",tbl_chemicals[#Headers],0),0) | I84: Reset Rate | K84: =VLOOKUP(r[0]c3&"Low",CHOOSE({1,2},tbl_chemicals[Name]&tbl_chemicals[Rainfall],INDIRECT("tbl_chemicals["&var_crop&"]")),2,0) | L84: =(J84*$E84)+IFERROR(VLOOKUP($C84,tbl_chemicals[],MATCH("Adjuvant Cost/ha",tbl_chemicals[#Headers],0),0),0)*(J84<>0) -> 0 | N84: =VLOOKUP(r[0]c3&"Medium",CHOOSE({1,2},tbl_chemicals[Name]&tbl_chemicals[Rainfall],INDIRECT("tbl_chemicals["&var_crop&"]")),2,0) | O84: =(M84*$E84)+IFERROR(VLOOKUP($C84,tbl_chemicals[],MATCH("Adjuvant Cost/ha",tbl_chemicals[#Headers],0),0),0)*(M84<>0) -> 0 | Q84: =VLOOKUP(r[0]c3&"High",CHOOSE({1,2},tbl_chemicals[Name]&tbl_chemicals[Rainfall],INDIRECT("tbl_chemicals["&var_crop&"]")),2,0) | R84: =(P84*$E84)+IFERROR(VLOOKUP($C84,tbl_chemicals[],MATCH("Adjuvant Cost/ha",tbl_chemicals[#Headers],0),0),0)*(P84<>0) -> 0 | U84: 0
D85: Reset Cost | F85: =VLOOKUP(r[0]c3,tbl_chemicals[[Name]:[Cost]],MATCH("Cost",tbl_chemicals[#Headers],0),0) | H85: =VLOOKUP(r[0]c3,tbl_chemicals[[Name]:[Cost]],MATCH("Units",tbl_chemicals[#Headers],0),0) | I85: Reset Rate | K85: =VLOOKUP(r[0]c3&"Low",CHOOSE({1,2},tbl_chemicals[Name]&tbl_chemicals[Rainfall],INDIRECT("tbl_chemicals["&var_crop&"]")),2,0) | L85: =(J85*$E85)+IFERROR(VLOOKUP($C85,tbl_chemicals[],MATCH("Adjuvant Cost/ha",tbl_chemicals[#Headers],0),0),0)*(J85<>0) -> 0 | N85: =VLOOKUP(r[0]c3&"Medium",CHOOSE({1,2},tbl_chemicals[Name]&tbl_chemicals[Rainfall],INDIRECT("tbl_chemicals["&var_crop&"]")),2,0) | O85: =(M85*$E85)+IFERROR(VLOOKUP($C85,tbl_chemicals[],MATCH("Adjuvant Cost/ha",tbl_chemicals[#Headers],0),0),0)*(M85<>0) -> 0 | Q85: =VLOOKUP(r[0]c3&"High",CHOOSE({1,2},tbl_chemicals[Name]&tbl_chemicals[Rainfall],INDIRECT("tbl_chemicals["&var_crop&"]")),2,0) | R85: =(P85*$E85)+IFERROR(VLOOKUP($C85,tbl_chemicals[],MATCH("Adjuvant Cost/ha",tbl_chemicals[#Headers],0),0),0)*(P85<>0) -> 0 | U85: 0
D86: Reset Cost | F86: =VLOOKUP(r[0]c3,tbl_chemicals[[Name]:[Cost]],MATCH("Cost",tbl_chemicals[#Headers],0),0) | H86: =VLOOKUP(r[0]c3,tbl_chemicals[[Name]:[Cost]],MATCH("Units",tbl_chemicals[#Headers],0),0) | I86: Reset Rate | K86: =VLOOKUP(r[0]c3&"Low",CHOOSE({1,2},tbl_chemicals[Name]&tbl_chemicals[Rainfall],INDIRECT("tbl_chemicals["&var_crop&"]")),2,0) | L86: =(J86*$E86)+IFERROR(VLOOKUP($C86,tbl_chemicals[],MATCH("Adjuvant Cost/ha",tbl_chemicals[#Headers],0),0),0)*(J86<>0) -> 0 | N86: =VLOOKUP(r[0]c3&"Medium",CHOOSE({1,2},tbl_chemicals[Name]&tbl_chemicals[Rainfall],INDIRECT("tbl_chemicals["&var_crop&"]")),2,0) | O86: =(M86*$E86)+IFERROR(VLOOKUP($C86,tbl_chemicals[],MATCH("Adjuvant Cost/ha",tbl_chemicals[#Headers],0),0),0)*(M86<>0) -> 0 | Q86: =VLOOKUP(r[0]c3&"High",CHOOSE({1,2},tbl_chemicals[Name]&tbl_chemicals[Rainfall],INDIRECT("tbl_chemicals["&var_crop&"]")),2,0) | R86: =(P86*$E86)+IFERROR(VLOOKUP($C86,tbl_chemicals[],MATCH("Adjuvant Cost/ha",tbl_chemicals[#Headers],0),0),0)*(P86<>0) -> 0 | U86: 0
D87: Reset Cost | F87: =VLOOKUP(r[0]c3,tbl_chemicals[[Name]:[Cost]],MATCH("Cost",tbl_chemicals[#Headers],0),0) | H87: =VLOOKUP(r[0]c3,tbl_chemicals[[Name]:[Cost]],MATCH("Units",tbl_chemicals[#Headers],0),0) | I87: Reset Rate | K87: =VLOOKUP(r[0]c3&"Low",CHOOSE({1,2},tbl_chemicals[Name]&tbl_chemicals[Rainfall],INDIRECT("tbl_chemicals["&var_crop&"]")),2,0) | L87: =(J87*$E87)+IFERROR(VLOOKUP($C87,tbl_chemicals[],MATCH("Adjuvant Cost/ha",tbl_chemicals[#Headers],0),0),0)*(J87<>0) -> 0 | N87: =VLOOKUP(r[0]c3&"Medium",CHOOSE({1,2},tbl_chemicals[Name]&tbl_chemicals[Rainfall],INDIRECT("tbl_chemicals["&var_crop&"]")),2,0) | O87: =(M87*$E87)+IFERROR(VLOOKUP($C87,tbl_chemicals[],MATCH("Adjuvant Cost/ha",tbl_chemicals[#Headers],0),0),0)*(M87<>0) -> 0 | Q87: =VLOOKUP(r[0]c3&"High",CHOOSE({1,2},tbl_chemicals[Name]&tbl_chemicals[Rainfall],INDIRECT("tbl_chemicals["&var_crop&"]")),2,0) | R87: =(P87*$E87)+IFERROR(VLOOKUP($C87,tbl_chemicals[],MATCH("Adjuvant Cost/ha",tbl_chemicals[#Headers],0),0),0)*(P87<>0) -> 0 | U87: 0
D88: Reset Cost | F88: =VLOOKUP(r[0]c3,tbl_chemicals[[Name]:[Cost]],MATCH("Cost",tbl_chemicals[#Headers],0),0) | H88: =VLOOKUP(r[0]c3,tbl_chemicals[[Name]:[Cost]],MATCH("Units",tbl_chemicals[#Headers],0),0) | I88: Reset Rate | K88: =VLOOKUP(r[0]c3&"Low",CHOOSE({1,2},tbl_chemicals[Name]&tbl_chemicals[Rainfall],INDIRECT("tbl_chemicals["&var_crop&"]")),2,0) | L88: =(J88*$E88)+IFERROR(VLOOKUP($C88,tbl_chemicals[],MATCH("Adjuvant Cost/ha",tbl_chemicals[#Headers],0),0),0)*(J88<>0) -> 0 | N88: =VLOOKUP(r[0]c3&"Medium",CHOOSE({1,2},tbl_chemicals[Name]&tbl_chemicals[Rainfall],INDIRECT("tbl_chemicals["&var_crop&"]")),2,0) | O88: =(M88*$E88)+IFERROR(VLOOKUP($C88,tbl_chemicals[],MATCH("Adjuvant Cost/ha",tbl_chemicals[#Headers],0),0),0)*(M88<>0) -> 0 | Q88: =VLOOKUP(r[0]c3&"High",CHOOSE({1,2},tbl_chemicals[Name]&tbl_chemicals[Rainfall],INDIRECT("tbl_chemicals["&var_crop&"]")),2,0) | R88: =(P88*$E88)+IFERROR(VLOOKUP($C88,tbl_chemicals[],MATCH("Adjuvant Cost/ha",tbl_chemicals[#Headers],0),0),0)*(P88<>0) -> 0 | U88: 0
D89: Reset Cost | F89: =VLOOKUP(r[0]c3,tbl_chemicals[[Name]:[Cost]],MATCH("Cost",tbl_chemicals[#Headers],0),0) | H89: =VLOOKUP(r[0]c3,tbl_chemicals[[Name]:[Cost]],MATCH("Units",tbl_chemicals[#Headers],0),0) | I89: Reset Rate | K89: =VLOOKUP(r[0]c3&"Low",CHOOSE({1,2},tbl_chemicals[Name]&tbl_chemicals[Rainfall],INDIRECT("tbl_chemicals["&var_crop&"]")),2,0) | L89: =(J89*$E89)+IFERROR(VLOOKUP($C89,tbl_chemicals[],MATCH("Adjuvant Cost/ha",tbl_chemicals[#Headers],0),0),0)*(J89<>0) -> 0 | N89: =VLOOKUP(r[0]c3&"Medium",CHOOSE({1,2},tbl_chemicals[Name]&tbl_chemicals[Rainfall],INDIRECT("tbl_chemicals["&var_crop&"]")),2,0) | O89: =(M89*$E89)+IFERROR(VLOOKUP($C89,tbl_chemicals[],MATCH("Adjuvant Cost/ha",tbl_chemicals[#Headers],0),0),0)*(M89<>0) -> 0 | Q89: =VLOOKUP(r[0]c3&"High",CHOOSE({1,2},tbl_chemicals[Name]&tbl_chemicals[Rainfall],INDIRECT("tbl_chemicals["&var_crop&"]")),2,0) | R89: =(P89*$E89)+IFERROR(VLOOKUP($C89,tbl_chemicals[],MATCH("Adjuvant Cost/ha",tbl_chemicals[#Headers],0),0),0)*(P89<>0) -> 0 | U89: 0
C90: Insecticides
D91: Reset Cost | F91: =VLOOKUP(r[0]c3,tbl_chemicals[[Name]:[Cost]],MATCH("Cost",tbl_chemicals[#Headers],0),0) | H91: =VLOOKUP(r[0]c3,tbl_chemicals[[Name]:[Cost]],MATCH("Units",tbl_chemicals[#Headers],0),0) | I91: Reset Rate | K91: =VLOOKUP(r[0]c3&"Low",CHOOSE({1,2},tbl_chemicals[Name]&tbl_chemicals[Rainfall],INDIRECT("tbl_chemicals["&var_crop&"]")),2,0) | L91: =(J91*$E91)+IFERROR(VLOOKUP($C91,tbl_chemicals[],MATCH("Adjuvant Cost/ha",tbl_chemicals[#Headers],0),0),0)*(J91<>0) -> 0 | N91: =VLOOKUP(r[0]c3&"Medium",CHOOSE({1,2},tbl_chemicals[Name]&tbl_chemicals[Rainfall],INDIRECT("tbl_chemicals["&var_crop&"]")),2,0) | O91: =(M91*$E91)+IFERROR(VLOOKUP($C91,tbl_chemicals[],MATCH("Adjuvant Cost/ha",tbl_chemicals[#Headers],0),0),0)*(M91<>0) -> 0 | Q91: =VLOOKUP(r[0]c3&"High",CHOOSE({1,2},tbl_chemicals[Name]&tbl_chemicals[Rainfall],INDIRECT("tbl_chemicals["&var_crop&"]")),2,0) | R91: =(P91*$E91)+IFERROR(VLOOKUP($C91,tbl_chemicals[],MATCH("Adjuvant Cost/ha",tbl_chemicals[#Headers],0),0),0)*(P91<>0) -> 0 | U91: =$U$6*(IF(rng_rainfall=1,L91,IF(rng_rainfall=2,O91,R91))) -> 0
D92: Reset Cost | F92: =VLOOKUP(r[0]c3,tbl_chemicals[[Name]:[Cost]],MATCH("Cost",tbl_chemicals[#Headers],0),0) | H92: =VLOOKUP(r[0]c3,tbl_chemicals[[Name]:[Cost]],MATCH("Units",tbl_chemicals[#Headers],0),0) | I92: Reset Rate | K92: =VLOOKUP(r[0]c3&"Low",CHOOSE({1,2},tbl_chemicals[Name]&tbl_chemicals[Rainfall],INDIRECT("tbl_chemicals["&var_crop&"]")),2,0) | L92: =(J92*$E92)+IFERROR(VLOOKUP($C92,tbl_chemicals[],MATCH("Adjuvant Cost/ha",tbl_chemicals[#Headers],0),0),0)*(J92<>0) -> 0 | N92: =VLOOKUP(r[0]c3&"Medium",CHOOSE({1,2},tbl_chemicals[Name]&tbl_chemicals[Rainfall],INDIRECT("tbl_chemicals["&var_crop&"]")),2,0) | O92: =(M92*$E92)+IFERROR(VLOOKUP($C92,tbl_chemicals[],MATCH("Adjuvant Cost/ha",tbl_chemicals[#Headers],0),0),0)*(M92<>0) -> 0 | Q92: =VLOOKUP(r[0]c3&"High",CHOOSE({1,2},tbl_chemicals[Name]&tbl_chemicals[Rainfall],INDIRECT("tbl_chemicals["&var_crop&"]")),2,0) | R92: =(P92*$E92)+IFERROR(VLOOKUP($C92,tbl_chemicals[],MATCH("Adjuvant Cost/ha",tbl_chemicals[#Headers],0),0),0)*(P92<>0) -> 0 | U92: 0
D93: Reset Cost | F93: =VLOOKUP(r[0]c3,tbl_chemicals[[Name]:[Cost]],MATCH("Cost",tbl_chemicals[#Headers],0),0) | H93: =VLOOKUP(r[0]c3,tbl_chemicals[[Name]:[Cost]],MATCH("Units",tbl_chemicals[#Headers],0),0) | I93: Reset Rate | K93: =VLOOKUP(r[0]c3&"Low",CHOOSE({1,2},tbl_chemicals[Name]&tbl_chemicals[Rainfall],INDIRECT("tbl_chemicals["&var_crop&"]")),2,0) | L93: =(J93*$E93)+IFERROR(VLOOKUP($C93,tbl_chemicals[],MATCH("Adjuvant Cost/ha",tbl_chemicals[#Headers],0),0),0)*(J93<>0) -> 0 | N93: =VLOOKUP(r[0]c3&"Medium",CHOOSE({1,2},tbl_chemicals[Name]&tbl_chemicals[Rainfall],INDIRECT("tbl_chemicals["&var_crop&"]")),2,0) | O93: =(M93*$E93)+IFERROR(VLOOKUP($C93,tbl_chemicals[],MATCH("Adjuvant Cost/ha",tbl_chemicals[#Headers],0),0),0)*(M93<>0) -> 0 | Q93: =VLOOKUP(r[0]c3&"High",CHOOSE({1,2},tbl_chemicals[Name]&tbl_chemicals[Rainfall],INDIRECT("tbl_chemicals["&var_crop&"]")),2,0) | R93: =(P93*$E93)+IFERROR(VLOOKUP($C93,tbl_chemicals[],MATCH("Adjuvant Cost/ha",tbl_chemicals[#Headers],0),0),0)*(P93<>0) -> 0 | U93: 0
D94: Reset Cost | F94: =VLOOKUP(r[0]c3,tbl_chemicals[[Name]:[Cost]],MATCH("Cost",tbl_chemicals[#Headers],0),0) | H94: =VLOOKUP(r[0]c3,tbl_chemicals[[Name]:[Cost]],MATCH("Units",tbl_chemicals[#Headers],0),0) | I94: Reset Rate | K94: =VLOOKUP(r[0]c3&"Low",CHOOSE({1,2},tbl_chemicals[Name]&tbl_chemicals[Rainfall],INDIRECT("tbl_chemicals["&var_crop&"]")),2,0) | L94: =(J94*$E94)+IFERROR(VLOOKUP($C94,tbl_chemicals[],MATCH("Adjuvant Cost/ha",tbl_chemicals[#Headers],0),0),0)*(J94<>0) -> 0 | N94: =VLOOKUP(r[0]c3&"Medium",CHOOSE({1,2},tbl_chemicals[Name]&tbl_chemicals[Rainfall],INDIRECT("tbl_chemicals["&var_crop&"]")),2,0) | O94: =(M94*$E94)+IFERROR(VLOOKUP($C94,tbl_chemicals[],MATCH("Adjuvant Cost/ha",tbl_chemicals[#Headers],0),0),0)*(M94<>0) -> 0 | Q94: =VLOOKUP(r[0]c3&"High",CHOOSE({1,2},tbl_chemicals[Name]&tbl_chemicals[Rainfall],INDIRECT("tbl_chemicals["&var_crop&"]")),2,0) | R94: =(P94*$E94)+IFERROR(VLOOKUP($C94,tbl_chemicals[],MATCH("Adjuvant Cost/ha",tbl_chemicals[#Headers],0),0),0)*(P94<>0) -> 0 | U94: 0
D95: Reset Cost | F95: =VLOOKUP(r[0]c3,tbl_chemicals[[Name]:[Cost]],MATCH("Cost",tbl_chemicals[#Headers],0),0) | H95: =VLOOKUP(r[0]c3,tbl_chemicals[[Name]:[Cost]],MATCH("Units",tbl_chemicals[#Headers],0),0) | I95: Reset Rate | K95: =VLOOKUP(r[0]c3&"Low",CHOOSE({1,2},tbl_chemicals[Name]&tbl_chemicals[Rainfall],INDIRECT("tbl_chemicals["&var_crop&"]")),2,0) | L95: =(J95*$E95)+IFERROR(VLOOKUP($C95,tbl_chemicals[],MATCH("Adjuvant Cost/ha",tbl_chemicals[#Headers],0),0),0)*(J95<>0) -> 0 | N95: =VLOOKUP(r[0]c3&"Medium",CHOOSE({1,2},tbl_chemicals[Name]&tbl_chemicals[Rainfall],INDIRECT("tbl_chemicals["&var_crop&"]")),2,0) | O95: =(M95*$E95)+IFERROR(VLOOKUP($C95,tbl_chemicals[],MATCH("Adjuvant Cost/ha",tbl_chemicals[#Headers],0),0),0)*(M95<>0) -> 0 | Q95: =VLOOKUP(r[0]c3&"High",CHOOSE({1,2},tbl_chemicals[Name]&tbl_chemicals[Rainfall],INDIRECT("tbl_chemicals["&var_crop&"]")),2,0) | R95: =(P95*$E95)+IFERROR(VLOOKUP($C95,tbl_chemicals[],MATCH("Adjuvant Cost/ha",tbl_chemicals[#Headers],0),0),0)*(P95<>0) -> 0 | U95: 0
D96: Reset Cost | F96: =VLOOKUP(r[0]c3,tbl_chemicals[[Name]:[Cost]],MATCH("Cost",tbl_chemicals[#Headers],0),0) | H96: =VLOOKUP(r[0]c3,tbl_chemicals[[Name]:[Cost]],MATCH("Units",tbl_chemicals[#Headers],0),0) | I96: Reset Rate | K96: =VLOOKUP(r[0]c3&"Low",CHOOSE({1,2},tbl_chemicals[Name]&tbl_chemicals[Rainfall],INDIRECT("tbl_chemicals["&var_crop&"]")),2,0) | L96: =(J96*$E96)+IFERROR(VLOOKUP($C96,tbl_chemicals[],MATCH("Adjuvant Cost/ha",tbl_chemicals[#Headers],0),0),0)*(J96<>0) -> 0 | N96: =VLOOKUP(r[0]c3&"Medium",CHOOSE({1,2},tbl_chemicals[Name]&tbl_chemicals[Rainfall],INDIRECT("tbl_chemicals["&var_crop&"]")),2,0) | O96: =(M96*$E96)+IFERROR(VLOOKUP($C96,tbl_chemicals[],MATCH("Adjuvant Cost/ha",tbl_chemicals[#Headers],0),0),0)*(M96<>0) -> 0 | Q96: =VLOOKUP(r[0]c3&"High",CHOOSE({1,2},tbl_chemicals[Name]&tbl_chemicals[Rainfall],INDIRECT("tbl_chemicals["&var_crop&"]")),2,0) | R96: =(P96*$E96)+IFERROR(VLOOKUP($C96,tbl_chemicals[],MATCH("Adjuvant Cost/ha",tbl_chemicals[#Headers],0),0),0)*(P96<>0) -> 0 | U96: 0
D97: Reset Cost | F97: =VLOOKUP(r[0]c3,tbl_chemicals[[Name]:[Cost]],MATCH("Cost",tbl_chemicals[#Headers],0),0) | H97: =VLOOKUP(r[0]c3,tbl_chemicals[[Name]:[Cost]],MATCH("Units",tbl_chemicals[#Headers],0),0) | I97: Reset Rate | K97: =VLOOKUP(r[0]c3&"Low",CHOOSE({1,2},tbl_chemicals[Name]&tbl_chemicals[Rainfall],INDIRECT("tbl_chemicals["&var_crop&"]")),2,0) | L97: =(J97*$E97)+IFERROR(VLOOKUP($C97,tbl_chemicals[],MATCH("Adjuvant Cost/ha",tbl_chemicals[#Headers],0),0),0)*(J97<>0) -> 0 | N97: =VLOOKUP(r[0]c3&"Medium",CHOOSE({1,2},tbl_chemicals[Name]&tbl_chemicals[Rainfall],INDIRECT("tbl_chemicals["&var_crop&"]")),2,0) | O97: =(M97*$E97)+IFERROR(VLOOKUP($C97,tbl_chemicals[],MATCH("Adjuvant Cost/ha",tbl_chemicals[#Headers],0),0),0)*(M97<>0) -> 0 | Q97: =VLOOKUP(r[0]c3&"High",CHOOSE({1,2},tbl_chemicals[Name]&tbl_chemicals[Rainfall],INDIRECT("tbl_chemicals["&var_crop&"]")),2,0) | R97: =(P97*$E97)+IFERROR(VLOOKUP($C97,tbl_chemicals[],MATCH("Adjuvant Cost/ha",tbl_chemicals[#Headers],0),0),0)*(P97<>0) -> 0 | U97: 0
D98: Reset Cost | F98: =VLOOKUP(r[0]c3,tbl_chemicals[[Name]:[Cost]],MATCH("Cost",tbl_chemicals[#Headers],0),0) | H98: =VLOOKUP(r[0]c3,tbl_chemicals[[Name]:[Cost]],MATCH("Units",tbl_chemicals[#Headers],0),0) | I98: Reset Rate | K98: =VLOOKUP(r[0]c3&"Low",CHOOSE({1,2},tbl_chemicals[Name]&tbl_chemicals[Rainfall],INDIRECT("tbl_chemicals["&var_crop&"]")),2,0) | L98: =(J98*$E98)+IFERROR(VLOOKUP($C98,tbl_chemicals[],MATCH("Adjuvant Cost/ha",tbl_chemicals[#Headers],0),0),0)*(J98<>0) -> 0 | N98: =VLOOKUP(r[0]c3&"Medium",CHOOSE({1,2},tbl_chemicals[Name]&tbl_chemicals[Rainfall],INDIRECT("tbl_chemicals["&var_crop&"]")),2,0) | O98: =(M98*$E98)+IFERROR(VLOOKUP($C98,tbl_chemicals[],MATCH("Adjuvant Cost/ha",tbl_chemicals[#Headers],0),0),0)*(M98<>0) -> 0 | Q98: =VLOOKUP(r[0]c3&"High",CHOOSE({1,2},tbl_chemicals[Name]&tbl_chemicals[Rainfall],INDIRECT("tbl_chemicals["&var_crop&"]")),2,0) | R98: =(P98*$E98)+IFERROR(VLOOKUP($C98,tbl_chemicals[],MATCH("Adjuvant Cost/ha",tbl_chemicals[#Headers],0),0),0)*(P98<>0) -> 0 | U98: 0
D99: Reset Cost | F99: =VLOOKUP(r[0]c3,tbl_chemicals[[Name]:[Cost]],MATCH("Cost",tbl_chemicals[#Headers],0),0) | H99: =VLOOKUP(r[0]c3,tbl_chemicals[[Name]:[Cost]],MATCH("Units",tbl_chemicals[#Headers],0),0) | I99: Reset Rate | K99: =VLOOKUP(r[0]c3&"Low",CHOOSE({1,2},tbl_chemicals[Name]&tbl_chemicals[Rainfall],INDIRECT("tbl_chemicals["&var_crop&"]")),2,0) | L99: =(J99*$E99)+IFERROR(VLOOKUP($C99,tbl_chemicals[],MATCH("Adjuvant Cost/ha",tbl_chemicals[#Headers],0),0),0)*(J99<>0) -> 0 | N99: =VLOOKUP(r[0]c3&"Medium",CHOOSE({1,2},tbl_chemicals[Name]&tbl_chemicals[Rainfall],INDIRECT("tbl_chemicals["&var_crop&"]")),2,0) | O99: =(M99*$E99)+IFERROR(VLOOKUP($C99,tbl_chemicals[],MATCH("Adjuvant Cost/ha",tbl_chemicals[#Headers],0),0),0)*(M99<>0) -> 0 | Q99: =VLOOKUP(r[0]c3&"High",CHOOSE({1,2},tbl_chemicals[Name]&tbl_chemicals[Rainfall],INDIRECT("tbl_chemicals["&var_crop&"]")),2,0) | R99: =(P99*$E99)+IFERROR(VLOOKUP($C99,tbl_chemicals[],MATCH("Adjuvant Cost/ha",tbl_chemicals[#Headers],0),0),0)*(P99<>0) -> 0 | U99: 0
D100: Reset Cost | F100: =VLOOKUP(r[0]c3,tbl_chemicals[[Name]:[Cost]],MATCH("Cost",tbl_chemicals[#Headers],0),0) | H100: =VLOOKUP(r[0]c3,tbl_chemicals[[Name]:[Cost]],MATCH("Units",tbl_chemicals[#Headers],0),0) | I100: Reset Rate | K100: =VLOOKUP(r[0]c3&"Low",CHOOSE({1,2},tbl_chemicals[Name]&tbl_chemicals[Rainfall],INDIRECT("tbl_chemicals["&var_crop&"]")),2,0) | L100: =(J100*$E100)+IFERROR(VLOOKUP($C100,tbl_chemicals[],MATCH("Adjuvant Cost/ha",tbl_chemicals[#Headers],0),0),0)*(J100<>0) -> 0 | N100: =VLOOKUP(r[0]c3&"Medium",CHOOSE({1,2},tbl_chemicals[Name]&tbl_chemicals[Rainfall],INDIRECT("tbl_chemicals["&var_crop&"]")),2,0) | O100: =(M100*$E100)+IFERROR(VLOOKUP($C100,tbl_chemicals[],MATCH("Adjuvant Cost/ha",tbl_chemicals[#Headers],0),0),0)*(M100<>0) -> 0 | Q100: =VLOOKUP(r[0]c3&"High",CHOOSE({1,2},tbl_chemicals[Name]&tbl_chemicals[Rainfall],INDIRECT("tbl_chemicals["&var_crop&"]")),2,0) | R100: =(P100*$E100)+IFERROR(VLOOKUP($C100,tbl_chemicals[],MATCH("Adjuvant Cost/ha",tbl_chemicals[#Headers],0),0),0)*(P100<>0) -> 0 | U100: 0
D101: Reset Cost | F101: =VLOOKUP(r[0]c3,tbl_chemicals[[Name]:[Cost]],MATCH("Cost",tbl_chemicals[#Headers],0),0) | H101: =VLOOKUP(r[0]c3,tbl_chemicals[[Name]:[Cost]],MATCH("Units",tbl_chemicals[#Headers],0),0) | I101: Reset Rate | K101: =VLOOKUP(r[0]c3&"Low",CHOOSE({1,2},tbl_chemicals[Name]&tbl_chemicals[Rainfall],INDIRECT("tbl_chemicals["&var_crop&"]")),2,0) | L101: =(J101*$E101)+IFERROR(VLOOKUP($C101,tbl_chemicals[],MATCH("Adjuvant Cost/ha",tbl_chemicals[#Headers],0),0),0)*(J101<>0) -> 0 | N101: =VLOOKUP(r[0]c3&"Medium",CHOOSE({1,2},tbl_chemicals[Name]&tbl_chemicals[Rainfall],INDIRECT("tbl_chemicals["&var_crop&"]")),2,0) | O101: =(M101*$E101)+IFERROR(VLOOKUP($C101,tbl_chemicals[],MATCH("Adjuvant Cost/ha",tbl_chemicals[#Headers],0),0),0)*(M101<>0) -> 0 | Q101: =VLOOKUP(r[0]c3&"High",CHOOSE({1,2},tbl_chemicals[Name]&tbl_chemicals[Rainfall],INDIRECT("tbl_chemicals["&var_crop&"]")),2,0) | R101: =(P101*$E101)+IFERROR(VLOOKUP($C101,tbl_chemicals[],MATCH("Adjuvant Cost/ha",tbl_chemicals[#Headers],0),0),0)*(P101<>0) -> 0 | U101: 0
D102: Reset Cost | F102: =VLOOKUP(r[0]c3,tbl_chemicals[[Name]:[Cost]],MATCH("Cost",tbl_chemicals[#Headers],0),0) | H102: =VLOOKUP(r[0]c3,tbl_chemicals[[Name]:[Cost]],MATCH("Units",tbl_chemicals[#Headers],0),0) | I102: Reset Rate | K102: =VLOOKUP(r[0]c3&"Low",CHOOSE({1,2},tbl_chemicals[Name]&tbl_chemicals[Rainfall],INDIRECT("tbl_chemicals["&var_crop&"]")),2,0) | L102: =(J102*$E102)+IFERROR(VLOOKUP($C102,tbl_chemicals[],MATCH("Adjuvant Cost/ha",tbl_chemicals[#Headers],0),0),0)*(J102<>0) -> 0 | N102: =VLOOKUP(r[0]c3&"Medium",CHOOSE({1,2},tbl_chemicals[Name]&tbl_chemicals[Rainfall],INDIRECT("tbl_chemicals["&var_crop&"]")),2,0) | O102: =(M102*$E102)+IFERROR(VLOOKUP($C102,tbl_chemicals[],MATCH("Adjuvant Cost/ha",tbl_chemicals[#Headers],0),0),0)*(M102<>0) -> 0 | Q102: =VLOOKUP(r[0]c3&"High",CHOOSE({1,2},tbl_chemicals[Name]&tbl_chemicals[Rainfall],INDIRECT("tbl_chemicals["&var_crop&"]")),2,0) | R102: =(P102*$E102)+IFERROR(VLOOKUP($C102,tbl_chemicals[],MATCH("Adjuvant Cost/ha",tbl_chemicals[#Headers],0),0),0)*(P102<>0) -> 0 | U102: 0
D103: Reset Cost | F103: =VLOOKUP(r[0]c3,tbl_chemicals[[Name]:[Cost]],MATCH("Cost",tbl_chemicals[#Headers],0),0) | H103: =VLOOKUP(r[0]c3,tbl_chemicals[[Name]:[Cost]],MATCH("Units",tbl_chemicals[#Headers],0),0) | I103: Reset Rate | K103: =VLOOKUP(r[0]c3&"Low",CHOOSE({1,2},tbl_chemicals[Name]&tbl_chemicals[Rainfall],INDIRECT("tbl_chemicals["&var_crop&"]")),2,0) | L103: =(J103*$E103)+IFERROR(VLOOKUP($C103,tbl_chemicals[],MATCH("Adjuvant Cost/ha",tbl_chemicals[#Headers],0),0),0)*(J103<>0) -> 0 | N103: =VLOOKUP(r[0]c3&"Medium",CHOOSE({1,2},tbl_chemicals[Name]&tbl_chemicals[Rainfall],INDIRECT("tbl_chemicals["&var_crop&"]")),2,0) | O103: =(M103*$E103)+IFERROR(VLOOKUP($C103,tbl_chemicals[],MATCH("Adjuvant Cost/ha",tbl_chemicals[#Headers],0),0),0)*(M103<>0) -> 0 | Q103: =VLOOKUP(r[0]c3&"High",CHOOSE({1,2},tbl_chemicals[Name]&tbl_chemicals[Rainfall],INDIRECT("tbl_chemicals["&var_crop&"]")),2,0) | R103: =(P103*$E103)+IFERROR(VLOOKUP($C103,tbl_chemicals[],MATCH("Adjuvant Cost/ha",tbl_chemicals[#Headers],0),0),0)*(P103<>0) -> 0 | U103: 0
D104: Reset Cost | F104: =VLOOKUP(r[0]c3,tbl_chemicals[[Name]:[Cost]],MATCH("Cost",tbl_chemicals[#Headers],0),0) | H104: =VLOOKUP(r[0]c3,tbl_chemicals[[Name]:[Cost]],MATCH("Units",tbl_chemicals[#Headers],0),0) | I104: Reset Rate | K104: =VLOOKUP(r[0]c3&"Low",CHOOSE({1,2},tbl_chemicals[Name]&tbl_chemicals[Rainfall],INDIRECT("tbl_chemicals["&var_crop&"]")),2,0) | L104: =(J104*$E104)+IFERROR(VLOOKUP($C104,tbl_chemicals[],MATCH("Adjuvant Cost/ha",tbl_chemicals[#Headers],0),0),0)*(J104<>0) -> 0 | N104: =VLOOKUP(r[0]c3&"Medium",CHOOSE({1,2},tbl_chemicals[Name]&tbl_chemicals[Rainfall],INDIRECT("tbl_chemicals["&var_crop&"]")),2,0) | O104: =(M104*$E104)+IFERROR(VLOOKUP($C104,tbl_chemicals[],MATCH("Adjuvant Cost/ha",tbl_chemicals[#Headers],0),0),0)*(M104<>0) -> 0 | Q104: =VLOOKUP(r[0]c3&"High",CHOOSE({1,2},tbl_chemicals[Name]&tbl_chemicals[Rainfall],INDIRECT("tbl_chemicals["&var_crop&"]")),2,0) | R104: =(P104*$E104)+IFERROR(VLOOKUP($C104,tbl_chemicals[],MATCH("Adjuvant Cost/ha",tbl_chemicals[#Headers],0),0),0)*(P104<>0) -> 0 | U104: 0
D105: Reset Cost | F105: =VLOOKUP(r[0]c3,tbl_chemicals[[Name]:[Cost]],MATCH("Cost",tbl_chemicals[#Headers],0),0) | H105: =VLOOKUP(r[0]c3,tbl_chemicals[[Name]:[Cost]],MATCH("Units",tbl_chemicals[#Headers],0),0) | I105: Reset Rate | K105: =VLOOKUP(r[0]c3&"Low",CHOOSE({1,2},tbl_chemicals[Name]&tbl_chemicals[Rainfall],INDIRECT("tbl_chemicals["&var_crop&"]")),2,0) | L105: =(J105*$E105)+IFERROR(VLOOKUP($C105,tbl_chemicals[],MATCH("Adjuvant Cost/ha",tbl_chemicals[#Headers],0),0),0)*(J105<>0) -> 0 | N105: =VLOOKUP(r[0]c3&"Medium",CHOOSE({1,2},tbl_chemicals[Name]&tbl_chemicals[Rainfall],INDIRECT("tbl_chemicals["&var_crop&"]")),2,0) | O105: =(M105*$E105)+IFERROR(VLOOKUP($C105,tbl_chemicals[],MATCH("Adjuvant Cost/ha",tbl_chemicals[#Headers],0),0),0)*(M105<>0) -> 0 | Q105: =VLOOKUP(r[0]c3&"High",CHOOSE({1,2},tbl_chemicals[Name]&tbl_chemicals[Rainfall],INDIRECT("tbl_chemicals["&var_crop&"]")),2,0) | R105: =(P105*$E105)+IFERROR(VLOOKUP($C105,tbl_chemicals[],MATCH("Adjuvant Cost/ha",tbl_chemicals[#Headers],0),0),0)*(P105<>0) -> 0 | U105: 0
C106: Fungicides
C107: Epoxiconazole 125g/L | D107: Reset Cost | E107: =VLOOKUP($C107,tbl_chemicals[[Name]:[Cost]],MATCH("Cost",tbl_chemicals[#Headers],0),0) -> 17 | F107: =VLOOKUP(r[0]c3,tbl_chemicals[[Name]:[Cost]],MATCH("Cost",tbl_chemicals[#Headers],0),0) | G107: =VLOOKUP($C107,tbl_chemicals[[Name]:[Cost]],MATCH("Units",tbl_chemicals[#Headers],0),0) -> litre | H107: =VLOOKUP(r[0]c3,tbl_chemicals[[Name]:[Cost]],MATCH("Units",tbl_chemicals[#Headers],0),0) | I107: Reset Rate | J107: =VLOOKUP($C107&"Low",CHOOSE({1,2},tbl_chemicals[Name]&tbl_chemicals[Rainfall],INDIRECT("tbl_chemicals["&var_crop&"]")),2,0) -> 0 | K107: =VLOOKUP(r[0]c3&"Low",CHOOSE({1,2},tbl_chemicals[Name]&tbl_chemicals[Rainfall],INDIRECT("tbl_chemicals["&var_crop&"]")),2,0) | L107: =(J107*$E107)+IFERROR(VLOOKUP($C107,tbl_chemicals[],MATCH("Adjuvant Cost/ha",tbl_chemicals[#Headers],0),0),0)*(J107<>0) -> 0 | M107: =VLOOKUP($C107&"Medium",CHOOSE({1,2},tbl_chemicals[Name]&tbl_chemicals[Rainfall],INDIRECT("tbl_chemicals["&var_crop&"]")),2,0) -> 0.25 | N107: =VLOOKUP(r[0]c3&"Medium",CHOOSE({1,2},tbl_chemicals[Name]&tbl_chemicals[Rainfall],INDIRECT("tbl_chemicals["&var_crop&"]")),2,0) | O107: =(M107*$E107)+IFERROR(VLOOKUP($C107,tbl_chemicals[],MATCH("Adjuvant Cost/ha",tbl_chemicals[#Headers],0),0),0)*(M107<>0) -> 4.25 | P107: =VLOOKUP($C107&"High",CHOOSE({1,2},tbl_chemicals[Name]&tbl_chemicals[Rainfall],INDIRECT("tbl_chemicals["&var_crop&"]")),2,0) -> 0.5 | Q107: =VLOOKUP(r[0]c3&"High",CHOOSE({1,2},tbl_chemicals[Name]&tbl_chemicals[Rainfall],INDIRECT("tbl_chemicals["&var_crop&"]")),2,0) | R107: =(P107*$E107)+IFERROR(VLOOKUP($C107,tbl_chemicals[],MATCH("Adjuvant Cost/ha",tbl_chemicals[#Headers],0),0),0)*(P107<>0) -> 8.5 | U107: =$U$6*(IF(rng_rainfall=1,L107,IF(rng_rainfall=2,O107,R107))) -> 0
C108: Flutriafol (on fert) | D108: Reset Cost | E108: =VLOOKUP($C108,tbl_chemicals[[Name]:[Cost]],MATCH("Cost",tbl_chemicals[#Headers],0),0) -> 26 | F108: =VLOOKUP(r[0]c3,tbl_chemicals[[Name]:[Cost]],MATCH("Cost",tbl_chemicals[#Headers],0),0) | G108: =VLOOKUP($C108,tbl_chemicals[[Name]:[Cost]],MATCH("Units",tbl_chemicals[#Headers],0),0) -> litre | H108: =VLOOKUP(r[0]c3,tbl_chemicals[[Name]:[Cost]],MATCH("Units",tbl_chemicals[#Headers],0),0) | I108: Reset Rate | J108: =VLOOKUP($C108&"Low",CHOOSE({1,2},tbl_chemicals[Name]&tbl_chemicals[Rainfall],INDIRECT("tbl_chemicals["&var_crop&"]")),2,0) -> 0.2 | K108: =VLOOKUP(r[0]c3&"Low",CHOOSE({1,2},tbl_chemicals[Name]&tbl_chemicals[Rainfall],INDIRECT("tbl_chemicals["&var_crop&"]")),2,0) | L108: =(J108*$E108)+IFERROR(VLOOKUP($C108,tbl_chemicals[],MATCH("Adjuvant Cost/ha",tbl_chemicals[#Headers],0),0),0)*(J108<>0) -> 5.2 | M108: =VLOOKUP($C108&"Medium",CHOOSE({1,2},tbl_chemicals[Name]&tbl_chemicals[Rainfall],INDIRECT("tbl_chemicals["&var_crop&"]")),2,0) -> 0.2 | N108: =VLOOKUP(r[0]c3&"Medium",CHOOSE({1,2},tbl_chemicals[Name]&tbl_chemicals[Rainfall],INDIRECT("tbl_chemicals["&var_crop&"]")),2,0) | O108: =(M108*$E108)+IFERROR(VLOOKUP($C108,tbl_chemicals[],MATCH("Adjuvant Cost/ha",tbl_chemicals[#Headers],0),0),0)*(M108<>0) -> 5.2 | P108: =VLOOKUP($C108&"High",CHOOSE({1,2},tbl_chemicals[Name]&tbl_chemicals[Rainfall],INDIRECT("tbl_chemicals["&var_crop&"]")),2,0) -> 0.2 | Q108: =VLOOKUP(r[0]c3&"High",CHOOSE({1,2},tbl_chemicals[Name]&tbl_chemicals[Rainfall],INDIRECT("tbl_chemicals["&var_crop&"]")),2,0) | R108: =(P108*$E108)+IFERROR(VLOOKUP($C108,tbl_chemicals[],MATCH("Adjuvant Cost/ha",tbl_chemicals[#Headers],0),0),0)*(P108<>0) -> 5.2 | U108: 0
D109: Reset Cost | F109: =VLOOKUP(r[0]c3,tbl_chemicals[[Name]:[Cost]],MATCH("Cost",tbl_chemicals[#Headers],0),0) | H109: =VLOOKUP(r[0]c3,tbl_chemicals[[Name]:[Cost]],MATCH("Units",tbl_chemicals[#Headers],0),0) | I109: Reset Rate | K109: =VLOOKUP(r[0]c3&"Low",CHOOSE({1,2},tbl_chemicals[Name]&tbl_chemicals[Rainfall],INDIRECT("tbl_chemicals["&var_crop&"]")),2,0) | L109: =(J109*$E109)+IFERROR(VLOOKUP($C109,tbl_chemicals[],MATCH("Adjuvant Cost/ha",tbl_chemicals[#Headers],0),0),0)*(J109<>0) -> 0 | N109: =VLOOKUP(r[0]c3&"Medium",CHOOSE({1,2},tbl_chemicals[Name]&tbl_chemicals[Rainfall],INDIRECT("tbl_chemicals["&var_crop&"]")),2,0) | O109: =(M109*$E109)+IFERROR(VLOOKUP($C109,tbl_chemicals[],MATCH("Adjuvant Cost/ha",tbl_chemicals[#Headers],0),0),0)*(M109<>0) -> 0 | Q109: =VLOOKUP(r[0]c3&"High",CHOOSE({1,2},tbl_chemicals[Name]&tbl_chemicals[Rainfall],INDIRECT("tbl_chemicals["&var_crop&"]")),2,0) | R109: =(P109*$E109)+IFERROR(VLOOKUP($C109,tbl_chemicals[],MATCH("Adjuvant Cost/ha",tbl_chemicals[#Headers],0),0),0)*(P109<>0) -> 0 | U109: 0
D110: Reset Cost | F110: =VLOOKUP(r[0]c3,tbl_chemicals[[Name]:[Cost]],MATCH("Cost",tbl_chemicals[#Headers],0),0) | H110: =VLOOKUP(r[0]c3,tbl_chemicals[[Name]:[Cost]],MATCH("Units",tbl_chemicals[#Headers],0),0) | I110: Reset Rate | K110: =VLOOKUP(r[0]c3&"Low",CHOOSE({1,2},tbl_chemicals[Name]&tbl_chemicals[Rainfall],INDIRECT("tbl_chemicals["&var_crop&"]")),2,0) | L110: =(J110*$E110)+IFERROR(VLOOKUP($C110,tbl_chemicals[],MATCH("Adjuvant Cost/ha",tbl_chemicals[#Headers],0),0),0)*(J110<>0) -> 0 | N110: =VLOOKUP(r[0]c3&"Medium",CHOOSE({1,2},tbl_chemicals[Name]&tbl_chemicals[Rainfall],INDIRECT("tbl_chemicals["&var_crop&"]")),2,0) | O110: =(M110*$E110)+IFERROR(VLOOKUP($C110,tbl_chemicals[],MATCH("Adjuvant Cost/ha",tbl_chemicals[#Headers],0),0),0)*(M110<>0) -> 0 | Q110: =VLOOKUP(r[0]c3&"High",CHOOSE({1,2},tbl_chemicals[Name]&tbl_chemicals[Rainfall],INDIRECT("tbl_chemicals["&var_crop&"]")),2,0) | R110: =(P110*$E110)+IFERROR(VLOOKUP($C110,tbl_chemicals[],MATCH("Adjuvant Cost/ha",tbl_chemicals[#Headers],0),0),0)*(P110<>0) -> 0 | U110: 0
D111: Reset Cost | F111: =VLOOKUP(r[0]c3,tbl_chemicals[[Name]:[Cost]],MATCH("Cost",tbl_chemicals[#Headers],0),0) | H111: =VLOOKUP(r[0]c3,tbl_chemicals[[Name]:[Cost]],MATCH("Units",tbl_chemicals[#Headers],0),0) | I111: Reset Rate | K111: =VLOOKUP(r[0]c3&"Low",CHOOSE({1,2},tbl_chemicals[Name]&tbl_chemicals[Rainfall],INDIRECT("tbl_chemicals["&var_crop&"]")),2,0) | L111: =(J111*$E111)+IFERROR(VLOOKUP($C111,tbl_chemicals[],MATCH("Adjuvant Cost/ha",tbl_chemicals[#Headers],0),0),0)*(J111<>0) -> 0 | N111: =VLOOKUP(r[0]c3&"Medium",CHOOSE({1,2},tbl_chemicals[Name]&tbl_chemicals[Rainfall],INDIRECT("tbl_chemicals["&var_crop&"]")),2,0) | O111: =(M111*$E111)+IFERROR(VLOOKUP($C111,tbl_chemicals[],MATCH("Adjuvant Cost/ha",tbl_chemicals[#Headers],0),0),0)*(M111<>0) -> 0 | Q111: =VLOOKUP(r[0]c3&"High",CHOOSE({1,2},tbl_chemicals[Name]&tbl_chemicals[Rainfall],INDIRECT("tbl_chemicals["&var_crop&"]")),2,0) | R111: =(P111*$E111)+IFERROR(VLOOKUP($C111,tbl_chemicals[],MATCH("Adjuvant Cost/ha",tbl_chemicals[#Headers],0),0),0)*(P111<>0) -> 0 | U111: 0
D112: Reset Cost | F112: =VLOOKUP(r[0]c3,tbl_chemicals[[Name]:[Cost]],MATCH("Cost",tbl_chemicals[#Headers],0),0) | H112: =VLOOKUP(r[0]c3,tbl_chemicals[[Name]:[Cost]],MATCH("Units",tbl_chemicals[#Headers],0),0) | I112: Reset Rate | K112: =VLOOKUP(r[0]c3&"Low",CHOOSE({1,2},tbl_chemicals[Name]&tbl_chemicals[Rainfall],INDIRECT("tbl_chemicals["&var_crop&"]")),2,0) | L112: =(J112*$E112)+IFERROR(VLOOKUP($C112,tbl_chemicals[],MATCH("Adjuvant Cost/ha",tbl_chemicals[#Headers],0),0),0)*(J112<>0) -> 0 | N112: =VLOOKUP(r[0]c3&"Medium",CHOOSE({1,2},tbl_chemicals[Name]&tbl_chemicals[Rainfall],INDIRECT("tbl_chemicals["&var_crop&"]")),2,0) | O112: =(M112*$E112)+IFERROR(VLOOKUP($C112,tbl_chemicals[],MATCH("Adjuvant Cost/ha",tbl_chemicals[#Headers],0),0),0)*(M112<>0) -> 0 | Q112: =VLOOKUP(r[0]c3&"High",CHOOSE({1,2},tbl_chemicals[Name]&tbl_chemicals[Rainfall],INDIRECT("tbl_chemicals["&var_crop&"]")),2,0) | R112: =(P112*$E112)+IFERROR(VLOOKUP($C112,tbl_chemicals[],MATCH("Adjuvant Cost/ha",tbl_chemicals[#Headers],0),0),0)*(P112<>0) -> 0 | U112: 0
D113: Reset Cost | F113: =VLOOKUP(r[0]c3,tbl_chemicals[[Name]:[Cost]],MATCH("Cost",tbl_chemicals[#Headers],0),0) | H113: =VLOOKUP(r[0]c3,tbl_chemicals[[Name]:[Cost]],MATCH("Units",tbl_chemicals[#Headers],0),0) | I113: Reset Rate | K113: =VLOOKUP(r[0]c3&"Low",CHOOSE({1,2},tbl_chemicals[Name]&tbl_chemicals[Rainfall],INDIRECT("tbl_chemicals["&var_crop&"]")),2,0) | L113: =(J113*$E113)+IFERROR(VLOOKUP($C113,tbl_chemicals[],MATCH("Adjuvant Cost/ha",tbl_chemicals[#Headers],0),0),0)*(J113<>0) -> 0 | N113: =VLOOKUP(r[0]c3&"Medium",CHOOSE({1,2},tbl_chemicals[Name]&tbl_chemicals[Rainfall],INDIRECT("tbl_chemicals["&var_crop&"]")),2,0) | O113: =(M113*$E113)+IFERROR(VLOOKUP($C113,tbl_chemicals[],MATCH("Adjuvant Cost/ha",tbl_chemicals[#Headers],0),0),0)*(M113<>0) -> 0 | Q113: =VLOOKUP(r[0]c3&"High",CHOOSE({1,2},tbl_chemicals[Name]&tbl_chemicals[Rainfall],INDIRECT("tbl_chemicals["&var_crop&"]")),2,0) | R113: =(P113*$E113)+IFERROR(VLOOKUP($C113,tbl_chemicals[],MATCH("Adjuvant Cost/ha",tbl_chemicals[#Headers],0),0),0)*(P113<>0) -> 0 | U113: 0
D114: Reset Cost | F114: =VLOOKUP(r[0]c3,tbl_chemicals[[Name]:[Cost]],MATCH("Cost",tbl_chemicals[#Headers],0),0) | H114: =VLOOKUP(r[0]c3,tbl_chemicals[[Name]:[Cost]],MATCH("Units",tbl_chemicals[#Headers],0),0) | I114: Reset Rate | K114: =VLOOKUP(r[0]c3&"Low",CHOOSE({1,2},tbl_chemicals[Name]&tbl_chemicals[Rainfall],INDIRECT("tbl_chemicals["&var_crop&"]")),2,0) | L114: =(J114*$E114)+IFERROR(VLOOKUP($C114,tbl_chemicals[],MATCH("Adjuvant Cost/ha",tbl_chemicals[#Headers],0),0),0)*(J114<>0) -> 0 | N114: =VLOOKUP(r[0]c3&"Medium",CHOOSE({1,2},tbl_chemicals[Name]&tbl_chemicals[Rainfall],INDIRECT("tbl_chemicals["&var_crop&"]")),2,0) | O114: =(M114*$E114)+IFERROR(VLOOKUP($C114,tbl_chemicals[],MATCH("Adjuvant Cost/ha",tbl_chemicals[#Headers],0),0),0)*(M114<>0) -> 0 | Q114: =VLOOKUP(r[0]c3&"High",CHOOSE({1,2},tbl_chemicals[Name]&tbl_chemicals[Rainfall],INDIRECT("tbl_chemicals["&var_crop&"]")),2,0) | R114: =(P114*$E114)+IFERROR(VLOOKUP($C114,tbl_chemicals[],MATCH("Adjuvant Cost/ha",tbl_chemicals[#Headers],0),0),0)*(P114<>0) -> 0 | U114: 0
D115: Reset Cost | F115: =VLOOKUP(r[0]c3,tbl_chemicals[[Name]:[Cost]],MATCH("Cost",tbl_chemicals[#Headers],0),0) | H115: =VLOOKUP(r[0]c3,tbl_chemicals[[Name]:[Cost]],MATCH("Units",tbl_chemicals[#Headers],0),0) | I115: Reset Rate | K115: =VLOOKUP(r[0]c3&"Low",CHOOSE({1,2},tbl_chemicals[Name]&tbl_chemicals[Rainfall],INDIRECT("tbl_chemicals["&var_crop&"]")),2,0) | L115: =(J115*$E115)+IFERROR(VLOOKUP($C115,tbl_chemicals[],MATCH("Adjuvant Cost/ha",tbl_chemicals[#Headers],0),0),0)*(J115<>0) -> 0 | N115: =VLOOKUP(r[0]c3&"Medium",CHOOSE({1,2},tbl_chemicals[Name]&tbl_chemicals[Rainfall],INDIRECT("tbl_chemicals["&var_crop&"]")),2,0) | O115: =(M115*$E115)+IFERROR(VLOOKUP($C115,tbl_chemicals[],MATCH("Adjuvant Cost/ha",tbl_chemicals[#Headers],0),0),0)*(M115<>0) -> 0 | Q115: =VLOOKUP(r[0]c3&"High",CHOOSE({1,2},tbl_chemicals[Name]&tbl_chemicals[Rainfall],INDIRECT("tbl_chemicals["&var_crop&"]")),2,0) | R115: =(P115*$E115)+IFERROR(VLOOKUP($C115,tbl_chemicals[],MATCH("Adjuvant Cost/ha",tbl_chemicals[#Headers],0),0),0)*(P115<>0) -> 0 | U115: 0
D116: Reset Cost | F116: =VLOOKUP(r[0]c3,tbl_chemicals[[Name]:[Cost]],MATCH("Cost",tbl_chemicals[#Headers],0),0) | H116: =VLOOKUP(r[0]c3,tbl_chemicals[[Name]:[Cost]],MATCH("Units",tbl_chemicals[#Headers],0),0) | I116: Reset Rate | K116: =VLOOKUP(r[0]c3&"Low",CHOOSE({1,2},tbl_chemicals[Name]&tbl_chemicals[Rainfall],INDIRECT("tbl_chemicals["&var_crop&"]")),2,0) | L116: =(J116*$E116)+IFERROR(VLOOKUP($C116,tbl_chemicals[],MATCH("Adjuvant Cost/ha",tbl_chemicals[#Headers],0),0),0)*(J116<>0) -> 0 | N116: =VLOOKUP(r[0]c3&"Medium",CHOOSE({1,2},tbl_chemicals[Name]&tbl_chemicals[Rainfall],INDIRECT("tbl_chemicals["&var_crop&"]")),2,0) | O116: =(M116*$E116)+IFERROR(VLOOKUP($C116,tbl_chemicals[],MATCH("Adjuvant Cost/ha",tbl_chemicals[#Headers],0),0),0)*(M116<>0) -> 0 | Q116: =VLOOKUP(r[0]c3&"High",CHOOSE({1,2},tbl_chemicals[Name]&tbl_chemicals[Rainfall],INDIRECT("tbl_chemicals["&var_crop&"]")),2,0) | R116: =(P116*$E116)+IFERROR(VLOOKUP($C116,tbl_chemicals[],MATCH("Adjuvant Cost/ha",tbl_chemicals[#Headers],0),0),0)*(P116<>0) -> 0 | U116: 0
D117: Reset Cost | F117: =VLOOKUP(r[0]c3,tbl_chemicals[[Name]:[Cost]],MATCH("Cost",tbl_chemicals[#Headers],0),0) | H117: =VLOOKUP(r[0]c3,tbl_chemicals[[Name]:[Cost]],MATCH("Units",tbl_chemicals[#Headers],0),0) | I117: Reset Rate | K117: =VLOOKUP(r[0]c3&"Low",CHOOSE({1,2},tbl_chemicals[Name]&tbl_chemicals[Rainfall],INDIRECT("tbl_chemicals["&var_crop&"]")),2,0) | L117: =(J117*$E117)+IFERROR(VLOOKUP($C117,tbl_chemicals[],MATCH("Adjuvant Cost/ha",tbl_chemicals[#Headers],0),0),0)*(J117<>0) -> 0 | N117: =VLOOKUP(r[0]c3&"Medium",CHOOSE({1,2},tbl_chemicals[Name]&tbl_chemicals[Rainfall],INDIRECT("tbl_chemicals["&var_crop&"]")),2,0) | O117: =(M117*$E117)+IFERROR(VLOOKUP($C117,tbl_chemicals[],MATCH("Adjuvant Cost/ha",tbl_chemicals[#Headers],0),0),0)*(M117<>0) -> 0 | Q117: =VLOOKUP(r[0]c3&"High",CHOOSE({1,2},tbl_chemicals[Name]&tbl_chemicals[Rainfall],INDIRECT("tbl_chemicals["&var_crop&"]")),2,0) | R117: =(P117*$E117)+IFERROR(VLOOKUP($C117,tbl_chemicals[],MATCH("Adjuvant Cost/ha",tbl_chemicals[#Headers],0),0),0)*(P117<>0) -> 0 | U117: 0
D118: Reset Cost | F118: =VLOOKUP(r[0]c3,tbl_chemicals[[Name]:[Cost]],MATCH("Cost",tbl_chemicals[#Headers],0),0) | H118: =VLOOKUP(r[0]c3,tbl_chemicals[[Name]:[Cost]],MATCH("Units",tbl_chemicals[#Headers],0),0) | I118: Reset Rate | K118: =VLOOKUP(r[0]c3&"Low",CHOOSE({1,2},tbl_chemicals[Name]&tbl_chemicals[Rainfall],INDIRECT("tbl_chemicals["&var_crop&"]")),2,0) | L118: =(J118*$E118)+IFERROR(VLOOKUP($C118,tbl_chemicals[],MATCH("Adjuvant Cost/ha",tbl_chemicals[#Headers],0),0),0)*(J118<>0) -> 0 | N118: =VLOOKUP(r[0]c3&"Medium",CHOOSE({1,2},tbl_chemicals[Name]&tbl_chemicals[Rainfall],INDIRECT("tbl_chemicals["&var_crop&"]")),2,0) | O118: =(M118*$E118)+IFERROR(VLOOKUP($C118,tbl_chemicals[],MATCH("Adjuvant Cost/ha",tbl_chemicals[#Headers],0),0),0)*(M118<>0) -> 0 | Q118: =VLOOKUP(r[0]c3&"High",CHOOSE({1,2},tbl_chemicals[Name]&tbl_chemicals[Rainfall],INDIRECT("tbl_chemicals["&var_crop&"]")),2,0) | R118: =(P118*$E118)+IFERROR(VLOOKUP($C118,tbl_chemicals[],MATCH("Adjuvant Cost/ha",tbl_chemicals[#Headers],0),0),0)*(P118<>0) -> 0 | U118: 0
D119: Reset Cost | F119: =VLOOKUP(r[0]c3,tbl_chemicals[[Name]:[Cost]],MATCH("Cost",tbl_chemicals[#Headers],0),0) | H119: =VLOOKUP(r[0]c3,tbl_chemicals[[Name]:[Cost]],MATCH("Units",tbl_chemicals[#Headers],0),0) | I119: Reset Rate | K119: =VLOOKUP(r[0]c3&"Low",CHOOSE({1,2},tbl_chemicals[Name]&tbl_chemicals[Rainfall],INDIRECT("tbl_chemicals["&var_crop&"]")),2,0) | L119: =(J119*$E119)+IFERROR(VLOOKUP($C119,tbl_chemicals[],MATCH("Adjuvant Cost/ha",tbl_chemicals[#Headers],0),0),0)*(J119<>0) -> 0 | N119: =VLOOKUP(r[0]c3&"Medium",CHOOSE({1,2},tbl_chemicals[Name]&tbl_chemicals[Rainfall],INDIRECT("tbl_chemicals["&var_crop&"]")),2,0) | O119: =(M119*$E119)+IFERROR(VLOOKUP($C119,tbl_chemicals[],MATCH("Adjuvant Cost/ha",tbl_chemicals[#Headers],0),0),0)*(M119<>0) -> 0 | Q119: =VLOOKUP(r[0]c3&"High",CHOOSE({1,2},tbl_chemicals[Name]&tbl_chemicals[Rainfall],INDIRECT("tbl_chemicals["&var_crop&"]")),2,0) | R119: =(P119*$E119)+IFERROR(VLOOKUP($C119,tbl_chemicals[],MATCH("Adjuvant Cost/ha",tbl_chemicals[#Headers],0),0),0)*(P119<>0) -> 0 | U119: 0
D120: Reset Cost | F120: =VLOOKUP(r[0]c3,tbl_chemicals[[Name]:[Cost]],MATCH("Cost",tbl_chemicals[#Headers],0),0) | H120: =VLOOKUP(r[0]c3,tbl_chemicals[[Name]:[Cost]],MATCH("Units",tbl_chemicals[#Headers],0),0) | I120: Reset Rate | K120: =VLOOKUP(r[0]c3&"Low",CHOOSE({1,2},tbl_chemicals[Name]&tbl_chemicals[Rainfall],INDIRECT("tbl_chemicals["&var_crop&"]")),2,0) | L120: =(J120*$E120)+IFERROR(VLOOKUP($C120,tbl_chemicals[],MATCH("Adjuvant Cost/ha",tbl_chemicals[#Headers],0),0),0)*(J120<>0) -> 0 | N120: =VLOOKUP(r[0]c3&"Medium",CHOOSE({1,2},tbl_chemicals[Name]&tbl_chemicals[Rainfall],INDIRECT("tbl_chemicals["&var_crop&"]")),2,0) | O120: =(M120*$E120)+IFERROR(VLOOKUP($C120,tbl_chemicals[],MATCH("Adjuvant Cost/ha",tbl_chemicals[#Headers],0),0),0)*(M120<>0) -> 0 | Q120: =VLOOKUP(r[0]c3&"High",CHOOSE({1,2},tbl_chemicals[Name]&tbl_chemicals[Rainfall],INDIRECT("tbl_chemicals["&var_crop&"]")),2,0) | R120: =(P120*$E120)+IFERROR(VLOOKUP($C120,tbl_chemicals[],MATCH("Adjuvant Cost/ha",tbl_chemicals[#Headers],0),0),0)*(P120<>0) -> 0 | U120: 0
D121: Reset Cost | F121: =VLOOKUP(r[0]c3,tbl_chemicals[[Name]:[Cost]],MATCH("Cost",tbl_chemicals[#Headers],0),0) | H121: =VLOOKUP(r[0]c3,tbl_chemicals[[Name]:[Cost]],MATCH("Units",tbl_chemicals[#Headers],0),0) | I121: Reset Rate | K121: =VLOOKUP(r[0]c3&"Low",CHOOSE({1,2},tbl_chemicals[Name]&tbl_chemicals[Rainfall],INDIRECT("tbl_chemicals["&var_crop&"]")),2,0) | L121: =(J121*$E121)+IFERROR(VLOOKUP($C121,tbl_chemicals[],MATCH("Adjuvant Cost/ha",tbl_chemicals[#Headers],0),0),0)*(J121<>0) -> 0 | N121: =VLOOKUP(r[0]c3&"Medium",CHOOSE({1,2},tbl_chemicals[Name]&tbl_chemicals[Rainfall],INDIRECT("tbl_chemicals["&var_crop&"]")),2,0) | O121: =(M121*$E121)+IFERROR(VLOOKUP($C121,tbl_chemicals[],MATCH("Adjuvant Cost/ha",tbl_chemicals[#Headers],0),0),0)*(M121<>0) -> 0 | Q121: =VLOOKUP(r[0]c3&"High",CHOOSE({1,2},tbl_chemicals[Name]&tbl_chemicals[Rainfall],INDIRECT("tbl_chemicals["&var_crop&"]")),2,0) | R121: =(P121*$E121)+IFERROR(VLOOKUP($C121,tbl_chemicals[],MATCH("Adjuvant Cost/ha",tbl_chemicals[#Headers],0),0),0)*(P121<>0) -> 0 | U121: 0
C123: Other
F124: =VLOOKUP(r[0]c3,tbl_chemicals[[Name]:[Cost]],MATCH("Cost",tbl_chemicals[#Headers],0),0) | H124: =VLOOKUP(r[0]c3,tbl_chemicals[[Name]:[Cost]],MATCH("Units",tbl_chemicals[#Headers],0),0) | K124: =VLOOKUP(r[0]c3&"Low",CHOOSE({1,2},tbl_chemicals[Name]&tbl_chemicals[Rainfall],INDIRECT("tbl_chemicals["&var_crop&"]")),2,0) | L124: =(J124*$E124)+IFERROR(VLOOKUP($C124,tbl_chemicals[],MATCH("Adjuvant Cost/ha",tbl_chemicals[#Headers],0),0),0)*(J124<>0) -> 0 | N124: =VLOOKUP(r[0]c3&"Medium",CHOOSE({1,2},tbl_chemicals[Name]&tbl_chemicals[Rainfall],INDIRECT("tbl_chemicals["&var_crop&"]")),2,0) | O124: =(M124*$E124)+IFERROR(VLOOKUP($C124,tbl_chemicals[],MATCH("Adjuvant Cost/ha",tbl_chemicals[#Headers],0),0),0)*(M124<>0) -> 0 | Q124: =VLOOKUP(r[0]c3&"High",CHOOSE({1,2},tbl_chemicals[Name]&tbl_chemicals[Rainfall],INDIRECT("tbl_chemicals["&var_crop&"]")),2,0) | R124: =(P124*$E124)+IFERROR(VLOOKUP($C124,tbl_chemicals[],MATCH("Adjuvant Cost/ha",tbl_chemicals[#Headers],0),0),0)*(P124<>0) -> 0 | U124: =$U$6*(IF(rng_rainfall=1,L124,IF(rng_rainfall=2,O124,R124))) -> 0
F125: =VLOOKUP(r[0]c3,tbl_chemicals[[Name]:[Cost]],MATCH("Cost",tbl_chemicals[#Headers],0),0) | H125: =VLOOKUP(r[0]c3,tbl_chemicals[[Name]:[Cost]],MATCH("Units",tbl_chemicals[#Headers],0),0) | K125: =VLOOKUP(r[0]c3&"Low",CHOOSE({1,2},tbl_chemicals[Name]&tbl_chemicals[Rainfall],INDIRECT("tbl_chemicals["&var_crop&"]")),2,0) | L125: =(J125*$E125)+IFERROR(VLOOKUP($C125,tbl_chemicals[],MATCH("Adjuvant Cost/ha",tbl_chemicals[#Headers],0),0),0)*(J125<>0) -> 0 | N125: =VLOOKUP(r[0]c3&"Medium",CHOOSE({1,2},tbl_chemicals[Name]&tbl_chemicals[Rainfall],INDIRECT("tbl_chemicals["&var_crop&"]")),2,0) | O125: =(M125*$E125)+IFERROR(VLOOKUP($C125,tbl_chemicals[],MATCH("Adjuvant Cost/ha",tbl_chemicals[#Headers],0),0),0)*(M125<>0) -> 0 | Q125: =VLOOKUP(r[0]c3&"High",CHOOSE({1,2},tbl_chemicals[Name]&tbl_chemicals[Rainfall],INDIRECT("tbl_chemicals["&var_crop&"]")),2,0) | R125: =(P125*$E125)+IFERROR(VLOOKUP($C125,tbl_chemicals[],MATCH("Adjuvant Cost/ha",tbl_chemicals[#Headers],0),0),0)*(P125<>0) -> 0 | U125: =$U$6*(IF(rng_rainfall=1,L125,IF(rng_rainfall=2,O125,R125))) -> 0
F126: =VLOOKUP(r[0]c3,tbl_chemicals[[Name]:[Cost]],MATCH("Cost",tbl_chemicals[#Headers],0),0) | H126: =VLOOKUP(r[0]c3,tbl_chemicals[[Name]:[Cost]],MATCH("Units",tbl_chemicals[#Headers],0),0) | K126: =VLOOKUP(r[0]c3&"Low",CHOOSE({1,2},tbl_chemicals[Name]&tbl_chemicals[Rainfall],INDIRECT("tbl_chemicals["&var_crop&"]")),2,0) | L126: =(J126*$E126)+IFERROR(VLOOKUP($C126,tbl_chemicals[],MATCH("Adjuvant Cost/ha",tbl_chemicals[#Headers],0),0),0)*(J126<>0) -> 0 | N126: =VLOOKUP(r[0]c3&"Medium",CHOOSE({1,2},tbl_chemicals[Name]&tbl_chemicals[Rainfall],INDIRECT("tbl_chemicals["&var_crop&"]")),2,0) | O126: =(M126*$E126)+IFERROR(VLOOKUP($C126,tbl_chemicals[],MATCH("Adjuvant Cost/ha",tbl_chemicals[#Headers],0),0),0)*(M126<>0) -> 0 | Q126: =VLOOKUP(r[0]c3&"High",CHOOSE({1,2},tbl_chemicals[Name]&tbl_chemicals[Rainfall],INDIRECT("tbl_chemicals["&var_crop&"]")),2,0) | R126: =(P126*$E126)+IFERROR(VLOOKUP($C126,tbl_chemicals[],MATCH("Adjuvant Cost/ha",tbl_chemicals[#Headers],0),0),0)*(P126<>0) -> 0 | U126: =$U$6*(IF(rng_rainfall=1,L126,IF(rng_rainfall=2,O126,R126))) -> 0
F127: =VLOOKUP(r[0]c3,tbl_chemicals[[Name]:[Cost]],MATCH("Cost",tbl_chemicals[#Headers],0),0) | H127: =VLOOKUP(r[0]c3,tbl_chemicals[[Name]:[Cost]],MATCH("Units",tbl_chemicals[#Headers],0),0) | K127: =VLOOKUP(r[0]c3&"Low",CHOOSE({1,2},tbl_chemicals[Name]&tbl_chemicals[Rainfall],INDIRECT("tbl_chemicals["&var_crop&"]")),2,0) | L127: =(J127*$E127)+IFERROR(VLOOKUP($C127,tbl_chemicals[],MATCH("Adjuvant Cost/ha",tbl_chemicals[#Headers],0),0),0)*(J127<>0) -> 0 | N127: =VLOOKUP(r[0]c3&"Medium",CHOOSE({1,2},tbl_chemicals[Name]&tbl_chemicals[Rainfall],INDIRECT("tbl_chemicals["&var_crop&"]")),2,0) | O127: =(M127*$E127)+IFERROR(VLOOKUP($C127,tbl_chemicals[],MATCH("Adjuvant Cost/ha",tbl_chemicals[#Headers],0),0),0)*(M127<>0) -> 0 | Q127: =VLOOKUP(r[0]c3&"High",CHOOSE({1,2},tbl_chemicals[Name]&tbl_chemicals[Rainfall],INDIRECT("tbl_chemicals["&var_crop&"]")),2,0) | R127: =(P127*$E127)+IFERROR(VLOOKUP($C127,tbl_chemicals[],MATCH("Adjuvant Cost/ha",tbl_chemicals[#Headers],0),0),0)*(P127<>0) -> 0 | U127: =$U$6*(IF(rng_rainfall=1,L127,IF(rng_rainfall=2,O127,R127))) -> 0
D128: * Some chemicals require adjuvants. The cost of these is allowed for in the $/ha column.
C131: Operations | E131: Cost | G131: Unit | J131: Rate/ha | L131: $/ha | M131: Rate/ha | O131: $/ha | P131: Rate/ha | R131: $/ha | U131: $
C132: Fuel & Oil | I132: Reset $/ha | L132: =VLOOKUP($C132&"Low",CHOOSE({1,2},tbl_ops[Name]&tbl_ops[Rainfall],INDIRECT("tbl_ops["&var_crop&"]")),2,0)*(rng_machinery=2) -> 0 | M132: =VLOOKUP(r[0]c3&"Low",CHOOSE({1,2},tbl_ops[Name]&tbl_ops[Rainfall],INDIRECT("tbl_ops["&var_crop&"]")),2,0)*(rng_machinery=2) | O132: =VLOOKUP($C132&"Medium",CHOOSE({1,2},tbl_ops[Name]&tbl_ops[Rainfall],INDIRECT("tbl_ops["&var_crop&"]")),2,0)*(rng_machinery=2) -> 0 | P132: =VLOOKUP(r[0]c3&"Medium",CHOOSE({1,2},tbl_ops[Name]&tbl_ops[Rainfall],INDIRECT("tbl_ops["&var_crop&"]")),2,0)*(rng_machinery=2) | R132: =VLOOKUP($C132&"High",CHOOSE({1,2},tbl_ops[Name]&tbl_ops[Rainfall],INDIRECT("tbl_ops["&var_crop&"]")),2,0)*(rng_machinery=2) -> 0 | S132: =VLOOKUP(r[0]c3&"High",CHOOSE({1,2},tbl_ops[Name]&tbl_ops[Rainfall],INDIRECT("tbl_ops["&var_crop&"]")),2,0)*(rng_machinery=2) | U132: =$U$6*(IF(rng_rainfall=1,L132,IF(rng_rainfall=2,O132,R132))) -> 0
C133: Repairs & Maintenance | I133: Reset $/ha | L133: =VLOOKUP($C133&"Low",CHOOSE({1,2},tbl_ops[Name]&tbl_ops[Rainfall],INDIRECT("tbl_ops["&var_crop&"]")),2,0)*(rng_machinery=2) -> 0 | M133: =VLOOKUP(r[0]c3&"Low",CHOOSE({1,2},tbl_ops[Name]&tbl_ops[Rainfall],INDIRECT("tbl_ops["&var_crop&"]")),2,0)*(rng_machinery=2) | O133: =VLOOKUP($C133&"Medium",CHOOSE({1,2},tbl_ops[Name]&tbl_ops[Rainfall],INDIRECT("tbl_ops["&var_crop&"]")),2,0)*(rng_machinery=2) -> 0 | P133: =VLOOKUP(r[0]c3&"Medium",CHOOSE({1,2},tbl_ops[Name]&tbl_ops[Rainfall],INDIRECT("tbl_ops["&var_crop&"]")),2,0)*(rng_machinery=2) | R133: =VLOOKUP($C133&"High",CHOOSE({1,2},tbl_ops[Name]&tbl_ops[Rainfall],INDIRECT("tbl_ops["&var_crop&"]")),2,0)*(rng_machinery=2) -> 0 | S133: =VLOOKUP(r[0]c3&"High",CHOOSE({1,2},tbl_ops[Name]&tbl_ops[Rainfall],INDIRECT("tbl_ops["&var_crop&"]")),2,0)*(rng_machinery=2) | U133: =$U$6*(IF(rng_rainfall=1,L133,IF(rng_rainfall=2,O133,R133))) -> 0
C135: Freight
C136: Grain (t) | D136: Reset Cost | E136: =VLOOKUP($C136,tbl_ops[],MATCH(var_crop,tbl_ops[#Headers],0),0) -> 20 | F136: =VLOOKUP(R[0]C3,tbl_ops,MATCH(var_crop,tbl_ops[#Headers],0),0) | G136: =VLOOKUP($C136,tbl_ops[],MATCH("Unit",tbl_ops[#Headers],0),0) -> tonne | H136: =VLOOKUP(r[0]c3,tbl_ops,match("Unit",tbl_ops[#Headers],0),0) | I136: Reset Rate | J136: =L10 -> 1.5 | K136: =L10 | L136: =J136*E136 -> 30 | M136: =O10 -> 2.7 | N136: =O10 | O136: =M136*E136 -> 54 | P136: =R10 -> 4 | Q136: =R10 | R136: =P136*E136 -> 80 | S136: =P136*E136 | U136: =$U$6*(IF(rng_rainfall=1,L136,IF(rng_rainfall=2,O136,R136))) -> 0
C137: Fertiliser (t) | D137: Reset Cost | E137: =VLOOKUP($C137,tbl_ops[],MATCH(var_crop,tbl_ops[#Headers],0),0) -> 20 | F137: =VLOOKUP(R[0]C3,tbl_ops,MATCH(var_crop,tbl_ops[#Headers],0),0) | G137: =VLOOKUP($C137,tbl_ops[],MATCH("Unit",tbl_ops[#Headers],0),0) -> tonne | H137: =VLOOKUP(r[0]c3,tbl_ops,match("Unit",tbl_ops[#Headers],0),0) | I137: Reset Rate | J137: =SUM(J38:J52)/1000 -> 0.04 | K137: =SUM(J38:J52)/1000 | L137: =J137*E137 -> 0.8 | M137: =SUM(M38:M52)/1000 -> 0.14 | N137: =SUM(M38:M52)/1000 | O137: =M137*E137 -> 2.8 | P137: =SUM(P38:P52)/1000 -> 0.24 | Q137: =SUM(P38:P52)/1000 | R137: =P137*E137 -> 4.8 | S137: =P137*E137 | U137: =$U$6*(IF(rng_rainfall=1,L137,IF(rng_rainfall=2,O137,R137))) -> 0
C139: Operations: | D139: No of Operations
B140: =VLOOKUP(r[0]c3&"No Ops",CHOOSE({1,2},tbl_ops[Name]&tbl_ops[Category],INDIRECT("tbl_ops["&var_crop&"]")),2,0) | C140: Seeding | D140: =VLOOKUP($C140&"No Ops",CHOOSE({1,2},tbl_ops[Name]&tbl_ops[Category],INDIRECT("tbl_ops["&var_crop&"]")),2,0) -> 1 | E140: =VLOOKUP($C140&var_rain,CHOOSE({1,2},tbl_ops[Name]&tbl_ops[Rainfall],tbl_ops[Cost]),2,0)*(rng_machinery=1) ->  | F140: =VLOOKUP(r[0]c3&var_rain,CHOOSE({1,2},tbl_ops[Name]&tbl_ops[Rainfall],tbl_ops[Cost]),2,0)*(rng_machinery=1) | G140: =VLOOKUP($C140,tbl_ops[],MATCH("Unit",tbl_ops[#Headers],0),0) -> $/ha | H140: =VLOOKUP(r[0]c3,tbl_ops,match("Unit",tbl_ops[#Headers],0),0) | I140: <--Reset Cost/No | J140: =D140 -> 1 | L140: =J140*E140 ->  | M140: =D140 -> 1 | O140: =M140*E140 ->  | P140: =D140 -> 1 | R140: =P140*E140 ->  | U140: =$U$6*(IF(rng_rainfall=1,L140,IF(rng_rainfall=2,O140,R140))) -> 
B141: =VLOOKUP(r[0]c3&"No Ops",CHOOSE({1,2},tbl_ops[Name]&tbl_ops[Category],INDIRECT("tbl_ops["&var_crop&"]")),2,0) | C141: Spraying | D141: =VLOOKUP($C141&"No Ops",CHOOSE({1,2},tbl_ops[Name]&tbl_ops[Category],INDIRECT("tbl_ops["&var_crop&"]")),2,0) -> 4 | E141: =VLOOKUP($C141&var_rain,CHOOSE({1,2},tbl_ops[Name]&tbl_ops[Rainfall],tbl_ops[Cost]),2,0)*(rng_machinery=1) ->  | F141: =VLOOKUP(r[0]c3&var_rain,CHOOSE({1,2},tbl_ops[Name]&tbl_ops[Rainfall],tbl_ops[Cost]),2,0)*(rng_machinery=1) | G141: =VLOOKUP($C141,tbl_ops[],MATCH("Unit",tbl_ops[#Headers],0),0) -> $/ha | H141: =VLOOKUP(r[0]c3,tbl_ops,match("Unit",tbl_ops[#Headers],0),0) | I141: <--Reset Cost/No | J141: 4 | M141: =D141 -> 4 | O141: =M141*E141 ->  | P141: =D141 -> 4
B142: =VLOOKUP(r[0]c3&"No Ops",CHOOSE({1,2},tbl_ops[Name]&tbl_ops[Category],INDIRECT("tbl_ops["&var_crop&"]")),2,0) | C142: Harvest | D142: =VLOOKUP($C142&"No Ops",CHOOSE({1,2},tbl_ops[Name]&tbl_ops[Category],INDIRECT("tbl_ops["&var_crop&"]")),2,0) -> 1 | E142: =VLOOKUP($C142&"Low",CHOOSE({1,2},tbl_ops[Name]&tbl_ops[Rainfall],INDIRECT("tbl_ops["&var_crop&"]")),2,0)*(rng_machinery=1) -> 0 | F142: =VLOOKUP(r[0]c3&"Low",CHOOSE({1,2},tbl_ops[Name]&tbl_ops[Rainfall],INDIRECT("tbl_ops["&var_crop&"]")),2,0)*(rng_machinery=1) | G142: =VLOOKUP($C142,tbl_ops[],MATCH("Unit",tbl_ops[#Headers],0),0) -> $/ha | H142: =VLOOKUP(r[0]c3,tbl_ops,match("Unit",tbl_ops[#Headers],0),0) | I142: <--Reset Cost/No | J142: 1 | L142: 0 | M142: =D142 -> 1 | O142: =M142*E142 -> 0 | P142: =D142 -> 1 | R142: 0 | U142: 0
B143: =VLOOKUP(r[0]c3&"No Ops",CHOOSE({1,2},tbl_ops[Name]&tbl_ops[Category],INDIRECT("tbl_ops["&var_crop&"]")),2,0) | C143: dummy | D143: =VLOOKUP($C143&"No Ops",CHOOSE({1,2},tbl_ops[Name]&tbl_ops[Category],INDIRECT("tbl_ops["&var_crop&"]")),2,0) -> 0 | E143: =VLOOKUP($C143&var_rain,CHOOSE({1,2},tbl_ops[Name]&tbl_ops[Rainfall],tbl_ops[Cost]),2,0)*(rng_machinery=1) ->  | F143: =VLOOKUP(r[0]c3&var_rain,CHOOSE({1,2},tbl_ops[Name]&tbl_ops[Rainfall],tbl_ops[Cost]),2,0)*(rng_machinery=1) | G143: =VLOOKUP($C143,tbl_ops[],MATCH("Unit",tbl_ops[#Headers],0),0) -> 0 | H143: =VLOOKUP(r[0]c3,tbl_ops,match("Unit",tbl_ops[#Headers],0),0) | I143: <--Reset Cost/No | J143: 0 | M143: =D143 -> 0 | O143: =M143*E143 ->  | P143: =D143 -> 0 | R143: =P143*E143 ->  | U143: =$U$6*(IF(rng_rainfall=1,L143,IF(rng_rainfall=2,O143,R143))) -> 
B144: =VLOOKUP(r[0]c3&"No Ops",CHOOSE({1,2},tbl_ops[Name]&tbl_ops[Category],INDIRECT("tbl_ops["&var_crop&"]")),2,0) | C144: dummy | D144: =VLOOKUP($C144&"No Ops",CHOOSE({1,2},tbl_ops[Name]&tbl_ops[Category],INDIRECT("tbl_ops["&var_crop&"]")),2,0) -> 0 | E144: =VLOOKUP($C144&var_rain,CHOOSE({1,2},tbl_ops[Name]&tbl_ops[Rainfall],tbl_ops[Cost]),2,0)*(rng_machinery=1) ->  | F144: =VLOOKUP(r[0]c3&var_rain,CHOOSE({1,2},tbl_ops[Name]&tbl_ops[Rainfall],tbl_ops[Cost]),2,0)*(rng_machinery=1) | G144: =VLOOKUP($C144,tbl_ops[],MATCH("Unit",tbl_ops[#Headers],0),0) -> 0 | H144: =VLOOKUP(r[0]c3,tbl_ops,match("Unit",tbl_ops[#Headers],0),0) | I144: <--Reset Cost/No | J144: 0 | M144: 0 | P144: 0
B145: =VLOOKUP(r[0]c3&var_rain,CHOOSE({1,2},tbl_ops[Name]&tbl_ops[Rainfall],INDIRECT("tbl_ops["&var_crop&"]")),2,0) | C145: Aerial spraying | D145: =VLOOKUP($C145&var_rain,CHOOSE({1,2},tbl_ops[Name]&tbl_ops[Rainfall],INDIRECT("tbl_ops["&var_crop&"]")),2,0) ->  | E145: =VLOOKUP($C145&var_rain,CHOOSE({1,2},tbl_ops[Name]&tbl_ops[Rainfall],tbl_ops[Cost]),2,0) ->  | F145: =VLOOKUP(r[0]c3&var_rain,CHOOSE({1,2},tbl_ops[Name]&tbl_ops[Rainfall],tbl_ops[Cost]),2,0) | G145: =VLOOKUP($C145,tbl_ops[],MATCH("Unit",tbl_ops[#Headers],0),0) -> $/ha | H145: =VLOOKUP(r[0]c3,tbl_ops,match("Unit",tbl_ops[#Headers],0),0) | I145: <--Reset Cost/No | M145: =D145 ->  | O145: =M145*E145 ->  | P145: =D145 ->  | R145: =P145*E145 -> 
B146: =VLOOKUP(r[0]c3&var_rain,CHOOSE({1,2},tbl_ops[Name]&tbl_ops[Rainfall],INDIRECT("tbl_ops["&var_crop&"]")),2,0) | C146: Urea Spreading | D146: =VLOOKUP($C146&var_rain,CHOOSE({1,2},tbl_ops[Name]&tbl_ops[Rainfall],INDIRECT("tbl_ops["&var_crop&"]")),2,0) ->  | E146: =VLOOKUP($C146&var_rain,CHOOSE({1,2},tbl_ops[Name]&tbl_ops[Rainfall],tbl_ops[Cost]),2,0) ->  | F146: =VLOOKUP(r[0]c3&var_rain,CHOOSE({1,2},tbl_ops[Name]&tbl_ops[Rainfall],tbl_ops[Cost]),2,0) | G146: =VLOOKUP($C146,tbl_ops[],MATCH("Unit",tbl_ops[#Headers],0),0) -> $/ha | H146: =VLOOKUP(r[0]c3,tbl_ops,match("Unit",tbl_ops[#Headers],0),0) | I146: <--Reset Cost/No | J146: =D146 ->  | L146: =J146*E146 ->  | M146: =D146 ->  | O146: =M146*E146 ->  | P146: =D146 ->  | R146: =P146*E146 -> 
B147: =VLOOKUP(r[0]c3&var_rain,CHOOSE({1,2},tbl_ops[Name]&tbl_ops[Rainfall],INDIRECT("tbl_ops["&var_crop&"]")),2,0) | C147: dummy | D147: =VLOOKUP($C147&var_rain,CHOOSE({1,2},tbl_ops[Name]&tbl_ops[Rainfall],INDIRECT("tbl_ops["&var_crop&"]")),2,0) ->  | E147: =VLOOKUP($C147&var_rain,CHOOSE({1,2},tbl_ops[Name]&tbl_ops[Rainfall],tbl_ops[Cost]),2,0) ->  | F147: =VLOOKUP(r[0]c3&var_rain,CHOOSE({1,2},tbl_ops[Name]&tbl_ops[Rainfall],tbl_ops[Cost]),2,0) | G147: =VLOOKUP($C147,tbl_ops[],MATCH("Unit",tbl_ops[#Headers],0),0) -> 0 | H147: =VLOOKUP(r[0]c3,tbl_ops,match("Unit",tbl_ops[#Headers],0),0) | I147: <--Reset Cost/No
B148: =VLOOKUP(r[0]c3&var_rain,CHOOSE({1,2},tbl_ops[Name]&tbl_ops[Rainfall],INDIRECT("tbl_ops["&var_crop&"]")),2,0) | C148: dummy | D148: =VLOOKUP($C148&var_rain,CHOOSE({1,2},tbl_ops[Name]&tbl_ops[Rainfall],INDIRECT("tbl_ops["&var_crop&"]")),2,0) ->  | E148: =VLOOKUP($C148&var_rain,CHOOSE({1,2},tbl_ops[Name]&tbl_ops[Rainfall],tbl_ops[Cost]),2,0) ->  | F148: =VLOOKUP(r[0]c3&var_rain,CHOOSE({1,2},tbl_ops[Name]&tbl_ops[Rainfall],tbl_ops[Cost]),2,0) | G148: =VLOOKUP($C148,tbl_ops[],MATCH("Unit",tbl_ops[#Headers],0),0) -> 0 | H148: =VLOOKUP(r[0]c3,tbl_ops,match("Unit",tbl_ops[#Headers],0),0) | I148: <--Reset Cost/No
J149: =D149 -> 0 | L149: =J149*E149 -> 0 | M149: =D149 -> 0 | O149: =M149*E149 -> 0 | P149: =D149 -> 0 | R149: =P149*E149 -> 0 | U149: 0
J150: =D150 -> 0 | L150: =J150*E150 -> 0 | M150: =D150 -> 0 | O150: =M150*E150 -> 0 | P150: =D150 -> 0 | R150: =P150*E150 -> 0 | U150: 0
C151: Insurance | E151: =VLOOKUP($C151,tbl_ops[],MATCH(var_crop,tbl_ops[#Headers],0),0) -> 8.5 | F151: =VLOOKUP(r[0]c3,tbl_ops,MATCH(var_crop,tbl_ops[#Headers],0),0) | G151: =VLOOKUP($C151,tbl_ops[],MATCH("Unit",tbl_ops[#Headers],0),0) -> $/$1000 | H151: =VLOOKUP(r[0]c3,tbl_ops,match("Unit",tbl_ops[#Headers],0),0) | I151: <--Reset Cost | L151: =L11/1000*$E151 -> 3.12375 | O151: =O11/1000*$E151 -> 5.62275 | R151: =R11/1000*$E151 -> 8.33 | U151: 0
C152: Other | D152: No of Operations
J153: =D153 -> 0 | L153: =J153*E153 -> 0 | M153: =D153 -> 0 | O153: =M153*E153 -> 0 | P153: =D153 -> 0 | R153: =P153*E153 -> 0 | U153: =$U$6*(IF(rng_rainfall=1,L153,IF(rng_rainfall=2,O153,R153))) -> 0
J154: =D154 -> 0 | L154: =J154*E154 -> 0 | M154: =D154 -> 0 | O154: =M154*E154 -> 0 | P154: =D154 -> 0 | R154: =P154*E154 -> 0 | U154: =$U$6*(IF(rng_rainfall=1,L154,IF(rng_rainfall=2,O154,R154))) -> 0
J155: =D155 -> 0 | L155: =J155*E155 -> 0 | M155: =D155 -> 0 | O155: =M155*E155 -> 0 | P155: =D155 -> 0 | R155: =P155*E155 -> 0 | U155: =$U$6*(IF(rng_rainfall=1,L155,IF(rng_rainfall=2,O155,R155))) -> 0
J156: =D156 -> 0 | L156: =J156*E156 -> 0 | M156: =D156 -> 0 | O156: =M156*E156 -> 0 | P156: =D156 -> 0 | R156: =P156*E156 -> 0 | U156: =$U$6*(IF(rng_rainfall=1,L156,IF(rng_rainfall=2,O156,R156))) -> 0
C160: TOTAL VARIABLE COSTS | L160: =SUM(SUMIF(L15:L157,{"<0",">0"})) -> 162.14995 | O160: =SUM(SUMIF(O15:O157,{"<0",">0"})) -> 292.42785 | R160: =SUM(SUMIF(R15:R157,{"<0",">0"})) -> 393.7265 | U160: =$U$6*(IF(rng_rainfall=1,L160,IF(rng_rainfall=2,O160,R160))) -> 0
C162: GROSS MARGIN/hectare | L162: =L11-L160 -> 205.35005 | O162: =O11-O160 -> 369.07215 | R162: =R11-R160 -> 586.2735 | U162: =$U$6*(IF(rng_rainfall=1,L162,IF(rng_rainfall=2,O162,R162))) -> 0
C164: Break Even Price (to cover variable costs only) | L164: =L160/L10 -> 108.0999667 | O164: =O160/O10 -> 108.3066111 | R164: =R160/R10 -> 98.431625
C166: Break Even Yield (to cover variable costs only) | L166: =L160/L8 -> 0.6618365306 | O166: =O160/O8 -> 1.193583061 | R166: =R160/R8 -> 1.607046939

Sheet WHEAT R2 (hidden)
C1: Wheat | F1: hide | G1: show | H1: hide | I1: show | J1: =IF(rng_rainfall=1,"show","hide") -> hide | K1: hide | L1: =IF(rng_rainfall=1,"show","hide") -> hide | M1: =IF(rng_rainfall=2,"show","hide") -> hide | N1: hide | O1: =IF(rng_rainfall=2,"show","hide") -> hide | P1: =IF(rng_rainfall=3,"show","hide") -> hide | Q1: hide | R1: =IF(rng_rainfall=3,"show","hide") -> hide | S1: hide
C2: =UPPER(var_crop)&" ROTATION 2 GROSS MARGIN - "&TEXT(m_year,"0000") -> WHEAT ROTATION 2 GROSS MARGIN - 2018
Y3: Reset Yellow Cell Formulas Below
C4: INCOME | L4: RAINFALL | O4: RAINFALL | R4: RAINFALL | U4: YOUR | Z4: ="GM SENSITIVITY-"&var_crop -> GM SENSITIVITY-Wheat | AD4: Cash Price $/t
C5: =IF(rng_rainfall="","PLEASE SELECT A RAINFALL ZONE ON THE MAIN SHEET!","") -> PLEASE SELECT A RAINFALL ZONE ON THE MAIN SHEET! | L5: ZONE | O5: ZONE | R5: ZONE | U5: ESTIMATE | Z5: =var_rain&" Rainfall" ->  | AB5: Poor | AC5: Below Average | AD5: Average | AE5: Above Average | AF5: Very Good
C6: =IF(rng_machinery="","PLEASE SELECT A MACHINERY METHOD ON THE MAIN SHEET!","") -> PLEASE SELECT A MACHINERY METHOD ON THE MAIN SHEET! | L6: LOW | O6: MEDIUM | R6: HIGH | V6: =IF(ISBLANK(U6),"<-Enter Crop Size in Ha","Ha") -> <-Enter Crop Size in Ha | AA6: Yield $/t | AB6: =VLOOKUP(var_crop,tbl_hist_prices[],MATCH("Price_"&var_rain&"_"&AB$5,tbl_hist_prices[#Headers],0),0) ->  | AC6: =VLOOKUP(var_crop,tbl_hist_prices[],MATCH("Price_"&var_rain&"_"&AC$5,tbl_hist_prices[#Headers],0),0) ->  | AD6: =VLOOKUP(var_crop,tbl_hist_prices[],MATCH("Price_"&var_rain&"_"&AD$5,tbl_hist_prices[#Headers],0),0) ->  | AE6: =VLOOKUP(var_crop,tbl_hist_prices[],MATCH("Price_"&var_rain&"_"&AE$5,tbl_hist_prices[#Headers],0),0) ->  | AF6: =VLOOKUP(var_crop,tbl_hist_prices[],MATCH("Price_"&var_rain&"_"&AF$5,tbl_hist_prices[#Headers],0),0) -> 
Z7: Poor | AA7: =VLOOKUP(var_crop,tbl_hist_prices[],MATCH(var_rain&"_"&Z7,tbl_hist_prices[#Headers],0),0) ->  | AB7: =AB$6*$AA7-SUM(OFFSET($L$15,0,(rng_rainfall*3)-3,15),OFFSET($L$38,0,(rng_rainfall*3)-3,98),OFFSET($L$137,0,(rng_rainfall*3)-3,11),OFFSET($L$153,0,(rng_rainfall*3)-3,4))-AB$6*$AA7*($E$32+$E$151/1000)-$AA7*($E$33+$E$136) -> 
C8: ="Price ("&Year_Short&" Forecast)" -> Price (18/19 Forecast) | I8: Reset Price | L8: =VLOOKUP(var_crop,tbl_hist_prices[#Data],MATCH("Price_"&L6&"_Average",tbl_hist_prices[#Headers],0),0) -> 245 | M8: =VLOOKUP(var_crop,tbl_hist_prices[#Data],MATCH("Price_"&R[-2]C&"_Average",tbl_hist_prices[#Headers],0),0) | O8: =VLOOKUP(var_crop,tbl_hist_prices[#Data],MATCH("Price_"&O6&"_Average",tbl_hist_prices[#Headers],0),0) -> 245 | P8: =VLOOKUP(var_crop,tbl_hist_prices[#Data],MATCH("Price_"&R[-2]C&"_Average",tbl_hist_prices[#Headers],0),0) | R8: =VLOOKUP(var_crop,tbl_hist_prices[#Data],MATCH("Price_"&R6&"_Average",tbl_hist_prices[#Headers],0),0) -> 245 | S8: =VLOOKUP(var_crop,tbl_hist_prices[#Data],MATCH("Price_"&R[-2]C&"_Average",tbl_hist_prices[#Headers],0),0) | U8: =$U$6*(IF(rng_rainfall=1,L8*L10,IF(rng_rainfall=2,O8*O10,R8*R10))) -> 0 | Z8: Below Average | AA8: =VLOOKUP(var_crop,tbl_hist_prices[],MATCH(var_rain&"_"&Z8,tbl_hist_prices[#Headers],0),0) -> 
Z9: Average | AA9: =VLOOKUP(var_crop,tbl_hist_prices[],MATCH(var_rain&"_"&Z9,tbl_hist_prices[#Headers],0),0) -> 
C10: Yield (t/ha) | I10: Reset Yield | L10: =VLOOKUP(var_crop,tbl_hist_prices[],MATCH("LOW"&"_AVERAGE",tbl_hist_prices[[#Headers],[Commodity]:[High_Very Good]],0),0) -> 1.5 | M10: =VLOOKUP(var_crop,tbl_hist_prices,MATCH("LOW"&"_AVERAGE",tbl_hist_prices[[#Headers],[Commodity]:[High_Very Good]],0),0) | O10: =VLOOKUP(var_crop,tbl_hist_prices[],MATCH("MEDIUM"&"_AVERAGE",tbl_hist_prices[[#Headers],[Commodity]:[High_Very Good]],0),0) -> 2.7 | P10: =VLOOKUP(var_crop,tbl_hist_prices,MATCH("MEDIUM"&"_AVERAGE",tbl_hist_prices[[#Headers],[Commodity]:[High_Very Good]],0),0) | R10: =VLOOKUP(var_crop,tbl_hist_prices[],MATCH("HIGH"&"_AVERAGE",tbl_hist_prices[[#Headers],[Commodity]:[High_Very Good]],0),0) -> 4 | S10: =VLOOKUP(var_crop,tbl_hist_prices,MATCH("HIGH"&"_AVERAGE",tbl_hist_prices[[#Headers],[Commodity]:[High_Very Good]],0),0) | Z10: Above Average | AA10: =VLOOKUP(var_crop,tbl_hist_prices[],MATCH(var_rain&"_"&Z10,tbl_hist_prices[#Headers],0),0) -> 
C11: GROSS INCOME | L11: =L8*L10 -> 367.5 | O11: =O8*O10 -> 661.5 | R11: =R8*R10 -> 980 | U11: =SUM(U8:U10) -> 0 | Z11: Very Good | AA11: =VLOOKUP(var_crop,tbl_hist_prices[],MATCH(var_rain&"_"&Z11,tbl_hist_prices[#Headers],0),0) -> 
C12: VARIABLE COSTS
C14: Seed | E14: Cost | G14: Unit | J14: Rate/ha | L14: $/ha | M14: Rate/ha | O14: $/ha | P14: Rate/ha | R14: $/ha | U14: $
C15: Seed | D15: Reset Cost | E15: =VLOOKUP($C15&"Cost",CHOOSE({1,2},tbl_seed[Name]&tbl_seed[Type],INDIRECT("tbl_seed["&var_crop&"]")),2,0) -> 0.24 | F15: =VLOOKUP(R[0]C3&"Cost",CHOOSE({1,2},tbl_seed[Name]&tbl_seed[Type],INDIRECT("tbl_seed["&var_crop&"]")),2,0) | G15: =VLOOKUP($C15&"Cost",CHOOSE({1,2},tbl_seed[Name]&tbl_seed[Type],tbl_seed[Unit]),2,0) -> $/kg | H15: =VLOOKUP(r[0]c3&"Cost",CHOOSE({1,2},tbl_seed[Name]&tbl_seed[Type],tbl_seed[Unit]),2,0) | I15: Reset Rate | J15: =VLOOKUP($C15&"Low",CHOOSE({1,2},tbl_seed[Name]&tbl_seed[Rainfall],INDIRECT("tbl_seed["&var_crop&"]")),2,0) -> 60 | K15: =VLOOKUP(r[0]c3&"Low",CHOOSE({1,2},tbl_seed[Name]&tbl_seed[Rainfall],INDIRECT("tbl_seed["&var_crop&"]")),2,0) | L15: =(J15*E15) -> 14.4 | M15: =VLOOKUP($C15&"Medium",CHOOSE({1,2},tbl_seed[Name]&tbl_seed[Rainfall],INDIRECT("tbl_seed["&var_crop&"]")),2,0) -> 80 | N15: =VLOOKUP(r[0]c3&"Medium",CHOOSE({1,2},tbl_seed[Name]&tbl_seed[Rainfall],INDIRECT("tbl_seed["&var_crop&"]")),2,0) | O15: =(M15*E15) -> 19.2 | P15: =VLOOKUP($C15&"High",CHOOSE({1,2},tbl_seed[Name]&tbl_seed[Rainfall],INDIRECT("tbl_seed["&var_crop&"]")),2,0) -> 100 | Q15: =VLOOKUP(r[0]c3&"High",CHOOSE({1,2},tbl_seed[Name]&tbl_seed[Rainfall],INDIRECT("tbl_seed["&var_crop&"]")),2,0) | R15: =P15*E15 -> 24 | U15: =$U$6*(IF(rng_rainfall=1,L15,IF(rng_rainfall=2,O15,R15))) -> 0
C16: Seed Treatment(1) | D16: Reset Cost | E16: =VLOOKUP($C16&"Cost",CHOOSE({1,2},tbl_seed[Name]&tbl_seed[Type],INDIRECT("tbl_seed["&var_crop&"]")),2,0) -> 0.0388 | F16: =VLOOKUP(R[0]C3&"Cost",CHOOSE({1,2},tbl_seed[Name]&tbl_seed[Type],INDIRECT("tbl_seed["&var_crop&"]")),2,0) | G16: =VLOOKUP($C16&"Cost",CHOOSE({1,2},tbl_seed[Name]&tbl_seed[Type],tbl_seed[Unit]),2,0) -> $/kg | H16: =VLOOKUP(r[0]c3&"Cost",CHOOSE({1,2},tbl_seed[Name]&tbl_seed[Type],tbl_seed[Unit]),2,0) | I16: Reset Rate | J16: =VLOOKUP($C16&"Low",CHOOSE({1,2},tbl_seed[Name]&tbl_seed[Rainfall],INDIRECT("tbl_seed["&var_crop&"]")),2,0) -> 60 | K16: =VLOOKUP(r[0]c3&"Low",CHOOSE({1,2},tbl_seed[Name]&tbl_seed[Rainfall],INDIRECT("tbl_seed["&var_crop&"]")),2,0) | L16: 2.328 | M16: =VLOOKUP($C16&"Medium",CHOOSE({1,2},tbl_seed[Name]&tbl_seed[Rainfall],INDIRECT("tbl_seed["&var_crop&"]")),2,0) -> 80 | N16: =VLOOKUP(r[0]c3&"Medium",CHOOSE({1,2},tbl_seed[Name]&tbl_seed[Rainfall],INDIRECT("tbl_seed["&var_crop&"]")),2,0) | O16: 3.104 | P16: =VLOOKUP($C16&"High",CHOOSE({1,2},tbl_seed[Name]&tbl_seed[Rainfall],INDIRECT("tbl_seed["&var_crop&"]")),2,0) -> 100 | Q16: =VLOOKUP(r[0]c3&"High",CHOOSE({1,2},tbl_seed[Name]&tbl_seed[Rainfall],INDIRECT("tbl_seed["&var_crop&"]")),2,0) | R16: 3.88 | U16: 0
C17: Seed Treatment(2) | D17: Reset Cost | E17: =VLOOKUP($C17&"Cost",CHOOSE({1,2},tbl_seed[Name]&tbl_seed[Type],INDIRECT("tbl_seed["&var_crop&"]")),2,0) -> 0.07152 | F17: =VLOOKUP(R[0]C3&"Cost",CHOOSE({1,2},tbl_seed[Name]&tbl_seed[Type],INDIRECT("tbl_seed["&var_crop&"]")),2,0) | G17: =VLOOKUP($C17&"Cost",CHOOSE({1,2},tbl_seed[Name]&tbl_seed[Type],tbl_seed[Unit]),2,0) -> $/kg | H17: =VLOOKUP(r[0]c3&"Cost",CHOOSE({1,2},tbl_seed[Name]&tbl_seed[Type],tbl_seed[Unit]),2,0) | I17: Reset Rate | J17: =VLOOKUP($C17&"Low",CHOOSE({1,2},tbl_seed[Name]&tbl_seed[Rainfall],INDIRECT("tbl_seed["&var_crop&"]")),2,0) -> 60 | K17: =VLOOKUP(r[0]c3&"Low",CHOOSE({1,2},tbl_seed[Name]&tbl_seed[Rainfall],INDIRECT("tbl_seed["&var_crop&"]")),2,0) | L17: 4.2912 | M17: =VLOOKUP($C17&"Medium",CHOOSE({1,2},tbl_seed[Name]&tbl_seed[Rainfall],INDIRECT("tbl_seed["&var_crop&"]")),2,0) -> 80 | N17: =VLOOKUP(r[0]c3&"Medium",CHOOSE({1,2},tbl_seed[Name]&tbl_seed[Rainfall],INDIRECT("tbl_seed["&var_crop&"]")),2,0) | O17: 5.7216 | P17: =VLOOKUP($C17&"High",CHOOSE({1,2},tbl_seed[Name]&tbl_seed[Rainfall],INDIRECT("tbl_seed["&var_crop&"]")),2,0) -> 100 | Q17: =VLOOKUP(r[0]c3&"High",CHOOSE({1,2},tbl_seed[Name]&tbl_seed[Rainfall],INDIRECT("tbl_seed["&var_crop&"]")),2,0) | R17: 7.152 | U17: 0
D18: Reset Cost | F18: =VLOOKUP(R[0]C3&"Cost",CHOOSE({1,2},tbl_seed[Name]&tbl_seed[Type],INDIRECT("tbl_seed["&var_crop&"]")),2,0) | H18: =VLOOKUP(r[0]c3&"Cost",CHOOSE({1,2},tbl_seed[Name]&tbl_seed[Type],tbl_seed[Unit]),2,0) | I18: Reset Rate | K18: =VLOOKUP(r[0]c3&"Low",CHOOSE({1,2},tbl_seed[Name]&tbl_seed[Rainfall],INDIRECT("tbl_seed["&var_crop&"]")),2,0) | L18: 0 | N18: =VLOOKUP(r[0]c3&"Medium",CHOOSE({1,2},tbl_seed[Name]&tbl_seed[Rainfall],INDIRECT("tbl_seed["&var_crop&"]")),2,0) | O18: 0 | Q18: =VLOOKUP(r[0]c3&"High",CHOOSE({1,2},tbl_seed[Name]&tbl_seed[Rainfall],INDIRECT("tbl_seed["&var_crop&"]")),2,0) | R18: 0 | U18: 0
D19: Reset Cost | F19: =VLOOKUP(R[0]C3&"Cost",CHOOSE({1,2},tbl_seed[Name]&tbl_seed[Type],INDIRECT("tbl_seed["&var_crop&"]")),2,0) | H19: =VLOOKUP(r[0]c3&"Cost",CHOOSE({1,2},tbl_seed[Name]&tbl_seed[Type],tbl_seed[Unit]),2,0) | I19: Reset Rate | K19: =VLOOKUP(r[0]c3&"Low",CHOOSE({1,2},tbl_seed[Name]&tbl_seed[Rainfall],INDIRECT("tbl_seed["&var_crop&"]")),2,0) | L19: 0 | N19: =VLOOKUP(r[0]c3&"Medium",CHOOSE({1,2},tbl_seed[Name]&tbl_seed[Rainfall],INDIRECT("tbl_seed["&var_crop&"]")),2,0) | O19: 0 | Q19: =VLOOKUP(r[0]c3&"High",CHOOSE({1,2},tbl_seed[Name]&tbl_seed[Rainfall],INDIRECT("tbl_seed["&var_crop&"]")),2,0) | R19: 0 | U19: 0
D20: Reset Cost | F20: =VLOOKUP(R[0]C3&"Cost",CHOOSE({1,2},tbl_seed[Name]&tbl_seed[Type],INDIRECT("tbl_seed["&var_crop&"]")),2,0) | H20: =VLOOKUP(r[0]c3&"Cost",CHOOSE({1,2},tbl_seed[Name]&tbl_seed[Type],tbl_seed[Unit]),2,0) | I20: Reset Rate | K20: =VLOOKUP(r[0]c3&"Low",CHOOSE({1,2},tbl_seed[Name]&tbl_seed[Rainfall],INDIRECT("tbl_seed["&var_crop&"]")),2,0) | L20: 0 | N20: =VLOOKUP(r[0]c3&"Medium",CHOOSE({1,2},tbl_seed[Name]&tbl_seed[Rainfall],INDIRECT("tbl_seed["&var_crop&"]")),2,0) | O20: 0 | Q20: =VLOOKUP(r[0]c3&"High",CHOOSE({1,2},tbl_seed[Name]&tbl_seed[Rainfall],INDIRECT("tbl_seed["&var_crop&"]")),2,0) | R20: 0 | U20: 0
D21: Reset Cost | F21: =VLOOKUP(R[0]C3&"Cost",CHOOSE({1,2},tbl_seed[Name]&tbl_seed[Type],INDIRECT("tbl_seed["&var_crop&"]")),2,0) | H21: =VLOOKUP(r[0]c3&"Cost",CHOOSE({1,2},tbl_seed[Name]&tbl_seed[Type],tbl_seed[Unit]),2,0) | I21: Reset Rate | K21: =VLOOKUP(r[0]c3&"Low",CHOOSE({1,2},tbl_seed[Name]&tbl_seed[Rainfall],INDIRECT("tbl_seed["&var_crop&"]")),2,0) | L21: 0 | N21: =VLOOKUP(r[0]c3&"Medium",CHOOSE({1,2},tbl_seed[Name]&tbl_seed[Rainfall],INDIRECT("tbl_seed["&var_crop&"]")),2,0) | O21: 0 | Q21: =VLOOKUP(r[0]c3&"High",CHOOSE({1,2},tbl_seed[Name]&tbl_seed[Rainfall],INDIRECT("tbl_seed["&var_crop&"]")),2,0) | R21: 0 | U21: 0
D22: Reset Cost | F22: =VLOOKUP(R[0]C3&"Cost",CHOOSE({1,2},tbl_seed[Name]&tbl_seed[Type],INDIRECT("tbl_seed["&var_crop&"]")),2,0) | H22: =VLOOKUP(r[0]c3&"Cost",CHOOSE({1,2},tbl_seed[Name]&tbl_seed[Type],tbl_seed[Unit]),2,0) | I22: Reset Rate | K22: =VLOOKUP(r[0]c3&"Low",CHOOSE({1,2},tbl_seed[Name]&tbl_seed[Rainfall],INDIRECT("tbl_seed["&var_crop&"]")),2,0) | L22: 0 | N22: =VLOOKUP(r[0]c3&"Medium",CHOOSE({1,2},tbl_seed[Name]&tbl_seed[Rainfall],INDIRECT("tbl_seed["&var_crop&"]")),2,0) | O22: 0 | Q22: =VLOOKUP(r[0]c3&"High",CHOOSE({1,2},tbl_seed[Name]&tbl_seed[Rainfall],INDIRECT("tbl_seed["&var_crop&"]")),2,0) | R22: 0 | U22: 0
D23: Reset Cost | F23: =VLOOKUP(R[0]C3&"Cost",CHOOSE({1,2},tbl_seed[Name]&tbl_seed[Type],INDIRECT("tbl_seed["&var_crop&"]")),2,0) | H23: =VLOOKUP(r[0]c3&"Cost",CHOOSE({1,2},tbl_seed[Name]&tbl_seed[Type],tbl_seed[Unit]),2,0) | I23: Reset Rate | K23: =VLOOKUP(r[0]c3&"Low",CHOOSE({1,2},tbl_seed[Name]&tbl_seed[Rainfall],INDIRECT("tbl_seed["&var_crop&"]")),2,0) | L23: 0 | N23: =VLOOKUP(r[0]c3&"Medium",CHOOSE({1,2},tbl_seed[Name]&tbl_seed[Rainfall],INDIRECT("tbl_seed["&var_crop&"]")),2,0) | O23: 0 | Q23: =VLOOKUP(r[0]c3&"High",CHOOSE({1,2},tbl_seed[Name]&tbl_seed[Rainfall],INDIRECT("tbl_seed["&var_crop&"]")),2,0) | R23: 0 | U23: 0
D24: Reset Cost | F24: =VLOOKUP(R[0]C3&"Cost",CHOOSE({1,2},tbl_seed[Name]&tbl_seed[Type],INDIRECT("tbl_seed["&var_crop&"]")),2,0) | H24: =VLOOKUP(r[0]c3&"Cost",CHOOSE({1,2},tbl_seed[Name]&tbl_seed[Type],tbl_seed[Unit]),2,0) | I24: Reset Rate | K24: =VLOOKUP(r[0]c3&"Low",CHOOSE({1,2},tbl_seed[Name]&tbl_seed[Rainfall],INDIRECT("tbl_seed["&var_crop&"]")),2,0) | L24: 0 | N24: =VLOOKUP(r[0]c3&"Medium",CHOOSE({1,2},tbl_seed[Name]&tbl_seed[Rainfall],INDIRECT("tbl_seed["&var_crop&"]")),2,0) | O24: 0 | Q24: =VLOOKUP(r[0]c3&"High",CHOOSE({1,2},tbl_seed[Name]&tbl_seed[Rainfall],INDIRECT("tbl_seed["&var_crop&"]")),2,0) | R24: 0 | U24: 0
D25: Reset Cost | F25: =VLOOKUP(R[0]C3&"Cost",CHOOSE({1,2},tbl_seed[Name]&tbl_seed[Type],INDIRECT("tbl_seed["&var_crop&"]")),2,0) | H25: =VLOOKUP(r[0]c3&"Cost",CHOOSE({1,2},tbl_seed[Name]&tbl_seed[Type],tbl_seed[Unit]),2,0) | I25: Reset Rate | K25: =VLOOKUP(r[0]c3&"Low",CHOOSE({1,2},tbl_seed[Name]&tbl_seed[Rainfall],INDIRECT("tbl_seed["&var_crop&"]")),2,0) | L25: 0 | N25: =VLOOKUP(r[0]c3&"Medium",CHOOSE({1,2},tbl_seed[Name]&tbl_seed[Rainfall],INDIRECT("tbl_seed["&var_crop&"]")),2,0) | O25: 0 | Q25: =VLOOKUP(r[0]c3&"High",CHOOSE({1,2},tbl_seed[Name]&tbl_seed[Rainfall],INDIRECT("tbl_seed["&var_crop&"]")),2,0) | R25: 0 | U25: 0
D26: Reset Cost | F26: =VLOOKUP(R[0]C3&"Cost",CHOOSE({1,2},tbl_seed[Name]&tbl_seed[Type],INDIRECT("tbl_seed["&var_crop&"]")),2,0) | H26: =VLOOKUP(r[0]c3&"Cost",CHOOSE({1,2},tbl_seed[Name]&tbl_seed[Type],tbl_seed[Unit]),2,0) | I26: Reset Rate | K26: =VLOOKUP(r[0]c3&"Low",CHOOSE({1,2},tbl_seed[Name]&tbl_seed[Rainfall],INDIRECT("tbl_seed["&var_crop&"]")),2,0) | L26: 0 | N26: =VLOOKUP(r[0]c3&"Medium",CHOOSE({1,2},tbl_seed[Name]&tbl_seed[Rainfall],INDIRECT("tbl_seed["&var_crop&"]")),2,0) | O26: 0 | Q26: =VLOOKUP(r[0]c3&"High",CHOOSE({1,2},tbl_seed[Name]&tbl_seed[Rainfall],INDIRECT("tbl_seed["&var_crop&"]")),2,0) | R26: 0 | U26: 0
D27: Reset Cost | F27: =VLOOKUP(R[0]C3&"Cost",CHOOSE({1,2},tbl_seed[Name]&tbl_seed[Type],INDIRECT("tbl_seed["&var_crop&"]")),2,0) | H27: =VLOOKUP(r[0]c3&"Cost",CHOOSE({1,2},tbl_seed[Name]&tbl_seed[Type],tbl_seed[Unit]),2,0) | I27: Reset Rate | K27: =VLOOKUP(r[0]c3&"Low",CHOOSE({1,2},tbl_seed[Name]&tbl_seed[Rainfall],INDIRECT("tbl_seed["&var_crop&"]")),2,0) | L27: 0 | N27: =VLOOKUP(r[0]c3&"Medium",CHOOSE({1,2},tbl_seed[Name]&tbl_seed[Rainfall],INDIRECT("tbl_seed["&var_crop&"]")),2,0) | O27: 0 | Q27: =VLOOKUP(r[0]c3&"High",CHOOSE({1,2},tbl_seed[Name]&tbl_seed[Rainfall],INDIRECT("tbl_seed["&var_crop&"]")),2,0) | R27: 0 | U27: 0
D28: Reset Cost | F28: =VLOOKUP(R[0]C3&"Cost",CHOOSE({1,2},tbl_seed[Name]&tbl_seed[Type],INDIRECT("tbl_seed["&var_crop&"]")),2,0) | H28: =VLOOKUP(r[0]c3&"Cost",CHOOSE({1,2},tbl_seed[Name]&tbl_seed[Type],tbl_seed[Unit]),2,0) | I28: Reset Rate | K28: =VLOOKUP(r[0]c3&"Low",CHOOSE({1,2},tbl_seed[Name]&tbl_seed[Rainfall],INDIRECT("tbl_seed["&var_crop&"]")),2,0) | L28: 0 | N28: =VLOOKUP(r[0]c3&"Medium",CHOOSE({1,2},tbl_seed[Name]&tbl_seed[Rainfall],INDIRECT("tbl_seed["&var_crop&"]")),2,0) | O28: 0 | Q28: =VLOOKUP(r[0]c3&"High",CHOOSE({1,2},tbl_seed[Name]&tbl_seed[Rainfall],INDIRECT("tbl_seed["&var_crop&"]")),2,0) | R28: 0 | U28: 0
D29: Reset Cost | F29: =VLOOKUP(R[0]C3&"Cost",CHOOSE({1,2},tbl_seed[Name]&tbl_seed[Type],INDIRECT("tbl_seed["&var_crop&"]")),2,0) | H29: =VLOOKUP(r[0]c3&"Cost",CHOOSE({1,2},tbl_seed[Name]&tbl_seed[Type],tbl_seed[Unit]),2,0) | I29: Reset Rate | K29: =VLOOKUP(r[0]c3&"Low",CHOOSE({1,2},tbl_seed[Name]&tbl_seed[Rainfall],INDIRECT("tbl_seed["&var_crop&"]")),2,0) | L29: 0 | N29: =VLOOKUP(r[0]c3&"Medium",CHOOSE({1,2},tbl_seed[Name]&tbl_seed[Rainfall],INDIRECT("tbl_seed["&var_crop&"]")),2,0) | O29: 0 | Q29: =VLOOKUP(r[0]c3&"High",CHOOSE({1,2},tbl_seed[Name]&tbl_seed[Rainfall],INDIRECT("tbl_seed["&var_crop&"]")),2,0) | R29: 0 | U29: 0
C31: Levies
C32: GRDC Levies | E32: =var_grdc_levy -> 0.01 | G32: Gross Income | L32: =L11*$E$32 -> 3.675 | O32: =E32*O11 -> 6.615 | R32: =E32*R11 -> 9.8 | U32: =U11*E32 -> 0
C33: EPR & state levies | D33: Reset Levy | E33: =IFERROR(VLOOKUP($C33,tbl_seed[],MATCH(var_crop,tbl_seed[#Headers],0),0),0) -> 3.5 | F33: =IFERROR(VLOOKUP(r[0]c3,tbl_seed,MATCH(var_crop,tbl_seed[#Headers],0),0),0) | G33: tonne sold | L33: =E33*L10 -> 5.25 | O33: =E33*O10 -> 9.45 | R33: =E33*R10 -> 14 | U33: =$U$6*(IF(rng_rainfall=1,L33,IF(rng_rainfall=2,O33,R33))) -> 0
C37: Fertiliser (Bulk) | E37: Cost | G37: Unit | J37: Rate/ha | L37: $/ha | M37: Rate/ha | O37: $/ha | P37: Rate/ha | R37: $/ha | U37: $
C38: DAP 18:20 | D38: Reset Cost | E38: =VLOOKUP($C38,tbl_fert[[Name]:[Cost]],MATCH("Cost",tbl_fert[#Headers],0),0) -> 0.66 | F38: =VLOOKUP(r[0]c3,tbl_fert[[Name]:[Cost]],MATCH("Cost",tbl_fert[#Headers],0),0) | G38: =VLOOKUP($C38,tbl_fert[[Name]:[Cost]],MATCH("Units",tbl_fert[#Headers],0),0) -> kg | H38: =VLOOKUP(r[0]c3,tbl_fert[[Name]:[Cost]],MATCH("Units",tbl_fert[#Headers],0),0) | I38: Reset Rate | J38: =VLOOKUP($C38&"Low",CHOOSE({1,2},tbl_fert[Name]&tbl_fert[Rainfall],INDIRECT("tbl_fert["&var_crop&"]")),2,0) -> 40 | K38: =VLOOKUP(r[0]c3&"Low",CHOOSE({1,2},tbl_fert[Name]&tbl_fert[Rainfall],INDIRECT("tbl_fert["&var_crop&"]")),2,0) | L38: =(J38*E38) -> 26.4 | M38: =VLOOKUP($C38&"Medium",CHOOSE({1,2},tbl_fert[Name]&tbl_fert[Rainfall],INDIRECT("tbl_fert["&var_crop&"]")),2,0) -> 60 | N38: =VLOOKUP(r[0]c3&"Medium",CHOOSE({1,2},tbl_fert[Name]&tbl_fert[Rainfall],INDIRECT("tbl_fert["&var_crop&"]")),2,0) | O38: =(M38*E38) -> 39.6 | P38: =VLOOKUP($C38&"High",CHOOSE({1,2},tbl_fert[Name]&tbl_fert[Rainfall],INDIRECT("tbl_fert["&var_crop&"]")),2,0) -> 80 | Q38: =VLOOKUP(r[0]c3&"High",CHOOSE({1,2},tbl_fert[Name]&tbl_fert[Rainfall],INDIRECT("tbl_fert["&var_crop&"]")),2,0) | R38: =P38*E38 -> 52.8 | U38: =$U$6*(IF(rng_rainfall=1,L38,IF(rng_rainfall=2,O38,R38))) -> 0
C39: Urea | D39: Reset Cost | E39: =VLOOKUP($C39,tbl_fert[[Name]:[Cost]],MATCH("Cost",tbl_fert[#Headers],0),0) -> 0.48 | F39: =VLOOKUP(r[0]c3,tbl_fert[[Name]:[Cost]],MATCH("Cost",tbl_fert[#Headers],0),0) | G39: =VLOOKUP($C39,tbl_fert[[Name]:[Cost]],MATCH("Units",tbl_fert[#Headers],0),0) -> kg | H39: =VLOOKUP(r[0]c3,tbl_fert[[Name]:[Cost]],MATCH("Units",tbl_fert[#Headers],0),0) | I39: Reset Rate | J39: =VLOOKUP($C39&"Low",CHOOSE({1,2},tbl_fert[Name]&tbl_fert[Rainfall],INDIRECT("tbl_fert["&var_crop&"]")),2,0) -> 0 | K39: =VLOOKUP(r[0]c3&"Low",CHOOSE({1,2},tbl_fert[Name]&tbl_fert[Rainfall],INDIRECT("tbl_fert["&var_crop&"]")),2,0) | L39: 0 | M39: =VLOOKUP($C39&"Medium",CHOOSE({1,2},tbl_fert[Name]&tbl_fert[Rainfall],INDIRECT("tbl_fert["&var_crop&"]")),2,0) -> 80 | N39: =VLOOKUP(r[0]c3&"Medium",CHOOSE({1,2},tbl_fert[Name]&tbl_fert[Rainfall],INDIRECT("tbl_fert["&var_crop&"]")),2,0) | O39: 38.4 | P39: =VLOOKUP($C39&"High",CHOOSE({1,2},tbl_fert[Name]&tbl_fert[Rainfall],INDIRECT("tbl_fert["&var_crop&"]")),2,0) -> 160 | Q39: =VLOOKUP(r[0]c3&"High",CHOOSE({1,2},tbl_fert[Name]&tbl_fert[Rainfall],INDIRECT("tbl_fert["&var_crop&"]")),2,0) | R39: 76.8 | U39: 0
D40: Reset Cost | F40: =VLOOKUP(r[0]c3,tbl_fert[[Name]:[Cost]],MATCH("Cost",tbl_fert[#Headers],0),0) | H40: =VLOOKUP(r[0]c3,tbl_fert[[Name]:[Cost]],MATCH("Units",tbl_fert[#Headers],0),0) | I40: Reset Rate | K40: =VLOOKUP(r[0]c3&"Low",CHOOSE({1,2},tbl_fert[Name]&tbl_fert[Rainfall],INDIRECT("tbl_fert["&var_crop&"]")),2,0) | L40: 0 | N40: =VLOOKUP(r[0]c3&"Medium",CHOOSE({1,2},tbl_fert[Name]&tbl_fert[Rainfall],INDIRECT("tbl_fert["&var_crop&"]")),2,0) | O40: 0 | Q40: =VLOOKUP(r[0]c3&"High",CHOOSE({1,2},tbl_fert[Name]&tbl_fert[Rainfall],INDIRECT("tbl_fert["&var_crop&"]")),2,0) | R40: 0 | U40: 0
D41: Reset Cost | F41: =VLOOKUP(r[0]c3,tbl_fert[[Name]:[Cost]],MATCH("Cost",tbl_fert[#Headers],0),0) | H41: =VLOOKUP(r[0]c3,tbl_fert[[Name]:[Cost]],MATCH("Units",tbl_fert[#Headers],0),0) | I41: Reset Rate | K41: =VLOOKUP(r[0]c3&"Low",CHOOSE({1,2},tbl_fert[Name]&tbl_fert[Rainfall],INDIRECT("tbl_fert["&var_crop&"]")),2,0) | L41: 0 | N41: =VLOOKUP(r[0]c3&"Medium",CHOOSE({1,2},tbl_fert[Name]&tbl_fert[Rainfall],INDIRECT("tbl_fert["&var_crop&"]")),2,0) | O41: 0 | Q41: =VLOOKUP(r[0]c3&"High",CHOOSE({1,2},tbl_fert[Name]&tbl_fert[Rainfall],INDIRECT("tbl_fert["&var_crop&"]")),2,0) | R41: 0 | U41: 0
D42: Reset Cost | F42: =VLOOKUP(r[0]c3,tbl_fert[[Name]:[Cost]],MATCH("Cost",tbl_fert[#Headers],0),0) | H42: =VLOOKUP(r[0]c3,tbl_fert[[Name]:[Cost]],MATCH("Units",tbl_fert[#Headers],0),0) | I42: Reset Rate | K42: =VLOOKUP(r[0]c3&"Low",CHOOSE({1,2},tbl_fert[Name]&tbl_fert[Rainfall],INDIRECT("tbl_fert["&var_crop&"]")),2,0) | L42: 0 | N42: =VLOOKUP(r[0]c3&"Medium",CHOOSE({1,2},tbl_fert[Name]&tbl_fert[Rainfall],INDIRECT("tbl_fert["&var_crop&"]")),2,0) | O42: 0 | Q42: =VLOOKUP(r[0]c3&"High",CHOOSE({1,2},tbl_fert[Name]&tbl_fert[Rainfall],INDIRECT("tbl_fert["&var_crop&"]")),2,0) | R42: 0 | U42: 0
D43: Reset Cost | F43: =VLOOKUP(r[0]c3,tbl_fert[[Name]:[Cost]],MATCH("Cost",tbl_fert[#Headers],0),0) | H43: =VLOOKUP(r[0]c3,tbl_fert[[Name]:[Cost]],MATCH("Units",tbl_fert[#Headers],0),0) | I43: Reset Rate | K43: =VLOOKUP(r[0]c3&"Low",CHOOSE({1,2},tbl_fert[Name]&tbl_fert[Rainfall],INDIRECT("tbl_fert["&var_crop&"]")),2,0) | L43: 0 | N43: =VLOOKUP(r[0]c3&"Medium",CHOOSE({1,2},tbl_fert[Name]&tbl_fert[Rainfall],INDIRECT("tbl_fert["&var_crop&"]")),2,0) | O43: 0 | Q43: =VLOOKUP(r[0]c3&"High",CHOOSE({1,2},tbl_fert[Name]&tbl_fert[Rainfall],INDIRECT("tbl_fert["&var_crop&"]")),2,0) | R43: 0 | U43: 0
D44: Reset Cost | F44: =VLOOKUP(r[0]c3,tbl_fert[[Name]:[Cost]],MATCH("Cost",tbl_fert[#Headers],0),0) | H44: =VLOOKUP(r[0]c3,tbl_fert[[Name]:[Cost]],MATCH("Units",tbl_fert[#Headers],0),0) | I44: Reset Rate | K44: =VLOOKUP(r[0]c3&"Low",CHOOSE({1,2},tbl_fert[Name]&tbl_fert[Rainfall],INDIRECT("tbl_fert["&var_crop&"]")),2,0) | L44: 0 | N44: =VLOOKUP(r[0]c3&"Medium",CHOOSE({1,2},tbl_fert[Name]&tbl_fert[Rainfall],INDIRECT("tbl_fert["&var_crop&"]")),2,0) | O44: 0 | Q44: =VLOOKUP(r[0]c3&"High",CHOOSE({1,2},tbl_fert[Name]&tbl_fert[Rainfall],INDIRECT("tbl_fert["&var_crop&"]")),2,0) | R44: 0 | U44: 0
D45: Reset Cost | F45: =VLOOKUP(r[0]c3,tbl_fert[[Name]:[Cost]],MATCH("Cost",tbl_fert[#Headers],0),0) | H45: =VLOOKUP(r[0]c3,tbl_fert[[Name]:[Cost]],MATCH("Units",tbl_fert[#Headers],0),0) | I45: Reset Rate | K45: =VLOOKUP(r[0]c3&"Low",CHOOSE({1,2},tbl_fert[Name]&tbl_fert[Rainfall],INDIRECT("tbl_fert["&var_crop&"]")),2,0) | L45: 0 | N45: =VLOOKUP(r[0]c3&"Medium",CHOOSE({1,2},tbl_fert[Name]&tbl_fert[Rainfall],INDIRECT("tbl_fert["&var_crop&"]")),2,0) | O45: 0 | Q45: =VLOOKUP(r[0]c3&"High",CHOOSE({1,2},tbl_fert[Name]&tbl_fert[Rainfall],INDIRECT("tbl_fert["&var_crop&"]")),2,0) | R45: 0 | U45: 0
D46: Reset Cost | F46: =VLOOKUP(r[0]c3,tbl_fert[[Name]:[Cost]],MATCH("Cost",tbl_fert[#Headers],0),0) | H46: =VLOOKUP(r[0]c3,tbl_fert[[Name]:[Cost]],MATCH("Units",tbl_fert[#Headers],0),0) | I46: Reset Rate | K46: =VLOOKUP(r[0]c3&"Low",CHOOSE({1,2},tbl_fert[Name]&tbl_fert[Rainfall],INDIRECT("tbl_fert["&var_crop&"]")),2,0) | L46: 0 | N46: =VLOOKUP(r[0]c3&"Medium",CHOOSE({1,2},tbl_fert[Name]&tbl_fert[Rainfall],INDIRECT("tbl_fert["&var_crop&"]")),2,0) | O46: 0 | Q46: =VLOOKUP(r[0]c3&"High",CHOOSE({1,2},tbl_fert[Name]&tbl_fert[Rainfall],INDIRECT("tbl_fert["&var_crop&"]")),2,0) | R46: 0 | U46: 0
D47: Reset Cost | F47: =VLOOKUP(r[0]c3,tbl_fert[[Name]:[Cost]],MATCH("Cost",tbl_fert[#Headers],0),0) | H47: =VLOOKUP(r[0]c3,tbl_fert[[Name]:[Cost]],MATCH("Units",tbl_fert[#Headers],0),0) | I47: Reset Rate | K47: =VLOOKUP(r[0]c3&"Low",CHOOSE({1,2},tbl_fert[Name]&tbl_fert[Rainfall],INDIRECT("tbl_fert["&var_crop&"]")),2,0) | L47: 0 | N47: =VLOOKUP(r[0]c3&"Medium",CHOOSE({1,2},tbl_fert[Name]&tbl_fert[Rainfall],INDIRECT("tbl_fert["&var_crop&"]")),2,0) | O47: 0 | Q47: =VLOOKUP(r[0]c3&"High",CHOOSE({1,2},tbl_fert[Name]&tbl_fert[Rainfall],INDIRECT("tbl_fert["&var_crop&"]")),2,0) | R47: 0 | U47: 0
D48: Reset Cost | F48: =VLOOKUP(r[0]c3,tbl_fert[[Name]:[Cost]],MATCH("Cost",tbl_fert[#Headers],0),0) | H48: =VLOOKUP(r[0]c3,tbl_fert[[Name]:[Cost]],MATCH("Units",tbl_fert[#Headers],0),0) | I48: Reset Rate | K48: =VLOOKUP(r[0]c3&"Low",CHOOSE({1,2},tbl_fert[Name]&tbl_fert[Rainfall],INDIRECT("tbl_fert["&var_crop&"]")),2,0) | L48: 0 | N48: =VLOOKUP(r[0]c3&"Medium",CHOOSE({1,2},tbl_fert[Name]&tbl_fert[Rainfall],INDIRECT("tbl_fert["&var_crop&"]")),2,0) | O48: 0 | Q48: =VLOOKUP(r[0]c3&"High",CHOOSE({1,2},tbl_fert[Name]&tbl_fert[Rainfall],INDIRECT("tbl_fert["&var_crop&"]")),2,0) | R48: 0 | U48: 0
D49: Reset Cost | F49: =VLOOKUP(r[0]c3,tbl_fert[[Name]:[Cost]],MATCH("Cost",tbl_fert[#Headers],0),0) | H49: =VLOOKUP(r[0]c3,tbl_fert[[Name]:[Cost]],MATCH("Units",tbl_fert[#Headers],0),0) | I49: Reset Rate | K49: =VLOOKUP(r[0]c3&"Low",CHOOSE({1,2},tbl_fert[Name]&tbl_fert[Rainfall],INDIRECT("tbl_fert["&var_crop&"]")),2,0) | L49: 0 | N49: =VLOOKUP(r[0]c3&"Medium",CHOOSE({1,2},tbl_fert[Name]&tbl_fert[Rainfall],INDIRECT("tbl_fert["&var_crop&"]")),2,0) | O49: 0 | Q49: =VLOOKUP(r[0]c3&"High",CHOOSE({1,2},tbl_fert[Name]&tbl_fert[Rainfall],INDIRECT("tbl_fert["&var_crop&"]")),2,0) | R49: 0 | U49: 0
D50: Reset Cost | F50: =VLOOKUP(r[0]c3,tbl_fert[[Name]:[Cost]],MATCH("Cost",tbl_fert[#Headers],0),0) | H50: =VLOOKUP(r[0]c3,tbl_fert[[Name]:[Cost]],MATCH("Units",tbl_fert[#Headers],0),0) | I50: Reset Rate | K50: =VLOOKUP(r[0]c3&"Low",CHOOSE({1,2},tbl_fert[Name]&tbl_fert[Rainfall],INDIRECT("tbl_fert["&var_crop&"]")),2,0) | L50: 0 | N50: =VLOOKUP(r[0]c3&"Medium",CHOOSE({1,2},tbl_fert[Name]&tbl_fert[Rainfall],INDIRECT("tbl_fert["&var_crop&"]")),2,0) | O50: 0 | Q50: =VLOOKUP(r[0]c3&"High",CHOOSE({1,2},tbl_fert[Name]&tbl_fert[Rainfall],INDIRECT("tbl_fert["&var_crop&"]")),2,0) | R50: 0 | U50: 0
D51: Reset Cost | F51: =VLOOKUP(r[0]c3,tbl_fert[[Name]:[Cost]],MATCH("Cost",tbl_fert[#Headers],0),0) | H51: =VLOOKUP(r[0]c3,tbl_fert[[Name]:[Cost]],MATCH("Units",tbl_fert[#Headers],0),0) | I51: Reset Rate | K51: =VLOOKUP(r[0]c3&"Low",CHOOSE({1,2},tbl_fert[Name]&tbl_fert[Rainfall],INDIRECT("tbl_fert["&var_crop&"]")),2,0) | L51: 0 | N51: =VLOOKUP(r[0]c3&"Medium",CHOOSE({1,2},tbl_fert[Name]&tbl_fert[Rainfall],INDIRECT("tbl_fert["&var_crop&"]")),2,0) | O51: 0 | Q51: =VLOOKUP(r[0]c3&"High",CHOOSE({1,2},tbl_fert[Name]&tbl_fert[Rainfall],INDIRECT("tbl_fert["&var_crop&"]")),2,0) | R51: 0 | U51: 0
D52: Reset Cost | F52: =VLOOKUP(r[0]c3,tbl_fert[[Name]:[Cost]],MATCH("Cost",tbl_fert[#Headers],0),0) | H52: =VLOOKUP(r[0]c3,tbl_fert[[Name]:[Cost]],MATCH("Units",tbl_fert[#Headers],0),0) | I52: Reset Rate | K52: =VLOOKUP(r[0]c3&"Low",CHOOSE({1,2},tbl_fert[Name]&tbl_fert[Rainfall],INDIRECT("tbl_fert["&var_crop&"]")),2,0) | L52: 0 | N52: =VLOOKUP(r[0]c3&"Medium",CHOOSE({1,2},tbl_fert[Name]&tbl_fert[Rainfall],INDIRECT("tbl_fert["&var_crop&"]")),2,0) | O52: 0 | Q52: =VLOOKUP(r[0]c3&"High",CHOOSE({1,2},tbl_fert[Name]&tbl_fert[Rainfall],INDIRECT("tbl_fert["&var_crop&"]")),2,0) | R52: 0 | U52: 0
C57: Herbicides | E57: Cost | G57: Unit | J57: Rate/ha | L57: $/ha | M57: Rate/ha | O57: $/ha | P57: Rate/ha | R57: $/ha | U57: $
C58: Summer Weed Control | G58: Various | I58: Reset $/ha | L58: =var_summer_weed -> 25 | M58: =var_summer_weed | O58: =var_summer_weed -> 25 | P58: =var_summer_weed | R58: =var_summer_weed -> 25 | S58: =var_summer_weed | U58: =$U$6*(IF(rng_rainfall=1,L58,IF(rng_rainfall=2,O58,R58))) -> 0
C59: Herbicides
C60: Trifluralin 480g/L | D60: Reset Cost | E60: =VLOOKUP($C60,tbl_chemicals[[Name]:[Cost]],MATCH("Cost",tbl_chemicals[#Headers],0),0) -> 5.75 | F60: =VLOOKUP(r[0]c3,tbl_chemicals[[Name]:[Cost]],MATCH("Cost",tbl_chemicals[#Headers],0),0) | G60: =VLOOKUP($C60,tbl_chemicals[[Name]:[Cost]],MATCH("Units",tbl_chemicals[#Headers],0),0) -> litre | H60: =VLOOKUP(r[0]c3,tbl_chemicals[[Name]:[Cost]],MATCH("Units",tbl_chemicals[#Headers],0),0) | I60: Reset Rate | J60: =VLOOKUP($C60&"Low",CHOOSE({1,2},tbl_chemicals[Name]&tbl_chemicals[Rainfall],INDIRECT("tbl_chemicals["&var_crop&"]")),2,0) -> 1.5 | K60: =VLOOKUP(r[0]c3&"Low",CHOOSE({1,2},tbl_chemicals[Name]&tbl_chemicals[Rainfall],INDIRECT("tbl_chemicals["&var_crop&"]")),2,0) | L60: =(J60*$E60)+IFERROR(VLOOKUP($C60,tbl_chemicals[],MATCH("Adjuvant Cost/ha",tbl_chemicals[#Headers],0),0),0)*(J60<>0) -> 8.625 | M60: =VLOOKUP($C60&"Medium",CHOOSE({1,2},tbl_chemicals[Name]&tbl_chemicals[Rainfall],INDIRECT("tbl_chemicals["&var_crop&"]")),2,0) -> 0 | N60: =VLOOKUP(r[0]c3&"Medium",CHOOSE({1,2},tbl_chemicals[Name]&tbl_chemicals[Rainfall],INDIRECT("tbl_chemicals["&var_crop&"]")),2,0) | O60: =(M60*$E60)+IFERROR(VLOOKUP($C60,tbl_chemicals[],MATCH("Adjuvant Cost/ha",tbl_chemicals[#Headers],0),0),0)*(M60<>0) -> 0 | P60: =VLOOKUP($C60&"High",CHOOSE({1,2},tbl_chemicals[Name]&tbl_chemicals[Rainfall],INDIRECT("tbl_chemicals["&var_crop&"]")),2,0) -> 0 | Q60: =VLOOKUP(r[0]c3&"High",CHOOSE({1,2},tbl_chemicals[Name]&tbl_chemicals[Rainfall],INDIRECT("tbl_chemicals["&var_crop&"]")),2,0) | R60: =(P60*$E60)+IFERROR(VLOOKUP($C60,tbl_chemicals[],MATCH("Adjuvant Cost/ha",tbl_chemicals[#Headers],0),0),0)*(P60<>0) -> 0 | U60: =$U$6*(IF(rng_rainfall=1,L60,IF(rng_rainfall=2,O60,R60))) -> 0
C61: Tri-allate 500g/L | D61: Reset Cost | E61: =VLOOKUP($C61,tbl_chemicals[[Name]:[Cost]],MATCH("Cost",tbl_chemicals[#Headers],0),0) -> 9.58 | F61: =VLOOKUP(r[0]c3,tbl_chemicals[[Name]:[Cost]],MATCH("Cost",tbl_chemicals[#Headers],0),0) | G61: =VLOOKUP($C61,tbl_chemicals[[Name]:[Cost]],MATCH("Units",tbl_chemicals[#Headers],0),0) -> litre | H61: =VLOOKUP(r[0]c3,tbl_chemicals[[Name]:[Cost]],MATCH("Units",tbl_chemicals[#Headers],0),0) | I61: Reset Rate | J61: =VLOOKUP($C61&"Low",CHOOSE({1,2},tbl_chemicals[Name]&tbl_chemicals[Rainfall],INDIRECT("tbl_chemicals["&var_crop&"]")),2,0) -> 1.6 | K61: =VLOOKUP(r[0]c3&"Low",CHOOSE({1,2},tbl_chemicals[Name]&tbl_chemicals[Rainfall],INDIRECT("tbl_chemicals["&var_crop&"]")),2,0) | L61: =(J61*$E61)+IFERROR(VLOOKUP($C61,tbl_chemicals[],MATCH("Adjuvant Cost/ha",tbl_chemicals[#Headers],0),0),0)*(J61<>0) -> 15.328 | M61: =VLOOKUP($C61&"Medium",CHOOSE({1,2},tbl_chemicals[Name]&tbl_chemicals[Rainfall],INDIRECT("tbl_chemicals["&var_crop&"]")),2,0) -> 0 | N61: =VLOOKUP(r[0]c3&"Medium",CHOOSE({1,2},tbl_chemicals[Name]&tbl_chemicals[Rainfall],INDIRECT("tbl_chemicals["&var_crop&"]")),2,0) | O61: =(M61*$E61)+IFERROR(VLOOKUP($C61,tbl_chemicals[],MATCH("Adjuvant Cost/ha",tbl_chemicals[#Headers],0),0),0)*(M61<>0) -> 0 | P61: =VLOOKUP($C61&"High",CHOOSE({1,2},tbl_chemicals[Name]&tbl_chemicals[Rainfall],INDIRECT("tbl_chemicals["&var_crop&"]")),2,0) -> 0 | Q61: =VLOOKUP(r[0]c3&"High",CHOOSE({1,2},tbl_chemicals[Name]&tbl_chemicals[Rainfall],INDIRECT("tbl_chemicals["&var_crop&"]")),2,0) | R61: =(P61*$E61)+IFERROR(VLOOKUP($C61,tbl_chemicals[],MATCH("Adjuvant Cost/ha",tbl_chemicals[#Headers],0),0),0)*(P61<>0) -> 0 | U61: 0
C62: Glyphosate 540g/L | D62: Reset Cost | E62: =VLOOKUP($C62,tbl_chemicals[[Name]:[Cost]],MATCH("Cost",tbl_chemicals[#Headers],0),0) -> 6 | F62: =VLOOKUP(r[0]c3,tbl_chemicals[[Name]:[Cost]],MATCH("Cost",tbl_chemicals[#Headers],0),0) | G62: =VLOOKUP($C62,tbl_chemicals[[Name]:[Cost]],MATCH("Units",tbl_chemicals[#Headers],0),0) -> litre | H62: =VLOOKUP(r[0]c3,tbl_chemicals[[Name]:[Cost]],MATCH("Units",tbl_chemicals[#Headers],0),0) | I62: Reset Rate | J62: =VLOOKUP($C62&"Low",CHOOSE({1,2},tbl_chemicals[Name]&tbl_chemicals[Rainfall],INDIRECT("tbl_chemicals["&var_crop&"]")),2,0) -> 1.2 | K62: =VLOOKUP(r[0]c3&"Low",CHOOSE({1,2},tbl_chemicals[Name]&tbl_chemicals[Rainfall],INDIRECT("tbl_chemicals["&var_crop&"]")),2,0) | L62: =(J62*$E62)+IFERROR(VLOOKUP($C62,tbl_chemicals[],MATCH("Adjuvant Cost/ha",tbl_chemicals[#Headers],0),0),0)*(J62<>0) -> 7.2 | M62: =VLOOKUP($C62&"Medium",CHOOSE({1,2},tbl_chemicals[Name]&tbl_chemicals[Rainfall],INDIRECT("tbl_chemicals["&var_crop&"]")),2,0) -> 1.2 | N62: =VLOOKUP(r[0]c3&"Medium",CHOOSE({1,2},tbl_chemicals[Name]&tbl_chemicals[Rainfall],INDIRECT("tbl_chemicals["&var_crop&"]")),2,0) | O62: =(M62*$E62)+IFERROR(VLOOKUP($C62,tbl_chemicals[],MATCH("Adjuvant Cost/ha",tbl_chemicals[#Headers],0),0),0)*(M62<>0) -> 7.2 | P62: =VLOOKUP($C62&"High",CHOOSE({1,2},tbl_chemicals[Name]&tbl_chemicals[Rainfall],INDIRECT("tbl_chemicals["&var_crop&"]")),2,0) -> 1.2 | Q62: =VLOOKUP(r[0]c3&"High",CHOOSE({1,2},tbl_chemicals[Name]&tbl_chemicals[Rainfall],INDIRECT("tbl_chemicals["&var_crop&"]")),2,0) | R62: =(P62*$E62)+IFERROR(VLOOKUP($C62,tbl_chemicals[],MATCH("Adjuvant Cost/ha",tbl_chemicals[#Headers],0),0),0)*(P62<>0) -> 7.2 | U62: 0
C63: Carfentrazone 400g/L (Hammer) | D63: Reset Cost | E63: =VLOOKUP($C63,tbl_chemicals[[Name]:[Cost]],MATCH("Cost",tbl_chemicals[#Headers],0),0) -> 190 | F63: =VLOOKUP(r[0]c3,tbl_chemicals[[Name]:[Cost]],MATCH("Cost",tbl_chemicals[#Headers],0),0) | G63: =VLOOKUP($C63,tbl_chemicals[[Name]:[Cost]],MATCH("Units",tbl_chemicals[#Headers],0),0) -> litre | H63: =VLOOKUP(r[0]c3,tbl_chemicals[[Name]:[Cost]],MATCH("Units",tbl_chemicals[#Headers],0),0) | I63: Reset Rate | J63: =VLOOKUP($C63&"Low",CHOOSE({1,2},tbl_chemicals[Name]&tbl_chemicals[Rainfall],INDIRECT("tbl_chemicals["&var_crop&"]")),2,0) -> 0.02 | K63: =VLOOKUP(r[0]c3&"Low",CHOOSE({1,2},tbl_chemicals[Name]&tbl_chemicals[Rainfall],INDIRECT("tbl_chemicals["&var_crop&"]")),2,0) | L63: =(J63*$E63)+IFERROR(VLOOKUP($C63,tbl_chemicals[],MATCH("Adjuvant Cost/ha",tbl_chemicals[#Headers],0),0),0)*(J63<>0) -> 3.8 | M63: =VLOOKUP($C63&"Medium",CHOOSE({1,2},tbl_chemicals[Name]&tbl_chemicals[Rainfall],INDIRECT("tbl_chemicals["&var_crop&"]")),2,0) -> 0.02 | N63: =VLOOKUP(r[0]c3&"Medium",CHOOSE({1,2},tbl_chemicals[Name]&tbl_chemicals[Rainfall],INDIRECT("tbl_chemicals["&var_crop&"]")),2,0) | O63: =(M63*$E63)+IFERROR(VLOOKUP($C63,tbl_chemicals[],MATCH("Adjuvant Cost/ha",tbl_chemicals[#Headers],0),0),0)*(M63<>0) -> 3.8 | P63: =VLOOKUP($C63&"High",CHOOSE({1,2},tbl_chemicals[Name]&tbl_chemicals[Rainfall],INDIRECT("tbl_chemicals["&var_crop&"]")),2,0) -> 0.02 | Q63: =VLOOKUP(r[0]c3&"High",CHOOSE({1,2},tbl_chemicals[Name]&tbl_chemicals[Rainfall],INDIRECT("tbl_chemicals["&var_crop&"]")),2,0) | R63: =(P63*$E63)+IFERROR(VLOOKUP($C63,tbl_chemicals[],MATCH("Adjuvant Cost/ha",tbl_chemicals[#Headers],0),0),0)*(P63<>0) -> 3.8 | U63: 0
C64: Sakura® | D64: Reset Cost | E64: =VLOOKUP($C64,tbl_chemicals[[Name]:[Cost]],MATCH("Cost",tbl_chemicals[#Headers],0),0) -> 340 | F64: =VLOOKUP(r[0]c3,tbl_chemicals[[Name]:[Cost]],MATCH("Cost",tbl_chemicals[#Headers],0),0) | G64: =VLOOKUP($C64,tbl_chemicals[[Name]:[Cost]],MATCH("Units",tbl_chemicals[#Headers],0),0) -> kg | H64: =VLOOKUP(r[0]c3,tbl_chemicals[[Name]:[Cost]],MATCH("Units",tbl_chemicals[#Headers],0),0) | I64: Reset Rate | J64: =VLOOKUP($C64&"Low",CHOOSE({1,2},tbl_chemicals[Name]&tbl_chemicals[Rainfall],INDIRECT("tbl_chemicals["&var_crop&"]")),2,0) -> 0 | K64: =VLOOKUP(r[0]c3&"Low",CHOOSE({1,2},tbl_chemicals[Name]&tbl_chemicals[Rainfall],INDIRECT("tbl_chemicals["&var_crop&"]")),2,0) | L64: =(J64*$E64)+IFERROR(VLOOKUP($C64,tbl_chemicals[],MATCH("Adjuvant Cost/ha",tbl_chemicals[#Headers],0),0),0)*(J64<>0) -> 0 | M64: =VLOOKUP($C64&"Medium",CHOOSE({1,2},tbl_chemicals[Name]&tbl_chemicals[Rainfall],INDIRECT("tbl_chemicals["&var_crop&"]")),2,0) -> 0.118 | N64: =VLOOKUP(r[0]c3&"Medium",CHOOSE({1,2},tbl_chemicals[Name]&tbl_chemicals[Rainfall],INDIRECT("tbl_chemicals["&var_crop&"]")),2,0) | O64: =(M64*$E64)+IFERROR(VLOOKUP($C64,tbl_chemicals[],MATCH("Adjuvant Cost/ha",tbl_chemicals[#Headers],0),0),0)*(M64<>0) -> 40.12 | P64: =VLOOKUP($C64&"High",CHOOSE({1,2},tbl_chemicals[Name]&tbl_chemicals[Rainfall],INDIRECT("tbl_chemicals["&var_crop&"]")),2,0) -> 0.118 | Q64: =VLOOKUP(r[0]c3&"High",CHOOSE({1,2},tbl_chemicals[Name]&tbl_chemicals[Rainfall],INDIRECT("tbl_chemicals["&var_crop&"]")),2,0) | R64: =(P64*$E64)+IFERROR(VLOOKUP($C64,tbl_chemicals[],MATCH("Adjuvant Cost/ha",tbl_chemicals[#Headers],0),0),0)*(P64<>0) -> 40.12 | U64: 0
C65: Topik® EC | D65: Reset Cost | E65: =VLOOKUP($C65,tbl_chemicals[[Name]:[Cost]],MATCH("Cost",tbl_chemicals[#Headers],0),0) -> 38.8 | F65: =VLOOKUP(r[0]c3,tbl_chemicals[[Name]:[Cost]],MATCH("Cost",tbl_chemicals[#Headers],0),0) | G65: =VLOOKUP($C65,tbl_chemicals[[Name]:[Cost]],MATCH("Units",tbl_chemicals[#Headers],0),0) -> litre | H65: =VLOOKUP(r[0]c3,tbl_chemicals[[Name]:[Cost]],MATCH("Units",tbl_chemicals[#Headers],0),0) | I65: Reset Rate | J65: =VLOOKUP($C65&"Low",CHOOSE({1,2},tbl_chemicals[Name]&tbl_chemicals[Rainfall],INDIRECT("tbl_chemicals["&var_crop&"]")),2,0) -> 0 | K65: =VLOOKUP(r[0]c3&"Low",CHOOSE({1,2},tbl_chemicals[Name]&tbl_chemicals[Rainfall],INDIRECT("tbl_chemicals["&var_crop&"]")),2,0) | L65: =(J65*$E65)+IFERROR(VLOOKUP($C65,tbl_chemicals[],MATCH("Adjuvant Cost/ha",tbl_chemicals[#Headers],0),0),0)*(J65<>0) -> 0 | M65: =VLOOKUP($C65&"Medium",CHOOSE({1,2},tbl_chemicals[Name]&tbl_chemicals[Rainfall],INDIRECT("tbl_chemicals["&var_crop&"]")),2,0) -> 0.085 | N65: =VLOOKUP(r[0]c3&"Medium",CHOOSE({1,2},tbl_chemicals[Name]&tbl_chemicals[Rainfall],INDIRECT("tbl_chemicals["&var_crop&"]")),2,0) | O65: =(M65*$E65)+IFERROR(VLOOKUP($C65,tbl_chemicals[],MATCH("Adjuvant Cost/ha",tbl_chemicals[#Headers],0),0),0)*(M65<>0) -> 5.623 | P65: =VLOOKUP($C65&"High",CHOOSE({1,2},tbl_chemicals[Name]&tbl_chemicals[Rainfall],INDIRECT("tbl_chemicals["&var_crop&"]")),2,0) -> 0.085 | Q65: =VLOOKUP(r[0]c3&"High",CHOOSE({1,2},tbl_chemicals[Name]&tbl_chemicals[Rainfall],INDIRECT("tbl_chemicals["&var_crop&"]")),2,0) | R65: =(P65*$E65)+IFERROR(VLOOKUP($C65,tbl_chemicals[],MATCH("Adjuvant Cost/ha",tbl_chemicals[#Headers],0),0),0)*(P65<>0) -> 5.623 | U65: 0
C66: M.C.P.A. LVE | D66: Reset Cost | E66: =VLOOKUP($C66,tbl_chemicals[[Name]:[Cost]],MATCH("Cost",tbl_chemicals[#Headers],0),0) -> 8.85 | F66: =VLOOKUP(r[0]c3,tbl_chemicals[[Name]:[Cost]],MATCH("Cost",tbl_chemicals[#Headers],0),0) | G66: =VLOOKUP($C66,tbl_chemicals[[Name]:[Cost]],MATCH("Units",tbl_chemicals[#Headers],0),0) -> litre | H66: =VLOOKUP(r[0]c3,tbl_chemicals[[Name]:[Cost]],MATCH("Units",tbl_chemicals[#Headers],0),0) | I66: Reset Rate | J66: =VLOOKUP($C66&"Low",CHOOSE({1,2},tbl_chemicals[Name]&tbl_chemicals[Rainfall],INDIRECT("tbl_chemicals["&var_crop&"]")),2,0) -> 0.5 | K66: =VLOOKUP(r[0]c3&"Low",CHOOSE({1,2},tbl_chemicals[Name]&tbl_chemicals[Rainfall],INDIRECT("tbl_chemicals["&var_crop&"]")),2,0) | L66: =(J66*$E66)+IFERROR(VLOOKUP($C66,tbl_chemicals[],MATCH("Adjuvant Cost/ha",tbl_chemicals[#Headers],0),0),0)*(J66<>0) -> 4.425 | M66: =VLOOKUP($C66&"Medium",CHOOSE({1,2},tbl_chemicals[Name]&tbl_chemicals[Rainfall],INDIRECT("tbl_chemicals["&var_crop&"]")),2,0) -> 0 | N66: =VLOOKUP(r[0]c3&"Medium",CHOOSE({1,2},tbl_chemicals[Name]&tbl_chemicals[Rainfall],INDIRECT("tbl_chemicals["&var_crop&"]")),2,0) | O66: =(M66*$E66)+IFERROR(VLOOKUP($C66,tbl_chemicals[],MATCH("Adjuvant Cost/ha",tbl_chemicals[#Headers],0),0),0)*(M66<>0) -> 0 | P66: =VLOOKUP($C66&"High",CHOOSE({1,2},tbl_chemicals[Name]&tbl_chemicals[Rainfall],INDIRECT("tbl_chemicals["&var_crop&"]")),2,0) -> 0 | Q66: =VLOOKUP(r[0]c3&"High",CHOOSE({1,2},tbl_chemicals[Name]&tbl_chemicals[Rainfall],INDIRECT("tbl_chemicals["&var_crop&"]")),2,0) | R66: =(P66*$E66)+IFERROR(VLOOKUP($C66,tbl_chemicals[],MATCH("Adjuvant Cost/ha",tbl_chemicals[#Headers],0),0),0)*(P66<>0) -> 0 | U66: 0
C67: Metsulfuron methyl | D67: Reset Cost | E67: =VLOOKUP($C67,tbl_chemicals[[Name]:[Cost]],MATCH("Cost",tbl_chemicals[#Headers],0),0) -> 0.06 | F67: =VLOOKUP(r[0]c3,tbl_chemicals[[Name]:[Cost]],MATCH("Cost",tbl_chemicals[#Headers],0),0) | G67: =VLOOKUP($C67,tbl_chemicals[[Name]:[Cost]],MATCH("Units",tbl_chemicals[#Headers],0),0) -> gram | H67: =VLOOKUP(r[0]c3,tbl_chemicals[[Name]:[Cost]],MATCH("Units",tbl_chemicals[#Headers],0),0) | I67: Reset Rate | J67: =VLOOKUP($C67&"Low",CHOOSE({1,2},tbl_chemicals[Name]&tbl_chemicals[Rainfall],INDIRECT("tbl_chemicals["&var_crop&"]")),2,0) -> 5 | K67: =VLOOKUP(r[0]c3&"Low",CHOOSE({1,2},tbl_chemicals[Name]&tbl_chemicals[Rainfall],INDIRECT("tbl_chemicals["&var_crop&"]")),2,0) | L67: =(J67*$E67)+IFERROR(VLOOKUP($C67,tbl_chemicals[],MATCH("Adjuvant Cost/ha",tbl_chemicals[#Headers],0),0),0)*(J67<>0) -> 0.72 | M67: =VLOOKUP($C67&"Medium",CHOOSE({1,2},tbl_chemicals[Name]&tbl_chemicals[Rainfall],INDIRECT("tbl_chemicals["&var_crop&"]")),2,0) -> 0 | N67: =VLOOKUP(r[0]c3&"Medium",CHOOSE({1,2},tbl_chemicals[Name]&tbl_chemicals[Rainfall],INDIRECT("tbl_chemicals["&var_crop&"]")),2,0) | O67: =(M67*$E67)+IFERROR(VLOOKUP($C67,tbl_chemicals[],MATCH("Adjuvant Cost/ha",tbl_chemicals[#Headers],0),0),0)*(M67<>0) -> 0 | P67: =VLOOKUP($C67&"High",CHOOSE({1,2},tbl_chemicals[Name]&tbl_chemicals[Rainfall],INDIRECT("tbl_chemicals["&var_crop&"]")),2,0) -> 0 | Q67: =VLOOKUP(r[0]c3&"High",CHOOSE({1,2},tbl_chemicals[Name]&tbl_chemicals[Rainfall],INDIRECT("tbl_chemicals["&var_crop&"]")),2,0) | R67: =(P67*$E67)+IFERROR(VLOOKUP($C67,tbl_chemicals[],MATCH("Adjuvant Cost/ha",tbl_chemicals[#Headers],0),0),0)*(P67<>0) -> 0 | U67: 0
C68: Clopyralid 600g/L (Lontrel® Advanced) | D68: Reset Cost | E68: =VLOOKUP($C68,tbl_chemicals[[Name]:[Cost]],MATCH("Cost",tbl_chemicals[#Headers],0),0) -> 39.6 | F68: =VLOOKUP(r[0]c3,tbl_chemicals[[Name]:[Cost]],MATCH("Cost",tbl_chemicals[#Headers],0),0) | G68: =VLOOKUP($C68,tbl_chemicals[[Name]:[Cost]],MATCH("Units",tbl_chemicals[#Headers],0),0) -> litre | H68: =VLOOKUP(r[0]c3,tbl_chemicals[[Name]:[Cost]],MATCH("Units",tbl_chemicals[#Headers],0),0) | I68: Reset Rate | J68: =VLOOKUP($C68&"Low",CHOOSE({1,2},tbl_chemicals[Name]&tbl_chemicals[Rainfall],INDIRECT("tbl_chemicals["&var_crop&"]")),2,0) -> 0.04 | K68: =VLOOKUP(r[0]c3&"Low",CHOOSE({1,2},tbl_chemicals[Name]&tbl_chemicals[Rainfall],INDIRECT("tbl_chemicals["&var_crop&"]")),2,0) | L68: =(J68*$E68)+IFERROR(VLOOKUP($C68,tbl_chemicals[],MATCH("Adjuvant Cost/ha",tbl_chemicals[#Headers],0),0),0)*(J68<>0) -> 1.584 | M68: =VLOOKUP($C68&"Medium",CHOOSE({1,2},tbl_chemicals[Name]&tbl_chemicals[Rainfall],INDIRECT("tbl_chemicals["&var_crop&"]")),2,0) -> 0.04 | N68: =VLOOKUP(r[0]c3&"Medium",CHOOSE({1,2},tbl_chemicals[Name]&tbl_chemicals[Rainfall],INDIRECT("tbl_chemicals["&var_crop&"]")),2,0) | O68: =(M68*$E68)+IFERROR(VLOOKUP($C68,tbl_chemicals[],MATCH("Adjuvant Cost/ha",tbl_chemicals[#Headers],0),0),0)*(M68<>0) -> 1.584 | P68: =VLOOKUP($C68&"High",CHOOSE({1,2},tbl_chemicals[Name]&tbl_chemicals[Rainfall],INDIRECT("tbl_chemicals["&var_crop&"]")),2,0) -> 0.04 | Q68: =VLOOKUP(r[0]c3&"High",CHOOSE({1,2},tbl_chemicals[Name]&tbl_chemicals[Rainfall],INDIRECT("tbl_chemicals["&var_crop&"]")),2,0) | R68: =(P68*$E68)+IFERROR(VLOOKUP($C68,tbl_chemicals[],MATCH("Adjuvant Cost/ha",tbl_chemicals[#Headers],0),0),0)*(P68<>0) -> 1.584 | U68: 0
C69: Affinity® | D69: Reset Cost | E69: =VLOOKUP($C69,tbl_chemicals[[Name]:[Cost]],MATCH("Cost",tbl_chemicals[#Headers],0),0) -> 122.5 | F69: =VLOOKUP(r[0]c3,tbl_chemicals[[Name]:[Cost]],MATCH("Cost",tbl_chemicals[#Headers],0),0) | G69: =VLOOKUP($C69,tbl_chemicals[[Name]:[Cost]],MATCH("Units",tbl_chemicals[#Headers],0),0) -> litre | H69: =VLOOKUP(r[0]c3,tbl_chemicals[[Name]:[Cost]],MATCH("Units",tbl_chemicals[#Headers],0),0) | I69: Reset Rate | J69: =VLOOKUP($C69&"Low",CHOOSE({1,2},tbl_chemicals[Name]&tbl_chemicals[Rainfall],INDIRECT("tbl_chemicals["&var_crop&"]")),2,0) -> 0 | K69: =VLOOKUP(r[0]c3&"Low",CHOOSE({1,2},tbl_chemicals[Name]&tbl_chemicals[Rainfall],INDIRECT("tbl_chemicals["&var_crop&"]")),2,0) | L69: =(J69*$E69)+IFERROR(VLOOKUP($C69,tbl_chemicals[],MATCH("Adjuvant Cost/ha",tbl_chemicals[#Headers],0),0),0)*(J69<>0) -> 0 | M69: =VLOOKUP($C69&"Medium",CHOOSE({1,2},tbl_chemicals[Name]&tbl_chemicals[Rainfall],INDIRECT("tbl_chemicals["&var_crop&"]")),2,0) -> 0.1 | N69: =VLOOKUP(r[0]c3&"Medium",CHOOSE({1,2},tbl_chemicals[Name]&tbl_chemicals[Rainfall],INDIRECT("tbl_chemicals["&var_crop&"]")),2,0) | O69: =(M69*$E69)+IFERROR(VLOOKUP($C69,tbl_chemicals[],MATCH("Adjuvant Cost/ha",tbl_chemicals[#Headers],0),0),0)*(M69<>0) -> 12.25 | P69: =VLOOKUP($C69&"High",CHOOSE({1,2},tbl_chemicals[Name]&tbl_chemicals[Rainfall],INDIRECT("tbl_chemicals["&var_crop&"]")),2,0) -> 0.1 | Q69: =VLOOKUP(r[0]c3&"High",CHOOSE({1,2},tbl_chemicals[Name]&tbl_chemicals[Rainfall],INDIRECT("tbl_chemicals["&var_crop&"]")),2,0) | R69: =(P69*$E69)+IFERROR(VLOOKUP($C69,tbl_chemicals[],MATCH("Adjuvant Cost/ha",tbl_chemicals[#Headers],0),0),0)*(P69<>0) -> 12.25 | U69: 0
C70: MCPA Amine (750g/L) | D70: Reset Cost | E70: =VLOOKUP($C70,tbl_chemicals[[Name]:[Cost]],MATCH("Cost",tbl_chemicals[#Headers],0),0) -> 8.75 | F70: =VLOOKUP(r[0]c3,tbl_chemicals[[Name]:[Cost]],MATCH("Cost",tbl_chemicals[#Headers],0),0) | G70: =VLOOKUP($C70,tbl_chemicals[[Name]:[Cost]],MATCH("Units",tbl_chemicals[#Headers],0),0) -> litre | H70: =VLOOKUP(r[0]c3,tbl_chemicals[[Name]:[Cost]],MATCH("Units",tbl_chemicals[#Headers],0),0) | I70: Reset Rate | J70: =VLOOKUP($C70&"Low",CHOOSE({1,2},tbl_chemicals[Name]&tbl_chemicals[Rainfall],INDIRECT("tbl_chemicals["&var_crop&"]")),2,0) -> 0 | K70: =VLOOKUP(r[0]c3&"Low",CHOOSE({1,2},tbl_chemicals[Name]&tbl_chemicals[Rainfall],INDIRECT("tbl_chemicals["&var_crop&"]")),2,0) | L70: =(J70*$E70)+IFERROR(VLOOKUP($C70,tbl_chemicals[],MATCH("Adjuvant Cost/ha",tbl_chemicals[#Headers],0),0),0)*(J70<>0) -> 0 | M70: =VLOOKUP($C70&"Medium",CHOOSE({1,2},tbl_chemicals[Name]&tbl_chemicals[Rainfall],INDIRECT("tbl_chemicals["&var_crop&"]")),2,0) -> 0.33 | N70: =VLOOKUP(r[0]c3&"Medium",CHOOSE({1,2},tbl_chemicals[Name]&tbl_chemicals[Rainfall],INDIRECT("tbl_chemicals["&var_crop&"]")),2,0) | O70: =(M70*$E70)+IFERROR(VLOOKUP($C70,tbl_chemicals[],MATCH("Adjuvant Cost/ha",tbl_chemicals[#Headers],0),0),0)*(M70<>0) -> 2.8875 | P70: =VLOOKUP($C70&"High",CHOOSE({1,2},tbl_chemicals[Name]&tbl_chemicals[Rainfall],INDIRECT("tbl_chemicals["&var_crop&"]")),2,0) -> 0.33 | Q70: =VLOOKUP(r[0]c3&"High",CHOOSE({1,2},tbl_chemicals[Name]&tbl_chemicals[Rainfall],INDIRECT("tbl_chemicals["&var_crop&"]")),2,0) | R70: =(P70*$E70)+IFERROR(VLOOKUP($C70,tbl_chemicals[],MATCH("Adjuvant Cost/ha",tbl_chemicals[#Headers],0),0),0)*(P70<>0) -> 2.8875 | U70: 0
D71: Reset Cost | F71: =VLOOKUP(r[0]c3,tbl_chemicals[[Name]:[Cost]],MATCH("Cost",tbl_chemicals[#Headers],0),0) | H71: =VLOOKUP(r[0]c3,tbl_chemicals[[Name]:[Cost]],MATCH("Units",tbl_chemicals[#Headers],0),0) | I71: Reset Rate | K71: =VLOOKUP(r[0]c3&"Low",CHOOSE({1,2},tbl_chemicals[Name]&tbl_chemicals[Rainfall],INDIRECT("tbl_chemicals["&var_crop&"]")),2,0) | L71: =(J71*$E71)+IFERROR(VLOOKUP($C71,tbl_chemicals[],MATCH("Adjuvant Cost/ha",tbl_chemicals[#Headers],0),0),0)*(J71<>0) -> 0 | N71: =VLOOKUP(r[0]c3&"Medium",CHOOSE({1,2},tbl_chemicals[Name]&tbl_chemicals[Rainfall],INDIRECT("tbl_chemicals["&var_crop&"]")),2,0) | O71: =(M71*$E71)+IFERROR(VLOOKUP($C71,tbl_chemicals[],MATCH("Adjuvant Cost/ha",tbl_chemicals[#Headers],0),0),0)*(M71<>0) -> 0 | Q71: =VLOOKUP(r[0]c3&"High",CHOOSE({1,2},tbl_chemicals[Name]&tbl_chemicals[Rainfall],INDIRECT("tbl_chemicals["&var_crop&"]")),2,0) | R71: =(P71*$E71)+IFERROR(VLOOKUP($C71,tbl_chemicals[],MATCH("Adjuvant Cost/ha",tbl_chemicals[#Headers],0),0),0)*(P71<>0) -> 0 | U71: 0
D72: Reset Cost | F72: =VLOOKUP(r[0]c3,tbl_chemicals[[Name]:[Cost]],MATCH("Cost",tbl_chemicals[#Headers],0),0) | H72: =VLOOKUP(r[0]c3,tbl_chemicals[[Name]:[Cost]],MATCH("Units",tbl_chemicals[#Headers],0),0) | I72: Reset Rate | K72: =VLOOKUP(r[0]c3&"Low",CHOOSE({1,2},tbl_chemicals[Name]&tbl_chemicals[Rainfall],INDIRECT("tbl_chemicals["&var_crop&"]")),2,0) | L72: =(J72*$E72)+IFERROR(VLOOKUP($C72,tbl_chemicals[],MATCH("Adjuvant Cost/ha",tbl_chemicals[#Headers],0),0),0)*(J72<>0) -> 0 | N72: =VLOOKUP(r[0]c3&"Medium",CHOOSE({1,2},tbl_chemicals[Name]&tbl_chemicals[Rainfall],INDIRECT("tbl_chemicals["&var_crop&"]")),2,0) | O72: =(M72*$E72)+IFERROR(VLOOKUP($C72,tbl_chemicals[],MATCH("Adjuvant Cost/ha",tbl_chemicals[#Headers],0),0),0)*(M72<>0) -> 0 | Q72: =VLOOKUP(r[0]c3&"High",CHOOSE({1,2},tbl_chemicals[Name]&tbl_chemicals[Rainfall],INDIRECT("tbl_chemicals["&var_crop&"]")),2,0) | R72: =(P72*$E72)+IFERROR(VLOOKUP($C72,tbl_chemicals[],MATCH("Adjuvant Cost/ha",tbl_chemicals[#Headers],0),0),0)*(P72<>0) -> 0 | U72: 0
D73: Reset Cost | F73: =VLOOKUP(r[0]c3,tbl_chemicals[[Name]:[Cost]],MATCH("Cost",tbl_chemicals[#Headers],0),0) | H73: =VLOOKUP(r[0]c3,tbl_chemicals[[Name]:[Cost]],MATCH("Units",tbl_chemicals[#Headers],0),0) | I73: Reset Rate | K73: =VLOOKUP(r[0]c3&"Low",CHOOSE({1,2},tbl_chemicals[Name]&tbl_chemicals[Rainfall],INDIRECT("tbl_chemicals["&var_crop&"]")),2,0) | L73: =(J73*$E73)+IFERROR(VLOOKUP($C73,tbl_chemicals[],MATCH("Adjuvant Cost/ha",tbl_chemicals[#Headers],0),0),0)*(J73<>0) -> 0 | N73: =VLOOKUP(r[0]c3&"Medium",CHOOSE({1,2},tbl_chemicals[Name]&tbl_chemicals[Rainfall],INDIRECT("tbl_chemicals["&var_crop&"]")),2,0) | O73: =(M73*$E73)+IFERROR(VLOOKUP($C73,tbl_chemicals[],MATCH("Adjuvant Cost/ha",tbl_chemicals[#Headers],0),0),0)*(M73<>0) -> 0 | Q73: =VLOOKUP(r[0]c3&"High",CHOOSE({1,2},tbl_chemicals[Name]&tbl_chemicals[Rainfall],INDIRECT("tbl_chemicals["&var_crop&"]")),2,0) | R73: =(P73*$E73)+IFERROR(VLOOKUP($C73,tbl_chemicals[],MATCH("Adjuvant Cost/ha",tbl_chemicals[#Headers],0),0),0)*(P73<>0) -> 0 | U73: 0
D74: Reset Cost | F74: =VLOOKUP(r[0]c3,tbl_chemicals[[Name]:[Cost]],MATCH("Cost",tbl_chemicals[#Headers],0),0) | H74: =VLOOKUP(r[0]c3,tbl_chemicals[[Name]:[Cost]],MATCH("Units",tbl_chemicals[#Headers],0),0) | I74: Reset Rate | K74: =VLOOKUP(r[0]c3&"Low",CHOOSE({1,2},tbl_chemicals[Name]&tbl_chemicals[Rainfall],INDIRECT("tbl_chemicals["&var_crop&"]")),2,0) | L74: =(J74*$E74)+IFERROR(VLOOKUP($C74,tbl_chemicals[],MATCH("Adjuvant Cost/ha",tbl_chemicals[#Headers],0),0),0)*(J74<>0) -> 0 | N74: =VLOOKUP(r[0]c3&"Medium",CHOOSE({1,2},tbl_chemicals[Name]&tbl_chemicals[Rainfall],INDIRECT("tbl_chemicals["&var_crop&"]")),2,0) | O74: =(M74*$E74)+IFERROR(VLOOKUP($C74,tbl_chemicals[],MATCH("Adjuvant Cost/ha",tbl_chemicals[#Headers],0),0),0)*(M74<>0) -> 0 | Q74: =VLOOKUP(r[0]c3&"High",CHOOSE({1,2},tbl_chemicals[Name]&tbl_chemicals[Rainfall],INDIRECT("tbl_chemicals["&var_crop&"]")),2,0) | R74: =(P74*$E74)+IFERROR(VLOOKUP($C74,tbl_chemicals[],MATCH("Adjuvant Cost/ha",tbl_chemicals[#Headers],0),0),0)*(P74<>0) -> 0 | U74: 0
D75: Reset Cost | F75: =VLOOKUP(r[0]c3,tbl_chemicals[[Name]:[Cost]],MATCH("Cost",tbl_chemicals[#Headers],0),0) | H75: =VLOOKUP(r[0]c3,tbl_chemicals[[Name]:[Cost]],MATCH("Units",tbl_chemicals[#Headers],0),0) | I75: Reset Rate | K75: =VLOOKUP(r[0]c3&"Low",CHOOSE({1,2},tbl_chemicals[Name]&tbl_chemicals[Rainfall],INDIRECT("tbl_chemicals["&var_crop&"]")),2,0) | L75: =(J75*$E75)+IFERROR(VLOOKUP($C75,tbl_chemicals[],MATCH("Adjuvant Cost/ha",tbl_chemicals[#Headers],0),0),0)*(J75<>0) -> 0 | N75: =VLOOKUP(r[0]c3&"Medium",CHOOSE({1,2},tbl_chemicals[Name]&tbl_chemicals[Rainfall],INDIRECT("tbl_chemicals["&var_crop&"]")),2,0) | O75: =(M75*$E75)+IFERROR(VLOOKUP($C75,tbl_chemicals[],MATCH("Adjuvant Cost/ha",tbl_chemicals[#Headers],0),0),0)*(M75<>0) -> 0 | Q75: =VLOOKUP(r[0]c3&"High",CHOOSE({1,2},tbl_chemicals[Name]&tbl_chemicals[Rainfall],INDIRECT("tbl_chemicals["&var_crop&"]")),2,0) | R75: =(P75*$E75)+IFERROR(VLOOKUP($C75,tbl_chemicals[],MATCH("Adjuvant Cost/ha",tbl_chemicals[#Headers],0),0),0)*(P75<>0) -> 0 | U75: 0
D76: Reset Cost | F76: =VLOOKUP(r[0]c3,tbl_chemicals[[Name]:[Cost]],MATCH("Cost",tbl_chemicals[#Headers],0),0) | H76: =VLOOKUP(r[0]c3,tbl_chemicals[[Name]:[Cost]],MATCH("Units",tbl_chemicals[#Headers],0),0) | I76: Reset Rate | K76: =VLOOKUP(r[0]c3&"Low",CHOOSE({1,2},tbl_chemicals[Name]&tbl_chemicals[Rainfall],INDIRECT("tbl_chemicals["&var_crop&"]")),2,0) | L76: =(J76*$E76)+IFERROR(VLOOKUP($C76,tbl_chemicals[],MATCH("Adjuvant Cost/ha",tbl_chemicals[#Headers],0),0),0)*(J76<>0) -> 0 | N76: =VLOOKUP(r[0]c3&"Medium",CHOOSE({1,2},tbl_chemicals[Name]&tbl_chemicals[Rainfall],INDIRECT("tbl_chemicals["&var_crop&"]")),2,0) | O76: =(M76*$E76)+IFERROR(VLOOKUP($C76,tbl_chemicals[],MATCH("Adjuvant Cost/ha",tbl_chemicals[#Headers],0),0),0)*(M76<>0) -> 0 | Q76: =VLOOKUP(r[0]c3&"High",CHOOSE({1,2},tbl_chemicals[Name]&tbl_chemicals[Rainfall],INDIRECT("tbl_chemicals["&var_crop&"]")),2,0) | R76: =(P76*$E76)+IFERROR(VLOOKUP($C76,tbl_chemicals[],MATCH("Adjuvant Cost/ha",tbl_chemicals[#Headers],0),0),0)*(P76<>0) -> 0 | U76: 0
D77: Reset Cost | F77: =VLOOKUP(r[0]c3,tbl_chemicals[[Name]:[Cost]],MATCH("Cost",tbl_chemicals[#Headers],0),0) | H77: =VLOOKUP(r[0]c3,tbl_chemicals[[Name]:[Cost]],MATCH("Units",tbl_chemicals[#Headers],0),0) | I77: Reset Rate | K77: =VLOOKUP(r[0]c3&"Low",CHOOSE({1,2},tbl_chemicals[Name]&tbl_chemicals[Rainfall],INDIRECT("tbl_chemicals["&var_crop&"]")),2,0) | L77: =(J77*$E77)+IFERROR(VLOOKUP($C77,tbl_chemicals[],MATCH("Adjuvant Cost/ha",tbl_chemicals[#Headers],0),0),0)*(J77<>0) -> 0 | N77: =VLOOKUP(r[0]c3&"Medium",CHOOSE({1,2},tbl_chemicals[Name]&tbl_chemicals[Rainfall],INDIRECT("tbl_chemicals["&var_crop&"]")),2,0) | O77: =(M77*$E77)+IFERROR(VLOOKUP($C77,tbl_chemicals[],MATCH("Adjuvant Cost/ha",tbl_chemicals[#Headers],0),0),0)*(M77<>0) -> 0 | Q77: =VLOOKUP(r[0]c3&"High",CHOOSE({1,2},tbl_chemicals[Name]&tbl_chemicals[Rainfall],INDIRECT("tbl_chemicals["&var_crop&"]")),2,0) | R77: =(P77*$E77)+IFERROR(VLOOKUP($C77,tbl_chemicals[],MATCH("Adjuvant Cost/ha",tbl_chemicals[#Headers],0),0),0)*(P77<>0) -> 0 | U77: 0
D78: Reset Cost | F78: =VLOOKUP(r[0]c3,tbl_chemicals[[Name]:[Cost]],MATCH("Cost",tbl_chemicals[#Headers],0),0) | H78: =VLOOKUP(r[0]c3,tbl_chemicals[[Name]:[Cost]],MATCH("Units",tbl_chemicals[#Headers],0),0) | I78: Reset Rate | K78: =VLOOKUP(r[0]c3&"Low",CHOOSE({1,2},tbl_chemicals[Name]&tbl_chemicals[Rainfall],INDIRECT("tbl_chemicals["&var_crop&"]")),2,0) | L78: =(J78*$E78)+IFERROR(VLOOKUP($C78,tbl_chemicals[],MATCH("Adjuvant Cost/ha",tbl_chemicals[#Headers],0),0),0)*(J78<>0) -> 0 | N78: =VLOOKUP(r[0]c3&"Medium",CHOOSE({1,2},tbl_chemicals[Name]&tbl_chemicals[Rainfall],INDIRECT("tbl_chemicals["&var_crop&"]")),2,0) | O78: =(M78*$E78)+IFERROR(VLOOKUP($C78,tbl_chemicals[],MATCH("Adjuvant Cost/ha",tbl_chemicals[#Headers],0),0),0)*(M78<>0) -> 0 | Q78: =VLOOKUP(r[0]c3&"High",CHOOSE({1,2},tbl_chemicals[Name]&tbl_chemicals[Rainfall],INDIRECT("tbl_chemicals["&var_crop&"]")),2,0) | R78: =(P78*$E78)+IFERROR(VLOOKUP($C78,tbl_chemicals[],MATCH("Adjuvant Cost/ha",tbl_chemicals[#Headers],0),0),0)*(P78<>0) -> 0 | U78: 0
D79: Reset Cost | F79: =VLOOKUP(r[0]c3,tbl_chemicals[[Name]:[Cost]],MATCH("Cost",tbl_chemicals[#Headers],0),0) | H79: =VLOOKUP(r[0]c3,tbl_chemicals[[Name]:[Cost]],MATCH("Units",tbl_chemicals[#Headers],0),0) | I79: Reset Rate | K79: =VLOOKUP(r[0]c3&"Low",CHOOSE({1,2},tbl_chemicals[Name]&tbl_chemicals[Rainfall],INDIRECT("tbl_chemicals["&var_crop&"]")),2,0) | L79: =(J79*$E79)+IFERROR(VLOOKUP($C79,tbl_chemicals[],MATCH("Adjuvant Cost/ha",tbl_chemicals[#Headers],0),0),0)*(J79<>0) -> 0 | N79: =VLOOKUP(r[0]c3&"Medium",CHOOSE({1,2},tbl_chemicals[Name]&tbl_chemicals[Rainfall],INDIRECT("tbl_chemicals["&var_crop&"]")),2,0) | O79: =(M79*$E79)+IFERROR(VLOOKUP($C79,tbl_chemicals[],MATCH("Adjuvant Cost/ha",tbl_chemicals[#Headers],0),0),0)*(M79<>0) -> 0 | Q79: =VLOOKUP(r[0]c3&"High",CHOOSE({1,2},tbl_chemicals[Name]&tbl_chemicals[Rainfall],INDIRECT("tbl_chemicals["&var_crop&"]")),2,0) | R79: =(P79*$E79)+IFERROR(VLOOKUP($C79,tbl_chemicals[],MATCH("Adjuvant Cost/ha",tbl_chemicals[#Headers],0),0),0)*(P79<>0) -> 0 | U79: 0
D80: Reset Cost | F80: =VLOOKUP(r[0]c3,tbl_chemicals[[Name]:[Cost]],MATCH("Cost",tbl_chemicals[#Headers],0),0) | H80: =VLOOKUP(r[0]c3,tbl_chemicals[[Name]:[Cost]],MATCH("Units",tbl_chemicals[#Headers],0),0) | I80: Reset Rate | K80: =VLOOKUP(r[0]c3&"Low",CHOOSE({1,2},tbl_chemicals[Name]&tbl_chemicals[Rainfall],INDIRECT("tbl_chemicals["&var_crop&"]")),2,0) | L80: =(J80*$E80)+IFERROR(VLOOKUP($C80,tbl_chemicals[],MATCH("Adjuvant Cost/ha",tbl_chemicals[#Headers],0),0),0)*(J80<>0) -> 0 | N80: =VLOOKUP(r[0]c3&"Medium",CHOOSE({1,2},tbl_chemicals[Name]&tbl_chemicals[Rainfall],INDIRECT("tbl_chemicals["&var_crop&"]")),2,0) | O80: =(M80*$E80)+IFERROR(VLOOKUP($C80,tbl_chemicals[],MATCH("Adjuvant Cost/ha",tbl_chemicals[#Headers],0),0),0)*(M80<>0) -> 0 | Q80: =VLOOKUP(r[0]c3&"High",CHOOSE({1,2},tbl_chemicals[Name]&tbl_chemicals[Rainfall],INDIRECT("tbl_chemicals["&var_crop&"]")),2,0) | R80: =(P80*$E80)+IFERROR(VLOOKUP($C80,tbl_chemicals[],MATCH("Adjuvant Cost/ha",tbl_chemicals[#Headers],0),0),0)*(P80<>0) -> 0 | U80: 0
D81: Reset Cost | F81: =VLOOKUP(r[0]c3,tbl_chemicals[[Name]:[Cost]],MATCH("Cost",tbl_chemicals[#Headers],0),0) | H81: =VLOOKUP(r[0]c3,tbl_chemicals[[Name]:[Cost]],MATCH("Units",tbl_chemicals[#Headers],0),0) | I81: Reset Rate | K81: =VLOOKUP(r[0]c3&"Low",CHOOSE({1,2},tbl_chemicals[Name]&tbl_chemicals[Rainfall],INDIRECT("tbl_chemicals["&var_crop&"]")),2,0) | L81: =(J81*$E81)+IFERROR(VLOOKUP($C81,tbl_chemicals[],MATCH("Adjuvant Cost/ha",tbl_chemicals[#Headers],0),0),0)*(J81<>0) -> 0 | N81: =VLOOKUP(r[0]c3&"Medium",CHOOSE({1,2},tbl_chemicals[Name]&tbl_chemicals[Rainfall],INDIRECT("tbl_chemicals["&var_crop&"]")),2,0) | O81: =(M81*$E81)+IFERROR(VLOOKUP($C81,tbl_chemicals[],MATCH("Adjuvant Cost/ha",tbl_chemicals[#Headers],0),0),0)*(M81<>0) -> 0 | Q81: =VLOOKUP(r[0]c3&"High",CHOOSE({1,2},tbl_chemicals[Name]&tbl_chemicals[Rainfall],INDIRECT("tbl_chemicals["&var_crop&"]")),2,0) | R81: =(P81*$E81)+IFERROR(VLOOKUP($C81,tbl_chemicals[],MATCH("Adjuvant Cost/ha",tbl_chemicals[#Headers],0),0),0)*(P81<>0) -> 0 | U81: 0
D82: Reset Cost | F82: =VLOOKUP(r[0]c3,tbl_chemicals[[Name]:[Cost]],MATCH("Cost",tbl_chemicals[#Headers],0),0) | H82: =VLOOKUP(r[0]c3,tbl_chemicals[[Name]:[Cost]],MATCH("Units",tbl_chemicals[#Headers],0),0) | I82: Reset Rate | K82: =VLOOKUP(r[0]c3&"Low",CHOOSE({1,2},tbl_chemicals[Name]&tbl_chemicals[Rainfall],INDIRECT("tbl_chemicals["&var_crop&"]")),2,0) | L82: =(J82*$E82)+IFERROR(VLOOKUP($C82,tbl_chemicals[],MATCH("Adjuvant Cost/ha",tbl_chemicals[#Headers],0),0),0)*(J82<>0) -> 0 | N82: =VLOOKUP(r[0]c3&"Medium",CHOOSE({1,2},tbl_chemicals[Name]&tbl_chemicals[Rainfall],INDIRECT("tbl_chemicals["&var_crop&"]")),2,0) | O82: =(M82*$E82)+IFERROR(VLOOKUP($C82,tbl_chemicals[],MATCH("Adjuvant Cost/ha",tbl_chemicals[#Headers],0),0),0)*(M82<>0) -> 0 | Q82: =VLOOKUP(r[0]c3&"High",CHOOSE({1,2},tbl_chemicals[Name]&tbl_chemicals[Rainfall],INDIRECT("tbl_chemicals["&var_crop&"]")),2,0) | R82: =(P82*$E82)+IFERROR(VLOOKUP($C82,tbl_chemicals[],MATCH("Adjuvant Cost/ha",tbl_chemicals[#Headers],0),0),0)*(P82<>0) -> 0 | U82: 0
D83: Reset Cost | F83: =VLOOKUP(r[0]c3,tbl_chemicals[[Name]:[Cost]],MATCH("Cost",tbl_chemicals[#Headers],0),0) | H83: =VLOOKUP(r[0]c3,tbl_chemicals[[Name]:[Cost]],MATCH("Units",tbl_chemicals[#Headers],0),0) | I83: Reset Rate | K83: =VLOOKUP(r[0]c3&"Low",CHOOSE({1,2},tbl_chemicals[Name]&tbl_chemicals[Rainfall],INDIRECT("tbl_chemicals["&var_crop&"]")),2,0) | L83: =(J83*$E83)+IFERROR(VLOOKUP($C83,tbl_chemicals[],MATCH("Adjuvant Cost/ha",tbl_chemicals[#Headers],0),0),0)*(J83<>0) -> 0 | N83: =VLOOKUP(r[0]c3&"Medium",CHOOSE({1,2},tbl_chemicals[Name]&tbl_chemicals[Rainfall],INDIRECT("tbl_chemicals["&var_crop&"]")),2,0) | O83: =(M83*$E83)+IFERROR(VLOOKUP($C83,tbl_chemicals[],MATCH("Adjuvant Cost/ha",tbl_chemicals[#Headers],0),0),0)*(M83<>0) -> 0 | Q83: =VLOOKUP(r[0]c3&"High",CHOOSE({1,2},tbl_chemicals[Name]&tbl_chemicals[Rainfall],INDIRECT("tbl_chemicals["&var_crop&"]")),2,0) | R83: =(P83*$E83)+IFERROR(VLOOKUP($C83,tbl_chemicals[],MATCH("Adjuvant Cost/ha",tbl_chemicals[#Headers],0),0),0)*(P83<>0) -> 0 | U83: 0
D84: Reset Cost | F84: =VLOOKUP(r[0]c3,tbl_chemicals[[Name]:[Cost]],MATCH("Cost",tbl_chemicals[#Headers],0),0) | H84: =VLOOKUP(r[0]c3,tbl_chemicals[[Name]:[Cost]],MATCH("Units",tbl_chemicals[#Headers],0),0) | I84: Reset Rate | K84: =VLOOKUP(r[0]c3&"Low",CHOOSE({1,2},tbl_chemicals[Name]&tbl_chemicals[Rainfall],INDIRECT("tbl_chemicals["&var_crop&"]")),2,0) | L84: =(J84*$E84)+IFERROR(VLOOKUP($C84,tbl_chemicals[],MATCH("Adjuvant Cost/ha",tbl_chemicals[#Headers],0),0),0)*(J84<>0) -> 0 | N84: =VLOOKUP(r[0]c3&"Medium",CHOOSE({1,2},tbl_chemicals[Name]&tbl_chemicals[Rainfall],INDIRECT("tbl_chemicals["&var_crop&"]")),2,0) | O84: =(M84*$E84)+IFERROR(VLOOKUP($C84,tbl_chemicals[],MATCH("Adjuvant Cost/ha",tbl_chemicals[#Headers],0),0),0)*(M84<>0) -> 0 | Q84: =VLOOKUP(r[0]c3&"High",CHOOSE({1,2},tbl_chemicals[Name]&tbl_chemicals[Rainfall],INDIRECT("tbl_chemicals["&var_crop&"]")),2,0) | R84: =(P84*$E84)+IFERROR(VLOOKUP($C84,tbl_chemicals[],MATCH("Adjuvant Cost/ha",tbl_chemicals[#Headers],0),0),0)*(P84<>0) -> 0 | U84: 0
D85: Reset Cost | F85: =VLOOKUP(r[0]c3,tbl_chemicals[[Name]:[Cost]],MATCH("Cost",tbl_chemicals[#Headers],0),0) | H85: =VLOOKUP(r[0]c3,tbl_chemicals[[Name]:[Cost]],MATCH("Units",tbl_chemicals[#Headers],0),0) | I85: Reset Rate | K85: =VLOOKUP(r[0]c3&"Low",CHOOSE({1,2},tbl_chemicals[Name]&tbl_chemicals[Rainfall],INDIRECT("tbl_chemicals["&var_crop&"]")),2,0) | L85: =(J85*$E85)+IFERROR(VLOOKUP($C85,tbl_chemicals[],MATCH("Adjuvant Cost/ha",tbl_chemicals[#Headers],0),0),0)*(J85<>0) -> 0 | N85: =VLOOKUP(r[0]c3&"Medium",CHOOSE({1,2},tbl_chemicals[Name]&tbl_chemicals[Rainfall],INDIRECT("tbl_chemicals["&var_crop&"]")),2,0) | O85: =(M85*$E85)+IFERROR(VLOOKUP($C85,tbl_chemicals[],MATCH("Adjuvant Cost/ha",tbl_chemicals[#Headers],0),0),0)*(M85<>0) -> 0 | Q85: =VLOOKUP(r[0]c3&"High",CHOOSE({1,2},tbl_chemicals[Name]&tbl_chemicals[Rainfall],INDIRECT("tbl_chemicals["&var_crop&"]")),2,0) | R85: =(P85*$E85)+IFERROR(VLOOKUP($C85,tbl_chemicals[],MATCH("Adjuvant Cost/ha",tbl_chemicals[#Headers],0),0),0)*(P85<>0) -> 0 | U85: 0
D86: Reset Cost | F86: =VLOOKUP(r[0]c3,tbl_chemicals[[Name]:[Cost]],MATCH("Cost",tbl_chemicals[#Headers],0),0) | H86: =VLOOKUP(r[0]c3,tbl_chemicals[[Name]:[Cost]],MATCH("Units",tbl_chemicals[#Headers],0),0) | I86: Reset Rate | K86: =VLOOKUP(r[0]c3&"Low",CHOOSE({1,2},tbl_chemicals[Name]&tbl_chemicals[Rainfall],INDIRECT("tbl_chemicals["&var_crop&"]")),2,0) | L86: =(J86*$E86)+IFERROR(VLOOKUP($C86,tbl_chemicals[],MATCH("Adjuvant Cost/ha",tbl_chemicals[#Headers],0),0),0)*(J86<>0) -> 0 | N86: =VLOOKUP(r[0]c3&"Medium",CHOOSE({1,2},tbl_chemicals[Name]&tbl_chemicals[Rainfall],INDIRECT("tbl_chemicals["&var_crop&"]")),2,0) | O86: =(M86*$E86)+IFERROR(VLOOKUP($C86,tbl_chemicals[],MATCH("Adjuvant Cost/ha",tbl_chemicals[#Headers],0),0),0)*(M86<>0) -> 0 | Q86: =VLOOKUP(r[0]c3&"High",CHOOSE({1,2},tbl_chemicals[Name]&tbl_chemicals[Rainfall],INDIRECT("tbl_chemicals["&var_crop&"]")),2,0) | R86: =(P86*$E86)+IFERROR(VLOOKUP($C86,tbl_chemicals[],MATCH("Adjuvant Cost/ha",tbl_chemicals[#Headers],0),0),0)*(P86<>0) -> 0 | U86: 0
D87: Reset Cost | F87: =VLOOKUP(r[0]c3,tbl_chemicals[[Name]:[Cost]],MATCH("Cost",tbl_chemicals[#Headers],0),0) | H87: =VLOOKUP(r[0]c3,tbl_chemicals[[Name]:[Cost]],MATCH("Units",tbl_chemicals[#Headers],0),0) | I87: Reset Rate | K87: =VLOOKUP(r[0]c3&"Low",CHOOSE({1,2},tbl_chemicals[Name]&tbl_chemicals[Rainfall],INDIRECT("tbl_chemicals["&var_crop&"]")),2,0) | L87: =(J87*$E87)+IFERROR(VLOOKUP($C87,tbl_chemicals[],MATCH("Adjuvant Cost/ha",tbl_chemicals[#Headers],0),0),0)*(J87<>0) -> 0 | N87: =VLOOKUP(r[0]c3&"Medium",CHOOSE({1,2},tbl_chemicals[Name]&tbl_chemicals[Rainfall],INDIRECT("tbl_chemicals["&var_crop&"]")),2,0) | O87: =(M87*$E87)+IFERROR(VLOOKUP($C87,tbl_chemicals[],MATCH("Adjuvant Cost/ha",tbl_chemicals[#Headers],0),0),0)*(M87<>0) -> 0 | Q87: =VLOOKUP(r[0]c3&"High",CHOOSE({1,2},tbl_chemicals[Name]&tbl_chemicals[Rainfall],INDIRECT("tbl_chemicals["&var_crop&"]")),2,0) | R87: =(P87*$E87)+IFERROR(VLOOKUP($C87,tbl_chemicals[],MATCH("Adjuvant Cost/ha",tbl_chemicals[#Headers],0),0),0)*(P87<>0) -> 0 | U87: 0
D88: Reset Cost | F88: =VLOOKUP(r[0]c3,tbl_chemicals[[Name]:[Cost]],MATCH("Cost",tbl_chemicals[#Headers],0),0) | H88: =VLOOKUP(r[0]c3,tbl_chemicals[[Name]:[Cost]],MATCH("Units",tbl_chemicals[#Headers],0),0) | I88: Reset Rate | K88: =VLOOKUP(r[0]c3&"Low",CHOOSE({1,2},tbl_chemicals[Name]&tbl_chemicals[Rainfall],INDIRECT("tbl_chemicals["&var_crop&"]")),2,0) | L88: =(J88*$E88)+IFERROR(VLOOKUP($C88,tbl_chemicals[],MATCH("Adjuvant Cost/ha",tbl_chemicals[#Headers],0),0),0)*(J88<>0) -> 0 | N88: =VLOOKUP(r[0]c3&"Medium",CHOOSE({1,2},tbl_chemicals[Name]&tbl_chemicals[Rainfall],INDIRECT("tbl_chemicals["&var_crop&"]")),2,0) | O88: =(M88*$E88)+IFERROR(VLOOKUP($C88,tbl_chemicals[],MATCH("Adjuvant Cost/ha",tbl_chemicals[#Headers],0),0),0)*(M88<>0) -> 0 | Q88: =VLOOKUP(r[0]c3&"High",CHOOSE({1,2},tbl_chemicals[Name]&tbl_chemicals[Rainfall],INDIRECT("tbl_chemicals["&var_crop&"]")),2,0) | R88: =(P88*$E88)+IFERROR(VLOOKUP($C88,tbl_chemicals[],MATCH("Adjuvant Cost/ha",tbl_chemicals[#Headers],0),0),0)*(P88<>0) -> 0 | U88: 0
D89: Reset Cost | F89: =VLOOKUP(r[0]c3,tbl_chemicals[[Name]:[Cost]],MATCH("Cost",tbl_chemicals[#Headers],0),0) | H89: =VLOOKUP(r[0]c3,tbl_chemicals[[Name]:[Cost]],MATCH("Units",tbl_chemicals[#Headers],0),0) | I89: Reset Rate | K89: =VLOOKUP(r[0]c3&"Low",CHOOSE({1,2},tbl_chemicals[Name]&tbl_chemicals[Rainfall],INDIRECT("tbl_chemicals["&var_crop&"]")),2,0) | L89: =(J89*$E89)+IFERROR(VLOOKUP($C89,tbl_chemicals[],MATCH("Adjuvant Cost/ha",tbl_chemicals[#Headers],0),0),0)*(J89<>0) -> 0 | N89: =VLOOKUP(r[0]c3&"Medium",CHOOSE({1,2},tbl_chemicals[Name]&tbl_chemicals[Rainfall],INDIRECT("tbl_chemicals["&var_crop&"]")),2,0) | O89: =(M89*$E89)+IFERROR(VLOOKUP($C89,tbl_chemicals[],MATCH("Adjuvant Cost/ha",tbl_chemicals[#Headers],0),0),0)*(M89<>0) -> 0 | Q89: =VLOOKUP(r[0]c3&"High",CHOOSE({1,2},tbl_chemicals[Name]&tbl_chemicals[Rainfall],INDIRECT("tbl_chemicals["&var_crop&"]")),2,0) | R89: =(P89*$E89)+IFERROR(VLOOKUP($C89,tbl_chemicals[],MATCH("Adjuvant Cost/ha",tbl_chemicals[#Headers],0),0),0)*(P89<>0) -> 0 | U89: 0
C90: Insecticides
D91: Reset Cost | F91: =VLOOKUP(r[0]c3,tbl_chemicals[[Name]:[Cost]],MATCH("Cost",tbl_chemicals[#Headers],0),0) | H91: =VLOOKUP(r[0]c3,tbl_chemicals[[Name]:[Cost]],MATCH("Units",tbl_chemicals[#Headers],0),0) | I91: Reset Rate | K91: =VLOOKUP(r[0]c3&"Low",CHOOSE({1,2},tbl_chemicals[Name]&tbl_chemicals[Rainfall],INDIRECT("tbl_chemicals["&var_crop&"]")),2,0) | L91: =(J91*$E91)+IFERROR(VLOOKUP($C91,tbl_chemicals[],MATCH("Adjuvant Cost/ha",tbl_chemicals[#Headers],0),0),0)*(J91<>0) -> 0 | N91: =VLOOKUP(r[0]c3&"Medium",CHOOSE({1,2},tbl_chemicals[Name]&tbl_chemicals[Rainfall],INDIRECT("tbl_chemicals["&var_crop&"]")),2,0) | O91: =(M91*$E91)+IFERROR(VLOOKUP($C91,tbl_chemicals[],MATCH("Adjuvant Cost/ha",tbl_chemicals[#Headers],0),0),0)*(M91<>0) -> 0 | Q91: =VLOOKUP(r[0]c3&"High",CHOOSE({1,2},tbl_chemicals[Name]&tbl_chemicals[Rainfall],INDIRECT("tbl_chemicals["&var_crop&"]")),2,0) | R91: =(P91*$E91)+IFERROR(VLOOKUP($C91,tbl_chemicals[],MATCH("Adjuvant Cost/ha",tbl_chemicals[#Headers],0),0),0)*(P91<>0) -> 0 | U91: =$U$6*(IF(rng_rainfall=1,L91,IF(rng_rainfall=2,O91,R91))) -> 0
D92: Reset Cost | F92: =VLOOKUP(r[0]c3,tbl_chemicals[[Name]:[Cost]],MATCH("Cost",tbl_chemicals[#Headers],0),0) | H92: =VLOOKUP(r[0]c3,tbl_chemicals[[Name]:[Cost]],MATCH("Units",tbl_chemicals[#Headers],0),0) | I92: Reset Rate | K92: =VLOOKUP(r[0]c3&"Low",CHOOSE({1,2},tbl_chemicals[Name]&tbl_chemicals[Rainfall],INDIRECT("tbl_chemicals["&var_crop&"]")),2,0) | L92: =(J92*$E92)+IFERROR(VLOOKUP($C92,tbl_chemicals[],MATCH("Adjuvant Cost/ha",tbl_chemicals[#Headers],0),0),0)*(J92<>0) -> 0 | N92: =VLOOKUP(r[0]c3&"Medium",CHOOSE({1,2},tbl_chemicals[Name]&tbl_chemicals[Rainfall],INDIRECT("tbl_chemicals["&var_crop&"]")),2,0) | O92: =(M92*$E92)+IFERROR(VLOOKUP($C92,tbl_chemicals[],MATCH("Adjuvant Cost/ha",tbl_chemicals[#Headers],0),0),0)*(M92<>0) -> 0 | Q92: =VLOOKUP(r[0]c3&"High",CHOOSE({1,2},tbl_chemicals[Name]&tbl_chemicals[Rainfall],INDIRECT("tbl_chemicals["&var_crop&"]")),2,0) | R92: =(P92*$E92)+IFERROR(VLOOKUP($C92,tbl_chemicals[],MATCH("Adjuvant Cost/ha",tbl_chemicals[#Headers],0),0),0)*(P92<>0) -> 0 | U92: 0
D93: Reset Cost | F93: =VLOOKUP(r[0]c3,tbl_chemicals[[Name]:[Cost]],MATCH("Cost",tbl_chemicals[#Headers],0),0) | H93: =VLOOKUP(r[0]c3,tbl_chemicals[[Name]:[Cost]],MATCH("Units",tbl_chemicals[#Headers],0),0) | I93: Reset Rate | K93: =VLOOKUP(r[0]c3&"Low",CHOOSE({1,2},tbl_chemicals[Name]&tbl_chemicals[Rainfall],INDIRECT("tbl_chemicals["&var_crop&"]")),2,0) | L93: =(J93*$E93)+IFERROR(VLOOKUP($C93,tbl_chemicals[],MATCH("Adjuvant Cost/ha",tbl_chemicals[#Headers],0),0),0)*(J93<>0) -> 0 | N93: =VLOOKUP(r[0]c3&"Medium",CHOOSE({1,2},tbl_chemicals[Name]&tbl_chemicals[Rainfall],INDIRECT("tbl_chemicals["&var_crop&"]")),2,0) | O93: =(M93*$E93)+IFERROR(VLOOKUP($C93,tbl_chemicals[],MATCH("Adjuvant Cost/ha",tbl_chemicals[#Headers],0),0),0)*(M93<>0) -> 0 | Q93: =VLOOKUP(r[0]c3&"High",CHOOSE({1,2},tbl_chemicals[Name]&tbl_chemicals[Rainfall],INDIRECT("tbl_chemicals["&var_crop&"]")),2,0) | R93: =(P93*$E93)+IFERROR(VLOOKUP($C93,tbl_chemicals[],MATCH("Adjuvant Cost/ha",tbl_chemicals[#Headers],0),0),0)*(P93<>0) -> 0 | U93: 0
D94: Reset Cost | F94: =VLOOKUP(r[0]c3,tbl_chemicals[[Name]:[Cost]],MATCH("Cost",tbl_chemicals[#Headers],0),0) | H94: =VLOOKUP(r[0]c3,tbl_chemicals[[Name]:[Cost]],MATCH("Units",tbl_chemicals[#Headers],0),0) | I94: Reset Rate | K94: =VLOOKUP(r[0]c3&"Low",CHOOSE({1,2},tbl_chemicals[Name]&tbl_chemicals[Rainfall],INDIRECT("tbl_chemicals["&var_crop&"]")),2,0) | L94: =(J94*$E94)+IFERROR(VLOOKUP($C94,tbl_chemicals[],MATCH("Adjuvant Cost/ha",tbl_chemicals[#Headers],0),0),0)*(J94<>0) -> 0 | N94: =VLOOKUP(r[0]c3&"Medium",CHOOSE({1,2},tbl_chemicals[Name]&tbl_chemicals[Rainfall],INDIRECT("tbl_chemicals["&var_crop&"]")),2,0) | O94: =(M94*$E94)+IFERROR(VLOOKUP($C94,tbl_chemicals[],MATCH("Adjuvant Cost/ha",tbl_chemicals[#Headers],0),0),0)*(M94<>0) -> 0 | Q94: =VLOOKUP(r[0]c3&"High",CHOOSE({1,2},tbl_chemicals[Name]&tbl_chemicals[Rainfall],INDIRECT("tbl_chemicals["&var_crop&"]")),2,0) | R94: =(P94*$E94)+IFERROR(VLOOKUP($C94,tbl_chemicals[],MATCH("Adjuvant Cost/ha",tbl_chemicals[#Headers],0),0),0)*(P94<>0) -> 0 | U94: 0
D95: Reset Cost | F95: =VLOOKUP(r[0]c3,tbl_chemicals[[Name]:[Cost]],MATCH("Cost",tbl_chemicals[#Headers],0),0) | H95: =VLOOKUP(r[0]c3,tbl_chemicals[[Name]:[Cost]],MATCH("Units",tbl_chemicals[#Headers],0),0) | I95: Reset Rate | K95: =VLOOKUP(r[0]c3&"Low",CHOOSE({1,2},tbl_chemicals[Name]&tbl_chemicals[Rainfall],INDIRECT("tbl_chemicals["&var_crop&"]")),2,0) | L95: =(J95*$E95)+IFERROR(VLOOKUP($C95,tbl_chemicals[],MATCH("Adjuvant Cost/ha",tbl_chemicals[#Headers],0),0),0)*(J95<>0) -> 0 | N95: =VLOOKUP(r[0]c3&"Medium",CHOOSE({1,2},tbl_chemicals[Name]&tbl_chemicals[Rainfall],INDIRECT("tbl_chemicals["&var_crop&"]")),2,0) | O95: =(M95*$E95)+IFERROR(VLOOKUP($C95,tbl_chemicals[],MATCH("Adjuvant Cost/ha",tbl_chemicals[#Headers],0),0),0)*(M95<>0) -> 0 | Q95: =VLOOKUP(r[0]c3&"High",CHOOSE({1,2},tbl_chemicals[Name]&tbl_chemicals[Rainfall],INDIRECT("tbl_chemicals["&var_crop&"]")),2,0) | R95: =(P95*$E95)+IFERROR(VLOOKUP($C95,tbl_chemicals[],MATCH("Adjuvant Cost/ha",tbl_chemicals[#Headers],0),0),0)*(P95<>0) -> 0 | U95: 0
D96: Reset Cost | F96: =VLOOKUP(r[0]c3,tbl_chemicals[[Name]:[Cost]],MATCH("Cost",tbl_chemicals[#Headers],0),0) | H96: =VLOOKUP(r[0]c3,tbl_chemicals[[Name]:[Cost]],MATCH("Units",tbl_chemicals[#Headers],0),0) | I96: Reset Rate | K96: =VLOOKUP(r[0]c3&"Low",CHOOSE({1,2},tbl_chemicals[Name]&tbl_chemicals[Rainfall],INDIRECT("tbl_chemicals["&var_crop&"]")),2,0) | L96: =(J96*$E96)+IFERROR(VLOOKUP($C96,tbl_chemicals[],MATCH("Adjuvant Cost/ha",tbl_chemicals[#Headers],0),0),0)*(J96<>0) -> 0 | N96: =VLOOKUP(r[0]c3&"Medium",CHOOSE({1,2},tbl_chemicals[Name]&tbl_chemicals[Rainfall],INDIRECT("tbl_chemicals["&var_crop&"]")),2,0) | O96: =(M96*$E96)+IFERROR(VLOOKUP($C96,tbl_chemicals[],MATCH("Adjuvant Cost/ha",tbl_chemicals[#Headers],0),0),0)*(M96<>0) -> 0 | Q96: =VLOOKUP(r[0]c3&"High",CHOOSE({1,2},tbl_chemicals[Name]&tbl_chemicals[Rainfall],INDIRECT("tbl_chemicals["&var_crop&"]")),2,0) | R96: =(P96*$E96)+IFERROR(VLOOKUP($C96,tbl_chemicals[],MATCH("Adjuvant Cost/ha",tbl_chemicals[#Headers],0),0),0)*(P96<>0) -> 0 | U96: 0
D97: Reset Cost | F97: =VLOOKUP(r[0]c3,tbl_chemicals[[Name]:[Cost]],MATCH("Cost",tbl_chemicals[#Headers],0),0) | H97: =VLOOKUP(r[0]c3,tbl_chemicals[[Name]:[Cost]],MATCH("Units",tbl_chemicals[#Headers],0),0) | I97: Reset Rate | K97: =VLOOKUP(r[0]c3&"Low",CHOOSE({1,2},tbl_chemicals[Name]&tbl_chemicals[Rainfall],INDIRECT("tbl_chemicals["&var_crop&"]")),2,0) | L97: =(J97*$E97)+IFERROR(VLOOKUP($C97,tbl_chemicals[],MATCH("Adjuvant Cost/ha",tbl_chemicals[#Headers],0),0),0)*(J97<>0) -> 0 | N97: =VLOOKUP(r[0]c3&"Medium",CHOOSE({1,2},tbl_chemicals[Name]&tbl_chemicals[Rainfall],INDIRECT("tbl_chemicals["&var_crop&"]")),2,0) | O97: =(M97*$E97)+IFERROR(VLOOKUP($C97,tbl_chemicals[],MATCH("Adjuvant Cost/ha",tbl_chemicals[#Headers],0),0),0)*(M97<>0) -> 0 | Q97: =VLOOKUP(r[0]c3&"High",CHOOSE({1,2},tbl_chemicals[Name]&tbl_chemicals[Rainfall],INDIRECT("tbl_chemicals["&var_crop&"]")),2,0) | R97: =(P97*$E97)+IFERROR(VLOOKUP($C97,tbl_chemicals[],MATCH("Adjuvant Cost/ha",tbl_chemicals[#Headers],0),0),0)*(P97<>0) -> 0 | U97: 0
D98: Reset Cost | F98: =VLOOKUP(r[0]c3,tbl_chemicals[[Name]:[Cost]],MATCH("Cost",tbl_chemicals[#Headers],0),0) | H98: =VLOOKUP(r[0]c3,tbl_chemicals[[Name]:[Cost]],MATCH("Units",tbl_chemicals[#Headers],0),0) | I98: Reset Rate | K98: =VLOOKUP(r[0]c3&"Low",CHOOSE({1,2},tbl_chemicals[Name]&tbl_chemicals[Rainfall],INDIRECT("tbl_chemicals["&var_crop&"]")),2,0) | L98: =(J98*$E98)+IFERROR(VLOOKUP($C98,tbl_chemicals[],MATCH("Adjuvant Cost/ha",tbl_chemicals[#Headers],0),0),0)*(J98<>0) -> 0 | N98: =VLOOKUP(r[0]c3&"Medium",CHOOSE({1,2},tbl_chemicals[Name]&tbl_chemicals[Rainfall],INDIRECT("tbl_chemicals["&var_crop&"]")),2,0) | O98: =(M98*$E98)+IFERROR(VLOOKUP($C98,tbl_chemicals[],MATCH("Adjuvant Cost/ha",tbl_chemicals[#Headers],0),0),0)*(M98<>0) -> 0 | Q98: =VLOOKUP(r[0]c3&"High",CHOOSE({1,2},tbl_chemicals[Name]&tbl_chemicals[Rainfall],INDIRECT("tbl_chemicals["&var_crop&"]")),2,0) | R98: =(P98*$E98)+IFERROR(VLOOKUP($C98,tbl_chemicals[],MATCH("Adjuvant Cost/ha",tbl_chemicals[#Headers],0),0),0)*(P98<>0) -> 0 | U98: 0
D99: Reset Cost | F99: =VLOOKUP(r[0]c3,tbl_chemicals[[Name]:[Cost]],MATCH("Cost",tbl_chemicals[#Headers],0),0) | H99: =VLOOKUP(r[0]c3,tbl_chemicals[[Name]:[Cost]],MATCH("Units",tbl_chemicals[#Headers],0),0) | I99: Reset Rate | K99: =VLOOKUP(r[0]c3&"Low",CHOOSE({1,2},tbl_chemicals[Name]&tbl_chemicals[Rainfall],INDIRECT("tbl_chemicals["&var_crop&"]")),2,0) | L99: =(J99*$E99)+IFERROR(VLOOKUP($C99,tbl_chemicals[],MATCH("Adjuvant Cost/ha",tbl_chemicals[#Headers],0),0),0)*(J99<>0) -> 0 | N99: =VLOOKUP(r[0]c3&"Medium",CHOOSE({1,2},tbl_chemicals[Name]&tbl_chemicals[Rainfall],INDIRECT("tbl_chemicals["&var_crop&"]")),2,0) | O99: =(M99*$E99)+IFERROR(VLOOKUP($C99,tbl_chemicals[],MATCH("Adjuvant Cost/ha",tbl_chemicals[#Headers],0),0),0)*(M99<>0) -> 0 | Q99: =VLOOKUP(r[0]c3&"High",CHOOSE({1,2},tbl_chemicals[Name]&tbl_chemicals[Rainfall],INDIRECT("tbl_chemicals["&var_crop&"]")),2,0) | R99: =(P99*$E99)+IFERROR(VLOOKUP($C99,tbl_chemicals[],MATCH("Adjuvant Cost/ha",tbl_chemicals[#Headers],0),0),0)*(P99<>0) -> 0 | U99: 0
D100: Reset Cost | F100: =VLOOKUP(r[0]c3,tbl_chemicals[[Name]:[Cost]],MATCH("Cost",tbl_chemicals[#Headers],0),0) | H100: =VLOOKUP(r[0]c3,tbl_chemicals[[Name]:[Cost]],MATCH("Units",tbl_chemicals[#Headers],0),0) | I100: Reset Rate | K100: =VLOOKUP(r[0]c3&"Low",CHOOSE({1,2},tbl_chemicals[Name]&tbl_chemicals[Rainfall],INDIRECT("tbl_chemicals["&var_crop&"]")),2,0) | L100: =(J100*$E100)+IFERROR(VLOOKUP($C100,tbl_chemicals[],MATCH("Adjuvant Cost/ha",tbl_chemicals[#Headers],0),0),0)*(J100<>0) -> 0 | N100: =VLOOKUP(r[0]c3&"Medium",CHOOSE({1,2},tbl_chemicals[Name]&tbl_chemicals[Rainfall],INDIRECT("tbl_chemicals["&var_crop&"]")),2,0) | O100: =(M100*$E100)+IFERROR(VLOOKUP($C100,tbl_chemicals[],MATCH("Adjuvant Cost/ha",tbl_chemicals[#Headers],0),0),0)*(M100<>0) -> 0 | Q100: =VLOOKUP(r[0]c3&"High",CHOOSE({1,2},tbl_chemicals[Name]&tbl_chemicals[Rainfall],INDIRECT("tbl_chemicals["&var_crop&"]")),2,0) | R100: =(P100*$E100)+IFERROR(VLOOKUP($C100,tbl_chemicals[],MATCH("Adjuvant Cost/ha",tbl_chemicals[#Headers],0),0),0)*(P100<>0) -> 0 | U100: 0
D101: Reset Cost | F101: =VLOOKUP(r[0]c3,tbl_chemicals[[Name]:[Cost]],MATCH("Cost",tbl_chemicals[#Headers],0),0) | H101: =VLOOKUP(r[0]c3,tbl_chemicals[[Name]:[Cost]],MATCH("Units",tbl_chemicals[#Headers],0),0) | I101: Reset Rate | K101: =VLOOKUP(r[0]c3&"Low",CHOOSE({1,2},tbl_chemicals[Name]&tbl_chemicals[Rainfall],INDIRECT("tbl_chemicals["&var_crop&"]")),2,0) | L101: =(J101*$E101)+IFERROR(VLOOKUP($C101,tbl_chemicals[],MATCH("Adjuvant Cost/ha",tbl_chemicals[#Headers],0),0),0)*(J101<>0) -> 0 | N101: =VLOOKUP(r[0]c3&"Medium",CHOOSE({1,2},tbl_chemicals[Name]&tbl_chemicals[Rainfall],INDIRECT("tbl_chemicals["&var_crop&"]")),2,0) | O101: =(M101*$E101)+IFERROR(VLOOKUP($C101,tbl_chemicals[],MATCH("Adjuvant Cost/ha",tbl_chemicals[#Headers],0),0),0)*(M101<>0) -> 0 | Q101: =VLOOKUP(r[0]c3&"High",CHOOSE({1,2},tbl_chemicals[Name]&tbl_chemicals[Rainfall],INDIRECT("tbl_chemicals["&var_crop&"]")),2,0) | R101: =(P101*$E101)+IFERROR(VLOOKUP($C101,tbl_chemicals[],MATCH("Adjuvant Cost/ha",tbl_chemicals[#Headers],0),0),0)*(P101<>0) -> 0 | U101: 0
D102: Reset Cost | F102: =VLOOKUP(r[0]c3,tbl_chemicals[[Name]:[Cost]],MATCH("Cost",tbl_chemicals[#Headers],0),0) | H102: =VLOOKUP(r[0]c3,tbl_chemicals[[Name]:[Cost]],MATCH("Units",tbl_chemicals[#Headers],0),0) | I102: Reset Rate | K102: =VLOOKUP(r[0]c3&"Low",CHOOSE({1,2},tbl_chemicals[Name]&tbl_chemicals[Rainfall],INDIRECT("tbl_chemicals["&var_crop&"]")),2,0) | L102: =(J102*$E102)+IFERROR(VLOOKUP($C102,tbl_chemicals[],MATCH("Adjuvant Cost/ha",tbl_chemicals[#Headers],0),0),0)*(J102<>0) -> 0 | N102: =VLOOKUP(r[0]c3&"Medium",CHOOSE({1,2},tbl_chemicals[Name]&tbl_chemicals[Rainfall],INDIRECT("tbl_chemicals["&var_crop&"]")),2,0) | O102: =(M102*$E102)+IFERROR(VLOOKUP($C102,tbl_chemicals[],MATCH("Adjuvant Cost/ha",tbl_chemicals[#Headers],0),0),0)*(M102<>0) -> 0 | Q102: =VLOOKUP(r[0]c3&"High",CHOOSE({1,2},tbl_chemicals[Name]&tbl_chemicals[Rainfall],INDIRECT("tbl_chemicals["&var_crop&"]")),2,0) | R102: =(P102*$E102)+IFERROR(VLOOKUP($C102,tbl_chemicals[],MATCH("Adjuvant Cost/ha",tbl_chemicals[#Headers],0),0),0)*(P102<>0) -> 0 | U102: 0
D103: Reset Cost | F103: =VLOOKUP(r[0]c3,tbl_chemicals[[Name]:[Cost]],MATCH("Cost",tbl_chemicals[#Headers],0),0) | H103: =VLOOKUP(r[0]c3,tbl_chemicals[[Name]:[Cost]],MATCH("Units",tbl_chemicals[#Headers],0),0) | I103: Reset Rate | K103: =VLOOKUP(r[0]c3&"Low",CHOOSE({1,2},tbl_chemicals[Name]&tbl_chemicals[Rainfall],INDIRECT("tbl_chemicals["&var_crop&"]")),2,0) | L103: =(J103*$E103)+IFERROR(VLOOKUP($C103,tbl_chemicals[],MATCH("Adjuvant Cost/ha",tbl_chemicals[#Headers],0),0),0)*(J103<>0) -> 0 | N103: =VLOOKUP(r[0]c3&"Medium",CHOOSE({1,2},tbl_chemicals[Name]&tbl_chemicals[Rainfall],INDIRECT("tbl_chemicals["&var_crop&"]")),2,0) | O103: =(M103*$E103)+IFERROR(VLOOKUP($C103,tbl_chemicals[],MATCH("Adjuvant Cost/ha",tbl_chemicals[#Headers],0),0),0)*(M103<>0) -> 0 | Q103: =VLOOKUP(r[0]c3&"High",CHOOSE({1,2},tbl_chemicals[Name]&tbl_chemicals[Rainfall],INDIRECT("tbl_chemicals["&var_crop&"]")),2,0) | R103: =(P103*$E103)+IFERROR(VLOOKUP($C103,tbl_chemicals[],MATCH("Adjuvant Cost/ha",tbl_chemicals[#Headers],0),0),0)*(P103<>0) -> 0 | U103: 0
